Workbook

Sheet 00. Introduksjon
D2: 00. Introduksjon
D5: SteinLCA v2.2
B6: Beskrivelse
D9: Utviklet av Multiconsult | I samarbeid med Veidekke og Sintef | Kortreist stein
D11: Beskrivelse av fanene | G11: Informasjon om verktøyet
D12: 01. Prosjektbeskrivelse | G12: Beskrivelse av verktøyet
E13: Overordnet informasjon om prosjektet legges inn i denne fanen. | G13: Klimagassverktøyet gjør en beregning av klimagassutlipp knyttet til bruk av lokale steinmasser fra tunnel. Klimagassutslipp fra to alternativer beregnes: lokal behandling og ekstern behandling. Alternativet for lokal behandling er det som spesifiseres av brukeren, mens alternativet for ekstern behandling beregnes automatisk. Ved ekstern behandling modelleres det at alle uttaksmassene sendes til eksternt deponi, og hele behovet i linja dekkes av masser fra pukkverk. Figurene under beskriver verktøyets prinsipper og oppbygging. Kolonnen til venstre beskriver hver enkelt fane. Data skal kun føres inn i hvite felter, dette kan være i form av å skrive inn verdier eller velge fra nedtrekksmeny. Beregningene utføres til høyre i hver fane. Transportdistanse til linja er definert som midt på linja.
D15: 02. Inndata steinmasser | G15: Flytdiagram for Alternativ 01 - Lokal behandling
E16: Behov og uttak av steinmasser i prosjektet legges inn i denne fanen. Behovet for steinmasser er delt inn i tre knusetrinn. Hvert knusetrinn har ulik fraksjon og bruksområde. Fordeling av massene som tas ut skal også føres inn her, før videre spesifikasjon gjøres i de respektive prosessfanene. Transportdistanser spesifisert i prosessfanene summeres i denne fanen.
D18: 03. Mobilt knuseverk
E19: Hvis det finnes mobile knuseverk internt i prosjektet, og man skal bruke disse til å knuse noen av massene, legges data på dette inn i denne fanen. Masser mottatt fra nærliggende prosjekt kommer automatisk inn her. Det må videre spesifiseres hvor massene skal sendes etter knusing, og transport til og fra.
D21: 04. Deponi
E22: Denne fanen omfatter både internt og eksternt deponi. For internt deponi beregnes transport, utlegging og kompresjon, mens for eksternt deponi beregnes kun transport. Både masser fra tunnelmunning og fra mobilt knuseverk kan modelleres at sendes til deponi.
D24: 05. Pukkverk | G24: Flytdiagram for Alternativ 02 - Ekstern behandling
E25: Pukkverk som er tilknyttet prosjektet skal legges inn i denne fanen. Det kan modelleres at prosjektet leverer masser fra tunnelmunning til pukkverk, enten direkte eller via knusing i mobilt knuseverk, og at prosjektet henter nye masser fra pukkverk for å dekke behovet i linja.
D27: 06. Transport til annen samfunnsnyttig bruk
E28: Dersom det er aktuelt å sende masser fra tunnelmunning eller mobilt knuseverk til andre prosjekter eller andre former for samfunnsnyttig bruk skal det legges inn her. Alternativene omfatter asfaltproduksjon, betongfabrikk, nærliggende prosjekt eller annet. Systemgrensen er satt til port på aktuell bruk.
D30: 07. Resultater
E31: Resultater presenteres for de to alternativene i denne fanen. Klimagassutslipp fra de ulike prosessene er listet opp, og reduksjon ved lokal behandling sammenlignet med ekstern behandling beregnes.
D33: 08. Beregningsfaktorer
E34: Alle beregningsfaktorer ligger i denne fanen. Her er det mulighet til å overstyre innlagt data og tilpasse sitt eget prosjekt.
D36: 09. Utslippsfaktorer
E37: Alle utslippsfaktorer ligger i denne fanen. Her er det mulighet til å overstyre innlagt data og tilpasse sitt eget prosjekt.

Sheet 01. Prosjektbeskrivelse
D2: 01. Prosjektbeskrivelse
B6: Informasjon | D6: 1.1 | E6: Analyseinformasjon | H6: 1.4 Kartutsnitt
D7: 1.1.1 | E7: Utført av
D8: 1.1.2 | E8: Dato
D9: 1.1.3 | E9: Revisjon
D11: 1.2 | E11: Prosjektinformasjon
D12: 1.2.1 | E12: Navn på prosjekt
D13: 1.2.2 | E13: Startdato
D14: 1.2.3 | E14: Ferdigstillelsedato
D15: 1.2.4 | E15: Lengde på strekning (km)
D18: 1.3 | E18: Beskrivelse av prosjekt

Sheet 02. Inndata steinmasser
D2: 02. Inndata steinmasser
D4: Nr. | E4: Prosess | F4: Mengde/type | G4: Enhet
B5: Enhet
D7: 2.0 | E7: Enhet for steinmasser | F7: fm3
B10: Massebalanse
D11: 2.1 | E11: Uttak og mottak av masser | I11: 2.5 | J11: Massebalanse ekskludert vrakprosent
D12: 2.1.1 | E12: Utnyttbart masseuttak | G12: =$F$7 -> fm3
D13: 2.1.2 | E13: Vrakprosent fra tunnel | G13: =$F$7 -> fm3 | J13: ="Utnyttbare masser [" & IF($F$7="fm3","lm3",$F$7) &"]" -> Utnyttbare masser [lm3] | K13: ="Restprodukt [" & IF($F$7="fm3","lm3",$F$7) &"]" -> Restprodukt [lm3] | L13: ="Behov for masser [" & IF($F$7="fm3","lm3",$F$7) &"]" -> Behov for masser [lm3] | M13: ="Balanse [" & IF($F$7="fm3","lm3",$F$7) &"]" -> Balanse [lm3]
D14: 2.1.3 | E14: Mottak av masser fra nærliggende prosjekt | G14: =IF($F$7="fm3","lm3",$F$7) -> lm3 | J14: =IF($F$7="fm3",$F$12*('08. Beregningsfaktorer'!$G$65/'08. Beregningsfaktorer'!$G$66)+$F$14,$F$12+$F$14) -> 0 | K14: =IF($F$7="fm",'03. Mobilt knuseverk'!F22*('08. Beregningsfaktorer'!$G$65/'08. Beregningsfaktorer'!$G$66),'03. Mobilt knuseverk'!F22) -> 0 | L14: =F20+F23+F26 -> 0 | M14: =J14-L14-K14 -> 0 | N14: =IF(M14<0,"Behov for tilførte masser",IF(M14>0,"Overskudd av masser","Verken overskudd eller underskudd")) -> Verken overskudd eller underskudd
D16: 2.1.4 | E16: Sum uttak og mottak av masser | F16: =IF($F$7="fm3",($F$12+$F$13)*('08. Beregningsfaktorer'!$G$65/'08. Beregningsfaktorer'!$G$66)+F14,SUM(F12:F14)) -> 0 | G16: =IF($F$7="fm3","lm3",$F$7) -> lm3
D19: 2.2 | E19: Behov for masser med knusetrinn 1
D20: 2.2.1 | E20: Sum knusetrinn 1 | G20: =IF($F$7="fm3","lm3",$F$7) -> lm3
D22: 2.3 | E22: Behov for masser med knusetrinn 2
D23: 2.3.1 | E23: Sum knusetrinn 2 | G23: =IF($F$7="fm3","lm3",$F$7) -> lm3
D25: 2.4 | E25: Behov for masser med knusetrinn 3
D26: 2.4.1 | E26: Sum knusetrinn 3 | G26: =IF($F$7="fm3","lm3",$F$7) -> lm3
B29: Massefordeling
D30: 2.6 | E30: Lokale masser som skal fordeles
D31: 2.6.1 | E31: Totale masser som skal fordeles | F31: =F12+F13 -> 0 | G31: =$F$7 -> fm3
D32: 2.6.2 | E32: Ufordelte masser | F32: =F31-F40 -> 0 | G32: =$F$7 -> fm3 | H32: Ingen ufordelte masser
D34: 2.7 | E34: Tunnelmasser som skal fordeles
D35: 2.7.1 | E35: Mobilt knuseverk | G35: =$F$7 -> fm3
D36: 2.7.2 | E36: Deponi | G36: =$F$7 -> fm3
D37: 2.7.3 | E37: Pukkverk | G37: =$F$7 -> fm3
D38: 2.7.4 | E38: Annen samfunnsnyttig bruk | G38: =$F$7 -> fm3
D40: 2.7.5 | E40: Sum | F40: =SUM(F35:F38) -> 0 | G40: =$F$7 -> fm3
B42: Fordeding av eksterne masser
D43: 2.10 | E43: Eksterne masser som skal fordeles
D44: 2.7.1 | E44: Totale masser som skal fordeles | F44: =IF(M14<0,M14*(-1),0) -> 0 | G44: =$F$7 -> fm3
D45: 2.7.2 | E45: Rest som må fordeles | F45: =F44-F53 -> 0 | G45: =$F$7 -> fm3
D47: 2.11 | E47: Fordeling av lokale masser
D48: 2.8.1 | E48: Mobilt knuseverk | G48: =$F$7 -> fm3
D49: 2.8.2 | E49: Deponi | G49: =$F$7 -> fm3
D50: 2.8.3 | E50: Pukkverk | G50: =$F$7 -> fm3
D51: 2.8.4 | E51: Annen samfunnsnyttig bruk | G51: =$F$7 -> fm3
D53: 2.8.5 | E53: Sum | F53: =SUM(F48:F51) -> 0 | G53: =$F$7 -> fm3
B55: Distanser
D57: 2.8 | E57: Distanser fra tunnelmunning
D58: 2.8.1 | E58: Fra tunnelmunning til mobilt knuseverk | F58: ='03. Mobilt knuseverk'!F29 -> 0 | G58: km
D59: 2.8.2 | E59: Fra tunnelmunning til internt deponi | F59: ='04. Deponi'!F28 -> 0 | G59: km
D60: 2.8.3 | E60: Fra tunnelmunning til eksternt deponi 1 | F60: ='04. Deponi'!F76 -> 0 | G60: km
D61: 2.8.4 | E61: Fra tunnelmunning til eksternt deponi 2 | F61: ='04. Deponi'!F72 -> 0 | G61: km
D62: 2.8.5 | E62: Fra tunnelmunning til eksternt deponi 3 | F62: ='04. Deponi'!F73 -> 0 | G62: km
D63: 2.8.6 | E63: Fra tunnelmunning til pukkverk | F63: ='05. Pukkverk'!F16 -> 0 | G63: km
D64: 2.8.7 | E64: Fra tunnelmunning til betongfabrikk | F64: ='06. Transport annen bruk'!F38 -> 0 | G64: km
D65: 2.8.8 | E65: Fra tunnelmunning til asfaltproduksjon | F65: ='06. Transport annen bruk'!F63 -> 0 | G65: km
D66: 2.8.9 | E66: Fra tunnelmunning til nærliggende prosjekt | F66: ='06. Transport annen bruk'!F88 -> 0 | G66: km
D67: 2.8.10 | E67: Fra tunnelmunning til andre | F67: ='06. Transport annen bruk'!F113 -> 0 | G67: km
D69: 2.9 | E69: Distanser fra mobilt knuseverk
D70: 2.9.1 | E70: Fra mobilt knuseverk til pukkverk | F70: ='03. Mobilt knuseverk'!F31 -> 0 | G70: km
D71: 2.9.2 | E71: Fra mobilt knuseverk til linja | F71: ='03. Mobilt knuseverk'!F30 -> 0 | G71: km
D72: 2.9.3 | E72: Fra mobilt knuseverk til internt deponi | F72: ='04. Deponi'!F29 -> 0 | G72: km
D73: 2.9.4 | E73: Fra mobilt knuseverk til eksternt deponi | F73: ='04. Deponi'!F77 -> 0 | G73: km
D74: 2.9.5 | E74: Fra mobilt knuseverk til betongfabrikk | F74: ='06. Transport annen bruk'!F39 -> 0 | G74: km
D75: 2.9.6 | E75: Fra mobilt knuseverk til asfaltproduksjon | F75: ='06. Transport annen bruk'!F64 -> 0 | G75: km
D76: 2.9.7 | E76: Fra mobilt knuseverk til nærliggende prosjekt | F76: ='06. Transport annen bruk'!F89 -> 0 | G76: km
D77: 2.9.8 | E77: Fra mobilt knuseverk til andre | F77: ='06. Transport annen bruk'!F114 -> 0 | G77: km
D79: 2.10 | E79: Distanser fra pukkverk
D80: 2.10.1 | E80: Fra pukkverk til linja | F80: ='05. Pukkverk'!F17 -> 0 | G80: km

Sheet 03. Mobilt knuseverk
D2: 03. Mobilt knuseverk
D4: Nr. | E4: Prosess | F4: Mengde/type | G4: Enhet
B5: Masser
D6: 3.1 | E6: Masser til mobilt knuseverk
D7: 3.1.1 | E7: Tunnelmunning | F7: ='02. Inndata steinmasser'!F35 -> 0 | G7: ='02. Inndata steinmasser'!$F$7 -> fm3
D8: 3.1.2 | E8: Nærliggende prosjekt | F8: =IF(G8="fm3",'02. Inndata steinmasser'!$F$14*'08. Beregningsfaktorer'!$G$66/'08. Beregningsfaktorer'!$G$65,'02. Inndata steinmasser'!$F$14) -> 0 | G8: ='02. Inndata steinmasser'!$F$7 -> fm3
F9: 1
D10: 3.2 | E10: Restprodukt fra mobilt knuseverk
D11: 3.2.1 | E11: Andel restprodukt [%]
D12: 3.2.2 | E12: Hvor sendes restprodukt?
D14: 3.3 | E14: Fordeling av knuste masser ekskl. restprodukt
D15: 3.3.1 | E15: Linja | G15: ='02. Inndata steinmasser'!$F$7 -> fm3
D16: 3.3.2 | E16: Deponi | G16: ='02. Inndata steinmasser'!$F$7 -> fm3
D17: 3.3.3 | E17: Pukkverk | G17: ='02. Inndata steinmasser'!$F$7 -> fm3
D18: 3.3.4 | E18: Annen samfunnsnyttig bruk | G18: ='02. Inndata steinmasser'!$F$7 -> fm3
D20: 3.4 | E20: Balanse
D21: 3.4.1 | E21: Sum til mobilt knuseverk | F21: =F7+F8 -> 0 | G21: ='02. Inndata steinmasser'!$F$7 -> fm3
D22: 3.4.2 | E22: Sum restprodukt | F22: =(F7+F8)*F11 -> 0 | G22: ='02. Inndata steinmasser'!$F$7 -> fm3
D23: 3.4.3 | E23: Sum fordeling av masser | F23: =SUM(F15:F18) -> 0 | G23: ='02. Inndata steinmasser'!$F$7 -> fm3
D24: 3.4.4 | E24: Sum fordeling av masser inkl. restprodukt | F24: =F23+F22 -> 0 | G24: ='02. Inndata steinmasser'!$F$7 -> fm3
D25: 3.4.5 | E25: Ufordelte masser | F25: =F21-F24 -> 0 | G25: ='02. Inndata steinmasser'!$F$7 -> fm3 | H25: Ingen ufordelte masser
B27: Transport
D28: 3.5 | E28: Veidistanser mellom mobilt knuseverk og…
D29: 3.5.1 | E29: Tunnelmunning | G29: km
D30: 3.5.3 | E30: Linja | G30: km
D31: 3.5.4 | E31: Pukkverk | G31: km
T32: =E33&" - Grunnlagsdata og forbruk" -> Lasting til transport - Grunnlagsdata og forbruk | AA32: =E33&" - Utslipp knyttet til drivstoff/elektrisitet" -> Lasting til transport - Utslipp knyttet til drivstoff/elektrisitet | AH32: =E33&" - Utslipp knyttet til maskin" -> Lasting til transport - Utslipp knyttet til maskin | AO32: =E33&" - Sum utslipp" -> Lasting til transport - Sum utslipp
D33: 3.6 | E33: Lasting til transport | T33: Kategori | V33: =IF(F34='08. Beregningsfaktorer'!$E$43,'08. Beregningsfaktorer'!$E$43,IF(F34='08. Beregningsfaktorer'!$E$44,'09. Utslippsfaktorer'!$P$20,IF(OR(F34='08. Beregningsfaktorer'!$E$45,F34='08. Beregningsfaktorer'!$E$47),'09. Utslippsfaktorer'!$P$21,IF(F34='08. Beregningsfaktorer'!$E$46,'09. Utslippsfaktorer'!$P$21,"Mangler type lastemaskin")))) -> Mangler type lastemaskin | AC33: CO2-ekv. | AD33: SO2-ekv. | AE33: P-ekv. | AF33: NMVOC | AJ33: CO2-ekv. | AK33: SO2-ekv. | AL33: P-ekv. | AM33: NMVOC | AQ33: CO2-ekv. | AR33: SO2-ekv. | AS33: P-ekv. | AT33: NMVOC
D34: 3.6.1 | E34: Type lastemaskin | T34: Volum stein | W34: =IF(F$7=0,0,IF(G$7="fm3",F$7*'08. Beregningsfaktorer'!$G$65/'08. Beregningsfaktorer'!$G$66,F$7/'08. Beregningsfaktorer'!$G$66)) -> 0 | X34: lm3 | AA34: ="Utslippsfaktor (kg/"&W36&"):"&" " -> Utslippsfaktor (kg/...): | AC34: =IF(F34=0,0,IF(F34='08. Beregningsfaktorer'!$E$43,0,(INDEX('09. Utslippsfaktorer'!$P$7:$U$12,MATCH(X36,'09. Utslippsfaktorer'!$P$7:$P$12,0),MATCH("kg "&AC33,'09. Utslippsfaktorer'!$P$7:$U$7,0),1)))) -> 0 | AD34: =IF(F34=0,0,IF(F34='08. Beregningsfaktorer'!$E$43,0,(INDEX('09. Utslippsfaktorer'!$P$7:$U$12,MATCH(X36,'09. Utslippsfaktorer'!$P$7:$P$12,0),MATCH("kg "&AD33,'09. Utslippsfaktorer'!$P$7:$U$7,0),1)))) -> 0 | AE34: =IF(F34=0,0,IF(F34='08. Beregningsfaktorer'!$E$43,0,(INDEX('09. Utslippsfaktorer'!$P$7:$U$12,MATCH(X36,'09. Utslippsfaktorer'!$P$7:$P$12,0),MATCH("kg "&AE33,'09. Utslippsfaktorer'!$P$7:$U$7,0),1)))) -> 0 | AF34: =IF(F34=0,0,IF(F34='08. Beregningsfaktorer'!$E$43,0,(INDEX('09. Utslippsfaktorer'!$P$7:$U$12,MATCH(X36,'09. Utslippsfaktorer'!$P$7:$P$12,0),MATCH("kg "&AF33,'09. Utslippsfaktorer'!$P$7:$U$7,0),1)))) -> 0 | AH34: Utslippsfaktor (kg/m3): | AJ34: =IF(F34=0,0,IF(F34='08. Beregningsfaktorer'!$E$43,0,(INDEX('09. Utslippsfaktorer'!$P$7:$U$45,MATCH(V33,'09. Utslippsfaktorer'!$P$7:$P$45,0),MATCH("kg "&AJ33,'09. Utslippsfaktorer'!$P$7:$U$7,0),1)))) -> 0 | AK34: =IF(F34=0,0,IF(F34='08. Beregningsfaktorer'!$E$43,0,(INDEX('09. Utslippsfaktorer'!$P$7:$U$45,MATCH(V33,'09. Utslippsfaktorer'!$P$7:$P$45,0),MATCH("kg "&AK33,'09. Utslippsfaktorer'!$P$7:$U$7,0),1)))) -> 0 | AL34: =IF(F34=0,0,IF(F34='08. Beregningsfaktorer'!$E$43,0,(INDEX('09. Utslippsfaktorer'!$P$7:$U$45,MATCH(V33,'09. Utslippsfaktorer'!$P$7:$P$45,0),MATCH("kg "&AL33,'09. Utslippsfaktorer'!$P$7:$U$7,0),1)))) -> 0 | AM34: =IF(F34=0,0,IF(F34='08. Beregningsfaktorer'!$E$43,0,(INDEX('09. Utslippsfaktorer'!$P$7:$U$45,MATCH(V33,'09. Utslippsfaktorer'!$P$7:$P$45,0),MATCH("kg "&AM33,'09. Utslippsfaktorer'!$P$7:$U$7,0),1)))) -> 0 | AO34: Utslipp (kg): | AQ34: =AC35+AJ35 -> 0 | AR34: =AD35+AK35 -> 0 | AS34: =AE35+AL35 -> 0 | AT34: =AF35+AM35 -> 0
T35: Forbruk per m3 stein | W35: =IF(F34=0,0,(INDEX('08. Beregningsfaktorer'!$E$12:$G$89,MATCH(F34,'08. Beregningsfaktorer'!$E$12:$E$89,0),3,1))) -> 0 | X35: =W36&"/"&X34 -> .../lm3 | AA35: Utslipp (kg): | AC35: =V36*AC34 -> 0 | AD35: =V36*AD34 -> 0 | AE35: =V36*AE34 -> 0 | AF35: =V36*AF34 -> 0 | AH35: Utslipp (kg): | AJ35: =W34*AJ34 -> 0 | AK35: =W34*AK34 -> 0 | AL35: =W34*AL34 -> 0 | AM35: =W34*AM34 -> 0
H36: OBS! Retur med nyttelast tas ikke med i totalutslipp. Utslipp kan sees i mellomregningene til høyre. | T36: Forbruk | V36: =W34*W35 -> 0 | W36: =IF(F34='08. Beregningsfaktorer'!$E$44,"l",IF(OR(F34='08. Beregningsfaktorer'!$E$45,F34='08. Beregningsfaktorer'!$E$47),"l",IF(F34='08. Beregningsfaktorer'!$E$46,"kWh","..."))) -> ... | X36: =IF(F34='08. Beregningsfaktorer'!$E$43,"Ingen løft",IF(F34='08. Beregningsfaktorer'!$E$44,"Diesel",IF(F34='08. Beregningsfaktorer'!$E$45,"Diesel",IF(F34='08. Beregningsfaktorer'!$E$47,"Biodiesel",IF(F34='08. Beregningsfaktorer'!$E$46,"Elektrisitet","Mangler type lastemaskin"))))) -> Mangler type lastemaskin
H37: OBS! Mengde transportert ut av prosjektet må også skrives inn for retur med tom last, for å beregne antall returer.
D38: 3.7 | E38: Transport til mobilt knuseverk | F38: Endre antall kjøretøy:
D39: 3.7.1 | E39: Type kjøretøy | G39: =F40 -> 0 | T39: =E38&" - Grunnlagsdata og forbruk" -> Transport til mobilt knuseverk - Grunnlagsdata og forbruk | AA39: =E38&" - Utslipp knyttet til drivstoff/elektrisitet" -> Transport til mobilt knuseverk - Utslipp knyttet til drivstoff/elektrisitet | AH39: =E38&" - Utslipp knyttet til kjøretøy og infrastruktur" -> Transport til mobilt knuseverk - Utslipp knyttet til kjøretøy og infrastruktur | AO39: =E$38&" - Sum utslipp" -> Transport til mobilt knuseverk - Sum utslipp
C40: =IF(F39='08. Beregningsfaktorer'!#REF!,"J",0) ->  | D40: 3.7.2 | E40: Mengde stein | G40: ='02. Inndata steinmasser'!$F$7 -> fm3 | T40: Kategori | V40: =IF(OR(F39='08. Beregningsfaktorer'!$B$9,F39='08. Beregningsfaktorer'!$B$10,F39='08. Beregningsfaktorer'!$B$11),'09. Utslippsfaktorer'!$P$14,IF(OR(F39='08. Beregningsfaktorer'!$B$12,F39='08. Beregningsfaktorer'!$B$13),'09. Utslippsfaktorer'!$P$15,IF(OR(F39='08. Beregningsfaktorer'!$B$14,F39='08. Beregningsfaktorer'!$B$15),'09. Utslippsfaktorer'!$P$16,IF(OR(F39='08. Beregningsfaktorer'!$B$24,F39='08. Beregningsfaktorer'!$B$25),'09. Utslippsfaktorer'!$P$18,IF(F39='08. Beregningsfaktorer'!$B$26,'09. Utslippsfaktorer'!$P$18,IF(F39='08. Beregningsfaktorer'!$B$27,'09. Utslippsfaktorer'!$P$18,IF(F39='08. Beregningsfaktorer'!$B$28,'09. Utslippsfaktorer'!$P$19,IF(F39='08. Beregningsfaktorer'!$B$29,'09. Utslippsfaktorer'!$P$19,IF(OR(F39='08. Beregningsfaktorer'!$B$17,F39='08. Beregningsfaktorer'!$B$16,F39='08. Beregningsfaktorer'!$B$18,F39='08. Beregningsfaktorer'!$B$19),'09. Utslippsfaktorer'!$P$16,IF(OR(F39='08. Beregningsfaktorer'!$B$20,F39='08. Beregningsfaktorer'!$B$21,F39='08. Beregningsfaktorer'!$B$22,F39='08. Beregningsfaktorer'!$B$23),'09. Utslippsfaktorer'!$P$14,"Mangler type kjøretøy")))))))))) -> Mangler type kjøretøy | AC40: CO2-ekv. | AD40: SO2-ekv. | AE40: P-ekv. | AF40: NMVOC | AJ40: CO2-ekv. | AK40: SO2-ekv. | AL40: P-ekv. | AM40: NMVOC | AQ40: CO2-ekv. | AR40: SO2-ekv. | AS40: P-ekv. | AT40: NMVOC
D41: 3.7.3 | E41: Hvor kommer massene fra? | G41: =IF(OR(F39='08. Beregningsfaktorer'!$B$28,F39='08. Beregningsfaktorer'!$B$29),0,IF(OR(F42='08. Beregningsfaktorer'!$E$77,F42='08. Beregningsfaktorer'!$E$80),F40*F43,0)) -> 0 | T41: =IF(F42='08. Beregningsfaktorer'!$E$78,"km","tonn km") -> tonn km | W41: =IF(F42='08. Beregningsfaktorer'!$E$78,IF(G40="tonn",IF(OR(F39='08. Beregningsfaktorer'!$B$16,F39='08. Beregningsfaktorer'!$B$17),(F40/8.5)*F43,IF(OR(F39='08. Beregningsfaktorer'!$B$18,F39='08. Beregningsfaktorer'!$B$19),(F40/14)*F43,IF(OR(F39='08. Beregningsfaktorer'!$B$20,F39='08. Beregningsfaktorer'!$B$21),(F40/26)*F43,IF(OR(F39='08. Beregningsfaktorer'!$B$22,F39='08. Beregningsfaktorer'!$B$23),(F40/40)*F43,IF(OR(F39='08. Beregningsfaktorer'!$B$24,F39='08. Beregningsfaktorer'!$B$25),(F40/14)*F43,IF(F39='08. Beregningsfaktorer'!$B$26,(F40/14)*F43,IF(F39='08. Beregningsfaktorer'!$B$27,(F40/14)*F43))))))),IF(OR(F39='08. Beregningsfaktorer'!$B$16,F39='08. Beregningsfaktorer'!$B$17),(F40*'08. Beregningsfaktorer'!$G$65/8.5)*F43,IF(OR(F39='08. Beregningsfaktorer'!$B$18,F39='08. Beregningsfaktorer'!$B$19),(F40*'08. Beregningsfaktorer'!$G$65/14)*F43,IF(OR(F39='08. Beregningsfaktorer'!$B$20,F39='08. Beregningsfaktorer'!$B$21),(F40*'08. Beregningsfaktorer'!$G$65/26)*F43,IF(OR(F39='08. Beregningsfaktorer'!$B$22,F39='08. Beregningsfaktorer'!$B$23),(F40*'08. Beregningsfaktorer'!$G$65/40)*F43,IF(OR(F39='08. Beregningsfaktorer'!$B$24,F39='08. Beregningsfaktorer'!$B$25),(F40*'08. Beregningsfaktorer'!$G$65/14)*F43,IF(F39='08. Beregningsfaktorer'!$B$26,(F40*'08. Beregningsfaktorer'!$G$65/14)*F43,IF(F39='08. Beregningsfaktorer'!$B$27,(F40*'08. Beregningsfaktorer'!$G$65/14)*F43)))))))),IF(F40=0,0,IF(F42='08. Beregningsfaktorer'!$E$80,IF(AND(OR(F39='08. Beregningsfaktorer'!$B$28,F39='08. Beregningsfaktorer'!$B$29),G40="tonn"),(F40/1900)*F43,IF(OR(F39='08. Beregningsfaktorer'!$B$28,F39='08. Beregningsfaktorer'!$B$29),(F40*'08. Beregningsfaktorer'!$G$65/1900)*F43,IF(G40="tonn",F40,F40*'08. Beregningsfaktorer'!$G$65)*F43)),IF(G40="tonn",F40*F43,F40*'08. Beregningsfaktorer'!$G$65)*F43))) -> 0 | X41: =IF(OR(F42='08. Beregningsfaktorer'!$E$78,F39='08. Beregningsfaktorer'!$B$28,F39='08. Beregningsfaktorer'!$B$29),"km","tkm") -> tkm | AA41: ="Utslippsfaktor (kg/"&W44&"):"&" " -> Utslippsfaktor (kg/l): | AC41: =IF(F39=0,0,(INDEX('09. Utslippsfaktorer'!$P$7:$U$13,MATCH(X44,'09. Utslippsfaktorer'!$P$7:$P$13,0),MATCH("kg "&AC40,'09. Utslippsfaktorer'!$P$7:$U$7,0),1))) -> 0 | AD41: =IF(F39=0,0,(INDEX('09. Utslippsfaktorer'!$P$7:$U$13,MATCH(X44,'09. Utslippsfaktorer'!$P$7:$P$13,0),MATCH("kg "&AD40,'09. Utslippsfaktorer'!$P$7:$U$7,0),1))) -> 0 | AE41: =IF(F39=0,0,(INDEX('09. Utslippsfaktorer'!$P$7:$U$13,MATCH(X44,'09. Utslippsfaktorer'!$P$7:$P$13,0),MATCH("kg "&AE40,'09. Utslippsfaktorer'!$P$7:$U$7,0),1))) -> 0 | AF41: =IF(F39=0,0,(INDEX('09. Utslippsfaktorer'!$P$7:$U$13,MATCH(X44,'09. Utslippsfaktorer'!$P$7:$P$13,0),MATCH("kg "&AF40,'09. Utslippsfaktorer'!$P$7:$U$7,0),1))) -> 0 | AH41: ="Utslippsfaktor (kg/"&X41&"):" -> Utslippsfaktor (kg/tkm): | AJ41: =IF(F39=0,0,(INDEX('09. Utslippsfaktorer'!$P$7:$U$45,MATCH(V40,'09. Utslippsfaktorer'!$P$7:$P$45,0),MATCH("kg "&AJ40,'09. Utslippsfaktorer'!$P$7:$U$7,0),1))) -> 0 | AK41: =IF(F39=0,0,(INDEX('09. Utslippsfaktorer'!$P$7:$U$45,MATCH(V40,'09. Utslippsfaktorer'!$P$7:$P$45,0),MATCH("kg "&AK40,'09. Utslippsfaktorer'!$P$7:$U$7,0),1))) -> 0 | AL41: =IF(F39=0,0,(INDEX('09. Utslippsfaktorer'!$P$7:$U$45,MATCH(V40,'09. Utslippsfaktorer'!$P$7:$P$45,0),MATCH("kg "&AL40,'09. Utslippsfaktorer'!$P$7:$U$7,0),1))) -> 0 | AM41: =IF(F39=0,0,(INDEX('09. Utslippsfaktorer'!$P$7:$U$45,MATCH(V40,'09. Utslippsfaktorer'!$P$7:$P$45,0),MATCH("kg "&AM40,'09. Utslippsfaktorer'!$P$7:$U$7,0),1))) -> 0 | AO41: Utslipp (kg): | AQ41: =IF(F42='08. Beregningsfaktorer'!$E$79,0,AC42+AJ42) -> 0 | AR41: =IF(F42='08. Beregningsfaktorer'!$E$79,0,AD42+AK42) -> 0 | AS41: =IF(F42='08. Beregningsfaktorer'!$E$79,0,AE42+AL42) -> 0 | AT41: =IF(F42='08. Beregningsfaktorer'!$E$79,0,AF42+AM42) -> 0
D42: 3.7.4 | E42: Lastekapasitet | G42: =IF(OR(F39='08. Beregningsfaktorer'!$B$9,F39='08. Beregningsfaktorer'!$B$10,F39='08. Beregningsfaktorer'!$B$12,F39='08. Beregningsfaktorer'!$B$13,F39='08. Beregningsfaktorer'!$B$14,F39='08. Beregningsfaktorer'!$B$15,F39='08. Beregningsfaktorer'!$B$28,F39='08. Beregningsfaktorer'!$B$29),IF(F42='08. Beregningsfaktorer'!$E$80,0,1),IF(F42='08. Beregningsfaktorer'!$E$80,3,0)) -> 0 | T42: Korreksjonsfaktor | W42: =IF(F44=0,0,INDEX('08. Beregningsfaktorer'!$E$54:$G$55,MATCH(F44,'08. Beregningsfaktorer'!$E$54:$E$55,0),3)) -> 0 | AA42: Utslipp (kg): | AC42: =IFERROR(V44*AC41,"Data mangler") -> 0 | AD42: =IFERROR(V44*AD41,"Data mangler") -> 0 | AE42: =IFERROR(V44*AE41,"Data mangler") -> 0 | AF42: =IFERROR(V44*AF41,"Data mangler") -> 0 | AH42: Utslipp (kg): | AJ42: =IF(V40='09. Utslippsfaktorer'!$P$19,IF(G40="tonn",F43*AJ41*F40,F43*AJ41*F40*'08. Beregningsfaktorer'!$G$65),IF(F42='08. Beregningsfaktorer'!$E$78,0,IFERROR(W41*AJ41,"Data mangler"))) -> 0 | AK42: =IF(V40='09. Utslippsfaktorer'!$P$19,IF(G40="tonn",F43*AK41*F40,F43*AK41*F40*'08. Beregningsfaktorer'!$G$65),IF(F42='08. Beregningsfaktorer'!$E$78,0,IFERROR(W41*AK41,"Data mangler"))) -> 0 | AL42: =IF(V40='09. Utslippsfaktorer'!$P$19,IF(G40="tonn",F43*AL41*F40,F43*AL41*F40*'08. Beregningsfaktorer'!$G$65),IF(F42='08. Beregningsfaktorer'!$E$78,0,IFERROR(W41*AL41,"Data mangler"))) -> 0 | AM42: =IF(V40='09. Utslippsfaktorer'!$P$19,IF(G40="tonn",F43*AM41*F40,F43*AM41*F40*'08. Beregningsfaktorer'!$G$65),IF(F42='08. Beregningsfaktorer'!$E$78,0,IFERROR(W41*AM41,"Data mangler"))) -> 0
D43: 3.7.5 | E43: Distanse | G43: km | T43: =IF(F42='08. Beregningsfaktorer'!$E$78,"Forbruk per km","Forbruk per tonn km") -> Forbruk per tonn km | W43: =IFERROR(IF(F39=0,0,IF(F42='08. Beregningsfaktorer'!$E$78,INDEX('08. Beregningsfaktorer'!$E$30:$G$41,MATCH(F39,'08. Beregningsfaktorer'!$B$30:$B$41,0),3,1),INDEX('08. Beregningsfaktorer'!$E$9:$G$29,MATCH(F39,'08. Beregningsfaktorer'!$B$9:$B$29,0),3,1))),"Loading..") -> 0 | X43: =IFERROR(W44&"/"&X41,"Loading..") -> l/tkm
D44: 3.7.6 | E44: Transport med helning | T44: Forbruk | V44: =IFERROR(W41*W43*W42,"Data mangler") -> 0 | W44: =IFERROR(IF(OR(F39='08. Beregningsfaktorer'!$B$26,F39='08. Beregningsfaktorer'!$B$27),"kWh",IF(F39='08. Beregningsfaktorer'!$B$11,"MJ","l")),"Loading..") -> l | X44: =IFERROR(IF(F39='08. Beregningsfaktorer'!$B$11,"Biogass",IF(OR(F39='08. Beregningsfaktorer'!$B$26,F39='08. Beregningsfaktorer'!$B$27),"Elektrisitet",IF(OR(F39='08. Beregningsfaktorer'!$B$10,F39='08. Beregningsfaktorer'!$B$13,F39='08. Beregningsfaktorer'!$B$15,F39='08. Beregningsfaktorer'!$B$17,F39='08. Beregningsfaktorer'!$B$17,F39='08. Beregningsfaktorer'!$B$19,F39='08. Beregningsfaktorer'!$B$21,F39='08. Beregningsfaktorer'!$B$23,F39='08. Beregningsfaktorer'!$B$25,F39='08. Beregningsfaktorer'!$B$29),"Biodiesel",IF(V40="Mangler type kjøretøy","Mangler type kjøretøy","Diesel")))),"Feil") -> Mangler type kjøretøy
AO46: =E38&" - Sum utslipp - Alle kjøretøy" -> Transport til mobilt knuseverk - Sum utslipp - Alle kjøretøy
AQ47: CO2-ekv. | AR47: SO2-ekv. | AS47: P-ekv. | AT47: NMVOC
D48: 3.8 | E48: Balanse veitransport | F48: =SUMIF(E38:E45,"Lastekapasitet",G38:G45) -> 0 | H48: Lastutnyttelse korrekt modellert | AO48: Utslipp (kg): | AQ48: =SUMIF(D38:D45,$D41,AQ38:AQ45) -> 0 | AR48: =SUMIF(D38:D45,$D41,AR38:AR45) -> 0 | AS48: =SUMIF(D38:D45,$D41,AS38:AS45) -> 0 | AT48: =SUMIF(D38:D45,$D41,AT38:AT45) -> 0
D49: 3.8.1 | E49: ="Balanse - "&E29 -> Balanse - Tunnelmunning | F49: =((F$7-SUMIF(F38:F45,'08. Beregningsfaktorer'!$B$28,G38:G45)-SUMIF(F38:F45,'08. Beregningsfaktorer'!$B$29,G38:G45))*F$29)-(SUMIF(F38:F45,E$7,G38:G45)) -> 0 | G49: ='02. Inndata steinmasser'!$F$7& " km" -> fm3 km | H49: Transportdistanser og masser stemmer
T50: =V51&" - Grunnlagsdata og forbruk - Ikke inkludert i beregninger" -> Lastebil tipp - Grunnlagsdata og forbruk - Ikke inkludert i beregninger | AA50: =V51&" - Utslipp knyttet til drivstoff/elektrisitet" -> Lastebil tipp - Utslipp knyttet til drivstoff/elektrisitet | AO50: =V51&" - Sum utslipp" -> Lastebil tipp - Sum utslipp
T51: Kategori | V51: Lastebil tipp | AC51: CO2-ekv. | AD51: SO2-ekv. | AE51: P-ekv. | AF51: NMVOC | AQ51: CO2-ekv. | AR51: SO2-ekv. | AS51: P-ekv. | AT51: NMVOC
T52: Volum stein | X52: m3 | Y52: =IF(F21=0,0,IF(G21="m3",F21*'08. Beregningsfaktorer'!$G$65/'08. Beregningsfaktorer'!$G$66-(SUMIF(C38:C45,"J",F38:F45)),(F21-(SUMIF(C38:C45,"J",F38:F45)))/'08. Beregningsfaktorer'!$G$66)) -> 0 | AA52: ="Utslippsfaktor (kg/"&W54&"):"&" " -> Utslippsfaktor (kg/l): | AC52: =IF(V51=0,0,(INDEX('09. Utslippsfaktorer'!$P$7:$U$12,MATCH(X54,'09. Utslippsfaktorer'!$P$7:$P$12,0),MATCH("kg "&AC51,'09. Utslippsfaktorer'!$P$7:$U$7,0),1))) -> 3.1476 | AD52: =IF(V51=0,0,(INDEX('09. Utslippsfaktorer'!$P$7:$U$12,MATCH(X54,'09. Utslippsfaktorer'!$P$7:$P$12,0),MATCH("kg "&AD51,'09. Utslippsfaktorer'!$P$7:$U$7,0),1))) -> 0 | AE52: =IF(V51=0,0,(INDEX('09. Utslippsfaktorer'!$P$7:$U$12,MATCH(X54,'09. Utslippsfaktorer'!$P$7:$P$12,0),MATCH("kg "&AE51,'09. Utslippsfaktorer'!$P$7:$U$7,0),1))) -> 0 | AF52: =IF(V51=0,0,(INDEX('09. Utslippsfaktorer'!$P$7:$U$12,MATCH(X54,'09. Utslippsfaktorer'!$P$7:$P$12,0),MATCH("kg "&AF51,'09. Utslippsfaktorer'!$P$7:$U$7,0),1))) -> 0 | AO52: Utslipp (kg): | AQ52: =AC53+AJ53 -> 0 | AR52: =AD53+AK53 -> 0 | AS52: =AE53+AL53 -> 0 | AT52: =AF53+AM53 -> 0
T53: Forbruk per m3 stein | W53: =IF(V51=0,0,(INDEX('08. Beregningsfaktorer'!$E$12:$G$89,MATCH(V51,'08. Beregningsfaktorer'!$E$12:$E$89,0),3,1))) -> 0.19 | X53: =W54&"/"&X52 -> l/m3 | AA53: Utslipp (kg): | AC53: =$V54*AC52 -> 0 | AD53: =$V54*AD52 -> 0 | AE53: =$V54*AE52 -> 0 | AF53: =$V54*AF52 -> 0
T54: Forbruk | V54: =W52*W53 -> 0 | W54: =IF(V51='08. Beregningsfaktorer'!$E$50,"l",IF(V51='08. Beregningsfaktorer'!$E$51,"l",IF(V51='08. Beregningsfaktorer'!$E$52,"l","..."))) -> l | X54: =IF(V51='08. Beregningsfaktorer'!$E$50,"Diesel",IF(V51='08. Beregningsfaktorer'!$E$51,"Diesel",IF(V51='08. Beregningsfaktorer'!$E$52,"Diesel","Mangler type kjøretøy"))) -> Diesel
B56: Knuseverk
T58: =E59&" - Grunnlagsdata og forbruk" -> Lasting til knusetrinn 1 - Grunnlagsdata og forbruk | AA58: =E59&" - Utslipp knyttet til drivstoff/elektrisitet" -> Lasting til knusetrinn 1 - Utslipp knyttet til drivstoff/elektrisitet | AH58: =E59&" - Utslipp knyttet til maskin" -> Lasting til knusetrinn 1 - Utslipp knyttet til maskin | AO58: =E59&" - Sum utslipp" -> Lasting til knusetrinn 1 - Sum utslipp
D59: 3.9 | E59: Lasting til knusetrinn 1 | T59: Kategori | AC59: CO2-ekv. | AD59: SO2-ekv. | AE59: P-ekv. | AF59: NMVOC | AJ59: CO2-ekv. | AK59: SO2-ekv. | AL59: P-ekv. | AM59: NMVOC | AQ59: CO2-ekv. | AR59: SO2-ekv. | AS59: P-ekv. | AT59: NMVOC
D60: 3.9.1 | E60: Type lastemaskin | F60: Inkludert i 3.10 | T60: Volum stein | AA60: ="Utslippsfaktor (kg/"&W62&"):"&" " -> Utslippsfaktor (kg/): | AH60: Utslippsfaktor (kg/m3): | AO60: Utslipp (kg): | AQ60: =AC61+AJ61 -> 0 | AR60: =AD61+AK61 -> 0 | AS60: =AE61+AL61 -> 0 | AT60: =AF61+AM61 -> 0
T61: Forbruk per m3 stein | AA61: Utslipp (kg): | AH61: Utslipp (kg):
H62: Legg inn knusemaskiner for de knusetrinnene som skal benyttes. | T62: Forbruk
T64: =E65&" - Grunnlagsdata og forbruk" -> Mobilt knuseverk knusetrinn 1 - Grunnlagsdata og forbruk | AA64: =E65&" - Utslipp" -> Mobilt knuseverk knusetrinn 1 - Utslipp | AO64: =E65&" - Sum utslipp" -> Mobilt knuseverk knusetrinn 1 - Sum utslipp
D65: 3.10 | E65: Mobilt knuseverk knusetrinn 1 | T65: Kategori | V65: =IF(F66='08. Beregningsfaktorer'!$E$82,'09. Utslippsfaktorer'!$P$26,IF(F66='08. Beregningsfaktorer'!$E$83,'09. Utslippsfaktorer'!$P$27,"Mangler type knuseverk")) -> Mangler type knuseverk | AC65: CO2-ekv. | AD65: SO2-ekv. | AE65: P-ekv. | AF65: NMVOC | AQ65: CO2-ekv. | AR65: SO2-ekv. | AS65: P-ekv. | AT65: NMVOC
D66: 3.10.1 | E66: Type knuseverk | T66: Mengde stein | W66: =IF(F$66=0,0,IF(G$21="tonn",F$21,F$21*'08. Beregningsfaktorer'!G$65)) -> 0 | X66: tonn | AA66: ="Utslippsfaktor (kg/"&X66&"):"&" " -> Utslippsfaktor (kg/tonn): | AC66: =IF($F66=0,0,(INDEX('09. Utslippsfaktorer'!$P$7:$U$45,MATCH($V65,'09. Utslippsfaktorer'!$P$7:$P$45,0),MATCH("kg "&AC65,'09. Utslippsfaktorer'!$P$7:$U$7,0),1))) -> 0 | AD66: =IF($F66=0,0,(INDEX('09. Utslippsfaktorer'!$P$7:$U$45,MATCH($V65,'09. Utslippsfaktorer'!$P$7:$P$45,0),MATCH("kg "&AD65,'09. Utslippsfaktorer'!$P$7:$U$7,0),1))) -> 0 | AE66: =IF($F66=0,0,(INDEX('09. Utslippsfaktorer'!$P$7:$U$45,MATCH($V65,'09. Utslippsfaktorer'!$P$7:$P$45,0),MATCH("kg "&AE65,'09. Utslippsfaktorer'!$P$7:$U$7,0),1))) -> 0 | AF66: =IF($F66=0,0,(INDEX('09. Utslippsfaktorer'!$P$7:$U$45,MATCH($V65,'09. Utslippsfaktorer'!$P$7:$P$45,0),MATCH("kg "&AF65,'09. Utslippsfaktorer'!$P$7:$U$7,0),1))) -> 0 | AO66: Utslipp (kg): | AQ66: =AC67 -> 0 | AR66: =AD67 -> 0 | AS66: =AE67 -> 0 | AT66: =AF67 -> 0
T67: Kapasitet | W67: =IF(F66=0,0,IF(F66='08. Beregningsfaktorer'!$E$82,0,(INDEX('08. Beregningsfaktorer'!$E$82:$G$83,MATCH(F66,'08. Beregningsfaktorer'!$E$82:$E$83,0),3,1)))) -> 0 | X67: =X66&"/"&W68 -> tonn/h | AA67: Utslipp (kg): | AC67: =AC66*W66 -> 0 | AD67: =AD66*W66 -> 0 | AE67: =AE66*W66 -> 0 | AF67: =AF66*W66 -> 0
T68: Forbruk | V68: =W66*W67 -> 0 | W68: h | X68: =IF(F66='08. Beregningsfaktorer'!$E$82,"Standard beregning",F66) -> 0
T70: =E71&" - Grunnlagsdata og forbruk" -> Lasting til knusetrinn 2 - Grunnlagsdata og forbruk | AA70: =E71&" - Utslipp knyttet til drivstoff/elektrisitet" -> Lasting til knusetrinn 2 - Utslipp knyttet til drivstoff/elektrisitet | AH70: =E71&" - Utslipp knyttet til maskin" -> Lasting til knusetrinn 2 - Utslipp knyttet til maskin | AO70: =E71&" - Sum utslipp" -> Lasting til knusetrinn 2 - Sum utslipp
D71: 3.11 | E71: Lasting til knusetrinn 2 | T71: Kategori | AC71: CO2-ekv. | AD71: SO2-ekv. | AE71: P-ekv. | AF71: NMVOC | AJ71: CO2-ekv. | AK71: SO2-ekv. | AL71: P-ekv. | AM71: NMVOC | AQ71: CO2-ekv. | AR71: SO2-ekv. | AS71: P-ekv. | AT71: NMVOC
D72: 3.11.1 | E72: Type lastemaskin | F72: Inkludert i 3.12 | T72: Volum stein | AA72: ="Utslippsfaktor (kg/"&W74&"):"&" " -> Utslippsfaktor (kg/): | AH72: Utslippsfaktor (kg/m3): | AO72: Utslipp (kg): | AQ72: =AC73+AJ73 -> 0 | AR72: =AD73+AK73 -> 0 | AS72: =AE73+AL73 -> 0 | AT72: =AF73+AM73 -> 0
T73: Forbruk per m3 stein | AA73: Utslipp (kg): | AH73: Utslipp (kg):
T74: Forbruk
T76: =E77&" - Grunnlagsdata og forbruk" -> Mobilt knuseverk knusetrinn 2 - Grunnlagsdata og forbruk | AA76: =E77&" - Utslipp" -> Mobilt knuseverk knusetrinn 2 - Utslipp | AO76: =E77&" - Sum utslipp" -> Mobilt knuseverk knusetrinn 2 - Sum utslipp
D77: 3.12 | E77: Mobilt knuseverk knusetrinn 2 | T77: Kategori | V77: =IF(F78='08. Beregningsfaktorer'!$E$85,'09. Utslippsfaktorer'!$P$28,IF(F78='08. Beregningsfaktorer'!$E$86,'09. Utslippsfaktorer'!$P$29,"Mangler type knuseverk")) -> Mangler type knuseverk | AC77: CO2-ekv. | AD77: SO2-ekv. | AE77: P-ekv. | AF77: NMVOC | AQ77: CO2-ekv. | AR77: SO2-ekv. | AS77: P-ekv. | AT77: NMVOC
D78: 3.12.1 | E78: Type knuseverk | T78: Mengde stein | W78: =IF(F$78=0,0,IF(G$21="tonn",F$21,F$21*'08. Beregningsfaktorer'!G$65)) -> 0 | X78: tonn | AA78: ="Utslippsfaktor (kg/"&W80&"):"&" " -> Utslippsfaktor (kg/h): | AC78: =IF($F78=0,0,(INDEX('09. Utslippsfaktorer'!$P$7:$U$45,MATCH($V77,'09. Utslippsfaktorer'!$P$7:$P$45,0),MATCH("kg "&AC77,'09. Utslippsfaktorer'!$P$7:$U$7,0),1))) -> 0 | AD78: =IF($F78=0,0,(INDEX('09. Utslippsfaktorer'!$P$7:$U$45,MATCH($V77,'09. Utslippsfaktorer'!$P$7:$P$45,0),MATCH("kg "&AD77,'09. Utslippsfaktorer'!$P$7:$U$7,0),1))) -> 0 | AE78: =IF($F78=0,0,(INDEX('09. Utslippsfaktorer'!$P$7:$U$45,MATCH($V77,'09. Utslippsfaktorer'!$P$7:$P$45,0),MATCH("kg "&AE77,'09. Utslippsfaktorer'!$P$7:$U$7,0),1))) -> 0 | AF78: =IF($F78=0,0,(INDEX('09. Utslippsfaktorer'!$P$7:$U$45,MATCH($V77,'09. Utslippsfaktorer'!$P$7:$P$45,0),MATCH("kg "&AF77,'09. Utslippsfaktorer'!$P$7:$U$7,0),1))) -> 0 | AO78: Utslipp (kg): | AQ78: =AC79 -> 0 | AR78: =AD79+AK79 -> 0 | AS78: =AE79+AL79 -> 0 | AT78: =AF79+AM79 -> 0
T79: Kapasitet | W79: =IF(F78=0,0,IF(F78='08. Beregningsfaktorer'!E85,0,(INDEX('08. Beregningsfaktorer'!E$85:G$86,MATCH(F78,'08. Beregningsfaktorer'!E$85:E$86,0),3,1)))) -> 0 | X79: =X78&"/"&W80 -> tonn/h | AA79: Utslipp (kg): | AC79: =AC78*W78 -> 0 | AD79: =AD78*W78 -> 0 | AE79: =AE78*W78 -> 0 | AF79: =AF78*W78 -> 0
T80: Forbruk | V80: =W78*W79 -> 0 | W80: h | X80: =IF(F78='08. Beregningsfaktorer'!E85,"Standard beregning",F78) -> 0
T82: =E83&" - Grunnlagsdata og forbruk" -> Lasting til knusetrinn 3 - Grunnlagsdata og forbruk | AA82: =E83&" - Utslipp knyttet til drivstoff/elektrisitet" -> Lasting til knusetrinn 3 - Utslipp knyttet til drivstoff/elektrisitet | AH82: =E83&" - Utslipp knyttet til maskin" -> Lasting til knusetrinn 3 - Utslipp knyttet til maskin | AO82: =E83&" - Sum utslipp" -> Lasting til knusetrinn 3 - Sum utslipp
D83: 3.13 | E83: Lasting til knusetrinn 3 | T83: Kategori | AC83: CO2-ekv. | AD83: SO2-ekv. | AE83: P-ekv. | AF83: NMVOC | AJ83: CO2-ekv. | AK83: SO2-ekv. | AL83: P-ekv. | AM83: NMVOC | AQ83: CO2-ekv. | AR83: SO2-ekv. | AS83: P-ekv. | AT83: NMVOC
D84: 3.13.1 | E84: Type lastemaskin | F84: Inkludert i 3.13 | T84: Volum stein | AA84: ="Utslippsfaktor (kg/"&W86&"):"&" " -> Utslippsfaktor (kg/): | AH84: Utslippsfaktor (kg/m3): | AO84: Utslipp (kg): | AQ84: =AC85+AJ85 -> 0 | AR84: =AD85+AK85 -> 0 | AS84: =AE85+AL85 -> 0 | AT84: =AF85+AM85 -> 0
T85: Forbruk per m3 stein | AA85: Utslipp (kg): | AH85: Utslipp (kg):
T86: Forbruk
T88: =E89&" - Grunnlagsdata og forbruk" -> Mobilt knuseverk knusetrinn 3 - Grunnlagsdata og forbruk | AA88: =E89&" - Utslipp" -> Mobilt knuseverk knusetrinn 3 - Utslipp | AO88: =E89&" - Sum utslipp" -> Mobilt knuseverk knusetrinn 3 - Sum utslipp
D89: 3.14 | E89: Mobilt knuseverk knusetrinn 3 | T89: Kategori | V89: =IF(F90='08. Beregningsfaktorer'!$E$88,'09. Utslippsfaktorer'!$P$30,IF(F90='08. Beregningsfaktorer'!$E$89,'09. Utslippsfaktorer'!$P$31,"Mangler type knuseverk")) -> Mangler type knuseverk | AC89: CO2-ekv. | AD89: SO2-ekv. | AE89: P-ekv. | AF89: NMVOC | AQ89: CO2-ekv. | AR89: SO2-ekv. | AS89: P-ekv. | AT89: NMVOC
D90: 3.14.1 | E90: Type knuseverk | T90: Mengde stein | W90: =IF(F$90=0,0,IF(G$21="tonn",F$21,F$21*'08. Beregningsfaktorer'!G$65)) -> 0 | X90: tonn | AA90: ="Utslippsfaktor (kg/"&W92&"):"&" " -> Utslippsfaktor (kg/h): | AC90: =IF($F90=0,0,(INDEX('09. Utslippsfaktorer'!$P$7:$U$45,MATCH($V89,'09. Utslippsfaktorer'!$P$7:$P$45,0),MATCH("kg "&AC89,'09. Utslippsfaktorer'!$P$7:$U$7,0),1))) -> 0 | AD90: =IF($F90=0,0,(INDEX('09. Utslippsfaktorer'!$P$7:$U$45,MATCH($V89,'09. Utslippsfaktorer'!$P$7:$P$45,0),MATCH("kg "&AD89,'09. Utslippsfaktorer'!$P$7:$U$7,0),1))) -> 0 | AE90: =IF($F90=0,0,(INDEX('09. Utslippsfaktorer'!$P$7:$U$45,MATCH($V89,'09. Utslippsfaktorer'!$P$7:$P$45,0),MATCH("kg "&AE89,'09. Utslippsfaktorer'!$P$7:$U$7,0),1))) -> 0 | AF90: =IF($F90=0,0,(INDEX('09. Utslippsfaktorer'!$P$7:$U$45,MATCH($V89,'09. Utslippsfaktorer'!$P$7:$P$45,0),MATCH("kg "&AF89,'09. Utslippsfaktorer'!$P$7:$U$7,0),1))) -> 0 | AO90: Utslipp (kg): | AQ90: =AC91 -> 0 | AR90: =AD91+AK91 -> 0 | AS90: =AE91+AL91 -> 0 | AT90: =AF91+AM91 -> 0
T91: Kapasitet | W91: =IF(F90=0,0,IF(F90='08. Beregningsfaktorer'!E88,0,(INDEX('08. Beregningsfaktorer'!E$88:G$89,MATCH(F90,'08. Beregningsfaktorer'!E$88:E$89,0),3,1)))) -> 0 | X91: =X90&"/"&W92 -> tonn/h | AA91: Utslipp (kg): | AC91: =AC90*W90 -> 0 | AD91: =AD90*W90 -> 0 | AE91: =AE90*W90 -> 0 | AF91: =AF90*W90 -> 0
T92: Forbruk | V92: =W90*W91 -> 0 | W92: h | X92: =IF(F90='08. Beregningsfaktorer'!E88,"Standard beregning",F90) -> 0
B97: Transport
T98: =E99&" - Grunnlagsdata og forbruk" -> Lasting til transport - Grunnlagsdata og forbruk | AA98: =E99&" - Utslipp knyttet til drivstoff/elektrisitet" -> Lasting til transport - Utslipp knyttet til drivstoff/elektrisitet | AH98: =E99&" - Utslipp knyttet til maskin" -> Lasting til transport - Utslipp knyttet til maskin | AO98: =E99&" - Sum utslipp" -> Lasting til transport - Sum utslipp
D99: 3.15 | E99: Lasting til transport | T99: Kategori | V99: =IF(F100='08. Beregningsfaktorer'!$E$43,'08. Beregningsfaktorer'!$E$43,IF(F100='08. Beregningsfaktorer'!$E$44,'09. Utslippsfaktorer'!$P$20,IF(OR(F100='08. Beregningsfaktorer'!$E$45,F100='08. Beregningsfaktorer'!$E$47),'09. Utslippsfaktorer'!$P$21,IF(F100='08. Beregningsfaktorer'!$E$46,'09. Utslippsfaktorer'!$P$21,"Mangler type lastemaskin")))) -> Mangler type lastemaskin | AC99: CO2-ekv. | AD99: SO2-ekv. | AE99: P-ekv. | AF99: NMVOC | AJ99: CO2-ekv. | AK99: SO2-ekv. | AL99: P-ekv. | AM99: NMVOC | AQ99: CO2-ekv. | AR99: SO2-ekv. | AS99: P-ekv. | AT99: NMVOC
D100: 3.15.1 | E100: Type lastemaskin | T100: Volum stein | W100: =IF((F$15+F$17)=0,0,IF(G$15="fm3",(F$15+F$17)*'08. Beregningsfaktorer'!$G$65,(F$15+F$17)/'08. Beregningsfaktorer'!$G$65)) -> 0 | X100: lm3 | AA100: ="Utslippsfaktor (kg/"&W102&"):"&" " -> Utslippsfaktor (kg/...): | AC100: =IF(F100=0,0,IF(F100='08. Beregningsfaktorer'!$E$43,0,(INDEX('09. Utslippsfaktorer'!$P$7:$U$12,MATCH(X102,'09. Utslippsfaktorer'!$P$7:$P$12,0),MATCH("kg "&AC99,'09. Utslippsfaktorer'!$P$7:$U$7,0),1)))) -> 0 | AD100: =IF(F100=0,0,IF(F100='08. Beregningsfaktorer'!$E$43,0,(INDEX('09. Utslippsfaktorer'!$P$7:$U$12,MATCH(X102,'09. Utslippsfaktorer'!$P$7:$P$12,0),MATCH("kg "&AD99,'09. Utslippsfaktorer'!$P$7:$U$7,0),1)))) -> 0 | AE100: =IF(F100=0,0,IF(F100='08. Beregningsfaktorer'!$E$43,0,(INDEX('09. Utslippsfaktorer'!$P$7:$U$12,MATCH(X102,'09. Utslippsfaktorer'!$P$7:$P$12,0),MATCH("kg "&AE99,'09. Utslippsfaktorer'!$P$7:$U$7,0),1)))) -> 0 | AF100: =IF(F100=0,0,IF(F100='08. Beregningsfaktorer'!$E$43,0,(INDEX('09. Utslippsfaktorer'!$P$7:$U$12,MATCH(X102,'09. Utslippsfaktorer'!$P$7:$P$12,0),MATCH("kg "&AF99,'09. Utslippsfaktorer'!$P$7:$U$7,0),1)))) -> 0 | AH100: Utslippsfaktor (kg/m3): | AJ100: =IF(F100=0,0,IF(F100='08. Beregningsfaktorer'!$E$43,0,(INDEX('09. Utslippsfaktorer'!$P$7:$U$45,MATCH(V99,'09. Utslippsfaktorer'!$P$7:$P$45,0),MATCH("kg "&AJ99,'09. Utslippsfaktorer'!$P$7:$U$7,0),1)))) -> 0 | AK100: =IF(F100=0,0,IF(F100='08. Beregningsfaktorer'!$E$43,0,(INDEX('09. Utslippsfaktorer'!$P$7:$U$45,MATCH(V99,'09. Utslippsfaktorer'!$P$7:$P$45,0),MATCH("kg "&AK99,'09. Utslippsfaktorer'!$P$7:$U$7,0),1)))) -> 0 | AL100: =IF(F100=0,0,IF(F100='08. Beregningsfaktorer'!$E$43,0,(INDEX('09. Utslippsfaktorer'!$P$7:$U$45,MATCH(V99,'09. Utslippsfaktorer'!$P$7:$P$45,0),MATCH("kg "&AL99,'09. Utslippsfaktorer'!$P$7:$U$7,0),1)))) -> 0 | AM100: =IF(F100=0,0,IF(F100='08. Beregningsfaktorer'!$E$43,0,(INDEX('09. Utslippsfaktorer'!$P$7:$U$45,MATCH(V99,'09. Utslippsfaktorer'!$P$7:$P$45,0),MATCH("kg "&AM99,'09. Utslippsfaktorer'!$P$7:$U$7,0),1)))) -> 0 | AO100: Utslipp (kg): | AQ100: =AC101+AJ101 -> 0 | AR100: =AD101+AK101 -> 0 | AS100: =AE101+AL101 -> 0 | AT100: =AF101+AM101 -> 0
T101: Forbruk per m3 stein | W101: =IF(F100=0,0,(INDEX('08. Beregningsfaktorer'!$E$12:$G$89,MATCH(F100,'08. Beregningsfaktorer'!$E$12:$E$89,0),3,1))) -> 0 | X101: =W102&"/"&X100 -> .../lm3 | AA101: Utslipp (kg): | AC101: =V102*AC100 -> 0 | AD101: =V102*AD100 -> 0 | AE101: =V102*AE100 -> 0 | AF101: =V102*AF100 -> 0 | AH101: Utslipp (kg): | AJ101: =W100*AJ100 -> 0 | AK101: =W100*AK100 -> 0 | AL101: =W100*AL100 -> 0 | AM101: =W100*AM100 -> 0
T102: Forbruk | V102: =W100*W101 -> 0 | W102: =IF(F100='08. Beregningsfaktorer'!$E$44,"l",IF(OR(F100='08. Beregningsfaktorer'!$E$45,F100='08. Beregningsfaktorer'!$E$47),"l",IF(F100='08. Beregningsfaktorer'!$E$46,"kWh","..."))) -> ... | X102: =IF(F100='08. Beregningsfaktorer'!$E$43,"Ingen løft",IF(F100='08. Beregningsfaktorer'!$E$44,"Diesel",IF(F100='08. Beregningsfaktorer'!$E$45,"Diesel",IF(F100='08. Beregningsfaktorer'!$E$47,"Biodiesel",IF(F100='08. Beregningsfaktorer'!$E$46,"Elektrisitet","Mangler type lastemaskin"))))) -> Mangler type lastemaskin
D104: 3.16 | E104: Transport fra mobilt knuseverk | F104: Endre antall kjøretøy:
D105: 3.16.1 | E105: Type kjøretøy | G105: =F106 -> 0 | T105: =E104&" - Grunnlagsdata og forbruk" -> Transport fra mobilt knuseverk - Grunnlagsdata og forbruk | AA105: =E104&" - Utslipp knyttet til drivstoff/elektrisitet" -> Transport fra mobilt knuseverk - Utslipp knyttet til drivstoff/elektrisitet | AH105: =E104&" - Utslipp knyttet til kjøretøy og infrastruktur" -> Transport fra mobilt knuseverk - Utslipp knyttet til kjøretøy og infrastruktur | AO105: =E$104&" - Sum utslipp" -> Transport fra mobilt knuseverk - Sum utslipp
C106: =IF(F105='08. Beregningsfaktorer'!#REF!,"J",0) ->  | D106: 3.16.2 | E106: Mengde stein | G106: ='02. Inndata steinmasser'!$F$7 -> fm3 | T106: Kategori | V106: =IF(OR(F105='08. Beregningsfaktorer'!$B$9,F105='08. Beregningsfaktorer'!$B$10,F105='08. Beregningsfaktorer'!$B$11),'09. Utslippsfaktorer'!$P$14,IF(OR(F105='08. Beregningsfaktorer'!$B$12,F105='08. Beregningsfaktorer'!$B$13),'09. Utslippsfaktorer'!$P$15,IF(OR(F105='08. Beregningsfaktorer'!$B$14,F105='08. Beregningsfaktorer'!$B$15),'09. Utslippsfaktorer'!$P$16,IF(OR(F105='08. Beregningsfaktorer'!$B$24,F105='08. Beregningsfaktorer'!$B$25),'09. Utslippsfaktorer'!$P$18,IF(F105='08. Beregningsfaktorer'!$B$26,'09. Utslippsfaktorer'!$P$18,IF(F105='08. Beregningsfaktorer'!$B$27,'09. Utslippsfaktorer'!$P$18,IF(F105='08. Beregningsfaktorer'!$B$28,'09. Utslippsfaktorer'!$P$19,IF(F105='08. Beregningsfaktorer'!$B$29,'09. Utslippsfaktorer'!$P$19,IF(OR(F105='08. Beregningsfaktorer'!$B$17,F105='08. Beregningsfaktorer'!$B$16,F105='08. Beregningsfaktorer'!$B$18,F105='08. Beregningsfaktorer'!$B$19),'09. Utslippsfaktorer'!$P$16,IF(OR(F105='08. Beregningsfaktorer'!$B$20,F105='08. Beregningsfaktorer'!$B$21,F105='08. Beregningsfaktorer'!$B$22,F105='08. Beregningsfaktorer'!$B$23),'09. Utslippsfaktorer'!$P$14,"Mangler type kjøretøy")))))))))) -> Mangler type kjøretøy | AC106: CO2-ekv. | AD106: SO2-ekv. | AE106: P-ekv. | AF106: NMVOC | AJ106: CO2-ekv. | AK106: SO2-ekv. | AL106: P-ekv. | AM106: NMVOC | AQ106: CO2-ekv. | AR106: SO2-ekv. | AS106: P-ekv. | AT106: NMVOC
D107: 3.16.3 | E107: Hvor skal massene? | G107: =IF(OR(F105='08. Beregningsfaktorer'!$B$28,F105='08. Beregningsfaktorer'!$B$29),0,IF(OR(F108='08. Beregningsfaktorer'!$E$77,F108='08. Beregningsfaktorer'!$E$80),F106*F109,0)) -> 0 | T107: =IF(F108='08. Beregningsfaktorer'!$E$78,"km","tonn km") -> tonn km | W107: =IF(F108='08. Beregningsfaktorer'!$E$78,IF(G106="tonn",IF(OR(F105='08. Beregningsfaktorer'!$B$16,F105='08. Beregningsfaktorer'!$B$17),(F106/8.5)*F109,IF(OR(F105='08. Beregningsfaktorer'!$B$18,F105='08. Beregningsfaktorer'!$B$19),(F106/14)*F109,IF(OR(F105='08. Beregningsfaktorer'!$B$20,F105='08. Beregningsfaktorer'!$B$21),(F106/26)*F109,IF(OR(F105='08. Beregningsfaktorer'!$B$22,F105='08. Beregningsfaktorer'!$B$23),(F106/40)*F109,IF(OR(F105='08. Beregningsfaktorer'!$B$24,F105='08. Beregningsfaktorer'!$B$25),(F106/14)*F109,IF(F105='08. Beregningsfaktorer'!$B$26,(F106/14)*F109,IF(F105='08. Beregningsfaktorer'!$B$27,(F106/14)*F109))))))),IF(OR(F105='08. Beregningsfaktorer'!$B$16,F105='08. Beregningsfaktorer'!$B$17),(F106*'08. Beregningsfaktorer'!$G$65/8.5)*F109,IF(OR(F105='08. Beregningsfaktorer'!$B$18,F105='08. Beregningsfaktorer'!$B$19),(F106*'08. Beregningsfaktorer'!$G$65/14)*F109,IF(OR(F105='08. Beregningsfaktorer'!$B$20,F105='08. Beregningsfaktorer'!$B$21),(F106*'08. Beregningsfaktorer'!$G$65/26)*F109,IF(OR(F105='08. Beregningsfaktorer'!$B$22,F105='08. Beregningsfaktorer'!$B$23),(F106*'08. Beregningsfaktorer'!$G$65/40)*F109,IF(OR(F105='08. Beregningsfaktorer'!$B$24,F105='08. Beregningsfaktorer'!$B$25),(F106*'08. Beregningsfaktorer'!$G$65/14)*F109,IF(F105='08. Beregningsfaktorer'!$B$26,(F106*'08. Beregningsfaktorer'!$G$65/14)*F109,IF(F105='08. Beregningsfaktorer'!$B$27,(F106*'08. Beregningsfaktorer'!$G$65/14)*F109)))))))),IF(F106=0,0,IF(F108='08. Beregningsfaktorer'!$E$80,IF(AND(OR(F105='08. Beregningsfaktorer'!$B$28,F105='08. Beregningsfaktorer'!$B$29),G106="tonn"),(F106/1900)*F109,IF(OR(F105='08. Beregningsfaktorer'!$B$28,F105='08. Beregningsfaktorer'!$B$29),(F106*'08. Beregningsfaktorer'!$G$65/1900)*F109,IF(G106="tonn",F106,F106*'08. Beregningsfaktorer'!$G$65)*F109)),IF(G106="tonn",F106*F109,F106*'08. Beregningsfaktorer'!$G$65)*F109))) -> 0 | X107: =IF(OR(F108='08. Beregningsfaktorer'!$E$78,F105='08. Beregningsfaktorer'!$B$28,F105='08. Beregningsfaktorer'!$B$29),"km","tkm") -> tkm | AA107: ="Utslippsfaktor (kg/"&W110&"):"&" " -> Utslippsfaktor (kg/l): | AC107: =IF(F105=0,0,(INDEX('09. Utslippsfaktorer'!$P$7:$U$13,MATCH(X110,'09. Utslippsfaktorer'!$P$7:$P$13,0),MATCH("kg "&AC106,'09. Utslippsfaktorer'!$P$7:$U$7,0),1))) -> 0 | AD107: =IF(F105=0,0,(INDEX('09. Utslippsfaktorer'!$P$7:$U$13,MATCH(X110,'09. Utslippsfaktorer'!$P$7:$P$13,0),MATCH("kg "&AD106,'09. Utslippsfaktorer'!$P$7:$U$7,0),1))) -> 0 | AE107: =IF(F105=0,0,(INDEX('09. Utslippsfaktorer'!$P$7:$U$13,MATCH(X110,'09. Utslippsfaktorer'!$P$7:$P$13,0),MATCH("kg "&AE106,'09. Utslippsfaktorer'!$P$7:$U$7,0),1))) -> 0 | AF107: =IF(F105=0,0,(INDEX('09. Utslippsfaktorer'!$P$7:$U$13,MATCH(X110,'09. Utslippsfaktorer'!$P$7:$P$13,0),MATCH("kg "&AF106,'09. Utslippsfaktorer'!$P$7:$U$7,0),1))) -> 0 | AH107: ="Utslippsfaktor (kg/"&X107&"):" -> Utslippsfaktor (kg/tkm): | AJ107: =IF(F105=0,0,(INDEX('09. Utslippsfaktorer'!$P$7:$U$45,MATCH(V106,'09. Utslippsfaktorer'!$P$7:$P$45,0),MATCH("kg "&AJ106,'09. Utslippsfaktorer'!$P$7:$U$7,0),1))) -> 0 | AK107: =IF(F105=0,0,(INDEX('09. Utslippsfaktorer'!$P$7:$U$45,MATCH(V106,'09. Utslippsfaktorer'!$P$7:$P$45,0),MATCH("kg "&AK106,'09. Utslippsfaktorer'!$P$7:$U$7,0),1))) -> 0 | AL107: =IF(F105=0,0,(INDEX('09. Utslippsfaktorer'!$P$7:$U$45,MATCH(V106,'09. Utslippsfaktorer'!$P$7:$P$45,0),MATCH("kg "&AL106,'09. Utslippsfaktorer'!$P$7:$U$7,0),1))) -> 0 | AM107: =IF(F105=0,0,(INDEX('09. Utslippsfaktorer'!$P$7:$U$45,MATCH(V106,'09. Utslippsfaktorer'!$P$7:$P$45,0),MATCH("kg "&AM106,'09. Utslippsfaktorer'!$P$7:$U$7,0),1))) -> 0 | AO107: Utslipp (kg): | AQ107: =IF(F108='08. Beregningsfaktorer'!$E$79,0,AC108+AJ108) -> 0 | AR107: =IF(F108='08. Beregningsfaktorer'!$E$79,0,AD108+AK108) -> 0 | AS107: =IF(F108='08. Beregningsfaktorer'!$E$79,0,AE108+AL108) -> 0 | AT107: =IF(F108='08. Beregningsfaktorer'!$E$79,0,AF108+AM108) -> 0
D108: 3.16.4 | E108: Lastekapasitet | G108: =IF(OR(F105='08. Beregningsfaktorer'!$B$9,F105='08. Beregningsfaktorer'!$B$10,F105='08. Beregningsfaktorer'!$B$12,F105='08. Beregningsfaktorer'!$B$13,F105='08. Beregningsfaktorer'!$B$14,F105='08. Beregningsfaktorer'!$B$15,F105='08. Beregningsfaktorer'!$B$28,F105='08. Beregningsfaktorer'!$B$29),IF(F108='08. Beregningsfaktorer'!$E$80,0,1),IF(F108='08. Beregningsfaktorer'!$E$80,3,0)) -> 0 | T108: Korreksjonsfaktor | W108: =IF(F110=0,0,INDEX('08. Beregningsfaktorer'!$E$54:$G$55,MATCH(F110,'08. Beregningsfaktorer'!$E$54:$E$55,0),3)) -> 0 | AA108: Utslipp (kg): | AC108: =IFERROR(V110*AC107,"Data mangler") -> 0 | AD108: =IFERROR(V110*AD107,"Data mangler") -> 0 | AE108: =IFERROR(V110*AE107,"Data mangler") -> 0 | AF108: =IFERROR(V110*AF107,"Data mangler") -> 0 | AH108: Utslipp (kg): | AJ108: =IF(V106='09. Utslippsfaktorer'!$P$19,IF(G106="tonn",F109*AJ107*F106,F109*AJ107*F106*'08. Beregningsfaktorer'!$G$65),IF(F108='08. Beregningsfaktorer'!$E$78,0,IFERROR(W107*AJ107,"Data mangler"))) -> 0 | AK108: =IF(V106='09. Utslippsfaktorer'!$P$19,IF(G106="tonn",F109*AK107*F106,F109*AK107*F106*'08. Beregningsfaktorer'!$G$65),IF(F108='08. Beregningsfaktorer'!$E$78,0,IFERROR(W107*AK107,"Data mangler"))) -> 0 | AL108: =IF(V106='09. Utslippsfaktorer'!$P$19,IF(G106="tonn",F109*AL107*F106,F109*AL107*F106*'08. Beregningsfaktorer'!$G$65),IF(F108='08. Beregningsfaktorer'!$E$78,0,IFERROR(W107*AL107,"Data mangler"))) -> 0 | AM108: =IF(V106='09. Utslippsfaktorer'!$P$19,IF(G106="tonn",F109*AM107*F106,F109*AM107*F106*'08. Beregningsfaktorer'!$G$65),IF(F108='08. Beregningsfaktorer'!$E$78,0,IFERROR(W107*AM107,"Data mangler"))) -> 0
D109: 3.16.5 | E109: Distanse | G109: km | T109: =IF(F108='08. Beregningsfaktorer'!$E$78,"Forbruk per km","Forbruk per tonn km") -> Forbruk per tonn km | W109: =IFERROR(IF(F105=0,0,IF(F108='08. Beregningsfaktorer'!$E$78,INDEX('08. Beregningsfaktorer'!$E$30:$G$41,MATCH(F105,'08. Beregningsfaktorer'!$B$30:$B$41,0),3,1),INDEX('08. Beregningsfaktorer'!$E$9:$G$29,MATCH(F105,'08. Beregningsfaktorer'!$B$9:$B$29,0),3,1))),"Loading..") -> 0 | X109: =IFERROR(W110&"/"&X107,"Loading..") -> l/tkm
D110: 3.16.6 | E110: Transport med helning | T110: Forbruk | V110: =IFERROR(W107*W109*W108,"Data mangler") -> 0 | W110: =IFERROR(IF(OR(F105='08. Beregningsfaktorer'!$B$26,F105='08. Beregningsfaktorer'!$B$27),"kWh",IF(F105='08. Beregningsfaktorer'!$B$11,"MJ","l")),"Loading..") -> l | X110: =IFERROR(IF(F105='08. Beregningsfaktorer'!$B$11,"Biogass",IF(OR(F105='08. Beregningsfaktorer'!$B$26,F105='08. Beregningsfaktorer'!$B$27),"Elektrisitet",IF(OR(F105='08. Beregningsfaktorer'!$B$10,F105='08. Beregningsfaktorer'!$B$13,F105='08. Beregningsfaktorer'!$B$15,F105='08. Beregningsfaktorer'!$B$17,F105='08. Beregningsfaktorer'!$B$17,F105='08. Beregningsfaktorer'!$B$19,F105='08. Beregningsfaktorer'!$B$21,F105='08. Beregningsfaktorer'!$B$23,F105='08. Beregningsfaktorer'!$B$25,F105='08. Beregningsfaktorer'!$B$29),"Biodiesel",IF(V106="Mangler type kjøretøy","Mangler type kjøretøy","Diesel")))),"Feil") -> Mangler type kjøretøy
AO112: =E104&" - Sum utslipp - Alle kjøretøy" -> Transport fra mobilt knuseverk - Sum utslipp - Alle kjøretøy
AQ113: CO2-ekv. | AR113: SO2-ekv. | AS113: P-ekv. | AT113: NMVOC
D114: 3.17 | E114: Balanse veitransport | F114: =SUMIF(E104:E111,"Lastekapasitet",G104:G111) -> 0 | H114: Lastutnyttelse korrekt modellert | AO114: Utslipp (kg): | AQ114: =SUMIF(D104:D111,$D107,AQ104:AQ111) -> 0 | AR114: =SUMIF(D104:D111,$D107,AR104:AR111) -> 0 | AS114: =SUMIF(D104:D111,$D107,AS104:AS111) -> 0 | AT114: =SUMIF(D104:D111,$D107,AT104:AT111) -> 0
D115: 3.17.1 | E115: ="Balanse - "&E30 -> Balanse - Linja | F115: =((F$15-SUMIF(F38:F45,'08. Beregningsfaktorer'!$B$28,G38:G45)-SUMIF(F38:F45,'08. Beregningsfaktorer'!$B$29,G38:G45))*F$30)-((SUMIF(F104:F111,E$15,G104:G111))) -> 0 | G115: ='02. Inndata steinmasser'!$F$7& " km" -> fm3 km | H115: Transportdistanser og masser stemmer
D116: 3.17.2 | E116: ="Balanse - "&E31 -> Balanse - Pukkverk | F116: =((F$17-SUMIF(F38:F45,'08. Beregningsfaktorer'!$B$28,G38:G45)-SUMIF(F38:F45,'08. Beregningsfaktorer'!$B$29,G38:G45))*F$31)-(SUMIF(F104:F111,E$17,G104:G111)) -> 0 | G116: ='02. Inndata steinmasser'!$F$7& " km" -> fm3 km | H116: Transportdistanser og masser stemmer

Sheet 04. Deponi
D2: 04. Deponi
D4: Nr. | E4: Prosess | F4: Mengde/type | G4: Enhet
B5: Masser
D6: 4.1 | E6: Masser til deponi
D7: 4.1.1 | E7: Tunnelmunning | F7: ='02. Inndata steinmasser'!F36 -> 0 | G7: ='02. Inndata steinmasser'!$F$7 -> fm3
D8: 4.1.2 | E8: Mobilt knuseverk | F8: ='03. Mobilt knuseverk'!F16 -> 0 | G8: ='02. Inndata steinmasser'!$F$7 -> fm3
D9: 4.1.3 | E9: Restprodukt mobilt knuseverk | F9: =IF('03. Mobilt knuseverk'!F12="Deponi",'03. Mobilt knuseverk'!F22,0) -> 0 | G9: ='02. Inndata steinmasser'!$F$7 -> fm3
D11: 4.2 | E11: Fordeling av masser til internt deponi
D12: 4.2.1 | E12: Tunnelmunning | G12: ='02. Inndata steinmasser'!$F$7 -> fm3
D13: 4.2.2 | E13: Mobilt knuseverk | G13: ='02. Inndata steinmasser'!$F$7 -> fm3
D14: 4.2.3 | E14: Restprodukt mobilt knuseverk | G14: ='02. Inndata steinmasser'!$F$7 -> fm3
D16: 4.3 | E16: Fordeling av masser til eksternt deponi
D17: 4.3.1 | E17: Tunnelmunning | G17: ='02. Inndata steinmasser'!$F$7 -> fm3
D18: 4.3.2 | E18: Mobilt knuseverk | G18: ='02. Inndata steinmasser'!$F$7 -> fm3
D19: 4.3.3 | E19: Restprodukt mobilt knuseverk | G19: ='02. Inndata steinmasser'!$F$7 -> fm3
D21: 4.4 | E21: Balanse
D22: 4.4.1 | E22: Sum til deponi | F22: =F7+F8+F9 -> 0 | G22: ='02. Inndata steinmasser'!$F$7 -> fm3
D23: 4.4.2 | E23: Sum fordelte masser | F23: =SUM(F12:F14)+SUM(F17:F19) -> 0 | G23: ='02. Inndata steinmasser'!$F$7 -> fm3
D24: 4.4.3 | E24: Ufordelte masser | F24: =F22-F23 -> 0 | G24: ='02. Inndata steinmasser'!$F$7 -> fm3 | H24: Ingen ufordelte masser
B26: Transport til internt deponi
D27: 4.5 | E27: Veidistanser mellom internt deponi og…
D28: 4.5.1 | E28: Tunnelmunning | G28: km
D29: 4.5.2 | E29: Mobilt knuseverk | G29: km
T30: =E31&" - Grunnlagsdata og forbruk" -> Lasting til transport - Grunnlagsdata og forbruk | AA30: =E31&" - Utslipp knyttet til drivstoff/elektrisitet" -> Lasting til transport - Utslipp knyttet til drivstoff/elektrisitet | AH30: =E31&" - Utslipp knyttet til maskin" -> Lasting til transport - Utslipp knyttet til maskin | AO30: =E31&" - Sum utslipp" -> Lasting til transport - Sum utslipp
D31: 4.6 | E31: Lasting til transport | T31: Kategori | V31: =IF(F32='08. Beregningsfaktorer'!$E$43,'08. Beregningsfaktorer'!$E$43,IF(F32='08. Beregningsfaktorer'!$E$44,'09. Utslippsfaktorer'!$P$20,IF(OR(F32='08. Beregningsfaktorer'!$E$45,F32='08. Beregningsfaktorer'!$E$47),'09. Utslippsfaktorer'!$P$21,IF(F32='08. Beregningsfaktorer'!$E$46,'09. Utslippsfaktorer'!$P$21,"Mangler type lastemaskin")))) -> Mangler type lastemaskin | AC31: CO2-ekv. | AD31: SO2-ekv. | AE31: P-ekv. | AF31: NMVOC | AJ31: CO2-ekv. | AK31: SO2-ekv. | AL31: P-ekv. | AM31: NMVOC | AQ31: CO2-ekv. | AR31: SO2-ekv. | AS31: P-ekv. | AT31: NMVOC
D32: 4.6.1 | E32: Type lastemaskin | T32: Volum stein | W32: =IF((F$12+F$13+F$14)=0,0,IF(G$12="fm3",(F$12+F$13+F$14)*'08. Beregningsfaktorer'!$G$65,(F$12+F$13+F$14)/'08. Beregningsfaktorer'!$G$65)) -> 0 | X32: lm3 | AA32: ="Utslippsfaktor (kg/"&W34&"):"&" " -> Utslippsfaktor (kg/...): | AC32: =IF(F32=0,0,IF(F32='08. Beregningsfaktorer'!$E$43,0,(INDEX('09. Utslippsfaktorer'!$P$7:$U$12,MATCH(X34,'09. Utslippsfaktorer'!$P$7:$P$12,0),MATCH("kg "&AC31,'09. Utslippsfaktorer'!$P$7:$U$7,0),1)))) -> 0 | AD32: =IF(F32=0,0,IF(F32='08. Beregningsfaktorer'!$E$43,0,(INDEX('09. Utslippsfaktorer'!$P$7:$U$12,MATCH(X34,'09. Utslippsfaktorer'!$P$7:$P$12,0),MATCH("kg "&AD31,'09. Utslippsfaktorer'!$P$7:$U$7,0),1)))) -> 0 | AE32: =IF(F32=0,0,IF(F32='08. Beregningsfaktorer'!$E$43,0,(INDEX('09. Utslippsfaktorer'!$P$7:$U$12,MATCH(X34,'09. Utslippsfaktorer'!$P$7:$P$12,0),MATCH("kg "&AE31,'09. Utslippsfaktorer'!$P$7:$U$7,0),1)))) -> 0 | AF32: =IF(F32=0,0,IF(F32='08. Beregningsfaktorer'!$E$43,0,(INDEX('09. Utslippsfaktorer'!$P$7:$U$12,MATCH(X34,'09. Utslippsfaktorer'!$P$7:$P$12,0),MATCH("kg "&AF31,'09. Utslippsfaktorer'!$P$7:$U$7,0),1)))) -> 0 | AH32: Utslippsfaktor (kg/m3): | AJ32: =IF(F32=0,0,IF(F32='08. Beregningsfaktorer'!$E$43,0,(INDEX('09. Utslippsfaktorer'!$P$7:$U$45,MATCH(V31,'09. Utslippsfaktorer'!$P$7:$P$45,0),MATCH("kg "&AJ31,'09. Utslippsfaktorer'!$P$7:$U$7,0),1)))) -> 0 | AK32: =IF(F32=0,0,IF(F32='08. Beregningsfaktorer'!$E$43,0,(INDEX('09. Utslippsfaktorer'!$P$7:$U$45,MATCH(V31,'09. Utslippsfaktorer'!$P$7:$P$45,0),MATCH("kg "&AK31,'09. Utslippsfaktorer'!$P$7:$U$7,0),1)))) -> 0 | AL32: =IF(F32=0,0,IF(F32='08. Beregningsfaktorer'!$E$43,0,(INDEX('09. Utslippsfaktorer'!$P$7:$U$45,MATCH(V31,'09. Utslippsfaktorer'!$P$7:$P$45,0),MATCH("kg "&AL31,'09. Utslippsfaktorer'!$P$7:$U$7,0),1)))) -> 0 | AM32: =IF(F32=0,0,IF(F32='08. Beregningsfaktorer'!$E$43,0,(INDEX('09. Utslippsfaktorer'!$P$7:$U$45,MATCH(V31,'09. Utslippsfaktorer'!$P$7:$P$45,0),MATCH("kg "&AM31,'09. Utslippsfaktorer'!$P$7:$U$7,0),1)))) -> 0 | AO32: Utslipp (kg): | AQ32: =AC33+AJ33 -> 0 | AR32: =AD33+AK33 -> 0 | AS32: =AE33+AL33 -> 0 | AT32: =AF33+AM33 -> 0
T33: Forbruk per m3 stein | W33: =IF(F32=0,0,(INDEX('08. Beregningsfaktorer'!$E$12:$G$89,MATCH(F32,'08. Beregningsfaktorer'!$E$12:$E$89,0),3,1))) -> 0 | X33: =W34&"/"&X32 -> .../lm3 | AA33: Utslipp (kg): | AC33: =V34*AC32 -> 0 | AD33: =V34*AD32 -> 0 | AE33: =V34*AE32 -> 0 | AF33: =V34*AF32 -> 0 | AH33: Utslipp (kg): | AJ33: =W32*AJ32 -> 0 | AK33: =W32*AK32 -> 0 | AL33: =W32*AL32 -> 0 | AM33: =W32*AM32 -> 0
H34: OBS! Retur med nyttelast tas ikke med i totalutslipp. Utslipp kan sees i mellomregningene til høyre. | T34: Forbruk | V34: =W32*W33 -> 0 | W34: =IF(F32='08. Beregningsfaktorer'!$E$44,"l",IF(OR(F32='08. Beregningsfaktorer'!$E$45,F32='08. Beregningsfaktorer'!$E$47),"l",IF(F32='08. Beregningsfaktorer'!$E$46,"kWh","..."))) -> ... | X34: =IF(F32='08. Beregningsfaktorer'!$E$43,"Ingen løft",IF(F32='08. Beregningsfaktorer'!$E$44,"Diesel",IF(F32='08. Beregningsfaktorer'!$E$45,"Diesel",IF(F32='08. Beregningsfaktorer'!$E$47,"Biodiesel",IF(F32='08. Beregningsfaktorer'!$E$46,"Elektrisitet","Mangler type lastemaskin"))))) -> Mangler type lastemaskin
H35: OBS! Mengde transportert ut av prosjektet må også skrives inn for retur med tom last, for å beregne antall returer.
D36: 4.7 | E36: Transport til internt deponi | F36: Endre antall kjøretøy:
D37: 4.7.1 | E37: Type kjøretøy | G37: =F38 -> 0 | T37: =E36&" - Grunnlagsdata og forbruk" -> Transport til internt deponi - Grunnlagsdata og forbruk | AA37: =E36&" - Utslipp knyttet til drivstoff/elektrisitet" -> Transport til internt deponi - Utslipp knyttet til drivstoff/elektrisitet | AH37: =E36&" - Utslipp knyttet til kjøretøy og infrastruktur" -> Transport til internt deponi - Utslipp knyttet til kjøretøy og infrastruktur | AO37: =E$36&" - Sum utslipp" -> Transport til internt deponi - Sum utslipp
C38: =IF(F37='08. Beregningsfaktorer'!#REF!,"J",0) ->  | D38: 4.7.2 | E38: Mengde stein | G38: ='02. Inndata steinmasser'!$F$7 -> fm3 | T38: Kategori | V38: =IF(OR(F37='08. Beregningsfaktorer'!$B$9,F37='08. Beregningsfaktorer'!$B$10,F37='08. Beregningsfaktorer'!$B$11),'09. Utslippsfaktorer'!$P$14,IF(OR(F37='08. Beregningsfaktorer'!$B$12,F37='08. Beregningsfaktorer'!$B$13),'09. Utslippsfaktorer'!$P$15,IF(OR(F37='08. Beregningsfaktorer'!$B$14,F37='08. Beregningsfaktorer'!$B$15),'09. Utslippsfaktorer'!$P$16,IF(OR(F37='08. Beregningsfaktorer'!$B$24,F37='08. Beregningsfaktorer'!$B$25),'09. Utslippsfaktorer'!$P$18,IF(F37='08. Beregningsfaktorer'!$B$26,'09. Utslippsfaktorer'!$P$18,IF(F37='08. Beregningsfaktorer'!$B$27,'09. Utslippsfaktorer'!$P$18,IF(F37='08. Beregningsfaktorer'!$B$28,'09. Utslippsfaktorer'!$P$19,IF(F37='08. Beregningsfaktorer'!$B$29,'09. Utslippsfaktorer'!$P$19,IF(OR(F37='08. Beregningsfaktorer'!$B$17,F37='08. Beregningsfaktorer'!$B$16,F37='08. Beregningsfaktorer'!$B$18,F37='08. Beregningsfaktorer'!$B$19),'09. Utslippsfaktorer'!$P$16,IF(OR(F37='08. Beregningsfaktorer'!$B$20,F37='08. Beregningsfaktorer'!$B$21,F37='08. Beregningsfaktorer'!$B$22,F37='08. Beregningsfaktorer'!$B$23),'09. Utslippsfaktorer'!$P$14,"Mangler type kjøretøy")))))))))) -> Mangler type kjøretøy | AC38: CO2-ekv. | AD38: SO2-ekv. | AE38: P-ekv. | AF38: NMVOC | AJ38: CO2-ekv. | AK38: SO2-ekv. | AL38: P-ekv. | AM38: NMVOC | AQ38: CO2-ekv. | AR38: SO2-ekv. | AS38: P-ekv. | AT38: NMVOC
D39: 4.7.3 | E39: Hvor kommer massene fra? | G39: =IF(OR(F37='08. Beregningsfaktorer'!$B$28,F37='08. Beregningsfaktorer'!$B$29),0,IF(OR(F40='08. Beregningsfaktorer'!$E$77,F40='08. Beregningsfaktorer'!$E$80),F38*F41,0)) -> 0 | T39: =IF(F40='08. Beregningsfaktorer'!$E$78,"km","tonn km") -> tonn km | W39: =IF(F40='08. Beregningsfaktorer'!$E$78,IF(G38="tonn",IF(OR(F37='08. Beregningsfaktorer'!$B$16,F37='08. Beregningsfaktorer'!$B$17),(F38/8.5)*F41,IF(OR(F37='08. Beregningsfaktorer'!$B$18,F37='08. Beregningsfaktorer'!$B$19),(F38/14)*F41,IF(OR(F37='08. Beregningsfaktorer'!$B$20,F37='08. Beregningsfaktorer'!$B$21),(F38/26)*F41,IF(OR(F37='08. Beregningsfaktorer'!$B$22,F37='08. Beregningsfaktorer'!$B$23),(F38/40)*F41,IF(OR(F37='08. Beregningsfaktorer'!$B$24,F37='08. Beregningsfaktorer'!$B$25),(F38/14)*F41,IF(F37='08. Beregningsfaktorer'!$B$26,(F38/14)*F41,IF(F37='08. Beregningsfaktorer'!$B$27,(F38/14)*F41))))))),IF(OR(F37='08. Beregningsfaktorer'!$B$16,F37='08. Beregningsfaktorer'!$B$17),(F38*'08. Beregningsfaktorer'!$G$65/8.5)*F41,IF(OR(F37='08. Beregningsfaktorer'!$B$18,F37='08. Beregningsfaktorer'!$B$19),(F38*'08. Beregningsfaktorer'!$G$65/14)*F41,IF(OR(F37='08. Beregningsfaktorer'!$B$20,F37='08. Beregningsfaktorer'!$B$21),(F38*'08. Beregningsfaktorer'!$G$65/26)*F41,IF(OR(F37='08. Beregningsfaktorer'!$B$22,F37='08. Beregningsfaktorer'!$B$23),(F38*'08. Beregningsfaktorer'!$G$65/40)*F41,IF(OR(F37='08. Beregningsfaktorer'!$B$24,F37='08. Beregningsfaktorer'!$B$25),(F38*'08. Beregningsfaktorer'!$G$65/14)*F41,IF(F37='08. Beregningsfaktorer'!$B$26,(F38*'08. Beregningsfaktorer'!$G$65/14)*F41,IF(F37='08. Beregningsfaktorer'!$B$27,(F38*'08. Beregningsfaktorer'!$G$65/14)*F41)))))))),IF(F38=0,0,IF(F40='08. Beregningsfaktorer'!$E$80,IF(AND(OR(F37='08. Beregningsfaktorer'!$B$28,F37='08. Beregningsfaktorer'!$B$29),G38="tonn"),(F38/1900)*F41,IF(OR(F37='08. Beregningsfaktorer'!$B$28,F37='08. Beregningsfaktorer'!$B$29),(F38*'08. Beregningsfaktorer'!$G$65/1900)*F41,IF(G38="tonn",F38,F38*'08. Beregningsfaktorer'!$G$65)*F41)),IF(G38="tonn",F38*F41,F38*'08. Beregningsfaktorer'!$G$65)*F41))) -> 0 | X39: =IF(OR(F40='08. Beregningsfaktorer'!$E$78,F37='08. Beregningsfaktorer'!$B$28,F37='08. Beregningsfaktorer'!$B$29),"km","tkm") -> tkm | AA39: ="Utslippsfaktor (kg/"&W42&"):"&" " -> Utslippsfaktor (kg/l): | AC39: =IF(F37=0,0,(INDEX('09. Utslippsfaktorer'!$P$7:$U$13,MATCH(X42,'09. Utslippsfaktorer'!$P$7:$P$13,0),MATCH("kg "&AC38,'09. Utslippsfaktorer'!$P$7:$U$7,0),1))) -> 0 | AD39: =IF(F37=0,0,(INDEX('09. Utslippsfaktorer'!$P$7:$U$13,MATCH(X42,'09. Utslippsfaktorer'!$P$7:$P$13,0),MATCH("kg "&AD38,'09. Utslippsfaktorer'!$P$7:$U$7,0),1))) -> 0 | AE39: =IF(F37=0,0,(INDEX('09. Utslippsfaktorer'!$P$7:$U$13,MATCH(X42,'09. Utslippsfaktorer'!$P$7:$P$13,0),MATCH("kg "&AE38,'09. Utslippsfaktorer'!$P$7:$U$7,0),1))) -> 0 | AF39: =IF(F37=0,0,(INDEX('09. Utslippsfaktorer'!$P$7:$U$13,MATCH(X42,'09. Utslippsfaktorer'!$P$7:$P$13,0),MATCH("kg "&AF38,'09. Utslippsfaktorer'!$P$7:$U$7,0),1))) -> 0 | AH39: ="Utslippsfaktor (kg/"&X39&"):" -> Utslippsfaktor (kg/tkm): | AJ39: =IF(F37=0,0,(INDEX('09. Utslippsfaktorer'!$P$7:$U$45,MATCH(V38,'09. Utslippsfaktorer'!$P$7:$P$45,0),MATCH("kg "&AJ38,'09. Utslippsfaktorer'!$P$7:$U$7,0),1))) -> 0 | AK39: =IF(F37=0,0,(INDEX('09. Utslippsfaktorer'!$P$7:$U$45,MATCH(V38,'09. Utslippsfaktorer'!$P$7:$P$45,0),MATCH("kg "&AK38,'09. Utslippsfaktorer'!$P$7:$U$7,0),1))) -> 0 | AL39: =IF(F37=0,0,(INDEX('09. Utslippsfaktorer'!$P$7:$U$45,MATCH(V38,'09. Utslippsfaktorer'!$P$7:$P$45,0),MATCH("kg "&AL38,'09. Utslippsfaktorer'!$P$7:$U$7,0),1))) -> 0 | AM39: =IF(F37=0,0,(INDEX('09. Utslippsfaktorer'!$P$7:$U$45,MATCH(V38,'09. Utslippsfaktorer'!$P$7:$P$45,0),MATCH("kg "&AM38,'09. Utslippsfaktorer'!$P$7:$U$7,0),1))) -> 0 | AO39: Utslipp (kg): | AQ39: =IF(F40='08. Beregningsfaktorer'!$E$79,0,AC40+AJ40) -> 0 | AR39: =IF(F40='08. Beregningsfaktorer'!$E$79,0,AD40+AK40) -> 0 | AS39: =IF(F40='08. Beregningsfaktorer'!$E$79,0,AE40+AL40) -> 0 | AT39: =IF(F40='08. Beregningsfaktorer'!$E$79,0,AF40+AM40) -> 0
D40: 4.7.4 | E40: Lastekapasitet | G40: =IF(OR(F37='08. Beregningsfaktorer'!$B$9,F37='08. Beregningsfaktorer'!$B$10,F37='08. Beregningsfaktorer'!$B$12,F37='08. Beregningsfaktorer'!$B$13,F37='08. Beregningsfaktorer'!$B$14,F37='08. Beregningsfaktorer'!$B$15,F37='08. Beregningsfaktorer'!$B$28,F37='08. Beregningsfaktorer'!$B$29),IF(F40='08. Beregningsfaktorer'!$E$80,0,1),IF(F40='08. Beregningsfaktorer'!$E$80,3,0)) -> 0 | T40: Korreksjonsfaktor | W40: =IF(F42=0,0,INDEX('08. Beregningsfaktorer'!$E$54:$G$55,MATCH(F42,'08. Beregningsfaktorer'!$E$54:$E$55,0),3)) -> 0 | AA40: Utslipp (kg): | AC40: =IFERROR(V42*AC39,"Data mangler") -> 0 | AD40: =IFERROR(V42*AD39,"Data mangler") -> 0 | AE40: =IFERROR(V42*AE39,"Data mangler") -> 0 | AF40: =IFERROR(V42*AF39,"Data mangler") -> 0 | AH40: Utslipp (kg): | AJ40: =IF(V38='09. Utslippsfaktorer'!$P$19,IF(G38="tonn",F41*AJ39*F38,F41*AJ39*F38*'08. Beregningsfaktorer'!$G$65),IF(F40='08. Beregningsfaktorer'!$E$78,0,IFERROR(W39*AJ39,"Data mangler"))) -> 0 | AK40: =IF(V38='09. Utslippsfaktorer'!$P$19,IF(G38="tonn",F41*AK39*F38,F41*AK39*F38*'08. Beregningsfaktorer'!$G$65),IF(F40='08. Beregningsfaktorer'!$E$78,0,IFERROR(W39*AK39,"Data mangler"))) -> 0 | AL40: =IF(V38='09. Utslippsfaktorer'!$P$19,IF(G38="tonn",F41*AL39*F38,F41*AL39*F38*'08. Beregningsfaktorer'!$G$65),IF(F40='08. Beregningsfaktorer'!$E$78,0,IFERROR(W39*AL39,"Data mangler"))) -> 0 | AM40: =IF(V38='09. Utslippsfaktorer'!$P$19,IF(G38="tonn",F41*AM39*F38,F41*AM39*F38*'08. Beregningsfaktorer'!$G$65),IF(F40='08. Beregningsfaktorer'!$E$78,0,IFERROR(W39*AM39,"Data mangler"))) -> 0
D41: 4.7.5 | E41: Distanse | G41: km | T41: =IF(F40='08. Beregningsfaktorer'!$E$78,"Forbruk per km","Forbruk per tonn km") -> Forbruk per tonn km | W41: =IFERROR(IF(F37=0,0,IF(F40='08. Beregningsfaktorer'!$E$78,INDEX('08. Beregningsfaktorer'!$E$30:$G$41,MATCH(F37,'08. Beregningsfaktorer'!$B$30:$B$41,0),3,1),INDEX('08. Beregningsfaktorer'!$E$9:$G$29,MATCH(F37,'08. Beregningsfaktorer'!$B$9:$B$29,0),3,1))),"Loading..") -> 0 | X41: =IFERROR(W42&"/"&X39,"Loading..") -> l/tkm
D42: 4.7.6 | E42: Transport med helning | T42: Forbruk | V42: =IFERROR(W39*W41*W40,"Data mangler") -> 0 | W42: =IFERROR(IF(OR(F37='08. Beregningsfaktorer'!$B$26,F37='08. Beregningsfaktorer'!$B$27),"kWh",IF(F37='08. Beregningsfaktorer'!$B$11,"MJ","l")),"Loading..") -> l | X42: =IFERROR(IF(F37='08. Beregningsfaktorer'!$B$11,"Biogass",IF(OR(F37='08. Beregningsfaktorer'!$B$26,F37='08. Beregningsfaktorer'!$B$27),"Elektrisitet",IF(OR(F37='08. Beregningsfaktorer'!$B$10,F37='08. Beregningsfaktorer'!$B$13,F37='08. Beregningsfaktorer'!$B$15,F37='08. Beregningsfaktorer'!$B$17,F37='08. Beregningsfaktorer'!$B$17,F37='08. Beregningsfaktorer'!$B$19,F37='08. Beregningsfaktorer'!$B$21,F37='08. Beregningsfaktorer'!$B$23,F37='08. Beregningsfaktorer'!$B$25,F37='08. Beregningsfaktorer'!$B$29),"Biodiesel",IF(V38="Mangler type kjøretøy","Mangler type kjøretøy","Diesel")))),"Feil") -> Mangler type kjøretøy
AO44: =E36&" - Sum utslipp - Alle kjøretøy" -> Transport til internt deponi - Sum utslipp - Alle kjøretøy
AQ45: CO2-ekv. | AR45: SO2-ekv. | AS45: P-ekv. | AT45: NMVOC
D46: 4.8 | E46: Balanse veitransport | F46: =SUMIF(E36:E43,"Lastekapasitet",G36:G43) -> 0 | H46: Lastutnyttelse korrekt modellert | AO46: Utslipp (kg): | AQ46: =SUMIF(D36:D43,$D39,AQ36:AQ43) -> 0 | AR46: =SUMIF(D36:D43,$D39,AR36:AR43) -> 0 | AS46: =SUMIF(D36:D43,$D39,AS36:AS43) -> 0 | AT46: =SUMIF(D36:D43,$D39,AT36:AT43) -> 0
D47: 4.8.1 | E47: ="Balanse - "&E12 -> Balanse - Tunnelmunning | F47: =((F$12-SUMIF(F36:F43,'08. Beregningsfaktorer'!$B$28,G36:G43)-SUMIF(F36:F43,'08. Beregningsfaktorer'!#REF!,G36:G43))*F$28)-(SUMIF(F36:F43,E$12,G36:G43)) -> 0 | G47: ='02. Inndata steinmasser'!$F$7& " km" -> fm3 km | H47: Transportdistanser og masser stemmer
D48: 4.8.2 | E48: ="Balanse - "&E13 -> Balanse - Mobilt knuseverk | F48: =((F$13-SUMIF(F36:F43,'08. Beregningsfaktorer'!$B$28,G36:G43)-SUMIF(F36:F43,'08. Beregningsfaktorer'!#REF!,G36:G43))*F$29)-(SUMIF(F36:F43,E$13,G36:G43)) -> 0 | G48: ='02. Inndata steinmasser'!$F$7& " km" -> fm3 km | H48: Transportdistanser og masser stemmer
D49: 4.8.3 | E49: ="Balanse - "&E14 -> Balanse - Restprodukt mobilt knuseverk | F49: =((F$14-SUMIF(F36:F43,'08. Beregningsfaktorer'!$B$28,G36:G43)-SUMIF(F36:F43,'08. Beregningsfaktorer'!#REF!,G36:G43))*F$29)-(SUMIF(F36:F43,E$14,G36:G43)) -> 0 | G49: ='02. Inndata steinmasser'!$F$7& " km" -> fm3 km | H49: Transportdistanser og masser stemmer | T49: =V50&" - Grunnlagsdata og forbruk - Ikke inkludert i beregninger" -> Lastebil tipp - Grunnlagsdata og forbruk - Ikke inkludert i beregninger | AA49: =V50&" - Utslipp knyttet til drivstoff/elektrisitet" -> Lastebil tipp - Utslipp knyttet til drivstoff/elektrisitet | AO49: =V50&" - Sum utslipp" -> Lastebil tipp - Sum utslipp
T50: Kategori | V50: Lastebil tipp | AC50: CO2-ekv. | AD50: SO2-ekv. | AE50: P-ekv. | AF50: NMVOC | AQ50: CO2-ekv. | AR50: SO2-ekv. | AS50: P-ekv. | AT50: NMVOC
T51: Volum stein | X51: m3 | Y51: =IF((F12+F13+F14)=0,0,IF(G12="m3",(F12+F13+F14)*'08. Beregningsfaktorer'!$G$65/'08. Beregningsfaktorer'!$G$66-(SUMIF(C37:C44,"J",F37:F44)),((F12+F13+F14)-(SUMIF(C37:C44,"J",F37:F44)))/'08. Beregningsfaktorer'!$G$66)) -> 0 | AA51: ="Utslippsfaktor (kg/"&W53&"):"&" " -> Utslippsfaktor (kg/l): | AC51: =IF(V50=0,0,(INDEX('09. Utslippsfaktorer'!$P$7:$U$12,MATCH(X53,'09. Utslippsfaktorer'!$P$7:$P$12,0),MATCH("kg "&AC50,'09. Utslippsfaktorer'!$P$7:$U$7,0),1))) -> 3.1476 | AD51: =IF(V50=0,0,(INDEX('09. Utslippsfaktorer'!$P$7:$U$12,MATCH(X53,'09. Utslippsfaktorer'!$P$7:$P$12,0),MATCH("kg "&AD50,'09. Utslippsfaktorer'!$P$7:$U$7,0),1))) -> 0 | AE51: =IF(V50=0,0,(INDEX('09. Utslippsfaktorer'!$P$7:$U$12,MATCH(X53,'09. Utslippsfaktorer'!$P$7:$P$12,0),MATCH("kg "&AE50,'09. Utslippsfaktorer'!$P$7:$U$7,0),1))) -> 0 | AF51: =IF(V50=0,0,(INDEX('09. Utslippsfaktorer'!$P$7:$U$12,MATCH(X53,'09. Utslippsfaktorer'!$P$7:$P$12,0),MATCH("kg "&AF50,'09. Utslippsfaktorer'!$P$7:$U$7,0),1))) -> 0 | AO51: Utslipp (kg): | AQ51: =AC52+AJ52 -> 0 | AR51: =AD52+AK52 -> 0 | AS51: =AE52+AL52 -> 0 | AT51: =AF52+AM52 -> 0
T52: Forbruk per m3 stein | W52: =IF(V50=0,0,(INDEX('08. Beregningsfaktorer'!$E$12:$G$89,MATCH(V50,'08. Beregningsfaktorer'!$E$12:$E$89,0),3,1))) -> 0.19 | X52: =W53&"/"&X51 -> l/m3 | AA52: Utslipp (kg): | AC52: =$V53*AC51 -> 0 | AD52: =$V53*AD51 -> 0 | AE52: =$V53*AE51 -> 0 | AF52: =$V53*AF51 -> 0
T53: Forbruk | V53: =W51*W52 -> 0 | W53: =IF(V50='08. Beregningsfaktorer'!$E$50,"l",IF(V50='08. Beregningsfaktorer'!$E$51,"l",IF(V50='08. Beregningsfaktorer'!$E$52,"l","..."))) -> l | X53: =IF(V50='08. Beregningsfaktorer'!$E$50,"Diesel",IF(V50='08. Beregningsfaktorer'!$E$51,"Diesel",IF(V50='08. Beregningsfaktorer'!$E$52,"Diesel","Mangler type kjøretøy"))) -> Diesel
B55: Internt deponi
T56: =E57&" - Grunnlagsdata og forbruk" -> Utlegging - Grunnlagsdata og forbruk | AA56: =E57&" - Utslipp knyttet til drivstoff/elektrisitet" -> Utlegging - Utslipp knyttet til drivstoff/elektrisitet | AO56: =E57&" - Sum utslipp" -> Utlegging - Sum utslipp
D57: 4.9 | E57: Utlegging | T57: Kategori | V57: =IF(F58='08. Beregningsfaktorer'!$E$58,'08. Beregningsfaktorer'!$E$58,"Mangler type kjøretøy") -> Utleggingsmaskin steinmasser | AC57: CO2-ekv. | AD57: SO2-ekv. | AE57: P-ekv. | AF57: NMVOC | AQ57: CO2-ekv. | AR57: SO2-ekv. | AS57: P-ekv. | AT57: NMVOC
D58: 4.9.1 | E58: Type utlegging | F58: Utleggingsmaskin steinmasser | T58: Volum stein | W58: =IF((F$12+F$13+F$14)=0,0,IF(G$12="fm3",(F$12+F$13+F$14)*'08. Beregningsfaktorer'!$G$65/'08. Beregningsfaktorer'!$G$66,(F$12+F$13+F$14)/'08. Beregningsfaktorer'!$G$66)) -> 0 | X58: lm3 | AA58: ="Utslippsfaktor (kg/"&W60&"):"&" " -> Utslippsfaktor (kg/l): | AC58: =IF($F58=0,0,(INDEX('09. Utslippsfaktorer'!$P$7:$U$12,MATCH($X60,'09. Utslippsfaktorer'!$P$7:$P$12,0),MATCH("kg "&AC57,'09. Utslippsfaktorer'!$P$7:$U$7,0),1))) -> 3.1476 | AD58: =IF($F58=0,0,(INDEX('09. Utslippsfaktorer'!$P$7:$U$12,MATCH($X60,'09. Utslippsfaktorer'!$P$7:$P$12,0),MATCH("kg "&AD57,'09. Utslippsfaktorer'!$P$7:$U$7,0),1))) -> 0 | AE58: =IF($F58=0,0,(INDEX('09. Utslippsfaktorer'!$P$7:$U$12,MATCH($X60,'09. Utslippsfaktorer'!$P$7:$P$12,0),MATCH("kg "&AE57,'09. Utslippsfaktorer'!$P$7:$U$7,0),1))) -> 0 | AF58: =IF($F58=0,0,(INDEX('09. Utslippsfaktorer'!$P$7:$U$12,MATCH($X60,'09. Utslippsfaktorer'!$P$7:$P$12,0),MATCH("kg "&AF57,'09. Utslippsfaktorer'!$P$7:$U$7,0),1))) -> 0 | AO58: Utslipp (kg): | AQ58: =AC59 -> 0 | AR58: =AD59+AK59 -> 0 | AS58: =AE59+AL59 -> 0 | AT58: =AF59+AM59 -> 0
T59: Forbruk per m3 stein | W59: =IF(F58=0,0,(INDEX('08. Beregningsfaktorer'!E$12:G$89,MATCH(F58,'08. Beregningsfaktorer'!E$12:E$89,0),3,1))) -> 1.1 | X59: =W60&"/"&X58 -> l/lm3 | AA59: Utslipp (kg): | AC59: =$V60*AC58 -> 0 | AD59: =$V60*AD58 -> 0 | AE59: =$V60*AE58 -> 0 | AF59: =$V60*AF58 -> 0
T60: Forbruk | V60: =W58*W59 -> 0 | W60: =IF(F58='08. Beregningsfaktorer'!E58,"l","...") -> l | X60: =IF(F58='08. Beregningsfaktorer'!E58,"Diesel","Mangler type kjøretøy") -> Diesel
T62: =E63&" - Grunnlagsdata og forbruk" -> Komprimering - Grunnlagsdata og forbruk | AA62: =E63&" - Utslipp knyttet til drivstoff/elektrisitet" -> Komprimering - Utslipp knyttet til drivstoff/elektrisitet | AO62: =E63&" - Sum utslipp" -> Komprimering - Sum utslipp
D63: 4.10 | E63: Komprimering | T63: Kategori | V63: =IF(F64='08. Beregningsfaktorer'!$E$61,'08. Beregningsfaktorer'!$E$61,IF(F64='08. Beregningsfaktorer'!$E$62,'08. Beregningsfaktorer'!$E$62,"Mangler type komprimeringsmaskin")) -> Mangler type komprimeringsmaskin | AC63: CO2-ekv. | AD63: SO2-ekv. | AE63: P-ekv. | AF63: NMVOC | AQ63: CO2-ekv. | AR63: SO2-ekv. | AS63: P-ekv. | AT63: NMVOC
D64: 4.10.1 | E64: Komprimeringsmaskin | T64: Volum stein | W64: =IF((F$12+F$13+F$14)=0,0,IF(G$12="fm3",(F$12+F$13+F$14)*'08. Beregningsfaktorer'!$G$65/'08. Beregningsfaktorer'!$G$66,(F$12+F$13+F$14)/'08. Beregningsfaktorer'!$G$66)) -> 0 | X64: lm3 | AA64: ="Utslippsfaktor (kg/"&W66&"):"&" " -> Utslippsfaktor (kg/...): | AC64: =IF($F64=0,0,IF($F64='08. Beregningsfaktorer'!$E$62,0,(INDEX('09. Utslippsfaktorer'!$P$7:$U$12,MATCH($X66,'09. Utslippsfaktorer'!$P$7:$P$12,0),MATCH("kg "&AC63,'09. Utslippsfaktorer'!$P$7:$U$7,0),1)))) -> 0 | AD64: =IF($F64=0,0,IF($F64='08. Beregningsfaktorer'!$E$62,0,(INDEX('09. Utslippsfaktorer'!$P$7:$U$12,MATCH($X66,'09. Utslippsfaktorer'!$P$7:$P$12,0),MATCH("kg "&AD63,'09. Utslippsfaktorer'!$P$7:$U$7,0),1)))) -> 0 | AE64: =IF($F64=0,0,IF($F64='08. Beregningsfaktorer'!$E$62,0,(INDEX('09. Utslippsfaktorer'!$P$7:$U$12,MATCH($X66,'09. Utslippsfaktorer'!$P$7:$P$12,0),MATCH("kg "&AE63,'09. Utslippsfaktorer'!$P$7:$U$7,0),1)))) -> 0 | AF64: =IF($F64=0,0,IF($F64='08. Beregningsfaktorer'!$E$62,0,(INDEX('09. Utslippsfaktorer'!$P$7:$U$12,MATCH($X66,'09. Utslippsfaktorer'!$P$7:$P$12,0),MATCH("kg "&AF63,'09. Utslippsfaktorer'!$P$7:$U$7,0),1)))) -> 0 | AO64: Utslipp (kg): | AQ64: =AC65+AJ65 -> 0 | AR64: =AD65+AK65 -> 0 | AS64: =AE65+AL65 -> 0 | AT64: =AF65+AM65 -> 0
T65: Forbruk per m3 stein | W65: =IF(F64=0,0,(INDEX('08. Beregningsfaktorer'!E$12:G$89,MATCH(F64,'08. Beregningsfaktorer'!E$12:E$89,0),3,1))) -> 0 | X65: =W66&"/"&X64 -> .../lm3 | AA65: Utslipp (kg): | AC65: =$V66*AC64 -> 0 | AD65: =$V66*AD64 -> 0 | AE65: =$V66*AE64 -> 0 | AF65: =$V66*AF64 -> 0
T66: Forbruk | V66: =W64*W65 -> 0 | W66: =IF(F64='08. Beregningsfaktorer'!E61,"l","...") -> ... | X66: =IF(F64='08. Beregningsfaktorer'!E61,"Diesel",IF(F64='08. Beregningsfaktorer'!E62,'08. Beregningsfaktorer'!E62,"Mangler type komprimeringsmaskin")) -> Mangler type komprimeringsmaskin
B69: Transport til eksternt deponi
D70: 4.11 | E70: Fordeling av masser til eksterne deponier
D71: 4.11.1 | E71: Eksternt deponi 1 | G71: ='02. Inndata steinmasser'!$F$7 -> fm3
D72: 4.11.2 | E72: Eksternt deponi 2 | G72: ='02. Inndata steinmasser'!$F$7 -> fm3
D73: 4.11.3 | E73: Eksternt deponi 3 | G73: ='02. Inndata steinmasser'!$F$7 -> fm3
D75: 4.12 | E75: Veidistanser mellom eksternt deponi 1 og…
D76: 4.12.1 | E76: Tunnelmunning | G76: km
D77: 4.12.2 | E77: Mobilt knuseverk | G77: km
D79: 4.13 | E79: Veidistanser mellom eksternt deponi 2 og…
D80: 4.13.1 | E80: Tunnelmunning | G80: km
D81: 4.13.2 | E81: Mobilt knuseverk | G81: km
D83: 4.14 | E83: Veidistanser mellom eksternt deponi 3 og…
D84: 4.14.1 | E84: Tunnelmunning | G84: km
D85: 4.14.2 | E85: Mobilt knuseverk | G85: km
T86: =E87&" - Grunnlagsdata og forbruk" -> Lasting til transport - Grunnlagsdata og forbruk | AA86: =E87&" - Utslipp knyttet til drivstoff/elektrisitet" -> Lasting til transport - Utslipp knyttet til drivstoff/elektrisitet | AH86: =E87&" - Utslipp knyttet til maskin" -> Lasting til transport - Utslipp knyttet til maskin | AP86: =E87&" - Sum utslipp" -> Lasting til transport - Sum utslipp
D87: 4.15 | E87: Lasting til transport | T87: Kategori | V87: =IF(F88='08. Beregningsfaktorer'!$E$43,'08. Beregningsfaktorer'!$E$43,IF(F88='08. Beregningsfaktorer'!$E$44,'09. Utslippsfaktorer'!$P$20,IF(OR(F88='08. Beregningsfaktorer'!$E$45,F88='08. Beregningsfaktorer'!$E$47),'09. Utslippsfaktorer'!$P$21,IF(F88='08. Beregningsfaktorer'!$E$46,'09. Utslippsfaktorer'!$P$21,"Mangler type lastemaskin")))) -> Mangler type lastemaskin | AC87: CO2-ekv. | AD87: SO2-ekv. | AE87: P-ekv. | AF87: NMVOC | AJ87: CO2-ekv. | AK87: SO2-ekv. | AL87: P-ekv. | AM87: NMVOC | AQ87: CO2-ekv. | AR87: SO2-ekv. | AS87: P-ekv. | AT87: NMVOC
D88: 4.15.1 | E88: Type lastemaskin | T88: Volum stein | W88: =IF((F$17+F$18+F$19)=0,0,IF(G$17="fm3",(F$17+F$18+F$19)*'08. Beregningsfaktorer'!$G$65,(F$17+F$18+F$19)/'08. Beregningsfaktorer'!$G$65)) -> 0 | X88: lm3 | AA88: ="Utslippsfaktor (kg/"&W90&"):"&" " -> Utslippsfaktor (kg/...): | AC88: =IF(F88=0,0,IF(F88='08. Beregningsfaktorer'!$E$43,0,(INDEX('09. Utslippsfaktorer'!$P$7:$U$12,MATCH(X90,'09. Utslippsfaktorer'!$P$7:$P$12,0),MATCH("kg "&AC87,'09. Utslippsfaktorer'!$P$7:$U$7,0),1)))) -> 0 | AD88: =IF(F88=0,0,IF(F88='08. Beregningsfaktorer'!$E$43,0,(INDEX('09. Utslippsfaktorer'!$P$7:$U$12,MATCH(X90,'09. Utslippsfaktorer'!$P$7:$P$12,0),MATCH("kg "&AD87,'09. Utslippsfaktorer'!$P$7:$U$7,0),1)))) -> 0 | AE88: =IF(F88=0,0,IF(F88='08. Beregningsfaktorer'!$E$43,0,(INDEX('09. Utslippsfaktorer'!$P$7:$U$12,MATCH(X90,'09. Utslippsfaktorer'!$P$7:$P$12,0),MATCH("kg "&AE87,'09. Utslippsfaktorer'!$P$7:$U$7,0),1)))) -> 0 | AF88: =IF(F88=0,0,IF(F88='08. Beregningsfaktorer'!$E$43,0,(INDEX('09. Utslippsfaktorer'!$P$7:$U$12,MATCH(X90,'09. Utslippsfaktorer'!$P$7:$P$12,0),MATCH("kg "&AF87,'09. Utslippsfaktorer'!$P$7:$U$7,0),1)))) -> 0 | AH88: Utslippsfaktor (kg/m3): | AJ88: =IF(F88=0,0,IF(F88='08. Beregningsfaktorer'!$E$43,0,(INDEX('09. Utslippsfaktorer'!$P$7:$U$45,MATCH(V87,'09. Utslippsfaktorer'!$P$7:$P$45,0),MATCH("kg "&AJ87,'09. Utslippsfaktorer'!$P$7:$U$7,0),1)))) -> 0 | AK88: =IF(F88=0,0,IF(F88='08. Beregningsfaktorer'!$E$43,0,(INDEX('09. Utslippsfaktorer'!$P$7:$U$45,MATCH(V87,'09. Utslippsfaktorer'!$P$7:$P$45,0),MATCH("kg "&AK87,'09. Utslippsfaktorer'!$P$7:$U$7,0),1)))) -> 0 | AL88: =IF(F88=0,0,IF(F88='08. Beregningsfaktorer'!$E$43,0,(INDEX('09. Utslippsfaktorer'!$P$7:$U$45,MATCH(V87,'09. Utslippsfaktorer'!$P$7:$P$45,0),MATCH("kg "&AL87,'09. Utslippsfaktorer'!$P$7:$U$7,0),1)))) -> 0 | AM88: =IF(F88=0,0,IF(F88='08. Beregningsfaktorer'!$E$43,0,(INDEX('09. Utslippsfaktorer'!$P$7:$U$45,MATCH(V87,'09. Utslippsfaktorer'!$P$7:$P$45,0),MATCH("kg "&AM87,'09. Utslippsfaktorer'!$P$7:$U$7,0),1)))) -> 0 | AO88: Utslipp (kg): | AQ88: =AC89+AJ89 -> 0 | AR88: =AD89+AK89 -> 0 | AS88: =AE89+AL89 -> 0 | AT88: =AF89+AM89 -> 0
T89: Forbruk per m3 stein | W89: =IF(F88=0,0,(INDEX('08. Beregningsfaktorer'!$E$12:$G$89,MATCH(F88,'08. Beregningsfaktorer'!$E$12:$E$89,0),3,1))) -> 0 | X89: =W90&"/"&X88 -> .../lm3 | AA89: Utslipp (kg): | AC89: =V90*AC88 -> 0 | AD89: =V90*AD88 -> 0 | AE89: =V90*AE88 -> 0 | AF89: =V90*AF88 -> 0 | AH89: Utslipp (kg): | AJ89: =W88*AJ88 -> 0 | AK89: =W88*AK88 -> 0 | AL89: =W88*AL88 -> 0 | AM89: =W88*AM88 -> 0
T90: Forbruk | V90: =W88*W89 -> 0 | W90: =IF(F88='08. Beregningsfaktorer'!$E$44,"l",IF(OR(F88='08. Beregningsfaktorer'!$E$45,F88='08. Beregningsfaktorer'!$E$47),"l",IF(F88='08. Beregningsfaktorer'!$E$46,"kWh","..."))) -> ... | X90: =IF(F88='08. Beregningsfaktorer'!$E$43,"Ingen løft",IF(F88='08. Beregningsfaktorer'!$E$44,"Diesel",IF(F88='08. Beregningsfaktorer'!$E$45,"Diesel",IF(F88='08. Beregningsfaktorer'!$E$47,"Biodiesel",IF(F88='08. Beregningsfaktorer'!$E$46,"Elektrisitet","Mangler type lastemaskin"))))) -> Mangler type lastemaskin
D92: 4.16 | E92: Transport til eksternt deponi | F92: Endre antall kjøretøy:
D93: 4.16.1 | E93: Type kjøretøy | G93: =F94 -> 0 | T93: =E92&" - Grunnlagsdata og forbruk" -> Transport til eksternt deponi - Grunnlagsdata og forbruk | AA93: =E92&" - Utslipp knyttet til drivstoff/elektrisitet" -> Transport til eksternt deponi - Utslipp knyttet til drivstoff/elektrisitet | AH93: =E92&" - Utslipp knyttet til kjøretøy og infrastruktur" -> Transport til eksternt deponi - Utslipp knyttet til kjøretøy og infrastruktur | AO93: =E$92&" - Sum utslipp" -> Transport til eksternt deponi - Sum utslipp
C94: =IF(F93='08. Beregningsfaktorer'!#REF!,"J",0) ->  | D94: 4.16.2 | E94: Mengde stein | G94: ='02. Inndata steinmasser'!$F$7 -> fm3 | T94: Kategori | V94: =IF(OR(F93='08. Beregningsfaktorer'!$B$9,F93='08. Beregningsfaktorer'!$B$10,F93='08. Beregningsfaktorer'!$B$11),'09. Utslippsfaktorer'!$P$14,IF(OR(F93='08. Beregningsfaktorer'!$B$12,F93='08. Beregningsfaktorer'!$B$13),'09. Utslippsfaktorer'!$P$15,IF(OR(F93='08. Beregningsfaktorer'!$B$14,F93='08. Beregningsfaktorer'!$B$15),'09. Utslippsfaktorer'!$P$16,IF(OR(F93='08. Beregningsfaktorer'!$B$24,F93='08. Beregningsfaktorer'!$B$25),'09. Utslippsfaktorer'!$P$18,IF(F93='08. Beregningsfaktorer'!$B$26,'09. Utslippsfaktorer'!$P$18,IF(F93='08. Beregningsfaktorer'!$B$27,'09. Utslippsfaktorer'!$P$18,IF(F93='08. Beregningsfaktorer'!$B$28,'09. Utslippsfaktorer'!$P$19,IF(F93='08. Beregningsfaktorer'!$B$29,'09. Utslippsfaktorer'!$P$19,IF(OR(F93='08. Beregningsfaktorer'!$B$17,F93='08. Beregningsfaktorer'!$B$16,F93='08. Beregningsfaktorer'!$B$18,F93='08. Beregningsfaktorer'!$B$19),'09. Utslippsfaktorer'!$P$16,IF(OR(F93='08. Beregningsfaktorer'!$B$20,F93='08. Beregningsfaktorer'!$B$21,F93='08. Beregningsfaktorer'!$B$22,F93='08. Beregningsfaktorer'!$B$23),'09. Utslippsfaktorer'!$P$14,"Mangler type kjøretøy")))))))))) -> Mangler type kjøretøy | AC94: CO2-ekv. | AD94: SO2-ekv. | AE94: P-ekv. | AF94: NMVOC | AJ94: CO2-ekv. | AK94: SO2-ekv. | AL94: P-ekv. | AM94: NMVOC | AQ94: CO2-ekv. | AR94: SO2-ekv. | AS94: P-ekv. | AT94: NMVOC
D95: 4.16.3 | E95: Hvor kommer massene fra? | G95: =IF(OR(F93='08. Beregningsfaktorer'!$B$28,F93='08. Beregningsfaktorer'!$B$29),0,IF(OR(F96='08. Beregningsfaktorer'!$E$77,F96='08. Beregningsfaktorer'!$E$80),F94*F97,0)) -> 0 | T95: =IF(F96='08. Beregningsfaktorer'!$E$78,"km","tonn km") -> tonn km | W95: =IF(F96='08. Beregningsfaktorer'!$E$78,IF(G94="tonn",IF(OR(F93='08. Beregningsfaktorer'!$B$16,F93='08. Beregningsfaktorer'!$B$17),(F94/8.5)*F97,IF(OR(F93='08. Beregningsfaktorer'!$B$18,F93='08. Beregningsfaktorer'!$B$19),(F94/14)*F97,IF(OR(F93='08. Beregningsfaktorer'!$B$20,F93='08. Beregningsfaktorer'!$B$21),(F94/26)*F97,IF(OR(F93='08. Beregningsfaktorer'!$B$22,F93='08. Beregningsfaktorer'!$B$23),(F94/40)*F97,IF(OR(F93='08. Beregningsfaktorer'!$B$24,F93='08. Beregningsfaktorer'!$B$25),(F94/14)*F97,IF(F93='08. Beregningsfaktorer'!$B$26,(F94/14)*F97,IF(F93='08. Beregningsfaktorer'!$B$27,(F94/14)*F97))))))),IF(OR(F93='08. Beregningsfaktorer'!$B$16,F93='08. Beregningsfaktorer'!$B$17),(F94*'08. Beregningsfaktorer'!$G$65/8.5)*F97,IF(OR(F93='08. Beregningsfaktorer'!$B$18,F93='08. Beregningsfaktorer'!$B$19),(F94*'08. Beregningsfaktorer'!$G$65/14)*F97,IF(OR(F93='08. Beregningsfaktorer'!$B$20,F93='08. Beregningsfaktorer'!$B$21),(F94*'08. Beregningsfaktorer'!$G$65/26)*F97,IF(OR(F93='08. Beregningsfaktorer'!$B$22,F93='08. Beregningsfaktorer'!$B$23),(F94*'08. Beregningsfaktorer'!$G$65/40)*F97,IF(OR(F93='08. Beregningsfaktorer'!$B$24,F93='08. Beregningsfaktorer'!$B$25),(F94*'08. Beregningsfaktorer'!$G$65/14)*F97,IF(F93='08. Beregningsfaktorer'!$B$26,(F94*'08. Beregningsfaktorer'!$G$65/14)*F97,IF(F93='08. Beregningsfaktorer'!$B$27,(F94*'08. Beregningsfaktorer'!$G$65/14)*F97)))))))),IF(F94=0,0,IF(F96='08. Beregningsfaktorer'!$E$80,IF(AND(OR(F93='08. Beregningsfaktorer'!$B$28,F93='08. Beregningsfaktorer'!$B$29),G94="tonn"),(F94/1900)*F97,IF(OR(F93='08. Beregningsfaktorer'!$B$28,F93='08. Beregningsfaktorer'!$B$29),(F94*'08. Beregningsfaktorer'!$G$65/1900)*F97,IF(G94="tonn",F94,F94*'08. Beregningsfaktorer'!$G$65)*F97)),IF(G94="tonn",F94*F97,F94*'08. Beregningsfaktorer'!$G$65)*F97))) -> 0 | X95: =IF(OR(F96='08. Beregningsfaktorer'!$E$78,F93='08. Beregningsfaktorer'!$B$28,F93='08. Beregningsfaktorer'!$B$29),"km","tkm") -> tkm | AA95: ="Utslippsfaktor (kg/"&W98&"):"&" " -> Utslippsfaktor (kg/l): | AC95: =IF(F93=0,0,(INDEX('09. Utslippsfaktorer'!$P$7:$U$13,MATCH(X98,'09. Utslippsfaktorer'!$P$7:$P$13,0),MATCH("kg "&AC94,'09. Utslippsfaktorer'!$P$7:$U$7,0),1))) -> 0 | AD95: =IF(F93=0,0,(INDEX('09. Utslippsfaktorer'!$P$7:$U$13,MATCH(X98,'09. Utslippsfaktorer'!$P$7:$P$13,0),MATCH("kg "&AD94,'09. Utslippsfaktorer'!$P$7:$U$7,0),1))) -> 0 | AE95: =IF(F93=0,0,(INDEX('09. Utslippsfaktorer'!$P$7:$U$13,MATCH(X98,'09. Utslippsfaktorer'!$P$7:$P$13,0),MATCH("kg "&AE94,'09. Utslippsfaktorer'!$P$7:$U$7,0),1))) -> 0 | AF95: =IF(F93=0,0,(INDEX('09. Utslippsfaktorer'!$P$7:$U$13,MATCH(X98,'09. Utslippsfaktorer'!$P$7:$P$13,0),MATCH("kg "&AF94,'09. Utslippsfaktorer'!$P$7:$U$7,0),1))) -> 0 | AH95: ="Utslippsfaktor (kg/"&X95&"):" -> Utslippsfaktor (kg/tkm): | AJ95: =IF(F93=0,0,(INDEX('09. Utslippsfaktorer'!$P$7:$U$45,MATCH(V94,'09. Utslippsfaktorer'!$P$7:$P$45,0),MATCH("kg "&AJ94,'09. Utslippsfaktorer'!$P$7:$U$7,0),1))) -> 0 | AK95: =IF(F93=0,0,(INDEX('09. Utslippsfaktorer'!$P$7:$U$45,MATCH(V94,'09. Utslippsfaktorer'!$P$7:$P$45,0),MATCH("kg "&AK94,'09. Utslippsfaktorer'!$P$7:$U$7,0),1))) -> 0 | AL95: =IF(F93=0,0,(INDEX('09. Utslippsfaktorer'!$P$7:$U$45,MATCH(V94,'09. Utslippsfaktorer'!$P$7:$P$45,0),MATCH("kg "&AL94,'09. Utslippsfaktorer'!$P$7:$U$7,0),1))) -> 0 | AM95: =IF(F93=0,0,(INDEX('09. Utslippsfaktorer'!$P$7:$U$45,MATCH(V94,'09. Utslippsfaktorer'!$P$7:$P$45,0),MATCH("kg "&AM94,'09. Utslippsfaktorer'!$P$7:$U$7,0),1))) -> 0 | AO95: Utslipp (kg): | AQ95: =IF(F96='08. Beregningsfaktorer'!$E$79,0,AC96+AJ96) -> 0 | AR95: =IF(F96='08. Beregningsfaktorer'!$E$79,0,AD96+AK96) -> 0 | AS95: =IF(F96='08. Beregningsfaktorer'!$E$79,0,AE96+AL96) -> 0 | AT95: =IF(F96='08. Beregningsfaktorer'!$E$79,0,AF96+AM96) -> 0
D96: 4.16.4 | E96: Lastekapasitet | G96: =IF(OR(F93='08. Beregningsfaktorer'!$B$9,F93='08. Beregningsfaktorer'!$B$10,F93='08. Beregningsfaktorer'!$B$12,F93='08. Beregningsfaktorer'!$B$13,F93='08. Beregningsfaktorer'!$B$14,F93='08. Beregningsfaktorer'!$B$15,F93='08. Beregningsfaktorer'!$B$28,F93='08. Beregningsfaktorer'!$B$29),IF(F96='08. Beregningsfaktorer'!$E$80,0,1),IF(F96='08. Beregningsfaktorer'!$E$80,3,0)) -> 0 | T96: Korreksjonsfaktor | W96: =IF(F98=0,0,INDEX('08. Beregningsfaktorer'!$E$54:$G$55,MATCH(F98,'08. Beregningsfaktorer'!$E$54:$E$55,0),3)) -> 0 | AA96: Utslipp (kg): | AC96: =IFERROR(V98*AC95,"Data mangler") -> 0 | AD96: =IFERROR(V98*AD95,"Data mangler") -> 0 | AE96: =IFERROR(V98*AE95,"Data mangler") -> 0 | AF96: =IFERROR(V98*AF95,"Data mangler") -> 0 | AH96: Utslipp (kg): | AJ96: =IF(V94='09. Utslippsfaktorer'!$P$19,IF(G94="tonn",F97*AJ95*F94,F97*AJ95*F94*'08. Beregningsfaktorer'!$G$65),IF(F96='08. Beregningsfaktorer'!$E$78,0,IFERROR(W95*AJ95,"Data mangler"))) -> 0 | AK96: =IF(V94='09. Utslippsfaktorer'!$P$19,IF(G94="tonn",F97*AK95*F94,F97*AK95*F94*'08. Beregningsfaktorer'!$G$65),IF(F96='08. Beregningsfaktorer'!$E$78,0,IFERROR(W95*AK95,"Data mangler"))) -> 0 | AL96: =IF(V94='09. Utslippsfaktorer'!$P$19,IF(G94="tonn",F97*AL95*F94,F97*AL95*F94*'08. Beregningsfaktorer'!$G$65),IF(F96='08. Beregningsfaktorer'!$E$78,0,IFERROR(W95*AL95,"Data mangler"))) -> 0 | AM96: =IF(V94='09. Utslippsfaktorer'!$P$19,IF(G94="tonn",F97*AM95*F94,F97*AM95*F94*'08. Beregningsfaktorer'!$G$65),IF(F96='08. Beregningsfaktorer'!$E$78,0,IFERROR(W95*AM95,"Data mangler"))) -> 0
D97: 4.16.5 | E97: Distanse | G97: km | T97: =IF(F96='08. Beregningsfaktorer'!$E$78,"Forbruk per km","Forbruk per tonn km") -> Forbruk per tonn km | W97: =IFERROR(IF(F93=0,0,IF(F96='08. Beregningsfaktorer'!$E$78,INDEX('08. Beregningsfaktorer'!$E$30:$G$41,MATCH(F93,'08. Beregningsfaktorer'!$B$30:$B$41,0),3,1),INDEX('08. Beregningsfaktorer'!$E$9:$G$29,MATCH(F93,'08. Beregningsfaktorer'!$B$9:$B$29,0),3,1))),"Loading..") -> 0 | X97: =IFERROR(W98&"/"&X95,"Loading..") -> l/tkm
D98: 4.16.6 | E98: Transport med helning | T98: Forbruk | V98: =IFERROR(W95*W97*W96,"Data mangler") -> 0 | W98: =IFERROR(IF(OR(F93='08. Beregningsfaktorer'!$B$26,F93='08. Beregningsfaktorer'!$B$27),"kWh",IF(F93='08. Beregningsfaktorer'!$B$11,"MJ","l")),"Loading..") -> l | X98: =IFERROR(IF(F93='08. Beregningsfaktorer'!$B$11,"Biogass",IF(OR(F93='08. Beregningsfaktorer'!$B$26,F93='08. Beregningsfaktorer'!$B$27),"Elektrisitet",IF(OR(F93='08. Beregningsfaktorer'!$B$10,F93='08. Beregningsfaktorer'!$B$13,F93='08. Beregningsfaktorer'!$B$15,F93='08. Beregningsfaktorer'!$B$17,F93='08. Beregningsfaktorer'!$B$17,F93='08. Beregningsfaktorer'!$B$19,F93='08. Beregningsfaktorer'!$B$21,F93='08. Beregningsfaktorer'!$B$23,F93='08. Beregningsfaktorer'!$B$25,F93='08. Beregningsfaktorer'!$B$29),"Biodiesel",IF(V94="Mangler type kjøretøy","Mangler type kjøretøy","Diesel")))),"Feil") -> Mangler type kjøretøy
AO100: =E92&" - Sum utslipp - Alle kjøretøy" -> Transport til eksternt deponi - Sum utslipp - Alle kjøretøy
D101: 4.17 | E101: Balanse veitransport | F101: =SUMIF(E92:E99,"Lastekapasitet",G92:G99) -> 0 | H101: Lastutnyttelse korrekt modellert | AQ101: CO2-ekv. | AR101: SO2-ekv. | AS101: P-ekv. | AT101: NMVOC
D102: 4.17.1 | E102: ="Balanse - "&E17 -> Balanse - Tunnelmunning | F102: =(F$71*F$76)+(F$72*F$80)+(F$73*F$84)-(SUMIF(F92:F99,E$17,G92:G99)) -> 0 | G102: ='02. Inndata steinmasser'!$F$7& " km" -> fm3 km | H102: Transportdistanser og masser stemmer | AO102: Utslipp (kg): | AQ102: =SUMIF(D92:D99,$D95,AQ92:AQ99) -> 0 | AR102: =SUMIF(D92:D99,$D95,AR92:AR99) -> 0 | AS102: =SUMIF(D92:D99,$D95,AS92:AS99) -> 0 | AT102: =SUMIF(D92:D99,$D95,AT92:AT99) -> 0
D103: 4.17.2 | E103: ="Balanse - "&E18 -> Balanse - Mobilt knuseverk | F103: =(F$18*(F$77+F81+F85))-(SUMIF(F92:F99,E$18,G92:G99)) -> 0 | G103: ='02. Inndata steinmasser'!$F$7& " km" -> fm3 km | H103: Transportdistanser og masser stemmer
D104: 4.17.3 | E104: ="Balanse - "&E19 -> Balanse - Restprodukt mobilt knuseverk | F104: =(F$19*(F$77+F81+F85))-(SUMIF(F92:F99,E$19,G92:G99)) -> 0 | G104: ='02. Inndata steinmasser'!$F$7& " km" -> fm3 km | H104: Transportdistanser og masser stemmer
T105: =V106&" - Grunnlagsdata og forbruk - Ikke inkludert i beregninger" -> Lastebil tipp - Grunnlagsdata og forbruk - Ikke inkludert i beregninger | AA105: =V106&" - Utslipp knyttet til drivstoff/elektrisitet" -> Lastebil tipp - Utslipp knyttet til drivstoff/elektrisitet | AO105: =V106&" - Sum utslipp" -> Lastebil tipp - Sum utslipp
T106: Kategori | V106: Lastebil tipp | AC106: CO2-ekv. | AD106: SO2-ekv. | AE106: P-ekv. | AF106: NMVOC | AQ106: CO2-ekv. | AR106: SO2-ekv. | AS106: P-ekv. | AT106: NMVOC
T107: Volum stein | X107: m3 | Y107: =IF((F17+F18+F19)=0,0,IF(G17="m3",(F17+F18+F19)*'08. Beregningsfaktorer'!$G$64/'08. Beregningsfaktorer'!$G$66-(SUMIF(C93:C100,"J",F93:F100)),((F17+F18+F19)-(SUMIF(C93:C100,"J",F93:F100)))/'08. Beregningsfaktorer'!$G$66)) -> 0 | AA107: ="Utslippsfaktor (kg/"&W109&"):"&" " -> Utslippsfaktor (kg/l): | AC107: =IF(V106=0,0,(INDEX('09. Utslippsfaktorer'!$P$7:$U$12,MATCH(X109,'09. Utslippsfaktorer'!$P$7:$P$12,0),MATCH("kg "&AC106,'09. Utslippsfaktorer'!$P$7:$U$7,0),1))) -> 3.1476 | AD107: =IF(V106=0,0,(INDEX('09. Utslippsfaktorer'!$P$7:$U$12,MATCH(X109,'09. Utslippsfaktorer'!$P$7:$P$12,0),MATCH("kg "&AD106,'09. Utslippsfaktorer'!$P$7:$U$7,0),1))) -> 0 | AE107: =IF(V106=0,0,(INDEX('09. Utslippsfaktorer'!$P$7:$U$12,MATCH(X109,'09. Utslippsfaktorer'!$P$7:$P$12,0),MATCH("kg "&AE106,'09. Utslippsfaktorer'!$P$7:$U$7,0),1))) -> 0 | AF107: =IF(V106=0,0,(INDEX('09. Utslippsfaktorer'!$P$7:$U$12,MATCH(X109,'09. Utslippsfaktorer'!$P$7:$P$12,0),MATCH("kg "&AF106,'09. Utslippsfaktorer'!$P$7:$U$7,0),1))) -> 0 | AO107: Utslipp (kg): | AQ107: =AC108+AJ108 -> 0 | AR107: =AD108+AK108 -> 0 | AS107: =AE108+AL108 -> 0 | AT107: =AF108+AM108 -> 0
T108: Forbruk per m3 stein | W108: =IF(V106=0,0,(INDEX('08. Beregningsfaktorer'!$E$12:$G$89,MATCH(V106,'08. Beregningsfaktorer'!$E$12:$E$89,0),3,1))) -> 0.19 | X108: =W109&"/"&X107 -> l/m3 | AA108: Utslipp (kg): | AC108: =$V109*AC107 -> 0 | AD108: =$V109*AD107 -> 0 | AE108: =$V109*AE107 -> 0 | AF108: =$V109*AF107 -> 0
T109: Forbruk | V109: =W107*W108 -> 0 | W109: =IF(V106='08. Beregningsfaktorer'!$E$50,"l",IF(V106='08. Beregningsfaktorer'!$E$51,"l",IF(V106='08. Beregningsfaktorer'!$E$52,"l","..."))) -> l | X109: =IF(V106='08. Beregningsfaktorer'!$E$50,"Diesel",IF(V106='08. Beregningsfaktorer'!$E$51,"Diesel",IF(V106='08. Beregningsfaktorer'!$E$52,"Diesel","Mangler type kjøretøy"))) -> Diesel

Sheet 05. Pukkverk
D2: 05. Pukkverk
D4: Nr. | E4: Prosess | F4: Mengde/type | G4: Enhet
B5: Masser
D6: 5.1 | E6: Masser til pukkverk
D7: 5.1.1 | E7: Tunnelmunning | F7: ='02. Inndata steinmasser'!F37 -> 0 | G7: ='02. Inndata steinmasser'!$F$7 -> fm3
D8: 5.1.2 | E8: Mobilt knuseverk | F8: ='03. Mobilt knuseverk'!F17 -> 0 | G8: ='02. Inndata steinmasser'!$F$7 -> fm3
D9: 5.1.3 | E9: Sum til pukkverk | F9: =F7+F8 -> 0 | G9: ='02. Inndata steinmasser'!$F$7 -> fm3
D11: 5.2 | E11: Masser fra pukkverk
D12: 5.2.1 | E12: Linja | G12: ='02. Inndata steinmasser'!$F$7 -> fm3
B14: Transport
D15: 5.3 | E15: Veidistanser mellom pukkverk og…
D16: 5.3.1 | E16: Tunnelmunning | G16: km
D17: 5.3.2 | E17: Linja | G17: km
T18: =E19&" - Grunnlagsdata og forbruk" -> Lasting til transport - Grunnlagsdata og forbruk | AA18: =E19&" - Utslipp knyttet til drivstoff/elektrisitet" -> Lasting til transport - Utslipp knyttet til drivstoff/elektrisitet | AH18: =E19&" - Utslipp knyttet til maskin" -> Lasting til transport - Utslipp knyttet til maskin | AO18: =E19&" - Sum utslipp" -> Lasting til transport - Sum utslipp
D19: 5.4 | E19: Lasting til transport | T19: Kategori | V19: =IF(F20='08. Beregningsfaktorer'!$E$43,'08. Beregningsfaktorer'!$E$43,IF(F20='08. Beregningsfaktorer'!$E$44,'09. Utslippsfaktorer'!$P$20,IF(OR(F20='08. Beregningsfaktorer'!$E$45,F20='08. Beregningsfaktorer'!$E$47),'09. Utslippsfaktorer'!$P$21,IF(F20='08. Beregningsfaktorer'!$E$46,'09. Utslippsfaktorer'!$P$21,"Mangler type lastemaskin")))) -> Mangler type lastemaskin | AC19: CO2-ekv. | AD19: SO2-ekv. | AE19: P-ekv. | AF19: NMVOC | AJ19: CO2-ekv. | AK19: SO2-ekv. | AL19: P-ekv. | AM19: NMVOC | AQ19: CO2-ekv. | AR19: SO2-ekv. | AS19: P-ekv. | AT19: NMVOC
D20: 5.4.1 | E20: Type lastemaskin | T20: Volum stein | W20: =IF(F$9=0,0,IF(G$9="fm3",F$9*'08. Beregningsfaktorer'!$G$65/'08. Beregningsfaktorer'!$G$66,F$9/'08. Beregningsfaktorer'!$G$66)) -> 0 | X20: lm3 | AA20: ="Utslippsfaktor (kg/"&W22&"):"&" " -> Utslippsfaktor (kg/...): | AC20: =IF(F20=0,0,IF(F20='08. Beregningsfaktorer'!$E$43,0,(INDEX('09. Utslippsfaktorer'!$P$7:$U$12,MATCH(X22,'09. Utslippsfaktorer'!$P$7:$P$12,0),MATCH("kg "&AC19,'09. Utslippsfaktorer'!$P$7:$U$7,0),1)))) -> 0 | AD20: =IF(F20=0,0,IF(F20='08. Beregningsfaktorer'!$E$43,0,(INDEX('09. Utslippsfaktorer'!$P$7:$U$12,MATCH(X22,'09. Utslippsfaktorer'!$P$7:$P$12,0),MATCH("kg "&AD19,'09. Utslippsfaktorer'!$P$7:$U$7,0),1)))) -> 0 | AE20: =IF(F20=0,0,IF(F20='08. Beregningsfaktorer'!$E$43,0,(INDEX('09. Utslippsfaktorer'!$P$7:$U$12,MATCH(X22,'09. Utslippsfaktorer'!$P$7:$P$12,0),MATCH("kg "&AE19,'09. Utslippsfaktorer'!$P$7:$U$7,0),1)))) -> 0 | AF20: =IF(F20=0,0,IF(F20='08. Beregningsfaktorer'!$E$43,0,(INDEX('09. Utslippsfaktorer'!$P$7:$U$12,MATCH(X22,'09. Utslippsfaktorer'!$P$7:$P$12,0),MATCH("kg "&AF19,'09. Utslippsfaktorer'!$P$7:$U$7,0),1)))) -> 0 | AH20: Utslippsfaktor (kg/m3): | AJ20: =IF(F20=0,0,IF(F20='08. Beregningsfaktorer'!$E$43,0,(INDEX('09. Utslippsfaktorer'!$P$7:$U$45,MATCH(V19,'09. Utslippsfaktorer'!$P$7:$P$45,0),MATCH("kg "&AJ19,'09. Utslippsfaktorer'!$P$7:$U$7,0),1)))) -> 0 | AK20: =IF(F20=0,0,IF(F20='08. Beregningsfaktorer'!$E$43,0,(INDEX('09. Utslippsfaktorer'!$P$7:$U$45,MATCH(V19,'09. Utslippsfaktorer'!$P$7:$P$45,0),MATCH("kg "&AK19,'09. Utslippsfaktorer'!$P$7:$U$7,0),1)))) -> 0 | AL20: =IF(F20=0,0,IF(F20='08. Beregningsfaktorer'!$E$43,0,(INDEX('09. Utslippsfaktorer'!$P$7:$U$45,MATCH(V19,'09. Utslippsfaktorer'!$P$7:$P$45,0),MATCH("kg "&AL19,'09. Utslippsfaktorer'!$P$7:$U$7,0),1)))) -> 0 | AM20: =IF(F20=0,0,IF(F20='08. Beregningsfaktorer'!$E$43,0,(INDEX('09. Utslippsfaktorer'!$P$7:$U$45,MATCH(V19,'09. Utslippsfaktorer'!$P$7:$P$45,0),MATCH("kg "&AM19,'09. Utslippsfaktorer'!$P$7:$U$7,0),1)))) -> 0 | AO20: Utslipp (kg): | AQ20: =AC21+AJ21 -> 0 | AR20: =AD21+AK21 -> 0 | AS20: =AE21+AL21 -> 0 | AT20: =AF21+AM21 -> 0
T21: Forbruk per m3 stein | W21: =IF(F20=0,0,(INDEX('08. Beregningsfaktorer'!$E$12:$G$89,MATCH(F20,'08. Beregningsfaktorer'!$E$12:$E$89,0),3,1))) -> 0 | X21: =W22&"/"&X20 -> .../lm3 | AA21: Utslipp (kg): | AC21: =V22*AC20 -> 0 | AD21: =V22*AD20 -> 0 | AE21: =V22*AE20 -> 0 | AF21: =V22*AF20 -> 0 | AH21: Utslipp (kg): | AJ21: =W20*AJ20 -> 0 | AK21: =W20*AK20 -> 0 | AL21: =W20*AL20 -> 0 | AM21: =W20*AM20 -> 0
H22: OBS! Retur med nyttelast tas ikke med i totalutslipp. Utslipp kan sees i mellomregningene til høyre. | T22: Forbruk | V22: =W20*W21 -> 0 | W22: =IF(F20='08. Beregningsfaktorer'!$E$44,"l",IF(OR(F20='08. Beregningsfaktorer'!$E$45,F20='08. Beregningsfaktorer'!$E$47),"l",IF(F20='08. Beregningsfaktorer'!$E$46,"kWh","..."))) -> ... | X22: =IF(F20='08. Beregningsfaktorer'!$E$43,"Ingen løft",IF(F20='08. Beregningsfaktorer'!$E$44,"Diesel",IF(F20='08. Beregningsfaktorer'!$E$45,"Diesel",IF(F20='08. Beregningsfaktorer'!$E$47,"Biodiesel",IF(F20='08. Beregningsfaktorer'!$E$46,"Elektrisitet","Mangler type lastemaskin"))))) -> Mangler type lastemaskin
H23: OBS! Mengde transportert ut av prosjektet må også skrives inn for retur med tom last, for å beregne antall returer.
D24: 5.5 | E24: Transport til pukkverk | F24: Endre antall kjøretøy:
D25: 5.5.1 | E25: Type kjøretøy | G25: =F26 -> 0 | T25: =E24&" - Grunnlagsdata og forbruk" -> Transport til pukkverk - Grunnlagsdata og forbruk | AA25: =E24&" - Utslipp knyttet til drivstoff/elektrisitet" -> Transport til pukkverk - Utslipp knyttet til drivstoff/elektrisitet | AH25: =E24&" - Utslipp knyttet til kjøretøy og infrastruktur" -> Transport til pukkverk - Utslipp knyttet til kjøretøy og infrastruktur | AO25: =E24&" - Sum utslipp" -> Transport til pukkverk - Sum utslipp
C26: =IF(F25='08. Beregningsfaktorer'!#REF!,"J",0) ->  | D26: 5.5.2 | E26: Mengde stein | G26: ='02. Inndata steinmasser'!$F$7 -> fm3 | T26: Kategori | V26: =IF(OR(F25='08. Beregningsfaktorer'!$B$9,F25='08. Beregningsfaktorer'!$B$10,F25='08. Beregningsfaktorer'!$B$11),'09. Utslippsfaktorer'!$P$14,IF(OR(F25='08. Beregningsfaktorer'!$B$12,F25='08. Beregningsfaktorer'!$B$13),'09. Utslippsfaktorer'!$P$15,IF(OR(F25='08. Beregningsfaktorer'!$B$14,F25='08. Beregningsfaktorer'!$B$15),'09. Utslippsfaktorer'!$P$16,IF(OR(F25='08. Beregningsfaktorer'!$B$24,F25='08. Beregningsfaktorer'!$B$25),'09. Utslippsfaktorer'!$P$18,IF(F25='08. Beregningsfaktorer'!$B$26,'09. Utslippsfaktorer'!$P$18,IF(F25='08. Beregningsfaktorer'!$B$27,'09. Utslippsfaktorer'!$P$18,IF(F25='08. Beregningsfaktorer'!$B$28,'09. Utslippsfaktorer'!$P$19,IF(F25='08. Beregningsfaktorer'!$B$29,'09. Utslippsfaktorer'!$P$19,IF(OR(F25='08. Beregningsfaktorer'!$B$17,F25='08. Beregningsfaktorer'!$B$16,F25='08. Beregningsfaktorer'!$B$18,F25='08. Beregningsfaktorer'!$B$19),'09. Utslippsfaktorer'!$P$16,IF(OR(F25='08. Beregningsfaktorer'!$B$20,F25='08. Beregningsfaktorer'!$B$21,F25='08. Beregningsfaktorer'!$B$22,F25='08. Beregningsfaktorer'!$B$23),'09. Utslippsfaktorer'!$P$14,"Mangler type kjøretøy")))))))))) -> Mangler type kjøretøy | AC26: CO2-ekv. | AD26: SO2-ekv. | AE26: P-ekv. | AF26: NMVOC | AJ26: CO2-ekv. | AK26: SO2-ekv. | AL26: P-ekv. | AM26: NMVOC | AQ26: CO2-ekv. | AR26: SO2-ekv. | AS26: P-ekv. | AT26: NMVOC
D27: 5.5.3 | E27: Hvor kommer massene fra? | G27: =IF(OR(F25='08. Beregningsfaktorer'!$B$28,F25='08. Beregningsfaktorer'!$B$29),0,IF(OR(F28='08. Beregningsfaktorer'!$E$77,F28='08. Beregningsfaktorer'!$E$80),F26*F29,0)) -> 0 | T27: =IF(F28='08. Beregningsfaktorer'!$E$78,"km","tonn km") -> tonn km | W27: =IF(F28='08. Beregningsfaktorer'!$E$78,IF(G26="tonn",IF(OR(F25='08. Beregningsfaktorer'!$B$16,F25='08. Beregningsfaktorer'!$B$17),(F26/8.5)*F29,IF(OR(F25='08. Beregningsfaktorer'!$B$18,F25='08. Beregningsfaktorer'!$B$19),(F26/14)*F29,IF(OR(F25='08. Beregningsfaktorer'!$B$20,F25='08. Beregningsfaktorer'!$B$21),(F26/26)*F29,IF(OR(F25='08. Beregningsfaktorer'!$B$22,F25='08. Beregningsfaktorer'!$B$23),(F26/40)*F29,IF(OR(F25='08. Beregningsfaktorer'!$B$24,F25='08. Beregningsfaktorer'!$B$25),(F26/14)*F29,IF(F25='08. Beregningsfaktorer'!$B$26,(F26/14)*F29,IF(F25='08. Beregningsfaktorer'!$B$27,(F26/14)*F29))))))),IF(OR(F25='08. Beregningsfaktorer'!$B$16,F25='08. Beregningsfaktorer'!$B$17),(F26*'08. Beregningsfaktorer'!$G$65/8.5)*F29,IF(OR(F25='08. Beregningsfaktorer'!$B$18,F25='08. Beregningsfaktorer'!$B$19),(F26*'08. Beregningsfaktorer'!$G$65/14)*F29,IF(OR(F25='08. Beregningsfaktorer'!$B$20,F25='08. Beregningsfaktorer'!$B$21),(F26*'08. Beregningsfaktorer'!$G$65/26)*F29,IF(OR(F25='08. Beregningsfaktorer'!$B$22,F25='08. Beregningsfaktorer'!$B$23),(F26*'08. Beregningsfaktorer'!$G$65/40)*F29,IF(OR(F25='08. Beregningsfaktorer'!$B$24,F25='08. Beregningsfaktorer'!$B$25),(F26*'08. Beregningsfaktorer'!$G$65/14)*F29,IF(F25='08. Beregningsfaktorer'!$B$26,(F26*'08. Beregningsfaktorer'!$G$65/14)*F29,IF(F25='08. Beregningsfaktorer'!$B$27,(F26*'08. Beregningsfaktorer'!$G$65/14)*F29)))))))),IF(F26=0,0,IF(F28='08. Beregningsfaktorer'!$E$80,IF(AND(OR(F25='08. Beregningsfaktorer'!$B$28,F25='08. Beregningsfaktorer'!$B$29),G26="tonn"),(F26/1900)*F29,IF(OR(F25='08. Beregningsfaktorer'!$B$28,F25='08. Beregningsfaktorer'!$B$29),(F26*'08. Beregningsfaktorer'!$G$65/1900)*F29,IF(G26="tonn",F26,F26*'08. Beregningsfaktorer'!$G$65)*F29)),IF(G26="tonn",F26*F29,F26*'08. Beregningsfaktorer'!$G$65)*F29))) -> 0 | X27: =IF(OR(F28='08. Beregningsfaktorer'!$E$78,F25='08. Beregningsfaktorer'!$B$28,F25='08. Beregningsfaktorer'!$B$29),"km","tkm") -> tkm | AA27: ="Utslippsfaktor (kg/"&W30&"):"&" " -> Utslippsfaktor (kg/l): | AC27: =IF(F25=0,0,(INDEX('09. Utslippsfaktorer'!$P$7:$U$13,MATCH(X30,'09. Utslippsfaktorer'!$P$7:$P$13,0),MATCH("kg "&AC26,'09. Utslippsfaktorer'!$P$7:$U$7,0),1))) -> 0 | AD27: =IF(F25=0,0,(INDEX('09. Utslippsfaktorer'!$P$7:$U$13,MATCH(X30,'09. Utslippsfaktorer'!$P$7:$P$13,0),MATCH("kg "&AD26,'09. Utslippsfaktorer'!$P$7:$U$7,0),1))) -> 0 | AE27: =IF(F25=0,0,(INDEX('09. Utslippsfaktorer'!$P$7:$U$13,MATCH(X30,'09. Utslippsfaktorer'!$P$7:$P$13,0),MATCH("kg "&AE26,'09. Utslippsfaktorer'!$P$7:$U$7,0),1))) -> 0 | AF27: =IF(F25=0,0,(INDEX('09. Utslippsfaktorer'!$P$7:$U$13,MATCH(X30,'09. Utslippsfaktorer'!$P$7:$P$13,0),MATCH("kg "&AF26,'09. Utslippsfaktorer'!$P$7:$U$7,0),1))) -> 0 | AH27: ="Utslippsfaktor (kg/"&X27&"):" -> Utslippsfaktor (kg/tkm): | AJ27: =IF(F25=0,0,(INDEX('09. Utslippsfaktorer'!$P$7:$U$45,MATCH(V26,'09. Utslippsfaktorer'!$P$7:$P$45,0),MATCH("kg "&AJ26,'09. Utslippsfaktorer'!$P$7:$U$7,0),1))) -> 0 | AK27: =IF(F25=0,0,(INDEX('09. Utslippsfaktorer'!$P$7:$U$45,MATCH(V26,'09. Utslippsfaktorer'!$P$7:$P$45,0),MATCH("kg "&AK26,'09. Utslippsfaktorer'!$P$7:$U$7,0),1))) -> 0 | AL27: =IF(F25=0,0,(INDEX('09. Utslippsfaktorer'!$P$7:$U$45,MATCH(V26,'09. Utslippsfaktorer'!$P$7:$P$45,0),MATCH("kg "&AL26,'09. Utslippsfaktorer'!$P$7:$U$7,0),1))) -> 0 | AM27: =IF(F25=0,0,(INDEX('09. Utslippsfaktorer'!$P$7:$U$45,MATCH(V26,'09. Utslippsfaktorer'!$P$7:$P$45,0),MATCH("kg "&AM26,'09. Utslippsfaktorer'!$P$7:$U$7,0),1))) -> 0 | AO27: Utslipp (kg): | AQ27: =IF(F28='08. Beregningsfaktorer'!$E$79,0,AC28+AJ28) -> 0 | AR27: =IF(F28='08. Beregningsfaktorer'!$E$79,0,AD28+AK28) -> 0 | AS27: =IF(F28='08. Beregningsfaktorer'!$E$79,0,AE28+AL28) -> 0 | AT27: =IF(F28='08. Beregningsfaktorer'!$E$79,0,AF28+AM28) -> 0
D28: 5.5.4 | E28: Lastekapasitet | G28: =IF(OR(F25='08. Beregningsfaktorer'!$B$9,F25='08. Beregningsfaktorer'!$B$10,F25='08. Beregningsfaktorer'!$B$12,F25='08. Beregningsfaktorer'!$B$13,F25='08. Beregningsfaktorer'!$B$14,F25='08. Beregningsfaktorer'!$B$15,F25='08. Beregningsfaktorer'!$B$28,F25='08. Beregningsfaktorer'!$B$29),IF(F28='08. Beregningsfaktorer'!$E$80,0,1),IF(F28='08. Beregningsfaktorer'!$E$80,3,0)) -> 0 | T28: Korreksjonsfaktor | W28: =IF(F30=0,0,INDEX('08. Beregningsfaktorer'!$E$54:$G$55,MATCH(F30,'08. Beregningsfaktorer'!$E$54:$E$55,0),3)) -> 0 | AA28: Utslipp (kg): | AC28: =IFERROR(V30*AC27,"Data mangler") -> 0 | AD28: =IFERROR(V30*AD27,"Data mangler") -> 0 | AE28: =IFERROR(V30*AE27,"Data mangler") -> 0 | AF28: =IFERROR(V30*AF27,"Data mangler") -> 0 | AH28: Utslipp (kg): | AJ28: =IF(V26='09. Utslippsfaktorer'!$P$19,IF(G26="tonn",F29*AJ27*F26,F29*AJ27*F26*'08. Beregningsfaktorer'!$G$65),IF(F28='08. Beregningsfaktorer'!$E$78,0,IFERROR(W27*AJ27,"Data mangler"))) -> 0 | AK28: =IF(V26='09. Utslippsfaktorer'!$P$19,IF(G26="tonn",F29*AK27*F26,F29*AK27*F26*'08. Beregningsfaktorer'!$G$65),IF(F28='08. Beregningsfaktorer'!$E$78,0,IFERROR(W27*AK27,"Data mangler"))) -> 0 | AL28: =IF(V26='09. Utslippsfaktorer'!$P$19,IF(G26="tonn",F29*AL27*F26,F29*AL27*F26*'08. Beregningsfaktorer'!$G$65),IF(F28='08. Beregningsfaktorer'!$E$78,0,IFERROR(W27*AL27,"Data mangler"))) -> 0 | AM28: =IF(V26='09. Utslippsfaktorer'!$P$19,IF(G26="tonn",F29*AM27*F26,F29*AM27*F26*'08. Beregningsfaktorer'!$G$65),IF(F28='08. Beregningsfaktorer'!$E$78,0,IFERROR(W27*AM27,"Data mangler"))) -> 0
D29: 5.5.5 | E29: Distanse | G29: km | T29: =IF(F28='08. Beregningsfaktorer'!$E$78,"Forbruk per km","Forbruk per tonn km") -> Forbruk per tonn km | W29: =IFERROR(IF(F25=0,0,IF(F28='08. Beregningsfaktorer'!$E$78,INDEX('08. Beregningsfaktorer'!$E$30:$G$41,MATCH(F25,'08. Beregningsfaktorer'!$B$30:$B$41,0),3,1),INDEX('08. Beregningsfaktorer'!$E$9:$G$29,MATCH(F25,'08. Beregningsfaktorer'!$B$9:$B$29,0),3,1))),"Loading..") -> 0 | X29: =IFERROR(W30&"/"&X27,"Loading..") -> l/tkm
D30: 5.5.6 | E30: Transport med helning | T30: Forbruk | V30: =IFERROR(W27*W29*W28,"Data mangler") -> 0 | W30: =IFERROR(IF(OR(F25='08. Beregningsfaktorer'!$B$26,F25='08. Beregningsfaktorer'!$B$27),"kWh",IF(F25='08. Beregningsfaktorer'!$B$11,"MJ","l")),"Loading..") -> l | X30: =IFERROR(IF(F25='08. Beregningsfaktorer'!$B$11,"Biogass",IF(OR(F25='08. Beregningsfaktorer'!$B$26,F25='08. Beregningsfaktorer'!$B$27),"Elektrisitet",IF(OR(F25='08. Beregningsfaktorer'!$B$10,F25='08. Beregningsfaktorer'!$B$13,F25='08. Beregningsfaktorer'!$B$15,F25='08. Beregningsfaktorer'!$B$17,F25='08. Beregningsfaktorer'!$B$17,F25='08. Beregningsfaktorer'!$B$19,F25='08. Beregningsfaktorer'!$B$21,F25='08. Beregningsfaktorer'!$B$23,F25='08. Beregningsfaktorer'!$B$25,F25='08. Beregningsfaktorer'!$B$29),"Biodiesel",IF(V26="Mangler type kjøretøy","Mangler type kjøretøy","Diesel")))),"Feil") -> Mangler type kjøretøy
AO32: =E24&" - Sum utslipp - Alle kjøretøy" -> Transport til pukkverk - Sum utslipp - Alle kjøretøy
AQ33: CO2-ekv. | AR33: SO2-ekv. | AS33: P-ekv. | AT33: NMVOC
D34: 5.6 | E34: Balanse veitransport | F34: =SUMIF(E24:E31,"Lastekapasitet",G24:G31) -> 0 | H34: Lastutnyttelse korrekt modellert | AO34: Utslipp (kg): | AQ34: =SUMIF(D24:D31,D27,AQ24:AQ31) -> 0 | AR34: =SUMIF(D24:D31,D27,AR24:AR31) -> 0 | AS34: =SUMIF(D24:D31,D27,AS24:AS31) -> 0 | AT34: =SUMIF(D24:D31,D27,AT24:AT31) -> 0
D35: 5.6.1 | E35: ="Balanse - "&E16 -> Balanse - Tunnelmunning | F35: =((F$7-SUMIF(F24:F31,'08. Beregningsfaktorer'!$B$28,G24:G31)-SUMIF(F24:F31,'08. Beregningsfaktorer'!#REF!,G24:G31))*F$16)-(SUMIF(F24:F31,E$7,G24:G31)) -> 0 | G35: ='02. Inndata steinmasser'!$F$7& " km" -> fm3 km | H35: Transportdistanser og masser stemmer
T37: =V38&" - Grunnlagsdata og forbruk - Ikke inkludert i beregninger" -> Lastebil tipp - Grunnlagsdata og forbruk - Ikke inkludert i beregninger | AA37: =V38&" - Utslipp knyttet til drivstoff/elektrisitet" -> Lastebil tipp - Utslipp knyttet til drivstoff/elektrisitet | AO37: =V38&" - Sum utslipp" -> Lastebil tipp - Sum utslipp
T38: Kategori | V38: Lastebil tipp | AC38: CO2-ekv. | AD38: SO2-ekv. | AE38: P-ekv. | AF38: NMVOC | AQ38: CO2-ekv. | AR38: SO2-ekv. | AS38: P-ekv. | AT38: NMVOC
T39: Volum stein | X39: m3 | Y39: =IF(F9=0,0,IF(G9="m3",F9*'08. Beregningsfaktorer'!$G$65/'08. Beregningsfaktorer'!$G$66-(SUMIF(C25:C32,"J",F25:F32)),(F9-(SUMIF(C25:C32,"J",F25:F32)))/'08. Beregningsfaktorer'!$G$66)) -> 0 | AA39: ="Utslippsfaktor (kg/"&W41&"):"&" " -> Utslippsfaktor (kg/l): | AC39: =IF(V38=0,0,(INDEX('09. Utslippsfaktorer'!$P$7:$U$12,MATCH(X41,'09. Utslippsfaktorer'!$P$7:$P$12,0),MATCH("kg "&AC38,'09. Utslippsfaktorer'!$P$7:$U$7,0),1))) -> 3.1476 | AD39: =IF(V38=0,0,(INDEX('09. Utslippsfaktorer'!$P$7:$U$12,MATCH(X41,'09. Utslippsfaktorer'!$P$7:$P$12,0),MATCH("kg "&AD38,'09. Utslippsfaktorer'!$P$7:$U$7,0),1))) -> 0 | AE39: =IF(V38=0,0,(INDEX('09. Utslippsfaktorer'!$P$7:$U$12,MATCH(X41,'09. Utslippsfaktorer'!$P$7:$P$12,0),MATCH("kg "&AE38,'09. Utslippsfaktorer'!$P$7:$U$7,0),1))) -> 0 | AF39: =IF(V38=0,0,(INDEX('09. Utslippsfaktorer'!$P$7:$U$12,MATCH(X41,'09. Utslippsfaktorer'!$P$7:$P$12,0),MATCH("kg "&AF38,'09. Utslippsfaktorer'!$P$7:$U$7,0),1))) -> 0 | AO39: Utslipp (kg): | AQ39: =AC40+AJ40 -> 0 | AR39: =AD40+AK40 -> 0 | AS39: =AE40+AL40 -> 0 | AT39: =AF40+AM40 -> 0
T40: Forbruk per m3 stein | W40: =IF(V38=0,0,(INDEX('08. Beregningsfaktorer'!$E$12:$G$89,MATCH(V38,'08. Beregningsfaktorer'!$E$12:$E$89,0),3,1))) -> 0.19 | X40: =W41&"/"&X39 -> l/m3 | AA40: Utslipp (kg): | AC40: =$V41*AC39 -> 0 | AD40: =$V41*AD39 -> 0 | AE40: =$V41*AE39 -> 0 | AF40: =$V41*AF39 -> 0
T41: Forbruk | V41: =W39*W40 -> 0 | W41: =IF(V38='08. Beregningsfaktorer'!$E$50,"l",IF(V38='08. Beregningsfaktorer'!$E$51,"l",IF(V38='08. Beregningsfaktorer'!$E$52,"l","..."))) -> l | X41: =IF(V38='08. Beregningsfaktorer'!$E$50,"Diesel",IF(V38='08. Beregningsfaktorer'!$E$51,"Diesel",IF(V38='08. Beregningsfaktorer'!$E$52,"Diesel","Mangler type kjøretøy"))) -> Diesel
B43: Pukkverk
T45: =E46&" - Grunnlagsdata og forbruk" -> Stasjonært knuseverk knusetrinn 1 - Grunnlagsdata og forbruk | AA45: =E46&" - Utslipp" -> Stasjonært knuseverk knusetrinn 1 - Utslipp | AO45: =E46&" - Sum utslipp" -> Stasjonært knuseverk knusetrinn 1 - Sum utslipp
D46: 5.7 | E46: Stasjonært knuseverk knusetrinn 1 | T46: Kategori | V46: ='09. Utslippsfaktorer'!$P$22 -> Pukkverk knusetrinn 1 inkl. sprengning | AC46: CO2-ekv. | AD46: SO2-ekv. | AE46: P-ekv. | AF46: NMVOC | AQ46: CO2-ekv. | AR46: SO2-ekv. | AS46: P-ekv. | AT46: NMVOC
D47: 5.7.1 | E47: Type knusetrinn | F47: Knusetrinn 1 | T47: Mengde stein | W47: 0 | X47: tonn | AA47: ="Utslippsfaktor (kg/"&X47&"):"&" " -> Utslippsfaktor (kg/tonn): | AC47: =IF(F47=0,0,(INDEX('09. Utslippsfaktorer'!$P$7:$U$45,MATCH(V46,'09. Utslippsfaktorer'!$P$7:$P$45,0),MATCH("kg "&AC46,'09. Utslippsfaktorer'!$P$7:$U$7,0),1))) -> 2.2 | AD47: =IF(F47=0,0,(INDEX('09. Utslippsfaktorer'!$P$7:$U$45,MATCH(V46,'09. Utslippsfaktorer'!$P$7:$P$45,0),MATCH("kg "&AD46,'09. Utslippsfaktorer'!$P$7:$U$7,0),1))) -> 0 | AE47: =IF(F47=0,0,(INDEX('09. Utslippsfaktorer'!$P$7:$U$45,MATCH(V46,'09. Utslippsfaktorer'!$P$7:$P$45,0),MATCH("kg "&AE46,'09. Utslippsfaktorer'!$P$7:$U$7,0),1))) -> 0 | AF47: =IF(F47=0,0,(INDEX('09. Utslippsfaktorer'!$P$7:$U$45,MATCH(V46,'09. Utslippsfaktorer'!$P$7:$P$45,0),MATCH("kg "&AF46,'09. Utslippsfaktorer'!$P$7:$U$7,0),1))) -> 0 | AO47: Utslipp (kg): | AQ47: =AC48 -> 0 | AR47: =AD48 -> 0 | AS47: =AE48 -> 0 | AT47: =AF48 -> 0
T48: Kapasitet | W48: =0 -> 0 | X48: =X47&"/"&W49 -> tonn/h | AA48: Utslipp (kg): | AC48: =AC47*W47 -> 0 | AD48: =AD47*W47 -> 0 | AE48: =AE47*W47 -> 0 | AF48: =AF47*W47 -> 0
T49: Forbruk | V49: =W47*W48 -> 0 | W49: h | X49: ="Standard beregning" -> Standard beregning
T51: =E52&" - Grunnlagsdata og forbruk" -> Stasjonært knuseverk knusetrinn 2 - Grunnlagsdata og forbruk | AA51: =E52&" - Utslipp" -> Stasjonært knuseverk knusetrinn 2 - Utslipp | AO51: =E52&" - Sum utslipp" -> Stasjonært knuseverk knusetrinn 2 - Sum utslipp
D52: 5.8 | E52: Stasjonært knuseverk knusetrinn 2 | T52: Kategori | V52: ='09. Utslippsfaktorer'!$P$23 -> Pukkverk knusetrinn 2 inkl. sprengning | AC52: CO2-ekv. | AD52: SO2-ekv. | AE52: P-ekv. | AF52: NMVOC | AQ52: CO2-ekv. | AR52: SO2-ekv. | AS52: P-ekv. | AT52: NMVOC
D53: 5.8.1 | E53: Type knusetrinn | F53: Knusetrinn 2 | T53: Mengde stein | W53: 0 | X53: tonn | AA53: ="Utslippsfaktor (kg/"&X53&"):"&" " -> Utslippsfaktor (kg/tonn): | AC53: =IF(F53=0,0,(INDEX('09. Utslippsfaktorer'!$P$7:$U$45,MATCH(V52,'09. Utslippsfaktorer'!$P$7:$P$45,0),MATCH("kg "&AC52,'09. Utslippsfaktorer'!$P$7:$U$7,0),1))) -> 2.375 | AD53: =IF(F53=0,0,(INDEX('09. Utslippsfaktorer'!$P$7:$U$45,MATCH(V52,'09. Utslippsfaktorer'!$P$7:$P$45,0),MATCH("kg "&AD52,'09. Utslippsfaktorer'!$P$7:$U$7,0),1))) -> 0 | AE53: =IF(F53=0,0,(INDEX('09. Utslippsfaktorer'!$P$7:$U$45,MATCH(V52,'09. Utslippsfaktorer'!$P$7:$P$45,0),MATCH("kg "&AE52,'09. Utslippsfaktorer'!$P$7:$U$7,0),1))) -> 0 | AF53: =IF(F53=0,0,(INDEX('09. Utslippsfaktorer'!$P$7:$U$45,MATCH(V52,'09. Utslippsfaktorer'!$P$7:$P$45,0),MATCH("kg "&AF52,'09. Utslippsfaktorer'!$P$7:$U$7,0),1))) -> 0 | AO53: Utslipp (kg): | AQ53: =AC54 -> 0 | AR53: =AD54 -> 0 | AS53: =AE54 -> 0 | AT53: =AF54 -> 0
T54: Kapasitet | W54: =0 -> 0 | X54: =X53&"/"&W55 -> tonn/h | AA54: Utslipp (kg): | AC54: =AC53*W53 -> 0 | AD54: =AD53*W53 -> 0 | AE54: =AE53*W53 -> 0 | AF54: =AF53*W53 -> 0
T55: Forbruk | V55: =W53*W54 -> 0 | W55: h | X55: ="Standard beregning" -> Standard beregning
T57: =E58&" - Grunnlagsdata og forbruk" -> Stasjonært knuseverk knusetrinn 3 - Grunnlagsdata og forbruk | AA57: =E58&" - Utslipp" -> Stasjonært knuseverk knusetrinn 3 - Utslipp | AO57: =E58&" - Sum utslipp" -> Stasjonært knuseverk knusetrinn 3 - Sum utslipp
D58: 5.9 | E58: Stasjonært knuseverk knusetrinn 3 | T58: Kategori | V58: ='09. Utslippsfaktorer'!$P$24 -> Pukkverk knusetrinn 3 inkl. sprengning | AC58: CO2-ekv. | AD58: SO2-ekv. | AE58: P-ekv. | AF58: NMVOC | AQ58: CO2-ekv. | AR58: SO2-ekv. | AS58: P-ekv. | AT58: NMVOC
D59: 5.9.1 | E59: Type knusetrinn | F59: Knusetrinn 3 | T59: Mengde stein | W59: =IF(F$12=0,0,IF(G$12="fm3",F$12*'08. Beregningsfaktorer'!$G$65/'08. Beregningsfaktorer'!$G$66,F$12/'08. Beregningsfaktorer'!$G$66)) -> 0 | X59: tonn | AA59: ="Utslippsfaktor (kg/"&X59&"):"&" " -> Utslippsfaktor (kg/tonn): | AC59: =IF(F59=0,0,(INDEX('09. Utslippsfaktorer'!$P$7:$U$45,MATCH(V58,'09. Utslippsfaktorer'!$P$7:$P$45,0),MATCH("kg "&AC58,'09. Utslippsfaktorer'!$P$7:$U$7,0),1))) -> 2.595 | AD59: =IF(F59=0,0,(INDEX('09. Utslippsfaktorer'!$P$7:$U$45,MATCH(V58,'09. Utslippsfaktorer'!$P$7:$P$45,0),MATCH("kg "&AD58,'09. Utslippsfaktorer'!$P$7:$U$7,0),1))) -> 0 | AE59: =IF(F59=0,0,(INDEX('09. Utslippsfaktorer'!$P$7:$U$45,MATCH(V58,'09. Utslippsfaktorer'!$P$7:$P$45,0),MATCH("kg "&AE58,'09. Utslippsfaktorer'!$P$7:$U$7,0),1))) -> 0 | AF59: =IF(F59=0,0,(INDEX('09. Utslippsfaktorer'!$P$7:$U$45,MATCH(V58,'09. Utslippsfaktorer'!$P$7:$P$45,0),MATCH("kg "&AF58,'09. Utslippsfaktorer'!$P$7:$U$7,0),1))) -> 0 | AO59: Utslipp (kg): | AQ59: =AC60 -> 0 | AR59: =AD60 -> 0 | AS59: =AE60 -> 0 | AT59: =AF60 -> 0
T60: Kapasitet | W60: =0 -> 0 | X60: =X59&"/"&W61 -> tonn/h | AA60: Utslipp (kg): | AC60: =AC59*W59 -> 0 | AD60: =AD59*W59 -> 0 | AE60: =AE59*W59 -> 0 | AF60: =AF59*W59 -> 0
T61: Forbruk | V61: =W59*W60 -> 0 | W61: h | X61: ="Standard beregning" -> Standard beregning
B66: Transport
T67: =E68&" - Grunnlagsdata og forbruk" -> Lasting til transport - Grunnlagsdata og forbruk | AA67: =E68&" - Utslipp knyttet til drivstoff/elektrisitet" -> Lasting til transport - Utslipp knyttet til drivstoff/elektrisitet | AH67: =E68&" - Utslipp knyttet til maskin" -> Lasting til transport - Utslipp knyttet til maskin | AO67: =E68&" - Sum utslipp" -> Lasting til transport - Sum utslipp
D68: 5.10 | E68: Lasting til transport | T68: Kategori | V68: =IF(F69='08. Beregningsfaktorer'!$E$43,'08. Beregningsfaktorer'!$E$43,IF(F69='08. Beregningsfaktorer'!$E$44,'09. Utslippsfaktorer'!$P$20,IF(OR(F69='08. Beregningsfaktorer'!$E$45,F69='08. Beregningsfaktorer'!$E$47),'09. Utslippsfaktorer'!$P$21,IF(F69='08. Beregningsfaktorer'!$E$46,'09. Utslippsfaktorer'!$P$21,"Mangler type lastemaskin")))) -> Mangler type lastemaskin | AC68: CO2-ekv. | AD68: SO2-ekv. | AE68: P-ekv. | AF68: NMVOC | AJ68: CO2-ekv. | AK68: SO2-ekv. | AL68: P-ekv. | AM68: NMVOC | AQ68: CO2-ekv. | AR68: SO2-ekv. | AS68: P-ekv. | AT68: NMVOC
D69: 5.10.1 | E69: Type lastemaskin | T69: Volum stein | W69: =IF(F$12=0,0,IF(G$12="fm3",F$12*'08. Beregningsfaktorer'!$G$65/'08. Beregningsfaktorer'!$G$66,F$12/'08. Beregningsfaktorer'!$G$66)) -> 0 | X69: lm3 | AA69: ="Utslippsfaktor (kg/"&W71&"):"&" " -> Utslippsfaktor (kg/...): | AC69: =IF(F69=0,0,IF(F69='08. Beregningsfaktorer'!$E$43,0,(INDEX('09. Utslippsfaktorer'!$P$7:$U$12,MATCH(X71,'09. Utslippsfaktorer'!$P$7:$P$12,0),MATCH("kg "&AC68,'09. Utslippsfaktorer'!$P$7:$U$7,0),1)))) -> 0 | AD69: =IF(F69=0,0,IF(F69='08. Beregningsfaktorer'!$E$43,0,(INDEX('09. Utslippsfaktorer'!$P$7:$U$12,MATCH(X71,'09. Utslippsfaktorer'!$P$7:$P$12,0),MATCH("kg "&AD68,'09. Utslippsfaktorer'!$P$7:$U$7,0),1)))) -> 0 | AE69: =IF(F69=0,0,IF(F69='08. Beregningsfaktorer'!$E$43,0,(INDEX('09. Utslippsfaktorer'!$P$7:$U$12,MATCH(X71,'09. Utslippsfaktorer'!$P$7:$P$12,0),MATCH("kg "&AE68,'09. Utslippsfaktorer'!$P$7:$U$7,0),1)))) -> 0 | AF69: =IF(F69=0,0,IF(F69='08. Beregningsfaktorer'!$E$43,0,(INDEX('09. Utslippsfaktorer'!$P$7:$U$12,MATCH(X71,'09. Utslippsfaktorer'!$P$7:$P$12,0),MATCH("kg "&AF68,'09. Utslippsfaktorer'!$P$7:$U$7,0),1)))) -> 0 | AH69: Utslippsfaktor (kg/m3): | AJ69: =IF(F69=0,0,IF(F69='08. Beregningsfaktorer'!$E$43,0,(INDEX('09. Utslippsfaktorer'!$P$7:$U$45,MATCH(V68,'09. Utslippsfaktorer'!$P$7:$P$45,0),MATCH("kg "&AJ68,'09. Utslippsfaktorer'!$P$7:$U$7,0),1)))) -> 0 | AK69: =IF(F69=0,0,IF(F69='08. Beregningsfaktorer'!$E$43,0,(INDEX('09. Utslippsfaktorer'!$P$7:$U$45,MATCH(V68,'09. Utslippsfaktorer'!$P$7:$P$45,0),MATCH("kg "&AK68,'09. Utslippsfaktorer'!$P$7:$U$7,0),1)))) -> 0 | AL69: =IF(F69=0,0,IF(F69='08. Beregningsfaktorer'!$E$43,0,(INDEX('09. Utslippsfaktorer'!$P$7:$U$45,MATCH(V68,'09. Utslippsfaktorer'!$P$7:$P$45,0),MATCH("kg "&AL68,'09. Utslippsfaktorer'!$P$7:$U$7,0),1)))) -> 0 | AM69: =IF(F69=0,0,IF(F69='08. Beregningsfaktorer'!$E$43,0,(INDEX('09. Utslippsfaktorer'!$P$7:$U$45,MATCH(V68,'09. Utslippsfaktorer'!$P$7:$P$45,0),MATCH("kg "&AM68,'09. Utslippsfaktorer'!$P$7:$U$7,0),1)))) -> 0 | AO69: Utslipp (kg): | AQ69: =AC70+AJ70 -> 0 | AR69: =AD70+AK70 -> 0 | AS69: =AE70+AL70 -> 0 | AT69: =AF70+AM70 -> 0
T70: Forbruk per m3 stein | W70: =IF(F69=0,0,(INDEX('08. Beregningsfaktorer'!$E$12:$G$89,MATCH(F69,'08. Beregningsfaktorer'!$E$12:$E$89,0),3,1))) -> 0 | X70: =W71&"/"&X69 -> .../lm3 | AA70: Utslipp (kg): | AC70: =V71*AC69 -> 0 | AD70: =V71*AD69 -> 0 | AE70: =V71*AE69 -> 0 | AF70: =V71*AF69 -> 0 | AH70: Utslipp (kg): | AJ70: =W69*AJ69 -> 0 | AK70: =W69*AK69 -> 0 | AL70: =W69*AL69 -> 0 | AM70: =W69*AM69 -> 0
T71: Forbruk | V71: =W69*W70 -> 0 | W71: =IF(F69='08. Beregningsfaktorer'!$E$44,"l",IF(OR(F69='08. Beregningsfaktorer'!$E$45,F69='08. Beregningsfaktorer'!$E$47),"l",IF(F69='08. Beregningsfaktorer'!$E$46,"kWh","..."))) -> ... | X71: =IF(F69='08. Beregningsfaktorer'!$E$43,"Ingen løft",IF(F69='08. Beregningsfaktorer'!$E$44,"Diesel",IF(F69='08. Beregningsfaktorer'!$E$45,"Diesel",IF(F69='08. Beregningsfaktorer'!$E$47,"Biodiesel",IF(F69='08. Beregningsfaktorer'!$E$46,"Elektrisitet","Mangler type lastemaskin"))))) -> Mangler type lastemaskin
D73: 5.11 | E73: Transport fra pukkverk | F73: Endre antall kjøretøy:
D74: 5.11.1 | E74: Type kjøretøy | G74: =F75 -> 0 | T74: =E73&" - Grunnlagsdata og forbruk" -> Transport fra pukkverk - Grunnlagsdata og forbruk | AA74: =E73&" - Utslipp knyttet til drivstoff/elektrisitet" -> Transport fra pukkverk - Utslipp knyttet til drivstoff/elektrisitet | AH74: =E73&" - Utslipp knyttet til kjøretøy og infrastruktur" -> Transport fra pukkverk - Utslipp knyttet til kjøretøy og infrastruktur | AO74: =E73&" - Sum utslipp" -> Transport fra pukkverk - Sum utslipp
C75: =IF(F74='08. Beregningsfaktorer'!#REF!,"J",0) ->  | D75: 5.11.2 | E75: Mengde stein | G75: ='02. Inndata steinmasser'!$F$7 -> fm3 | T75: Kategori | V75: =IF(OR(F74='08. Beregningsfaktorer'!$B$9,F74='08. Beregningsfaktorer'!$B$10,F74='08. Beregningsfaktorer'!$B$11),'09. Utslippsfaktorer'!$P$14,IF(OR(F74='08. Beregningsfaktorer'!$B$12,F74='08. Beregningsfaktorer'!$B$13),'09. Utslippsfaktorer'!$P$15,IF(OR(F74='08. Beregningsfaktorer'!$B$14,F74='08. Beregningsfaktorer'!$B$15),'09. Utslippsfaktorer'!$P$16,IF(OR(F74='08. Beregningsfaktorer'!$B$24,F74='08. Beregningsfaktorer'!$B$25),'09. Utslippsfaktorer'!$P$18,IF(F74='08. Beregningsfaktorer'!$B$26,'09. Utslippsfaktorer'!$P$18,IF(F74='08. Beregningsfaktorer'!$B$27,'09. Utslippsfaktorer'!$P$18,IF(F74='08. Beregningsfaktorer'!$B$28,'09. Utslippsfaktorer'!$P$19,IF(F74='08. Beregningsfaktorer'!$B$29,'09. Utslippsfaktorer'!$P$19,IF(OR(F74='08. Beregningsfaktorer'!$B$17,F74='08. Beregningsfaktorer'!$B$16,F74='08. Beregningsfaktorer'!$B$18,F74='08. Beregningsfaktorer'!$B$19),'09. Utslippsfaktorer'!$P$16,IF(OR(F74='08. Beregningsfaktorer'!$B$20,F74='08. Beregningsfaktorer'!$B$21,F74='08. Beregningsfaktorer'!$B$22,F74='08. Beregningsfaktorer'!$B$23),'09. Utslippsfaktorer'!$P$14,"Mangler type kjøretøy")))))))))) -> Mangler type kjøretøy | AC75: CO2-ekv. | AD75: SO2-ekv. | AE75: P-ekv. | AF75: NMVOC | AJ75: CO2-ekv. | AK75: SO2-ekv. | AL75: P-ekv. | AM75: NMVOC | AQ75: CO2-ekv. | AR75: SO2-ekv. | AS75: P-ekv. | AT75: NMVOC
D76: 5.11.3 | E76: Hvor skal massene? | G76: =IF(OR(F74='08. Beregningsfaktorer'!$B$28,F74='08. Beregningsfaktorer'!$B$29),0,IF(OR(F77='08. Beregningsfaktorer'!$E$77,F77='08. Beregningsfaktorer'!$E$80),F75*F78,0)) -> 0 | T76: =IF(F77='08. Beregningsfaktorer'!$E$78,"km","tonn km") -> tonn km | W76: =IF(F77='08. Beregningsfaktorer'!$E$78,IF(G75="tonn",IF(OR(F74='08. Beregningsfaktorer'!$B$16,F74='08. Beregningsfaktorer'!$B$17),(F75/8.5)*F78,IF(OR(F74='08. Beregningsfaktorer'!$B$18,F74='08. Beregningsfaktorer'!$B$19),(F75/14)*F78,IF(OR(F74='08. Beregningsfaktorer'!$B$20,F74='08. Beregningsfaktorer'!$B$21),(F75/26)*F78,IF(OR(F74='08. Beregningsfaktorer'!$B$22,F74='08. Beregningsfaktorer'!$B$23),(F75/40)*F78,IF(OR(F74='08. Beregningsfaktorer'!$B$24,F74='08. Beregningsfaktorer'!$B$25),(F75/14)*F78,IF(F74='08. Beregningsfaktorer'!$B$26,(F75/14)*F78,IF(F74='08. Beregningsfaktorer'!$B$27,(F75/14)*F78))))))),IF(OR(F74='08. Beregningsfaktorer'!$B$16,F74='08. Beregningsfaktorer'!$B$17),(F75*'08. Beregningsfaktorer'!$G$65/8.5)*F78,IF(OR(F74='08. Beregningsfaktorer'!$B$18,F74='08. Beregningsfaktorer'!$B$19),(F75*'08. Beregningsfaktorer'!$G$65/14)*F78,IF(OR(F74='08. Beregningsfaktorer'!$B$20,F74='08. Beregningsfaktorer'!$B$21),(F75*'08. Beregningsfaktorer'!$G$65/26)*F78,IF(OR(F74='08. Beregningsfaktorer'!$B$22,F74='08. Beregningsfaktorer'!$B$23),(F75*'08. Beregningsfaktorer'!$G$65/40)*F78,IF(OR(F74='08. Beregningsfaktorer'!$B$24,F74='08. Beregningsfaktorer'!$B$25),(F75*'08. Beregningsfaktorer'!$G$65/14)*F78,IF(F74='08. Beregningsfaktorer'!$B$26,(F75*'08. Beregningsfaktorer'!$G$65/14)*F78,IF(F74='08. Beregningsfaktorer'!$B$27,(F75*'08. Beregningsfaktorer'!$G$65/14)*F78)))))))),IF(F75=0,0,IF(F77='08. Beregningsfaktorer'!$E$80,IF(AND(OR(F74='08. Beregningsfaktorer'!$B$28,F74='08. Beregningsfaktorer'!$B$29),G75="tonn"),(F75/1900)*F78,IF(OR(F74='08. Beregningsfaktorer'!$B$28,F74='08. Beregningsfaktorer'!$B$29),(F75*'08. Beregningsfaktorer'!$G$65/1900)*F78,IF(G75="tonn",F75,F75*'08. Beregningsfaktorer'!$G$65)*F78)),IF(G75="tonn",F75*F78,F75*'08. Beregningsfaktorer'!$G$65)*F78))) -> 0 | X76: =IF(OR(F77='08. Beregningsfaktorer'!$E$78,F74='08. Beregningsfaktorer'!$B$28,F74='08. Beregningsfaktorer'!$B$29),"km","tkm") -> tkm | AA76: ="Utslippsfaktor (kg/"&W79&"):"&" " -> Utslippsfaktor (kg/l): | AC76: =IF(F74=0,0,(INDEX('09. Utslippsfaktorer'!$P$7:$U$13,MATCH(X79,'09. Utslippsfaktorer'!$P$7:$P$13,0),MATCH("kg "&AC75,'09. Utslippsfaktorer'!$P$7:$U$7,0),1))) -> 0 | AD76: =IF(F74=0,0,(INDEX('09. Utslippsfaktorer'!$P$7:$U$13,MATCH(X79,'09. Utslippsfaktorer'!$P$7:$P$13,0),MATCH("kg "&AD75,'09. Utslippsfaktorer'!$P$7:$U$7,0),1))) -> 0 | AE76: =IF(F74=0,0,(INDEX('09. Utslippsfaktorer'!$P$7:$U$13,MATCH(X79,'09. Utslippsfaktorer'!$P$7:$P$13,0),MATCH("kg "&AE75,'09. Utslippsfaktorer'!$P$7:$U$7,0),1))) -> 0 | AF76: =IF(F74=0,0,(INDEX('09. Utslippsfaktorer'!$P$7:$U$13,MATCH(X79,'09. Utslippsfaktorer'!$P$7:$P$13,0),MATCH("kg "&AF75,'09. Utslippsfaktorer'!$P$7:$U$7,0),1))) -> 0 | AH76: ="Utslippsfaktor (kg/"&X76&"):" -> Utslippsfaktor (kg/tkm): | AJ76: =IF(F74=0,0,(INDEX('09. Utslippsfaktorer'!$P$7:$U$45,MATCH(V75,'09. Utslippsfaktorer'!$P$7:$P$45,0),MATCH("kg "&AJ75,'09. Utslippsfaktorer'!$P$7:$U$7,0),1))) -> 0 | AK76: =IF(F74=0,0,(INDEX('09. Utslippsfaktorer'!$P$7:$U$45,MATCH(V75,'09. Utslippsfaktorer'!$P$7:$P$45,0),MATCH("kg "&AK75,'09. Utslippsfaktorer'!$P$7:$U$7,0),1))) -> 0 | AL76: =IF(F74=0,0,(INDEX('09. Utslippsfaktorer'!$P$7:$U$45,MATCH(V75,'09. Utslippsfaktorer'!$P$7:$P$45,0),MATCH("kg "&AL75,'09. Utslippsfaktorer'!$P$7:$U$7,0),1))) -> 0 | AM76: =IF(F74=0,0,(INDEX('09. Utslippsfaktorer'!$P$7:$U$45,MATCH(V75,'09. Utslippsfaktorer'!$P$7:$P$45,0),MATCH("kg "&AM75,'09. Utslippsfaktorer'!$P$7:$U$7,0),1))) -> 0 | AO76: Utslipp (kg): | AQ76: =IF(F77='08. Beregningsfaktorer'!$E$79,0,AC77+AJ77) -> 0 | AR76: =IF(F77='08. Beregningsfaktorer'!$E$79,0,AD77+AK77) -> 0 | AS76: =IF(F77='08. Beregningsfaktorer'!$E$79,0,AE77+AL77) -> 0 | AT76: =IF(F77='08. Beregningsfaktorer'!$E$79,0,AF77+AM77) -> 0
D77: 5.11.4 | E77: Lastekapasitet | G77: =IF(OR(F74='08. Beregningsfaktorer'!$B$9,F74='08. Beregningsfaktorer'!$B$10,F74='08. Beregningsfaktorer'!$B$12,F74='08. Beregningsfaktorer'!$B$13,F74='08. Beregningsfaktorer'!$B$14,F74='08. Beregningsfaktorer'!$B$15,F74='08. Beregningsfaktorer'!$B$28,F74='08. Beregningsfaktorer'!$B$29),IF(F77='08. Beregningsfaktorer'!$E$80,0,1),IF(F77='08. Beregningsfaktorer'!$E$80,3,0)) -> 0 | T77: Korreksjonsfaktor | W77: =IF(F79=0,0,INDEX('08. Beregningsfaktorer'!$E$54:$G$55,MATCH(F79,'08. Beregningsfaktorer'!$E$54:$E$55,0),3)) -> 0 | AA77: Utslipp (kg): | AC77: =IFERROR(V79*AC76,"Data mangler") -> 0 | AD77: =IFERROR(V79*AD76,"Data mangler") -> 0 | AE77: =IFERROR(V79*AE76,"Data mangler") -> 0 | AF77: =IFERROR(V79*AF76,"Data mangler") -> 0 | AH77: Utslipp (kg): | AJ77: =IF(V75='09. Utslippsfaktorer'!$P$19,IF(G75="tonn",F78*AJ76*F75,F78*AJ76*F75*'08. Beregningsfaktorer'!$G$65),IF(F77='08. Beregningsfaktorer'!$E$78,0,IFERROR(W76*AJ76,"Data mangler"))) -> 0 | AK77: =IF(V75='09. Utslippsfaktorer'!$P$19,IF(G75="tonn",F78*AK76*F75,F78*AK76*F75*'08. Beregningsfaktorer'!$G$65),IF(F77='08. Beregningsfaktorer'!$E$78,0,IFERROR(W76*AK76,"Data mangler"))) -> 0 | AL77: =IF(V75='09. Utslippsfaktorer'!$P$19,IF(G75="tonn",F78*AL76*F75,F78*AL76*F75*'08. Beregningsfaktorer'!$G$65),IF(F77='08. Beregningsfaktorer'!$E$78,0,IFERROR(W76*AL76,"Data mangler"))) -> 0 | AM77: =IF(V75='09. Utslippsfaktorer'!$P$19,IF(G75="tonn",F78*AM76*F75,F78*AM76*F75*'08. Beregningsfaktorer'!$G$65),IF(F77='08. Beregningsfaktorer'!$E$78,0,IFERROR(W76*AM76,"Data mangler"))) -> 0
D78: 5.11.5 | E78: Distanse | G78: km | T78: =IF(F77='08. Beregningsfaktorer'!$E$78,"Forbruk per km","Forbruk per tonn km") -> Forbruk per tonn km | W78: =IFERROR(IF(F74=0,0,IF(F77='08. Beregningsfaktorer'!$E$78,INDEX('08. Beregningsfaktorer'!$E$30:$G$41,MATCH(F74,'08. Beregningsfaktorer'!$B$30:$B$41,0),3,1),INDEX('08. Beregningsfaktorer'!$E$9:$G$29,MATCH(F74,'08. Beregningsfaktorer'!$B$9:$B$29,0),3,1))),"Loading..") -> 0 | X78: =IFERROR(W79&"/"&X76,"Loading..") -> l/tkm
D79: 5.11.6 | E79: Transport med helning | T79: Forbruk | V79: =IFERROR(W76*W78*W77,"Data mangler") -> 0 | W79: =IFERROR(IF(OR(F74='08. Beregningsfaktorer'!$B$26,F74='08. Beregningsfaktorer'!$B$27),"kWh",IF(F74='08. Beregningsfaktorer'!$B$11,"MJ","l")),"Loading..") -> l | X79: =IFERROR(IF(F74='08. Beregningsfaktorer'!$B$11,"Biogass",IF(OR(F74='08. Beregningsfaktorer'!$B$26,F74='08. Beregningsfaktorer'!$B$27),"Elektrisitet",IF(OR(F74='08. Beregningsfaktorer'!$B$10,F74='08. Beregningsfaktorer'!$B$13,F74='08. Beregningsfaktorer'!$B$15,F74='08. Beregningsfaktorer'!$B$17,F74='08. Beregningsfaktorer'!$B$17,F74='08. Beregningsfaktorer'!$B$19,F74='08. Beregningsfaktorer'!$B$21,F74='08. Beregningsfaktorer'!$B$23,F74='08. Beregningsfaktorer'!$B$25,F74='08. Beregningsfaktorer'!$B$29),"Biodiesel",IF(V75="Mangler type kjøretøy","Mangler type kjøretøy","Diesel")))),"Feil") -> Mangler type kjøretøy
AO81: =E73&" - Sum utslipp - Alle kjøretøy" -> Transport fra pukkverk - Sum utslipp - Alle kjøretøy
AQ82: CO2-ekv. | AR82: SO2-ekv. | AS82: P-ekv. | AT82: NMVOC
D83: 5.12 | E83: Balanse veitransport | F83: =SUMIF(E73:E80,"Lastekapasitet",G73:G80) -> 0 | H83: Lastutnyttelse korrekt modellert | AO83: Utslipp (kg): | AQ83: =SUMIF(D73:D80,D76,AQ73:AQ80) -> 0 | AR83: =SUMIF(D73:D80,D76,AR73:AR80) -> 0 | AS83: =SUMIF(D73:D80,D76,AS73:AS80) -> 0 | AT83: =SUMIF(D73:D80,D76,AT73:AT80) -> 0
D84: 5.12.1 | E84: ="Balanse - "&E17 -> Balanse - Linja | F84: =((F$12-SUMIF(F38:F45,'08. Beregningsfaktorer'!$B$28,G38:G45)-SUMIF(F38:F45,'08. Beregningsfaktorer'!#REF!,G38:G45))*F$17)-(SUMIF(F73:F80,E$12,G73:G80)) -> 0 | G84: ='02. Inndata steinmasser'!$F$7& " km" -> fm3 km | H84: Transportdistanser og masser stemmer

Sheet 06. Transport annen bruk
D2: 06. Transport til annen samfunnsnyttig bruk
D4: Nr. | E4: Prosess | F4: Mengde | G4: Enhet
B5: Massefordeling
D6: 6.1 | E6: Masser til annen samfunnsnyttig bruk
D7: 6.1.1 | E7: Tunnelmunning | F7: ='02. Inndata steinmasser'!F38 -> 0 | G7: ='02. Inndata steinmasser'!$F$7 -> fm3
D8: 6.1.2 | E8: Mobilt knuseverk | F8: ='03. Mobilt knuseverk'!F18 -> 0 | G8: ='02. Inndata steinmasser'!$F$7 -> fm3
D9: 6.1.3 | E9: Restprodukt mobilt knuseverk | F9: =IF('03. Mobilt knuseverk'!F12="Annen samfunnsnyttig bruk",'03. Mobilt knuseverk'!F22,0) -> 0 | G9: ='02. Inndata steinmasser'!$F$7 -> fm3
D11: 6.2 | E11: Fordeling av masser til betongfabrikk
D12: 6.2.1 | E12: Tunnelmunning | G12: ='02. Inndata steinmasser'!$F$7 -> fm3
D13: 6.2.2 | E13: Mobilt knuseverk | G13: ='02. Inndata steinmasser'!$F$7 -> fm3
D14: 6.2.3 | E14: Restprodukt mobilt knuseverk | G14: ='02. Inndata steinmasser'!$F$7 -> fm3
D16: 6.3 | E16: Fordeling av masser til asfaltproduksjon
D17: 6.3.1 | E17: Tunnelmunning | G17: ='02. Inndata steinmasser'!$F$7 -> fm3
D18: 6.3.2 | E18: Mobilt knuseverk | G18: ='02. Inndata steinmasser'!$F$7 -> fm3
D19: 6.3.3 | E19: Restprodukt mobilt knuseverk | G19: ='02. Inndata steinmasser'!$F$7 -> fm3
D21: 6.4 | E21: Fordeling av masser til nærliggende prosjekt
D22: 6.4.1 | E22: Tunnelmunning | G22: ='02. Inndata steinmasser'!$F$7 -> fm3
D23: 6.4.2 | E23: Mobilt knuseverk | G23: ='02. Inndata steinmasser'!$F$7 -> fm3
D24: 6.4.3 | E24: Restprodukt mobilt knuseverk | G24: ='02. Inndata steinmasser'!$F$7 -> fm3
D26: 6.5 | E26: Fordeling av masser til andre formål
D27: 6.5.1 | E27: Tunnelmunning | G27: ='02. Inndata steinmasser'!$F$7 -> fm3
D28: 6.5.2 | E28: Mobilt knuseverk | G28: ='02. Inndata steinmasser'!$F$7 -> fm3
D29: 6.5.3 | E29: Restprodukt mobilt knuseverk | G29: ='02. Inndata steinmasser'!$F$7 -> fm3
D31: 6.6 | E31: Balanse
D32: 6.6.1 | E32: Sum til annen samfunnsnyttig bruk | F32: =SUM(F7:F9) -> 0 | G32: ='02. Inndata steinmasser'!$F$7 -> fm3
D33: 6.6.2 | E33: Sum fordeling av lokale masser | F33: =SUM(F12:F14)+SUM(F17:F19)+SUM(F22:F24)+SUM(F27:F29) -> 0 | G33: ='02. Inndata steinmasser'!$F$7 -> fm3
D34: 6.6.3 | E34: Ufordelte masser | F34: =F32-F33 -> 0 | G34: ='02. Inndata steinmasser'!$F$7 -> fm3 | H34: Ingen ufordelte masser
B36: Betongfabrikk
D37: 6.7 | E37: Veidistanser mellom betongfabrikk og…
D38: 6.7.1 | E38: Tunnelmunning | G38: km
D39: 6.7.2 | E39: Mobilt knuseverk | G39: km
T40: =E41&" - Grunnlagsdata og forbruk" -> Lasting til transport - Grunnlagsdata og forbruk | AA40: =E41&" - Utslipp knyttet til drivstoff/elektrisitet" -> Lasting til transport - Utslipp knyttet til drivstoff/elektrisitet | AH40: =E41&" - Utslipp knyttet til maskin" -> Lasting til transport - Utslipp knyttet til maskin | AP40: =E41&" - Sum utslipp" -> Lasting til transport - Sum utslipp
D41: 6.8 | E41: Lasting til transport | T41: Kategori | V41: =IF(F42='08. Beregningsfaktorer'!$E$43,'08. Beregningsfaktorer'!$E$43,IF(F42='08. Beregningsfaktorer'!$E$44,'09. Utslippsfaktorer'!$P$20,IF(OR(F42='08. Beregningsfaktorer'!$E$45,F42='08. Beregningsfaktorer'!$E$47),'09. Utslippsfaktorer'!$P$21,IF(F42='08. Beregningsfaktorer'!$E$46,'09. Utslippsfaktorer'!$P$21,"Mangler type lastemaskin")))) -> Mangler type lastemaskin | AC41: CO2-ekv. | AD41: SO2-ekv. | AE41: P-ekv. | AF41: NMVOC | AJ41: CO2-ekv. | AK41: SO2-ekv. | AL41: P-ekv. | AM41: NMVOC | AQ41: CO2-ekv. | AR41: SO2-ekv. | AS41: P-ekv. | AT41: NMVOC
D42: 6.8.1 | E42: Type lastemaskin | T42: Volum stein | W42: =IF((F$12+F$13+F$14)=0,0,IF(G$12="fm3",(F$12+F$13+F$14)*'08. Beregningsfaktorer'!$G$65,(F$12+F$13+F$14)/'08. Beregningsfaktorer'!$G$65)) -> 0 | X42: lm3 | AA42: ="Utslippsfaktor (kg/"&W44&"):"&" " -> Utslippsfaktor (kg/...): | AC42: =IF(F42=0,0,IF(F42='08. Beregningsfaktorer'!$E$43,0,(INDEX('09. Utslippsfaktorer'!$P$7:$U$12,MATCH(X44,'09. Utslippsfaktorer'!$P$7:$P$12,0),MATCH("kg "&AC41,'09. Utslippsfaktorer'!$P$7:$U$7,0),1)))) -> 0 | AD42: =IF(F42=0,0,IF(F42='08. Beregningsfaktorer'!$E$43,0,(INDEX('09. Utslippsfaktorer'!$P$7:$U$12,MATCH(X44,'09. Utslippsfaktorer'!$P$7:$P$12,0),MATCH("kg "&AD41,'09. Utslippsfaktorer'!$P$7:$U$7,0),1)))) -> 0 | AE42: =IF(F42=0,0,IF(F42='08. Beregningsfaktorer'!$E$43,0,(INDEX('09. Utslippsfaktorer'!$P$7:$U$12,MATCH(X44,'09. Utslippsfaktorer'!$P$7:$P$12,0),MATCH("kg "&AE41,'09. Utslippsfaktorer'!$P$7:$U$7,0),1)))) -> 0 | AF42: =IF(F42=0,0,IF(F42='08. Beregningsfaktorer'!$E$43,0,(INDEX('09. Utslippsfaktorer'!$P$7:$U$12,MATCH(X44,'09. Utslippsfaktorer'!$P$7:$P$12,0),MATCH("kg "&AF41,'09. Utslippsfaktorer'!$P$7:$U$7,0),1)))) -> 0 | AH42: Utslippsfaktor (kg/m3): | AJ42: =IF(F42=0,0,IF(F42='08. Beregningsfaktorer'!$E$43,0,(INDEX('09. Utslippsfaktorer'!$P$7:$U$45,MATCH(V41,'09. Utslippsfaktorer'!$P$7:$P$45,0),MATCH("kg "&AJ41,'09. Utslippsfaktorer'!$P$7:$U$7,0),1)))) -> 0 | AK42: =IF(F42=0,0,IF(F42='08. Beregningsfaktorer'!$E$43,0,(INDEX('09. Utslippsfaktorer'!$P$7:$U$45,MATCH(V41,'09. Utslippsfaktorer'!$P$7:$P$45,0),MATCH("kg "&AK41,'09. Utslippsfaktorer'!$P$7:$U$7,0),1)))) -> 0 | AL42: =IF(F42=0,0,IF(F42='08. Beregningsfaktorer'!$E$43,0,(INDEX('09. Utslippsfaktorer'!$P$7:$U$45,MATCH(V41,'09. Utslippsfaktorer'!$P$7:$P$45,0),MATCH("kg "&AL41,'09. Utslippsfaktorer'!$P$7:$U$7,0),1)))) -> 0 | AM42: =IF(F42=0,0,IF(F42='08. Beregningsfaktorer'!$E$43,0,(INDEX('09. Utslippsfaktorer'!$P$7:$U$45,MATCH(V41,'09. Utslippsfaktorer'!$P$7:$P$45,0),MATCH("kg "&AM41,'09. Utslippsfaktorer'!$P$7:$U$7,0),1)))) -> 0 | AO42: Utslipp (kg): | AQ42: =AC43+AJ43 -> 0 | AR42: =AD43+AK43 -> 0 | AS42: =AE43+AL43 -> 0 | AT42: =AF43+AM43 -> 0
T43: Forbruk per m3 stein | W43: =IF(F42=0,0,(INDEX('08. Beregningsfaktorer'!$E$12:$G$89,MATCH(F42,'08. Beregningsfaktorer'!$E$12:$E$89,0),3,1))) -> 0 | X43: =W44&"/"&X42 -> .../lm3 | AA43: Utslipp (kg): | AC43: =V44*AC42 -> 0 | AD43: =V44*AD42 -> 0 | AE43: =V44*AE42 -> 0 | AF43: =V44*AF42 -> 0 | AH43: Utslipp (kg): | AJ43: =W42*AJ42 -> 0 | AK43: =W42*AK42 -> 0 | AL43: =W42*AL42 -> 0 | AM43: =W42*AM42 -> 0
H44: OBS! Retur med nyttelast tas ikke med i totalutslipp. Utslipp kan sees i mellomregningene til høyre. | T44: Forbruk | V44: =W42*W43 -> 0 | W44: =IF(F42='08. Beregningsfaktorer'!$E$44,"l",IF(OR(F42='08. Beregningsfaktorer'!$E$45,F42='08. Beregningsfaktorer'!$E$47),"l",IF(F42='08. Beregningsfaktorer'!$E$46,"kWh","..."))) -> ... | X44: =IF(F42='08. Beregningsfaktorer'!$E$43,"Ingen løft",IF(F42='08. Beregningsfaktorer'!$E$44,"Diesel",IF(F42='08. Beregningsfaktorer'!$E$45,"Diesel",IF(F42='08. Beregningsfaktorer'!$E$47,"Biodiesel",IF(F42='08. Beregningsfaktorer'!$E$46,"Elektrisitet","Mangler type lastemaskin"))))) -> Mangler type lastemaskin
H45: OBS! Mengde transportert ut av prosjektet må også skrives inn for retur med tom last, for å beregne antall returer.
D46: 6.9 | E46: Transport til betongfabrikk | F46: Endre antall kjøretøy:
D47: 6.9.1 | E47: Type kjøretøy | G47: =F48 -> 0 | T47: =E46&" - Grunnlagsdata og forbruk" -> Transport til betongfabrikk - Grunnlagsdata og forbruk | AA47: =E46&" - Utslipp knyttet til drivstoff/elektrisitet" -> Transport til betongfabrikk - Utslipp knyttet til drivstoff/elektrisitet | AH47: =E46&" - Utslipp knyttet til kjøretøy og infrastruktur" -> Transport til betongfabrikk - Utslipp knyttet til kjøretøy og infrastruktur | AO47: =E46&" - Sum utslipp" -> Transport til betongfabrikk - Sum utslipp
C48: =IF(F47='08. Beregningsfaktorer'!#REF!,"J",0) ->  | D48: 6.9.2 | E48: Mengde stein | G48: ='02. Inndata steinmasser'!$F$7 -> fm3 | T48: Kategori | V48: =IF(OR(F47='08. Beregningsfaktorer'!$B$9,F47='08. Beregningsfaktorer'!$B$10,F47='08. Beregningsfaktorer'!$B$11),'09. Utslippsfaktorer'!$P$14,IF(OR(F47='08. Beregningsfaktorer'!$B$12,F47='08. Beregningsfaktorer'!$B$13),'09. Utslippsfaktorer'!$P$15,IF(OR(F47='08. Beregningsfaktorer'!$B$14,F47='08. Beregningsfaktorer'!$B$15),'09. Utslippsfaktorer'!$P$16,IF(OR(F47='08. Beregningsfaktorer'!$B$24,F47='08. Beregningsfaktorer'!$B$25),'09. Utslippsfaktorer'!$P$18,IF(F47='08. Beregningsfaktorer'!$B$26,'09. Utslippsfaktorer'!$P$18,IF(F47='08. Beregningsfaktorer'!$B$27,'09. Utslippsfaktorer'!$P$18,IF(F47='08. Beregningsfaktorer'!$B$28,'09. Utslippsfaktorer'!$P$19,IF(F47='08. Beregningsfaktorer'!$B$29,'09. Utslippsfaktorer'!$P$19,IF(OR(F47='08. Beregningsfaktorer'!$B$17,F47='08. Beregningsfaktorer'!$B$16,F47='08. Beregningsfaktorer'!$B$18,F47='08. Beregningsfaktorer'!$B$19),'09. Utslippsfaktorer'!$P$16,IF(OR(F47='08. Beregningsfaktorer'!$B$20,F47='08. Beregningsfaktorer'!$B$21,F47='08. Beregningsfaktorer'!$B$22,F47='08. Beregningsfaktorer'!$B$23),'09. Utslippsfaktorer'!$P$14,"Mangler type kjøretøy")))))))))) -> Mangler type kjøretøy | AC48: CO2-ekv. | AD48: SO2-ekv. | AE48: P-ekv. | AF48: NMVOC | AJ48: CO2-ekv. | AK48: SO2-ekv. | AL48: P-ekv. | AM48: NMVOC | AQ48: CO2-ekv. | AR48: SO2-ekv. | AS48: P-ekv. | AT48: NMVOC
D49: 6.9.3 | E49: Hvor kommer massene fra? | G49: =IF(OR(F47='08. Beregningsfaktorer'!$B$28,F47='08. Beregningsfaktorer'!$B$29),0,IF(OR(F50='08. Beregningsfaktorer'!$E$77,F50='08. Beregningsfaktorer'!$E$80),F48*F51,0)) -> 0 | T49: =IF(F50='08. Beregningsfaktorer'!$E$78,"km","tonn km") -> tonn km | W49: =IF(F50='08. Beregningsfaktorer'!$E$78,IF(G48="tonn",IF(OR(F47='08. Beregningsfaktorer'!$B$16,F47='08. Beregningsfaktorer'!$B$17),(F48/8.5)*F51,IF(OR(F47='08. Beregningsfaktorer'!$B$18,F47='08. Beregningsfaktorer'!$B$19),(F48/14)*F51,IF(OR(F47='08. Beregningsfaktorer'!$B$20,F47='08. Beregningsfaktorer'!$B$21),(F48/26)*F51,IF(OR(F47='08. Beregningsfaktorer'!$B$22,F47='08. Beregningsfaktorer'!$B$23),(F48/40)*F51,IF(OR(F47='08. Beregningsfaktorer'!$B$24,F47='08. Beregningsfaktorer'!$B$25),(F48/14)*F51,IF(F47='08. Beregningsfaktorer'!$B$26,(F48/14)*F51,IF(F47='08. Beregningsfaktorer'!$B$27,(F48/14)*F51))))))),IF(OR(F47='08. Beregningsfaktorer'!$B$16,F47='08. Beregningsfaktorer'!$B$17),(F48*'08. Beregningsfaktorer'!$G$65/8.5)*F51,IF(OR(F47='08. Beregningsfaktorer'!$B$18,F47='08. Beregningsfaktorer'!$B$19),(F48*'08. Beregningsfaktorer'!$G$65/14)*F51,IF(OR(F47='08. Beregningsfaktorer'!$B$20,F47='08. Beregningsfaktorer'!$B$21),(F48*'08. Beregningsfaktorer'!$G$65/26)*F51,IF(OR(F47='08. Beregningsfaktorer'!$B$22,F47='08. Beregningsfaktorer'!$B$23),(F48*'08. Beregningsfaktorer'!$G$65/40)*F51,IF(OR(F47='08. Beregningsfaktorer'!$B$24,F47='08. Beregningsfaktorer'!$B$25),(F48*'08. Beregningsfaktorer'!$G$65/14)*F51,IF(F47='08. Beregningsfaktorer'!$B$26,(F48*'08. Beregningsfaktorer'!$G$65/14)*F51,IF(F47='08. Beregningsfaktorer'!$B$27,(F48*'08. Beregningsfaktorer'!$G$65/14)*F51)))))))),IF(F48=0,0,IF(F50='08. Beregningsfaktorer'!$E$80,IF(AND(OR(F47='08. Beregningsfaktorer'!$B$28,F47='08. Beregningsfaktorer'!$B$29),G48="tonn"),(F48/1900)*F51,IF(OR(F47='08. Beregningsfaktorer'!$B$28,F47='08. Beregningsfaktorer'!$B$29),(F48*'08. Beregningsfaktorer'!$G$65/1900)*F51,IF(G48="tonn",F48,F48*'08. Beregningsfaktorer'!$G$65)*F51)),IF(G48="tonn",F48*F51,F48*'08. Beregningsfaktorer'!$G$65)*F51))) -> 0 | X49: =IF(OR(F50='08. Beregningsfaktorer'!$E$78,F47='08. Beregningsfaktorer'!$B$28,F47='08. Beregningsfaktorer'!$B$29),"km","tkm") -> tkm | AA49: ="Utslippsfaktor (kg/"&W52&"):"&" " -> Utslippsfaktor (kg/l): | AC49: =IF(F47=0,0,(INDEX('09. Utslippsfaktorer'!$P$7:$U$13,MATCH(X52,'09. Utslippsfaktorer'!$P$7:$P$13,0),MATCH("kg "&AC48,'09. Utslippsfaktorer'!$P$7:$U$7,0),1))) -> 0 | AD49: =IF(F47=0,0,(INDEX('09. Utslippsfaktorer'!$P$7:$U$13,MATCH(X52,'09. Utslippsfaktorer'!$P$7:$P$13,0),MATCH("kg "&AD48,'09. Utslippsfaktorer'!$P$7:$U$7,0),1))) -> 0 | AE49: =IF(F47=0,0,(INDEX('09. Utslippsfaktorer'!$P$7:$U$13,MATCH(X52,'09. Utslippsfaktorer'!$P$7:$P$13,0),MATCH("kg "&AE48,'09. Utslippsfaktorer'!$P$7:$U$7,0),1))) -> 0 | AF49: =IF(F47=0,0,(INDEX('09. Utslippsfaktorer'!$P$7:$U$13,MATCH(X52,'09. Utslippsfaktorer'!$P$7:$P$13,0),MATCH("kg "&AF48,'09. Utslippsfaktorer'!$P$7:$U$7,0),1))) -> 0 | AH49: ="Utslippsfaktor (kg/"&X49&"):" -> Utslippsfaktor (kg/tkm): | AJ49: =IF(F47=0,0,(INDEX('09. Utslippsfaktorer'!$P$7:$U$45,MATCH(V48,'09. Utslippsfaktorer'!$P$7:$P$45,0),MATCH("kg "&AJ48,'09. Utslippsfaktorer'!$P$7:$U$7,0),1))) -> 0 | AK49: =IF(F47=0,0,(INDEX('09. Utslippsfaktorer'!$P$7:$U$45,MATCH(V48,'09. Utslippsfaktorer'!$P$7:$P$45,0),MATCH("kg "&AK48,'09. Utslippsfaktorer'!$P$7:$U$7,0),1))) -> 0 | AL49: =IF(F47=0,0,(INDEX('09. Utslippsfaktorer'!$P$7:$U$45,MATCH(V48,'09. Utslippsfaktorer'!$P$7:$P$45,0),MATCH("kg "&AL48,'09. Utslippsfaktorer'!$P$7:$U$7,0),1))) -> 0 | AM49: =IF(F47=0,0,(INDEX('09. Utslippsfaktorer'!$P$7:$U$45,MATCH(V48,'09. Utslippsfaktorer'!$P$7:$P$45,0),MATCH("kg "&AM48,'09. Utslippsfaktorer'!$P$7:$U$7,0),1))) -> 0 | AO49: Utslipp (kg): | AQ49: =IF(F50='08. Beregningsfaktorer'!$E$79,0,AC50+AJ50) -> 0 | AR49: =IF(F50='08. Beregningsfaktorer'!$E$79,0,AD50+AK50) -> 0 | AS49: =IF(F50='08. Beregningsfaktorer'!$E$79,0,AE50+AL50) -> 0 | AT49: =IF(F50='08. Beregningsfaktorer'!$E$79,0,AF50+AM50) -> 0
D50: 6.9.4 | E50: Lastekapasitet | G50: =IF(OR(F47='08. Beregningsfaktorer'!$B$9,F47='08. Beregningsfaktorer'!$B$10,F47='08. Beregningsfaktorer'!$B$12,F47='08. Beregningsfaktorer'!$B$13,F47='08. Beregningsfaktorer'!$B$14,F47='08. Beregningsfaktorer'!$B$15,F47='08. Beregningsfaktorer'!$B$28,F47='08. Beregningsfaktorer'!$B$29),IF(F50='08. Beregningsfaktorer'!$E$80,0,1),IF(F50='08. Beregningsfaktorer'!$E$80,3,0)) -> 0 | T50: Korreksjonsfaktor | W50: =IF(F52=0,0,INDEX('08. Beregningsfaktorer'!$E$54:$G$55,MATCH(F52,'08. Beregningsfaktorer'!$E$54:$E$55,0),3)) -> 0 | AA50: Utslipp (kg): | AC50: =IFERROR(V52*AC49,"Data mangler") -> 0 | AD50: =IFERROR(V52*AD49,"Data mangler") -> 0 | AE50: =IFERROR(V52*AE49,"Data mangler") -> 0 | AF50: =IFERROR(V52*AF49,"Data mangler") -> 0 | AH50: Utslipp (kg): | AJ50: =IF(V48='09. Utslippsfaktorer'!$P$19,IF(G48="tonn",F51*AJ49*F48,F51*AJ49*F48*'08. Beregningsfaktorer'!$G$65),IF(F50='08. Beregningsfaktorer'!$E$78,0,IFERROR(W49*AJ49,"Data mangler"))) -> 0 | AK50: =IF(V48='09. Utslippsfaktorer'!$P$19,IF(G48="tonn",F51*AK49*F48,F51*AK49*F48*'08. Beregningsfaktorer'!$G$65),IF(F50='08. Beregningsfaktorer'!$E$78,0,IFERROR(W49*AK49,"Data mangler"))) -> 0 | AL50: =IF(V48='09. Utslippsfaktorer'!$P$19,IF(G48="tonn",F51*AL49*F48,F51*AL49*F48*'08. Beregningsfaktorer'!$G$65),IF(F50='08. Beregningsfaktorer'!$E$78,0,IFERROR(W49*AL49,"Data mangler"))) -> 0 | AM50: =IF(V48='09. Utslippsfaktorer'!$P$19,IF(G48="tonn",F51*AM49*F48,F51*AM49*F48*'08. Beregningsfaktorer'!$G$65),IF(F50='08. Beregningsfaktorer'!$E$78,0,IFERROR(W49*AM49,"Data mangler"))) -> 0
D51: 6.9.5 | E51: Distanse til betongfabrikk | G51: km | T51: =IF(F50='08. Beregningsfaktorer'!$E$78,"Forbruk per km","Forbruk per tonn km") -> Forbruk per tonn km | W51: =IFERROR(IF(F47=0,0,IF(F50='08. Beregningsfaktorer'!$E$78,INDEX('08. Beregningsfaktorer'!$E$30:$G$41,MATCH(F47,'08. Beregningsfaktorer'!$B$30:$B$41,0),3,1),INDEX('08. Beregningsfaktorer'!$E$9:$G$29,MATCH(F47,'08. Beregningsfaktorer'!$B$9:$B$29,0),3,1))),"Loading..") -> 0 | X51: =IFERROR(W52&"/"&X49,"Loading..") -> l/tkm
D52: 6.9.6 | E52: Transport med helning | T52: Forbruk | V52: =IFERROR(W49*W51*W50,"Data mangler") -> 0 | W52: =IFERROR(IF(OR(F47='08. Beregningsfaktorer'!$B$26,F47='08. Beregningsfaktorer'!$B$27),"kWh",IF(F47='08. Beregningsfaktorer'!$B$11,"MJ","l")),"Loading..") -> l | X52: =IFERROR(IF(F47='08. Beregningsfaktorer'!$B$11,"Biogass",IF(OR(F47='08. Beregningsfaktorer'!$B$26,F47='08. Beregningsfaktorer'!$B$27),"Elektrisitet",IF(OR(F47='08. Beregningsfaktorer'!$B$10,F47='08. Beregningsfaktorer'!$B$13,F47='08. Beregningsfaktorer'!$B$15,F47='08. Beregningsfaktorer'!$B$17,F47='08. Beregningsfaktorer'!$B$17,F47='08. Beregningsfaktorer'!$B$19,F47='08. Beregningsfaktorer'!$B$21,F47='08. Beregningsfaktorer'!$B$23,F47='08. Beregningsfaktorer'!$B$25,F47='08. Beregningsfaktorer'!$B$29),"Biodiesel",IF(V48="Mangler type kjøretøy","Mangler type kjøretøy","Diesel")))),"Feil") -> Mangler type kjøretøy
AO54: =E46&" - Sum utslipp - Alle kjøretøy" -> Transport til betongfabrikk - Sum utslipp - Alle kjøretøy
D55: 6.10 | E55: Balanse veitransport | F55: =SUMIF(E46:E53,"Lastekapasitet",G46:G53) -> 0 | H55: Lastutnyttelse korrekt modellert | AQ55: CO2-ekv. | AR55: SO2-ekv. | AS55: P-ekv. | AT55: NMVOC
D56: 6.10.1 | E56: ="Balanse - "&E12 -> Balanse - Tunnelmunning | F56: =((F$12-SUMIF(F46:F53,'08. Beregningsfaktorer'!$B$28,G46:G53)-SUMIF(F46:F53,'08. Beregningsfaktorer'!#REF!,G46:G53))*F$38)-(SUMIF(F46:F53,E$12,G46:G53)) -> 0 | G56: ='02. Inndata steinmasser'!$F$7& " km" -> fm3 km | H56: Transportdistanser og masser stemmer | AO56: Utslipp (kg): | AQ56: =SUMIF($D46:$D53,$D49,AQ46:AQ53) -> 0 | AR56: =SUMIF($D46:$D53,$D49,AR46:AR53) -> 0 | AS56: =SUMIF($D46:$D53,$D49,AS46:AS53) -> 0 | AT56: =SUMIF($D46:$D53,$D49,AT46:AT53) -> 0
D57: 6.10.2 | E57: ="Balanse - "&E13 -> Balanse - Mobilt knuseverk | F57: =((F$13-SUMIF(F46:F53,'08. Beregningsfaktorer'!$B$28,G46:G53)-SUMIF(F46:F53,'08. Beregningsfaktorer'!#REF!,G46:G53))*F$39)-(SUMIF(F46:F53,E$13,G46:G53)) -> 0 | G57: ='02. Inndata steinmasser'!$F$7& " km" -> fm3 km | H57: Transportdistanser og masser stemmer
D58: 6.10.3 | E58: ="Balanse - "&E14 -> Balanse - Restprodukt mobilt knuseverk | F58: =((F$14-SUMIF(F46:F53,'08. Beregningsfaktorer'!$B$28,G46:G53)-SUMIF(F46:F53,'08. Beregningsfaktorer'!#REF!,G46:G53))*F$39)-(SUMIF(F46:F53,E$14,G46:G53)) -> 0 | G58: ='02. Inndata steinmasser'!$F$7& " km" -> fm3 km | H58: Transportdistanser og masser stemmer
B61: Asfaltprodukson
D62: 6.11 | E62: Veidistanser mellom asfaltproduksjon og…
D63: 6.11.1 | E63: Tunnelmunning | G63: km
D64: 6.11.2 | E64: Mobilt knuseverk | G64: km
T65: =E66&" - Grunnlagsdata og forbruk" -> Lasting til transport - Grunnlagsdata og forbruk | AA65: =E66&" - Utslipp knyttet til drivstoff/elektrisitet" -> Lasting til transport - Utslipp knyttet til drivstoff/elektrisitet | AH65: =E66&" - Utslipp knyttet til maskin" -> Lasting til transport - Utslipp knyttet til maskin | AP65: =E66&" - Sum utslipp" -> Lasting til transport - Sum utslipp
D66: 6.12 | E66: Lasting til transport | T66: Kategori | V66: =IF(F67='08. Beregningsfaktorer'!$E$43,'08. Beregningsfaktorer'!$E$43,IF(F67='08. Beregningsfaktorer'!$E$44,'09. Utslippsfaktorer'!$P$20,IF(OR(F67='08. Beregningsfaktorer'!$E$45,F67='08. Beregningsfaktorer'!$E$47),'09. Utslippsfaktorer'!$P$21,IF(F67='08. Beregningsfaktorer'!$E$46,'09. Utslippsfaktorer'!$P$21,"Mangler type lastemaskin")))) -> Mangler type lastemaskin | AC66: CO2-ekv. | AD66: SO2-ekv. | AE66: P-ekv. | AF66: NMVOC | AJ66: CO2-ekv. | AK66: SO2-ekv. | AL66: P-ekv. | AM66: NMVOC | AQ66: CO2-ekv. | AR66: SO2-ekv. | AS66: P-ekv. | AT66: NMVOC
D67: 6.12.1 | E67: Type lastemaskin | T67: Volum stein | W67: =IF((F$17+F$18+F$19)=0,0,IF(G$17="fm3",(F$17+F$18+F$19)*'08. Beregningsfaktorer'!$G$65,(F$17+F$18+F$19)/'08. Beregningsfaktorer'!$G$65)) -> 0 | X67: lm3 | AA67: ="Utslippsfaktor (kg/"&W69&"):"&" " -> Utslippsfaktor (kg/...): | AC67: =IF(F67=0,0,IF(F67='08. Beregningsfaktorer'!$E$43,0,(INDEX('09. Utslippsfaktorer'!$P$7:$U$12,MATCH(X69,'09. Utslippsfaktorer'!$P$7:$P$12,0),MATCH("kg "&AC66,'09. Utslippsfaktorer'!$P$7:$U$7,0),1)))) -> 0 | AD67: =IF(F67=0,0,IF(F67='08. Beregningsfaktorer'!$E$43,0,(INDEX('09. Utslippsfaktorer'!$P$7:$U$12,MATCH(X69,'09. Utslippsfaktorer'!$P$7:$P$12,0),MATCH("kg "&AD66,'09. Utslippsfaktorer'!$P$7:$U$7,0),1)))) -> 0 | AE67: =IF(F67=0,0,IF(F67='08. Beregningsfaktorer'!$E$43,0,(INDEX('09. Utslippsfaktorer'!$P$7:$U$12,MATCH(X69,'09. Utslippsfaktorer'!$P$7:$P$12,0),MATCH("kg "&AE66,'09. Utslippsfaktorer'!$P$7:$U$7,0),1)))) -> 0 | AF67: =IF(F67=0,0,IF(F67='08. Beregningsfaktorer'!$E$43,0,(INDEX('09. Utslippsfaktorer'!$P$7:$U$12,MATCH(X69,'09. Utslippsfaktorer'!$P$7:$P$12,0),MATCH("kg "&AF66,'09. Utslippsfaktorer'!$P$7:$U$7,0),1)))) -> 0 | AH67: Utslippsfaktor (kg/m3): | AJ67: =IF(F67=0,0,IF(F67='08. Beregningsfaktorer'!$E$43,0,(INDEX('09. Utslippsfaktorer'!$P$7:$U$45,MATCH(V66,'09. Utslippsfaktorer'!$P$7:$P$45,0),MATCH("kg "&AJ66,'09. Utslippsfaktorer'!$P$7:$U$7,0),1)))) -> 0 | AK67: =IF(F67=0,0,IF(F67='08. Beregningsfaktorer'!$E$43,0,(INDEX('09. Utslippsfaktorer'!$P$7:$U$45,MATCH(V66,'09. Utslippsfaktorer'!$P$7:$P$45,0),MATCH("kg "&AK66,'09. Utslippsfaktorer'!$P$7:$U$7,0),1)))) -> 0 | AL67: =IF(F67=0,0,IF(F67='08. Beregningsfaktorer'!$E$43,0,(INDEX('09. Utslippsfaktorer'!$P$7:$U$45,MATCH(V66,'09. Utslippsfaktorer'!$P$7:$P$45,0),MATCH("kg "&AL66,'09. Utslippsfaktorer'!$P$7:$U$7,0),1)))) -> 0 | AM67: =IF(F67=0,0,IF(F67='08. Beregningsfaktorer'!$E$43,0,(INDEX('09. Utslippsfaktorer'!$P$7:$U$45,MATCH(V66,'09. Utslippsfaktorer'!$P$7:$P$45,0),MATCH("kg "&AM66,'09. Utslippsfaktorer'!$P$7:$U$7,0),1)))) -> 0 | AO67: Utslipp (kg): | AQ67: =AC68+AJ68 -> 0 | AR67: =AD68+AK68 -> 0 | AS67: =AE68+AL68 -> 0 | AT67: =AF68+AM68 -> 0
T68: Forbruk per m3 stein | W68: =IF(F67=0,0,(INDEX('08. Beregningsfaktorer'!$E$12:$G$89,MATCH(F67,'08. Beregningsfaktorer'!$E$12:$E$89,0),3,1))) -> 0 | X68: =W69&"/"&X67 -> .../lm3 | AA68: Utslipp (kg): | AC68: =V69*AC67 -> 0 | AD68: =V69*AD67 -> 0 | AE68: =V69*AE67 -> 0 | AF68: =V69*AF67 -> 0 | AH68: Utslipp (kg): | AJ68: =W67*AJ67 -> 0 | AK68: =W67*AK67 -> 0 | AL68: =W67*AL67 -> 0 | AM68: =W67*AM67 -> 0
T69: Forbruk | V69: =W67*W68 -> 0 | W69: =IF(F67='08. Beregningsfaktorer'!$E$44,"l",IF(OR(F67='08. Beregningsfaktorer'!$E$45,F67='08. Beregningsfaktorer'!$E$47),"l",IF(F67='08. Beregningsfaktorer'!$E$46,"kWh","..."))) -> ... | X69: =IF(F67='08. Beregningsfaktorer'!$E$43,"Ingen løft",IF(F67='08. Beregningsfaktorer'!$E$44,"Diesel",IF(F67='08. Beregningsfaktorer'!$E$45,"Diesel",IF(F67='08. Beregningsfaktorer'!$E$47,"Biodiesel",IF(F67='08. Beregningsfaktorer'!$E$46,"Elektrisitet","Mangler type lastemaskin"))))) -> Mangler type lastemaskin
D71: 6.13 | E71: Transport til asfaltproduksjon | F71: Endre antall kjøretøy:
D72: 6.13.1 | E72: Type kjøretøy | G72: =F73 -> 0 | T72: =E71&" - Grunnlagsdata og forbruk" -> Transport til asfaltproduksjon - Grunnlagsdata og forbruk | AA72: =E71&" - Utslipp knyttet til drivstoff/elektrisitet" -> Transport til asfaltproduksjon - Utslipp knyttet til drivstoff/elektrisitet | AH72: =E71&" - Utslipp knyttet til kjøretøy og infrastruktur" -> Transport til asfaltproduksjon - Utslipp knyttet til kjøretøy og infrastruktur | AO72: =E71&" - Sum utslipp" -> Transport til asfaltproduksjon - Sum utslipp
C73: =IF(F72='08. Beregningsfaktorer'!#REF!,"J",0) ->  | D73: 6.13.2 | E73: Mengde stein | G73: ='02. Inndata steinmasser'!$F$7 -> fm3 | T73: Kategori | V73: =IF(OR(F72='08. Beregningsfaktorer'!$B$9,F72='08. Beregningsfaktorer'!$B$10,F72='08. Beregningsfaktorer'!$B$11),'09. Utslippsfaktorer'!$P$14,IF(OR(F72='08. Beregningsfaktorer'!$B$12,F72='08. Beregningsfaktorer'!$B$13),'09. Utslippsfaktorer'!$P$15,IF(OR(F72='08. Beregningsfaktorer'!$B$14,F72='08. Beregningsfaktorer'!$B$15),'09. Utslippsfaktorer'!$P$16,IF(OR(F72='08. Beregningsfaktorer'!$B$24,F72='08. Beregningsfaktorer'!$B$25),'09. Utslippsfaktorer'!$P$18,IF(F72='08. Beregningsfaktorer'!$B$26,'09. Utslippsfaktorer'!$P$18,IF(F72='08. Beregningsfaktorer'!$B$27,'09. Utslippsfaktorer'!$P$18,IF(F72='08. Beregningsfaktorer'!$B$28,'09. Utslippsfaktorer'!$P$19,IF(F72='08. Beregningsfaktorer'!$B$29,'09. Utslippsfaktorer'!$P$19,IF(OR(F72='08. Beregningsfaktorer'!$B$17,F72='08. Beregningsfaktorer'!$B$16,F72='08. Beregningsfaktorer'!$B$18,F72='08. Beregningsfaktorer'!$B$19),'09. Utslippsfaktorer'!$P$16,IF(OR(F72='08. Beregningsfaktorer'!$B$20,F72='08. Beregningsfaktorer'!$B$21,F72='08. Beregningsfaktorer'!$B$22,F72='08. Beregningsfaktorer'!$B$23),'09. Utslippsfaktorer'!$P$14,"Mangler type kjøretøy")))))))))) -> Mangler type kjøretøy | AC73: CO2-ekv. | AD73: SO2-ekv. | AE73: P-ekv. | AF73: NMVOC | AJ73: CO2-ekv. | AK73: SO2-ekv. | AL73: P-ekv. | AM73: NMVOC | AQ73: CO2-ekv. | AR73: SO2-ekv. | AS73: P-ekv. | AT73: NMVOC
D74: 6.13.3 | E74: Hvor kommer massene fra? | G74: =IF(OR(F72='08. Beregningsfaktorer'!$B$28,F72='08. Beregningsfaktorer'!$B$29),0,IF(OR(F75='08. Beregningsfaktorer'!$E$77,F75='08. Beregningsfaktorer'!$E$80),F73*F76,0)) -> 0 | T74: =IF(F75='08. Beregningsfaktorer'!$E$78,"km","tonn km") -> tonn km | W74: =IF(F75='08. Beregningsfaktorer'!$E$78,IF(G73="tonn",IF(OR(F72='08. Beregningsfaktorer'!$B$16,F72='08. Beregningsfaktorer'!$B$17),(F73/8.5)*F76,IF(OR(F72='08. Beregningsfaktorer'!$B$18,F72='08. Beregningsfaktorer'!$B$19),(F73/14)*F76,IF(OR(F72='08. Beregningsfaktorer'!$B$20,F72='08. Beregningsfaktorer'!$B$21),(F73/26)*F76,IF(OR(F72='08. Beregningsfaktorer'!$B$22,F72='08. Beregningsfaktorer'!$B$23),(F73/40)*F76,IF(OR(F72='08. Beregningsfaktorer'!$B$24,F72='08. Beregningsfaktorer'!$B$25),(F73/14)*F76,IF(F72='08. Beregningsfaktorer'!$B$26,(F73/14)*F76,IF(F72='08. Beregningsfaktorer'!$B$27,(F73/14)*F76))))))),IF(OR(F72='08. Beregningsfaktorer'!$B$16,F72='08. Beregningsfaktorer'!$B$17),(F73*'08. Beregningsfaktorer'!$G$65/8.5)*F76,IF(OR(F72='08. Beregningsfaktorer'!$B$18,F72='08. Beregningsfaktorer'!$B$19),(F73*'08. Beregningsfaktorer'!$G$65/14)*F76,IF(OR(F72='08. Beregningsfaktorer'!$B$20,F72='08. Beregningsfaktorer'!$B$21),(F73*'08. Beregningsfaktorer'!$G$65/26)*F76,IF(OR(F72='08. Beregningsfaktorer'!$B$22,F72='08. Beregningsfaktorer'!$B$23),(F73*'08. Beregningsfaktorer'!$G$65/40)*F76,IF(OR(F72='08. Beregningsfaktorer'!$B$24,F72='08. Beregningsfaktorer'!$B$25),(F73*'08. Beregningsfaktorer'!$G$65/14)*F76,IF(F72='08. Beregningsfaktorer'!$B$26,(F73*'08. Beregningsfaktorer'!$G$65/14)*F76,IF(F72='08. Beregningsfaktorer'!$B$27,(F73*'08. Beregningsfaktorer'!$G$65/14)*F76)))))))),IF(F73=0,0,IF(F75='08. Beregningsfaktorer'!$E$80,IF(AND(OR(F72='08. Beregningsfaktorer'!$B$28,F72='08. Beregningsfaktorer'!$B$29),G73="tonn"),(F73/1900)*F76,IF(OR(F72='08. Beregningsfaktorer'!$B$28,F72='08. Beregningsfaktorer'!$B$29),(F73*'08. Beregningsfaktorer'!$G$65/1900)*F76,IF(G73="tonn",F73,F73*'08. Beregningsfaktorer'!$G$65)*F76)),IF(G73="tonn",F73*F76,F73*'08. Beregningsfaktorer'!$G$65)*F76))) -> 0 | X74: =IF(OR(F75='08. Beregningsfaktorer'!$E$78,F72='08. Beregningsfaktorer'!$B$28,F72='08. Beregningsfaktorer'!$B$29),"km","tkm") -> tkm | AA74: ="Utslippsfaktor (kg/"&W77&"):"&" " -> Utslippsfaktor (kg/l): | AC74: =IF(F72=0,0,(INDEX('09. Utslippsfaktorer'!$P$7:$U$13,MATCH(X77,'09. Utslippsfaktorer'!$P$7:$P$13,0),MATCH("kg "&AC73,'09. Utslippsfaktorer'!$P$7:$U$7,0),1))) -> 0 | AD74: =IF(F72=0,0,(INDEX('09. Utslippsfaktorer'!$P$7:$U$13,MATCH(X77,'09. Utslippsfaktorer'!$P$7:$P$13,0),MATCH("kg "&AD73,'09. Utslippsfaktorer'!$P$7:$U$7,0),1))) -> 0 | AE74: =IF(F72=0,0,(INDEX('09. Utslippsfaktorer'!$P$7:$U$13,MATCH(X77,'09. Utslippsfaktorer'!$P$7:$P$13,0),MATCH("kg "&AE73,'09. Utslippsfaktorer'!$P$7:$U$7,0),1))) -> 0 | AF74: =IF(F72=0,0,(INDEX('09. Utslippsfaktorer'!$P$7:$U$13,MATCH(X77,'09. Utslippsfaktorer'!$P$7:$P$13,0),MATCH("kg "&AF73,'09. Utslippsfaktorer'!$P$7:$U$7,0),1))) -> 0 | AH74: ="Utslippsfaktor (kg/"&X74&"):" -> Utslippsfaktor (kg/tkm): | AJ74: =IF(F72=0,0,(INDEX('09. Utslippsfaktorer'!$P$7:$U$45,MATCH(V73,'09. Utslippsfaktorer'!$P$7:$P$45,0),MATCH("kg "&AJ73,'09. Utslippsfaktorer'!$P$7:$U$7,0),1))) -> 0 | AK74: =IF(F72=0,0,(INDEX('09. Utslippsfaktorer'!$P$7:$U$45,MATCH(V73,'09. Utslippsfaktorer'!$P$7:$P$45,0),MATCH("kg "&AK73,'09. Utslippsfaktorer'!$P$7:$U$7,0),1))) -> 0 | AL74: =IF(F72=0,0,(INDEX('09. Utslippsfaktorer'!$P$7:$U$45,MATCH(V73,'09. Utslippsfaktorer'!$P$7:$P$45,0),MATCH("kg "&AL73,'09. Utslippsfaktorer'!$P$7:$U$7,0),1))) -> 0 | AM74: =IF(F72=0,0,(INDEX('09. Utslippsfaktorer'!$P$7:$U$45,MATCH(V73,'09. Utslippsfaktorer'!$P$7:$P$45,0),MATCH("kg "&AM73,'09. Utslippsfaktorer'!$P$7:$U$7,0),1))) -> 0 | AO74: Utslipp (kg): | AQ74: =IF(F75='08. Beregningsfaktorer'!$E$79,0,AC75+AJ75) -> 0 | AR74: =IF(F75='08. Beregningsfaktorer'!$E$79,0,AD75+AK75) -> 0 | AS74: =IF(F75='08. Beregningsfaktorer'!$E$79,0,AE75+AL75) -> 0 | AT74: =IF(F75='08. Beregningsfaktorer'!$E$79,0,AF75+AM75) -> 0
D75: 6.13.4 | E75: Lastekapasitet | G75: =IF(OR(F72='08. Beregningsfaktorer'!$B$9,F72='08. Beregningsfaktorer'!$B$10,F72='08. Beregningsfaktorer'!$B$12,F72='08. Beregningsfaktorer'!$B$13,F72='08. Beregningsfaktorer'!$B$14,F72='08. Beregningsfaktorer'!$B$15,F72='08. Beregningsfaktorer'!$B$28,F72='08. Beregningsfaktorer'!$B$29),IF(F75='08. Beregningsfaktorer'!$E$80,0,1),IF(F75='08. Beregningsfaktorer'!$E$80,3,0)) -> 0 | T75: Korreksjonsfaktor | W75: =IF(F77=0,0,INDEX('08. Beregningsfaktorer'!$E$54:$G$55,MATCH(F77,'08. Beregningsfaktorer'!$E$54:$E$55,0),3)) -> 0 | AA75: Utslipp (kg): | AC75: =IFERROR(V77*AC74,"Data mangler") -> 0 | AD75: =IFERROR(V77*AD74,"Data mangler") -> 0 | AE75: =IFERROR(V77*AE74,"Data mangler") -> 0 | AF75: =IFERROR(V77*AF74,"Data mangler") -> 0 | AH75: Utslipp (kg): | AJ75: =IF(V73='09. Utslippsfaktorer'!$P$19,IF(G73="tonn",F76*AJ74*F73,F76*AJ74*F73*'08. Beregningsfaktorer'!$G$65),IF(F75='08. Beregningsfaktorer'!$E$78,0,IFERROR(W74*AJ74,"Data mangler"))) -> 0 | AK75: =IF(V73='09. Utslippsfaktorer'!$P$19,IF(G73="tonn",F76*AK74*F73,F76*AK74*F73*'08. Beregningsfaktorer'!$G$65),IF(F75='08. Beregningsfaktorer'!$E$78,0,IFERROR(W74*AK74,"Data mangler"))) -> 0 | AL75: =IF(V73='09. Utslippsfaktorer'!$P$19,IF(G73="tonn",F76*AL74*F73,F76*AL74*F73*'08. Beregningsfaktorer'!$G$65),IF(F75='08. Beregningsfaktorer'!$E$78,0,IFERROR(W74*AL74,"Data mangler"))) -> 0 | AM75: =IF(V73='09. Utslippsfaktorer'!$P$19,IF(G73="tonn",F76*AM74*F73,F76*AM74*F73*'08. Beregningsfaktorer'!$G$65),IF(F75='08. Beregningsfaktorer'!$E$78,0,IFERROR(W74*AM74,"Data mangler"))) -> 0
D76: 6.13.5 | E76: Distanse til asfaltproduksjon | G76: km | T76: =IF(F75='08. Beregningsfaktorer'!$E$78,"Forbruk per km","Forbruk per tonn km") -> Forbruk per tonn km | W76: =IFERROR(IF(F72=0,0,IF(F75='08. Beregningsfaktorer'!$E$78,INDEX('08. Beregningsfaktorer'!$E$30:$G$41,MATCH(F72,'08. Beregningsfaktorer'!$B$30:$B$41,0),3,1),INDEX('08. Beregningsfaktorer'!$E$9:$G$29,MATCH(F72,'08. Beregningsfaktorer'!$B$9:$B$29,0),3,1))),"Loading..") -> 0 | X76: =IFERROR(W77&"/"&X74,"Loading..") -> l/tkm
D77: 6.13.6 | E77: Transport med helning | T77: Forbruk | V77: =IFERROR(W74*W76*W75,"Data mangler") -> 0 | W77: =IFERROR(IF(OR(F72='08. Beregningsfaktorer'!$B$26,F72='08. Beregningsfaktorer'!$B$27),"kWh",IF(F72='08. Beregningsfaktorer'!$B$11,"MJ","l")),"Loading..") -> l | X77: =IFERROR(IF(F72='08. Beregningsfaktorer'!$B$11,"Biogass",IF(OR(F72='08. Beregningsfaktorer'!$B$26,F72='08. Beregningsfaktorer'!$B$27),"Elektrisitet",IF(OR(F72='08. Beregningsfaktorer'!$B$10,F72='08. Beregningsfaktorer'!$B$13,F72='08. Beregningsfaktorer'!$B$15,F72='08. Beregningsfaktorer'!$B$17,F72='08. Beregningsfaktorer'!$B$17,F72='08. Beregningsfaktorer'!$B$19,F72='08. Beregningsfaktorer'!$B$21,F72='08. Beregningsfaktorer'!$B$23,F72='08. Beregningsfaktorer'!$B$25,F72='08. Beregningsfaktorer'!$B$29),"Biodiesel",IF(V73="Mangler type kjøretøy","Mangler type kjøretøy","Diesel")))),"Feil") -> Mangler type kjøretøy
AO79: =E71&" - Sum utslipp - Alle kjøretøy" -> Transport til asfaltproduksjon - Sum utslipp - Alle kjøretøy
D80: 6.14 | E80: Balanse veitransport | F80: =SUMIF(E71:E78,"Lastekapasitet",G71:G78) -> 0 | H80: Lastutnyttelse korrekt modellert | AQ80: CO2-ekv. | AR80: SO2-ekv. | AS80: P-ekv. | AT80: NMVOC
D81: 6.14.1 | E81: ="Balanse - "&E17 -> Balanse - Tunnelmunning | F81: =((F$17-SUMIF(F38:F45,'08. Beregningsfaktorer'!$B$28,G38:G45)-SUMIF(F38:F45,'08. Beregningsfaktorer'!#REF!,G38:G45))*F$63)-(SUMIF(F71:F78,E$17,G71:G78)) -> 0 | G81: ='02. Inndata steinmasser'!$F$7& " km" -> fm3 km | H81: Transportdistanser og masser stemmer | AO81: Utslipp (kg): | AQ81: =SUMIF($D71:$D78,$D74,AQ71:AQ78) -> 0 | AR81: =SUMIF($D71:$D78,$D74,AR71:AR78) -> 0 | AS81: =SUMIF($D71:$D78,$D74,AS71:AS78) -> 0 | AT81: =SUMIF($D71:$D78,$D74,AT71:AT78) -> 0
D82: 6.14.2 | E82: ="Balanse - "&E18 -> Balanse - Mobilt knuseverk | F82: =((F$18-SUMIF(F38:F45,'08. Beregningsfaktorer'!$B$28,G38:G45)-SUMIF(F38:F45,'08. Beregningsfaktorer'!#REF!,G38:G45))*F$64)-(SUMIF(F71:F78,E$18,G71:G78)) -> 0 | G82: ='02. Inndata steinmasser'!$F$7& " km" -> fm3 km | H82: Transportdistanser og masser stemmer
D83: 6.14.3 | E83: ="Balanse - "&E19 -> Balanse - Restprodukt mobilt knuseverk | F83: =((F$19-SUMIF(F38:F45,'08. Beregningsfaktorer'!$B$28,G38:G45)-SUMIF(F38:F45,'08. Beregningsfaktorer'!#REF!,G38:G45))*F$64)-(SUMIF(F71:F78,E$19,G71:G78)) -> 0 | G83: ='02. Inndata steinmasser'!$F$7& " km" -> fm3 km | H83: Transportdistanser og masser stemmer
B86: Nærliggende prosjekt
D87: 6.15 | E87: Veidistanser mellom nærliggende prosjekt og…
D88: 6.15.1 | E88: Tunnelmunning | G88: km
D89: 6.15.2 | E89: Mobilt knuseverk | G89: km
T90: =E91&" - Grunnlagsdata og forbruk" -> Lasting til transport - Grunnlagsdata og forbruk | AA90: =E91&" - Utslipp knyttet til drivstoff/elektrisitet" -> Lasting til transport - Utslipp knyttet til drivstoff/elektrisitet | AH90: =E91&" - Utslipp knyttet til maskin" -> Lasting til transport - Utslipp knyttet til maskin | AP90: =E91&" - Sum utslipp" -> Lasting til transport - Sum utslipp
D91: 6.16 | E91: Lasting til transport | T91: Kategori | V91: =IF(F92='08. Beregningsfaktorer'!$E$43,'08. Beregningsfaktorer'!$E$43,IF(F92='08. Beregningsfaktorer'!$E$44,'09. Utslippsfaktorer'!$P$20,IF(OR(F92='08. Beregningsfaktorer'!$E$45,F92='08. Beregningsfaktorer'!$E$47),'09. Utslippsfaktorer'!$P$21,IF(F92='08. Beregningsfaktorer'!$E$46,'09. Utslippsfaktorer'!$P$21,"Mangler type lastemaskin")))) -> Mangler type lastemaskin | AC91: CO2-ekv. | AD91: SO2-ekv. | AE91: P-ekv. | AF91: NMVOC | AJ91: CO2-ekv. | AK91: SO2-ekv. | AL91: P-ekv. | AM91: NMVOC | AQ91: CO2-ekv. | AR91: SO2-ekv. | AS91: P-ekv. | AT91: NMVOC
D92: 6.16.1 | E92: Type lastemaskin | T92: Volum stein | W92: =IF((F$22+F$23+F$24)=0,0,IF(G$22="fm3",(F$22+F$23+F$24)*'08. Beregningsfaktorer'!$G$65,(F$22+F$23+F$24)/'08. Beregningsfaktorer'!$G$65)) -> 0 | X92: lm3 | AA92: ="Utslippsfaktor (kg/"&W94&"):"&" " -> Utslippsfaktor (kg/...): | AC92: =IF(F92=0,0,IF(F92='08. Beregningsfaktorer'!$E$43,0,(INDEX('09. Utslippsfaktorer'!$P$7:$U$12,MATCH(X94,'09. Utslippsfaktorer'!$P$7:$P$12,0),MATCH("kg "&AC91,'09. Utslippsfaktorer'!$P$7:$U$7,0),1)))) -> 0 | AD92: =IF(F92=0,0,IF(F92='08. Beregningsfaktorer'!$E$43,0,(INDEX('09. Utslippsfaktorer'!$P$7:$U$12,MATCH(X94,'09. Utslippsfaktorer'!$P$7:$P$12,0),MATCH("kg "&AD91,'09. Utslippsfaktorer'!$P$7:$U$7,0),1)))) -> 0 | AE92: =IF(F92=0,0,IF(F92='08. Beregningsfaktorer'!$E$43,0,(INDEX('09. Utslippsfaktorer'!$P$7:$U$12,MATCH(X94,'09. Utslippsfaktorer'!$P$7:$P$12,0),MATCH("kg "&AE91,'09. Utslippsfaktorer'!$P$7:$U$7,0),1)))) -> 0 | AF92: =IF(F92=0,0,IF(F92='08. Beregningsfaktorer'!$E$43,0,(INDEX('09. Utslippsfaktorer'!$P$7:$U$12,MATCH(X94,'09. Utslippsfaktorer'!$P$7:$P$12,0),MATCH("kg "&AF91,'09. Utslippsfaktorer'!$P$7:$U$7,0),1)))) -> 0 | AH92: Utslippsfaktor (kg/m3): | AJ92: =IF(F92=0,0,IF(F92='08. Beregningsfaktorer'!$E$43,0,(INDEX('09. Utslippsfaktorer'!$P$7:$U$45,MATCH(V91,'09. Utslippsfaktorer'!$P$7:$P$45,0),MATCH("kg "&AJ91,'09. Utslippsfaktorer'!$P$7:$U$7,0),1)))) -> 0 | AK92: =IF(F92=0,0,IF(F92='08. Beregningsfaktorer'!$E$43,0,(INDEX('09. Utslippsfaktorer'!$P$7:$U$45,MATCH(V91,'09. Utslippsfaktorer'!$P$7:$P$45,0),MATCH("kg "&AK91,'09. Utslippsfaktorer'!$P$7:$U$7,0),1)))) -> 0 | AL92: =IF(F92=0,0,IF(F92='08. Beregningsfaktorer'!$E$43,0,(INDEX('09. Utslippsfaktorer'!$P$7:$U$45,MATCH(V91,'09. Utslippsfaktorer'!$P$7:$P$45,0),MATCH("kg "&AL91,'09. Utslippsfaktorer'!$P$7:$U$7,0),1)))) -> 0 | AM92: =IF(F92=0,0,IF(F92='08. Beregningsfaktorer'!$E$43,0,(INDEX('09. Utslippsfaktorer'!$P$7:$U$45,MATCH(V91,'09. Utslippsfaktorer'!$P$7:$P$45,0),MATCH("kg "&AM91,'09. Utslippsfaktorer'!$P$7:$U$7,0),1)))) -> 0 | AO92: Utslipp (kg): | AQ92: =AC93+AJ93 -> 0 | AR92: =AD93+AK93 -> 0 | AS92: =AE93+AL93 -> 0 | AT92: =AF93+AM93 -> 0
T93: Forbruk per m3 stein | W93: =IF(F92=0,0,(INDEX('08. Beregningsfaktorer'!$E$12:$G$89,MATCH(F92,'08. Beregningsfaktorer'!$E$12:$E$89,0),3,1))) -> 0 | X93: =W94&"/"&X92 -> .../lm3 | AA93: Utslipp (kg): | AC93: =V94*AC92 -> 0 | AD93: =V94*AD92 -> 0 | AE93: =V94*AE92 -> 0 | AF93: =V94*AF92 -> 0 | AH93: Utslipp (kg): | AJ93: =W92*AJ92 -> 0 | AK93: =W92*AK92 -> 0 | AL93: =W92*AL92 -> 0 | AM93: =W92*AM92 -> 0
T94: Forbruk | V94: =W92*W93 -> 0 | W94: =IF(F92='08. Beregningsfaktorer'!$E$44,"l",IF(OR(F92='08. Beregningsfaktorer'!$E$45,F92='08. Beregningsfaktorer'!$E$47),"l",IF(F92='08. Beregningsfaktorer'!$E$46,"kWh","..."))) -> ... | X94: =IF(F92='08. Beregningsfaktorer'!$E$43,"Ingen løft",IF(F92='08. Beregningsfaktorer'!$E$44,"Diesel",IF(F92='08. Beregningsfaktorer'!$E$45,"Diesel",IF(F92='08. Beregningsfaktorer'!$E$47,"Biodiesel",IF(F92='08. Beregningsfaktorer'!$E$46,"Elektrisitet","Mangler type lastemaskin"))))) -> Mangler type lastemaskin
D96: 6.17 | E96: Transport til nærliggende prosjekt | F96: Endre antall kjøretøy:
D97: 6.17.1 | E97: Type kjøretøy | G97: =F98 -> 0 | T97: =E96&" - Grunnlagsdata og forbruk" -> Transport til nærliggende prosjekt - Grunnlagsdata og forbruk | AA97: =E96&" - Utslipp knyttet til drivstoff/elektrisitet" -> Transport til nærliggende prosjekt - Utslipp knyttet til drivstoff/elektrisitet | AH97: =E96&" - Utslipp knyttet til kjøretøy og infrastruktur" -> Transport til nærliggende prosjekt - Utslipp knyttet til kjøretøy og infrastruktur | AO97: =E96&" - Sum utslipp" -> Transport til nærliggende prosjekt - Sum utslipp
C98: =IF(F97='08. Beregningsfaktorer'!#REF!,"J",0) ->  | D98: 6.17.2 | E98: Mengde stein | G98: ='02. Inndata steinmasser'!$F$7 -> fm3 | T98: Kategori | V98: =IF(OR(F97='08. Beregningsfaktorer'!$B$9,F97='08. Beregningsfaktorer'!$B$10,F97='08. Beregningsfaktorer'!$B$11),'09. Utslippsfaktorer'!$P$14,IF(OR(F97='08. Beregningsfaktorer'!$B$12,F97='08. Beregningsfaktorer'!$B$13),'09. Utslippsfaktorer'!$P$15,IF(OR(F97='08. Beregningsfaktorer'!$B$14,F97='08. Beregningsfaktorer'!$B$15),'09. Utslippsfaktorer'!$P$16,IF(OR(F97='08. Beregningsfaktorer'!$B$24,F97='08. Beregningsfaktorer'!$B$25),'09. Utslippsfaktorer'!$P$18,IF(F97='08. Beregningsfaktorer'!$B$26,'09. Utslippsfaktorer'!$P$18,IF(F97='08. Beregningsfaktorer'!$B$27,'09. Utslippsfaktorer'!$P$18,IF(F97='08. Beregningsfaktorer'!$B$28,'09. Utslippsfaktorer'!$P$19,IF(F97='08. Beregningsfaktorer'!$B$29,'09. Utslippsfaktorer'!$P$19,IF(OR(F97='08. Beregningsfaktorer'!$B$17,F97='08. Beregningsfaktorer'!$B$16,F97='08. Beregningsfaktorer'!$B$18,F97='08. Beregningsfaktorer'!$B$19),'09. Utslippsfaktorer'!$P$16,IF(OR(F97='08. Beregningsfaktorer'!$B$20,F97='08. Beregningsfaktorer'!$B$21,F97='08. Beregningsfaktorer'!$B$22,F97='08. Beregningsfaktorer'!$B$23),'09. Utslippsfaktorer'!$P$14,"Mangler type kjøretøy")))))))))) -> Mangler type kjøretøy | AC98: CO2-ekv. | AD98: SO2-ekv. | AE98: P-ekv. | AF98: NMVOC | AJ98: CO2-ekv. | AK98: SO2-ekv. | AL98: P-ekv. | AM98: NMVOC | AQ98: CO2-ekv. | AR98: SO2-ekv. | AS98: P-ekv. | AT98: NMVOC
D99: 6.17.3 | E99: Hvor kommer massene fra? | G99: =IF(OR(F97='08. Beregningsfaktorer'!$B$28,F97='08. Beregningsfaktorer'!$B$29),0,IF(OR(F100='08. Beregningsfaktorer'!$E$77,F100='08. Beregningsfaktorer'!$E$80),F98*F101,0)) -> 0 | T99: =IF(F100='08. Beregningsfaktorer'!$E$78,"km","tonn km") -> tonn km | W99: =IF(F100='08. Beregningsfaktorer'!$E$78,IF(G98="tonn",IF(OR(F97='08. Beregningsfaktorer'!$B$16,F97='08. Beregningsfaktorer'!$B$17),(F98/8.5)*F101,IF(OR(F97='08. Beregningsfaktorer'!$B$18,F97='08. Beregningsfaktorer'!$B$19),(F98/14)*F101,IF(OR(F97='08. Beregningsfaktorer'!$B$20,F97='08. Beregningsfaktorer'!$B$21),(F98/26)*F101,IF(OR(F97='08. Beregningsfaktorer'!$B$22,F97='08. Beregningsfaktorer'!$B$23),(F98/40)*F101,IF(OR(F97='08. Beregningsfaktorer'!$B$24,F97='08. Beregningsfaktorer'!$B$25),(F98/14)*F101,IF(F97='08. Beregningsfaktorer'!$B$26,(F98/14)*F101,IF(F97='08. Beregningsfaktorer'!$B$27,(F98/14)*F101))))))),IF(OR(F97='08. Beregningsfaktorer'!$B$16,F97='08. Beregningsfaktorer'!$B$17),(F98*'08. Beregningsfaktorer'!$G$65/8.5)*F101,IF(OR(F97='08. Beregningsfaktorer'!$B$18,F97='08. Beregningsfaktorer'!$B$19),(F98*'08. Beregningsfaktorer'!$G$65/14)*F101,IF(OR(F97='08. Beregningsfaktorer'!$B$20,F97='08. Beregningsfaktorer'!$B$21),(F98*'08. Beregningsfaktorer'!$G$65/26)*F101,IF(OR(F97='08. Beregningsfaktorer'!$B$22,F97='08. Beregningsfaktorer'!$B$23),(F98*'08. Beregningsfaktorer'!$G$65/40)*F101,IF(OR(F97='08. Beregningsfaktorer'!$B$24,F97='08. Beregningsfaktorer'!$B$25),(F98*'08. Beregningsfaktorer'!$G$65/14)*F101,IF(F97='08. Beregningsfaktorer'!$B$26,(F98*'08. Beregningsfaktorer'!$G$65/14)*F101,IF(F97='08. Beregningsfaktorer'!$B$27,(F98*'08. Beregningsfaktorer'!$G$65/14)*F101)))))))),IF(F98=0,0,IF(F100='08. Beregningsfaktorer'!$E$80,IF(AND(OR(F97='08. Beregningsfaktorer'!$B$28,F97='08. Beregningsfaktorer'!$B$29),G98="tonn"),(F98/1900)*F101,IF(OR(F97='08. Beregningsfaktorer'!$B$28,F97='08. Beregningsfaktorer'!$B$29),(F98*'08. Beregningsfaktorer'!$G$65/1900)*F101,IF(G98="tonn",F98,F98*'08. Beregningsfaktorer'!$G$65)*F101)),IF(G98="tonn",F98*F101,F98*'08. Beregningsfaktorer'!$G$65)*F101))) -> 0 | X99: =IF(OR(F100='08. Beregningsfaktorer'!$E$78,F97='08. Beregningsfaktorer'!$B$28,F97='08. Beregningsfaktorer'!$B$29),"km","tkm") -> tkm | AA99: ="Utslippsfaktor (kg/"&W102&"):"&" " -> Utslippsfaktor (kg/l): | AC99: =IF(F97=0,0,(INDEX('09. Utslippsfaktorer'!$P$7:$U$13,MATCH(X102,'09. Utslippsfaktorer'!$P$7:$P$13,0),MATCH("kg "&AC98,'09. Utslippsfaktorer'!$P$7:$U$7,0),1))) -> 0 | AD99: =IF(F97=0,0,(INDEX('09. Utslippsfaktorer'!$P$7:$U$13,MATCH(X102,'09. Utslippsfaktorer'!$P$7:$P$13,0),MATCH("kg "&AD98,'09. Utslippsfaktorer'!$P$7:$U$7,0),1))) -> 0 | AE99: =IF(F97=0,0,(INDEX('09. Utslippsfaktorer'!$P$7:$U$13,MATCH(X102,'09. Utslippsfaktorer'!$P$7:$P$13,0),MATCH("kg "&AE98,'09. Utslippsfaktorer'!$P$7:$U$7,0),1))) -> 0 | AF99: =IF(F97=0,0,(INDEX('09. Utslippsfaktorer'!$P$7:$U$13,MATCH(X102,'09. Utslippsfaktorer'!$P$7:$P$13,0),MATCH("kg "&AF98,'09. Utslippsfaktorer'!$P$7:$U$7,0),1))) -> 0 | AH99: ="Utslippsfaktor (kg/"&X99&"):" -> Utslippsfaktor (kg/tkm): | AJ99: =IF(F97=0,0,(INDEX('09. Utslippsfaktorer'!$P$7:$U$45,MATCH(V98,'09. Utslippsfaktorer'!$P$7:$P$45,0),MATCH("kg "&AJ98,'09. Utslippsfaktorer'!$P$7:$U$7,0),1))) -> 0 | AK99: =IF(F97=0,0,(INDEX('09. Utslippsfaktorer'!$P$7:$U$45,MATCH(V98,'09. Utslippsfaktorer'!$P$7:$P$45,0),MATCH("kg "&AK98,'09. Utslippsfaktorer'!$P$7:$U$7,0),1))) -> 0 | AL99: =IF(F97=0,0,(INDEX('09. Utslippsfaktorer'!$P$7:$U$45,MATCH(V98,'09. Utslippsfaktorer'!$P$7:$P$45,0),MATCH("kg "&AL98,'09. Utslippsfaktorer'!$P$7:$U$7,0),1))) -> 0 | AM99: =IF(F97=0,0,(INDEX('09. Utslippsfaktorer'!$P$7:$U$45,MATCH(V98,'09. Utslippsfaktorer'!$P$7:$P$45,0),MATCH("kg "&AM98,'09. Utslippsfaktorer'!$P$7:$U$7,0),1))) -> 0 | AO99: Utslipp (kg): | AQ99: =IF(F100='08. Beregningsfaktorer'!$E$79,0,AC100+AJ100) -> 0 | AR99: =IF(F100='08. Beregningsfaktorer'!$E$79,0,AD100+AK100) -> 0 | AS99: =IF(F100='08. Beregningsfaktorer'!$E$79,0,AE100+AL100) -> 0 | AT99: =IF(F100='08. Beregningsfaktorer'!$E$79,0,AF100+AM100) -> 0
D100: 6.17.4 | E100: Lastekapasitet | G100: =IF(OR(F97='08. Beregningsfaktorer'!$B$9,F97='08. Beregningsfaktorer'!$B$10,F97='08. Beregningsfaktorer'!$B$12,F97='08. Beregningsfaktorer'!$B$13,F97='08. Beregningsfaktorer'!$B$14,F97='08. Beregningsfaktorer'!$B$15,F97='08. Beregningsfaktorer'!$B$28,F97='08. Beregningsfaktorer'!$B$29),IF(F100='08. Beregningsfaktorer'!$E$80,0,1),IF(F100='08. Beregningsfaktorer'!$E$80,3,0)) -> 0 | T100: Korreksjonsfaktor | W100: =IF(F102=0,0,INDEX('08. Beregningsfaktorer'!$E$54:$G$55,MATCH(F102,'08. Beregningsfaktorer'!$E$54:$E$55,0),3)) -> 0 | AA100: Utslipp (kg): | AC100: =IFERROR(V102*AC99,"Data mangler") -> 0 | AD100: =IFERROR(V102*AD99,"Data mangler") -> 0 | AE100: =IFERROR(V102*AE99,"Data mangler") -> 0 | AF100: =IFERROR(V102*AF99,"Data mangler") -> 0 | AH100: Utslipp (kg): | AJ100: =IF(V98='09. Utslippsfaktorer'!$P$19,IF(G98="tonn",F101*AJ99*F98,F101*AJ99*F98*'08. Beregningsfaktorer'!$G$65),IF(F100='08. Beregningsfaktorer'!$E$78,0,IFERROR(W99*AJ99,"Data mangler"))) -> 0 | AK100: =IF(V98='09. Utslippsfaktorer'!$P$19,IF(G98="tonn",F101*AK99*F98,F101*AK99*F98*'08. Beregningsfaktorer'!$G$65),IF(F100='08. Beregningsfaktorer'!$E$78,0,IFERROR(W99*AK99,"Data mangler"))) -> 0 | AL100: =IF(V98='09. Utslippsfaktorer'!$P$19,IF(G98="tonn",F101*AL99*F98,F101*AL99*F98*'08. Beregningsfaktorer'!$G$65),IF(F100='08. Beregningsfaktorer'!$E$78,0,IFERROR(W99*AL99,"Data mangler"))) -> 0 | AM100: =IF(V98='09. Utslippsfaktorer'!$P$19,IF(G98="tonn",F101*AM99*F98,F101*AM99*F98*'08. Beregningsfaktorer'!$G$65),IF(F100='08. Beregningsfaktorer'!$E$78,0,IFERROR(W99*AM99,"Data mangler"))) -> 0
D101: 6.17.5 | E101: Distanse til nærliggende prosjekt | G101: km | T101: =IF(F100='08. Beregningsfaktorer'!$E$78,"Forbruk per km","Forbruk per tonn km") -> Forbruk per tonn km | W101: =IFERROR(IF(F97=0,0,IF(F100='08. Beregningsfaktorer'!$E$78,INDEX('08. Beregningsfaktorer'!$E$30:$G$41,MATCH(F97,'08. Beregningsfaktorer'!$B$30:$B$41,0),3,1),INDEX('08. Beregningsfaktorer'!$E$9:$G$29,MATCH(F97,'08. Beregningsfaktorer'!$B$9:$B$29,0),3,1))),"Loading..") -> 0 | X101: =IFERROR(W102&"/"&X99,"Loading..") -> l/tkm
D102: 6.17.6 | E102: Transport med helning | T102: Forbruk | V102: =IFERROR(W99*W101*W100,"Data mangler") -> 0 | W102: =IFERROR(IF(OR(F97='08. Beregningsfaktorer'!$B$26,F97='08. Beregningsfaktorer'!$B$27),"kWh",IF(F97='08. Beregningsfaktorer'!$B$11,"MJ","l")),"Loading..") -> l | X102: =IFERROR(IF(F97='08. Beregningsfaktorer'!$B$11,"Biogass",IF(OR(F97='08. Beregningsfaktorer'!$B$26,F97='08. Beregningsfaktorer'!$B$27),"Elektrisitet",IF(OR(F97='08. Beregningsfaktorer'!$B$10,F97='08. Beregningsfaktorer'!$B$13,F97='08. Beregningsfaktorer'!$B$15,F97='08. Beregningsfaktorer'!$B$17,F97='08. Beregningsfaktorer'!$B$17,F97='08. Beregningsfaktorer'!$B$19,F97='08. Beregningsfaktorer'!$B$21,F97='08. Beregningsfaktorer'!$B$23,F97='08. Beregningsfaktorer'!$B$25,F97='08. Beregningsfaktorer'!$B$29),"Biodiesel",IF(V98="Mangler type kjøretøy","Mangler type kjøretøy","Diesel")))),"Feil") -> Mangler type kjøretøy
AO104: =E96&" - Sum utslipp - Alle kjøretøy" -> Transport til nærliggende prosjekt - Sum utslipp - Alle kjøretøy
D105: 6.18 | E105: Balanse veitransport | F105: =SUMIF(E96:E103,"Lastekapasitet",G96:G103) -> 0 | H105: Lastutnyttelse korrekt modellert | AQ105: CO2-ekv. | AR105: SO2-ekv. | AS105: P-ekv. | AT105: NMVOC
D106: 6.18.1 | E106: ="Balanse - "&E22 -> Balanse - Tunnelmunning | F106: =((F$22-SUMIF(F38:F45,'08. Beregningsfaktorer'!$B$28,G38:G45)-SUMIF(F38:F45,'08. Beregningsfaktorer'!#REF!,G38:G45))*F$88)-(SUMIF(F96:F103,E$22,G96:G103)) -> 0 | G106: ='02. Inndata steinmasser'!$F$7& " km" -> fm3 km | H106: Transportdistanser og masser stemmer | AO106: Utslipp (kg): | AQ106: =SUMIF($D96:$D103,$D99,AQ96:AQ103) -> 0 | AR106: =SUMIF($D96:$D103,$D99,AR96:AR103) -> 0 | AS106: =SUMIF($D96:$D103,$D99,AS96:AS103) -> 0 | AT106: =SUMIF($D96:$D103,$D99,AT96:AT103) -> 0
D107: 6.18.2 | E107: ="Balanse - "&E23 -> Balanse - Mobilt knuseverk | F107: =((F$23-SUMIF(F38:F45,'08. Beregningsfaktorer'!$B$28,G38:G45)-SUMIF(F38:F45,'08. Beregningsfaktorer'!#REF!,G38:G45))*F$89)-(SUMIF(F96:F103,E$23,G96:G103)) -> 0 | G107: ='02. Inndata steinmasser'!$F$7& " km" -> fm3 km | H107: Transportdistanser og masser stemmer
D108: 6.18.3 | E108: ="Balanse - "&E24 -> Balanse - Restprodukt mobilt knuseverk | F108: =((F$24-SUMIF(F38:F45,'08. Beregningsfaktorer'!$B$28,G38:G45)-SUMIF(F38:F45,'08. Beregningsfaktorer'!#REF!,G38:G45))*F$89)-(SUMIF(F96:F103,E$24,G96:G103)) -> 0 | G108: ='02. Inndata steinmasser'!$F$7& " km" -> fm3 km | H108: Transportdistanser og masser stemmer
B111: Andre
D112: 6.19 | E112: Veidistanser mellom andre og…
D113: 6.19.1 | E113: Tunnelmunning | G113: km
D114: 6.19.2 | E114: Mobilt knuseverk | G114: km
T115: =E116&" - Grunnlagsdata og forbruk" -> Lasting til transport - Grunnlagsdata og forbruk | AA115: =E116&" - Utslipp knyttet til drivstoff/elektrisitet" -> Lasting til transport - Utslipp knyttet til drivstoff/elektrisitet | AH115: =E116&" - Utslipp knyttet til maskin" -> Lasting til transport - Utslipp knyttet til maskin | AP115: =E116&" - Sum utslipp" -> Lasting til transport - Sum utslipp
D116: 6.20 | E116: Lasting til transport | T116: Kategori | V116: =IF(F117='08. Beregningsfaktorer'!$E$43,'08. Beregningsfaktorer'!$E$43,IF(F117='08. Beregningsfaktorer'!$E$44,'09. Utslippsfaktorer'!$P$20,IF(OR(F117='08. Beregningsfaktorer'!$E$45,F117='08. Beregningsfaktorer'!$E$47),'09. Utslippsfaktorer'!$P$21,IF(F117='08. Beregningsfaktorer'!$E$46,'09. Utslippsfaktorer'!$P$21,"Mangler type lastemaskin")))) -> Mangler type lastemaskin | AC116: CO2-ekv. | AD116: SO2-ekv. | AE116: P-ekv. | AF116: NMVOC | AJ116: CO2-ekv. | AK116: SO2-ekv. | AL116: P-ekv. | AM116: NMVOC | AQ116: CO2-ekv. | AR116: SO2-ekv. | AS116: P-ekv. | AT116: NMVOC
D117: 6.20.1 | E117: Type lastemaskin | T117: Volum stein | W117: =IF((F$27+F$28+F$29)=0,0,IF(G$27="fm3",(F$27+F$28+F$29)*'08. Beregningsfaktorer'!$G$65,(F$27+F$28+F$29)/'08. Beregningsfaktorer'!$G$65)) -> 0 | X117: lm3 | AA117: ="Utslippsfaktor (kg/"&W119&"):"&" " -> Utslippsfaktor (kg/...): | AC117: =IF(F117=0,0,IF(F117='08. Beregningsfaktorer'!$E$43,0,(INDEX('09. Utslippsfaktorer'!$P$7:$U$12,MATCH(X119,'09. Utslippsfaktorer'!$P$7:$P$12,0),MATCH("kg "&AC116,'09. Utslippsfaktorer'!$P$7:$U$7,0),1)))) -> 0 | AD117: =IF(F117=0,0,IF(F117='08. Beregningsfaktorer'!$E$43,0,(INDEX('09. Utslippsfaktorer'!$P$7:$U$12,MATCH(X119,'09. Utslippsfaktorer'!$P$7:$P$12,0),MATCH("kg "&AD116,'09. Utslippsfaktorer'!$P$7:$U$7,0),1)))) -> 0 | AE117: =IF(F117=0,0,IF(F117='08. Beregningsfaktorer'!$E$43,0,(INDEX('09. Utslippsfaktorer'!$P$7:$U$12,MATCH(X119,'09. Utslippsfaktorer'!$P$7:$P$12,0),MATCH("kg "&AE116,'09. Utslippsfaktorer'!$P$7:$U$7,0),1)))) -> 0 | AF117: =IF(F117=0,0,IF(F117='08. Beregningsfaktorer'!$E$43,0,(INDEX('09. Utslippsfaktorer'!$P$7:$U$12,MATCH(X119,'09. Utslippsfaktorer'!$P$7:$P$12,0),MATCH("kg "&AF116,'09. Utslippsfaktorer'!$P$7:$U$7,0),1)))) -> 0 | AH117: Utslippsfaktor (kg/m3): | AJ117: =IF(F117=0,0,IF(F117='08. Beregningsfaktorer'!$E$43,0,(INDEX('09. Utslippsfaktorer'!$P$7:$U$45,MATCH(V116,'09. Utslippsfaktorer'!$P$7:$P$45,0),MATCH("kg "&AJ116,'09. Utslippsfaktorer'!$P$7:$U$7,0),1)))) -> 0 | AK117: =IF(F117=0,0,IF(F117='08. Beregningsfaktorer'!$E$43,0,(INDEX('09. Utslippsfaktorer'!$P$7:$U$45,MATCH(V116,'09. Utslippsfaktorer'!$P$7:$P$45,0),MATCH("kg "&AK116,'09. Utslippsfaktorer'!$P$7:$U$7,0),1)))) -> 0 | AL117: =IF(F117=0,0,IF(F117='08. Beregningsfaktorer'!$E$43,0,(INDEX('09. Utslippsfaktorer'!$P$7:$U$45,MATCH(V116,'09. Utslippsfaktorer'!$P$7:$P$45,0),MATCH("kg "&AL116,'09. Utslippsfaktorer'!$P$7:$U$7,0),1)))) -> 0 | AM117: =IF(F117=0,0,IF(F117='08. Beregningsfaktorer'!$E$43,0,(INDEX('09. Utslippsfaktorer'!$P$7:$U$45,MATCH(V116,'09. Utslippsfaktorer'!$P$7:$P$45,0),MATCH("kg "&AM116,'09. Utslippsfaktorer'!$P$7:$U$7,0),1)))) -> 0 | AO117: Utslipp (kg): | AQ117: =AC118+AJ118 -> 0 | AR117: =AD118+AK118 -> 0 | AS117: =AE118+AL118 -> 0 | AT117: =AF118+AM118 -> 0
T118: Forbruk per m3 stein | W118: =IF(F117=0,0,(INDEX('08. Beregningsfaktorer'!$E$12:$G$89,MATCH(F117,'08. Beregningsfaktorer'!$E$12:$E$89,0),3,1))) -> 0 | X118: =W119&"/"&X117 -> .../lm3 | AA118: Utslipp (kg): | AC118: =V119*AC117 -> 0 | AD118: =V119*AD117 -> 0 | AE118: =V119*AE117 -> 0 | AF118: =V119*AF117 -> 0 | AH118: Utslipp (kg): | AJ118: =W117*AJ117 -> 0 | AK118: =W117*AK117 -> 0 | AL118: =W117*AL117 -> 0 | AM118: =W117*AM117 -> 0
T119: Forbruk | V119: =W117*W118 -> 0 | W119: =IF(F117='08. Beregningsfaktorer'!$E$44,"l",IF(OR(F117='08. Beregningsfaktorer'!$E$45,F117='08. Beregningsfaktorer'!$E$47),"l",IF(F117='08. Beregningsfaktorer'!$E$46,"kWh","..."))) -> ... | X119: =IF(F117='08. Beregningsfaktorer'!$E$43,"Ingen løft",IF(F117='08. Beregningsfaktorer'!$E$44,"Diesel",IF(F117='08. Beregningsfaktorer'!$E$45,"Diesel",IF(F117='08. Beregningsfaktorer'!$E$47,"Biodiesel",IF(F117='08. Beregningsfaktorer'!$E$46,"Elektrisitet","Mangler type lastemaskin"))))) -> Mangler type lastemaskin
D121: 6.21 | E121: Transport til andre | F121: Endre antall kjøretøy:
D122: 6.21.1 | E122: Type kjøretøy | G122: =F123 -> 0 | T122: =E121&" - Grunnlagsdata og forbruk" -> Transport til andre - Grunnlagsdata og forbruk | AA122: =E121&" - Utslipp knyttet til drivstoff/elektrisitet" -> Transport til andre - Utslipp knyttet til drivstoff/elektrisitet | AH122: =E121&" - Utslipp knyttet til kjøretøy og infrastruktur" -> Transport til andre - Utslipp knyttet til kjøretøy og infrastruktur | AO122: =E121&" - Sum utslipp" -> Transport til andre - Sum utslipp
C123: =IF(F122='08. Beregningsfaktorer'!#REF!,"J",0) ->  | D123: 6.21.2 | E123: Mengde stein | G123: ='02. Inndata steinmasser'!$F$7 -> fm3 | T123: Kategori | V123: =IF(OR(F122='08. Beregningsfaktorer'!$B$9,F122='08. Beregningsfaktorer'!$B$10,F122='08. Beregningsfaktorer'!$B$11),'09. Utslippsfaktorer'!$P$14,IF(OR(F122='08. Beregningsfaktorer'!$B$12,F122='08. Beregningsfaktorer'!$B$13),'09. Utslippsfaktorer'!$P$15,IF(OR(F122='08. Beregningsfaktorer'!$B$14,F122='08. Beregningsfaktorer'!$B$15),'09. Utslippsfaktorer'!$P$16,IF(OR(F122='08. Beregningsfaktorer'!$B$24,F122='08. Beregningsfaktorer'!$B$25),'09. Utslippsfaktorer'!$P$18,IF(F122='08. Beregningsfaktorer'!$B$26,'09. Utslippsfaktorer'!$P$18,IF(F122='08. Beregningsfaktorer'!$B$27,'09. Utslippsfaktorer'!$P$18,IF(F122='08. Beregningsfaktorer'!$B$28,'09. Utslippsfaktorer'!$P$19,IF(F122='08. Beregningsfaktorer'!$B$29,'09. Utslippsfaktorer'!$P$19,IF(OR(F122='08. Beregningsfaktorer'!$B$17,F122='08. Beregningsfaktorer'!$B$16,F122='08. Beregningsfaktorer'!$B$18,F122='08. Beregningsfaktorer'!$B$19),'09. Utslippsfaktorer'!$P$16,IF(OR(F122='08. Beregningsfaktorer'!$B$20,F122='08. Beregningsfaktorer'!$B$21,F122='08. Beregningsfaktorer'!$B$22,F122='08. Beregningsfaktorer'!$B$23),'09. Utslippsfaktorer'!$P$14,"Mangler type kjøretøy")))))))))) -> Mangler type kjøretøy | AC123: CO2-ekv. | AD123: SO2-ekv. | AE123: P-ekv. | AF123: NMVOC | AJ123: CO2-ekv. | AK123: SO2-ekv. | AL123: P-ekv. | AM123: NMVOC | AQ123: CO2-ekv. | AR123: SO2-ekv. | AS123: P-ekv. | AT123: NMVOC
D124: 6.21.3 | E124: Hvor kommer massene fra? | G124: =IF(OR(F122='08. Beregningsfaktorer'!$B$28,F122='08. Beregningsfaktorer'!$B$29),0,IF(OR(F125='08. Beregningsfaktorer'!$E$77,F125='08. Beregningsfaktorer'!$E$80),F123*F126,0)) -> 0 | T124: =IF(F125='08. Beregningsfaktorer'!$E$78,"km","tonn km") -> tonn km | W124: =IF(F125='08. Beregningsfaktorer'!$E$78,IF(G123="tonn",IF(OR(F122='08. Beregningsfaktorer'!$B$16,F122='08. Beregningsfaktorer'!$B$17),(F123/8.5)*F126,IF(OR(F122='08. Beregningsfaktorer'!$B$18,F122='08. Beregningsfaktorer'!$B$19),(F123/14)*F126,IF(OR(F122='08. Beregningsfaktorer'!$B$20,F122='08. Beregningsfaktorer'!$B$21),(F123/26)*F126,IF(OR(F122='08. Beregningsfaktorer'!$B$22,F122='08. Beregningsfaktorer'!$B$23),(F123/40)*F126,IF(OR(F122='08. Beregningsfaktorer'!$B$24,F122='08. Beregningsfaktorer'!$B$25),(F123/14)*F126,IF(F122='08. Beregningsfaktorer'!$B$26,(F123/14)*F126,IF(F122='08. Beregningsfaktorer'!$B$27,(F123/14)*F126))))))),IF(OR(F122='08. Beregningsfaktorer'!$B$16,F122='08. Beregningsfaktorer'!$B$17),(F123*'08. Beregningsfaktorer'!$G$65/8.5)*F126,IF(OR(F122='08. Beregningsfaktorer'!$B$18,F122='08. Beregningsfaktorer'!$B$19),(F123*'08. Beregningsfaktorer'!$G$65/14)*F126,IF(OR(F122='08. Beregningsfaktorer'!$B$20,F122='08. Beregningsfaktorer'!$B$21),(F123*'08. Beregningsfaktorer'!$G$65/26)*F126,IF(OR(F122='08. Beregningsfaktorer'!$B$22,F122='08. Beregningsfaktorer'!$B$23),(F123*'08. Beregningsfaktorer'!$G$65/40)*F126,IF(OR(F122='08. Beregningsfaktorer'!$B$24,F122='08. Beregningsfaktorer'!$B$25),(F123*'08. Beregningsfaktorer'!$G$65/14)*F126,IF(F122='08. Beregningsfaktorer'!$B$26,(F123*'08. Beregningsfaktorer'!$G$65/14)*F126,IF(F122='08. Beregningsfaktorer'!$B$27,(F123*'08. Beregningsfaktorer'!$G$65/14)*F126)))))))),IF(F123=0,0,IF(F125='08. Beregningsfaktorer'!$E$80,IF(AND(OR(F122='08. Beregningsfaktorer'!$B$28,F122='08. Beregningsfaktorer'!$B$29),G123="tonn"),(F123/1900)*F126,IF(OR(F122='08. Beregningsfaktorer'!$B$28,F122='08. Beregningsfaktorer'!$B$29),(F123*'08. Beregningsfaktorer'!$G$65/1900)*F126,IF(G123="tonn",F123,F123*'08. Beregningsfaktorer'!$G$65)*F126)),IF(G123="tonn",F123*F126,F123*'08. Beregningsfaktorer'!$G$65)*F126))) -> 0 | X124: =IF(OR(F125='08. Beregningsfaktorer'!$E$78,F122='08. Beregningsfaktorer'!$B$28,F122='08. Beregningsfaktorer'!$B$29),"km","tkm") -> tkm | AA124: ="Utslippsfaktor (kg/"&W127&"):"&" " -> Utslippsfaktor (kg/l): | AC124: =IF(F122=0,0,(INDEX('09. Utslippsfaktorer'!$P$7:$U$13,MATCH(X127,'09. Utslippsfaktorer'!$P$7:$P$13,0),MATCH("kg "&AC123,'09. Utslippsfaktorer'!$P$7:$U$7,0),1))) -> 0 | AD124: =IF(F122=0,0,(INDEX('09. Utslippsfaktorer'!$P$7:$U$13,MATCH(X127,'09. Utslippsfaktorer'!$P$7:$P$13,0),MATCH("kg "&AD123,'09. Utslippsfaktorer'!$P$7:$U$7,0),1))) -> 0 | AE124: =IF(F122=0,0,(INDEX('09. Utslippsfaktorer'!$P$7:$U$13,MATCH(X127,'09. Utslippsfaktorer'!$P$7:$P$13,0),MATCH("kg "&AE123,'09. Utslippsfaktorer'!$P$7:$U$7,0),1))) -> 0 | AF124: =IF(F122=0,0,(INDEX('09. Utslippsfaktorer'!$P$7:$U$13,MATCH(X127,'09. Utslippsfaktorer'!$P$7:$P$13,0),MATCH("kg "&AF123,'09. Utslippsfaktorer'!$P$7:$U$7,0),1))) -> 0 | AH124: ="Utslippsfaktor (kg/"&X124&"):" -> Utslippsfaktor (kg/tkm): | AJ124: =IF(F122=0,0,(INDEX('09. Utslippsfaktorer'!$P$7:$U$45,MATCH(V123,'09. Utslippsfaktorer'!$P$7:$P$45,0),MATCH("kg "&AJ123,'09. Utslippsfaktorer'!$P$7:$U$7,0),1))) -> 0 | AK124: =IF(F122=0,0,(INDEX('09. Utslippsfaktorer'!$P$7:$U$45,MATCH(V123,'09. Utslippsfaktorer'!$P$7:$P$45,0),MATCH("kg "&AK123,'09. Utslippsfaktorer'!$P$7:$U$7,0),1))) -> 0 | AL124: =IF(F122=0,0,(INDEX('09. Utslippsfaktorer'!$P$7:$U$45,MATCH(V123,'09. Utslippsfaktorer'!$P$7:$P$45,0),MATCH("kg "&AL123,'09. Utslippsfaktorer'!$P$7:$U$7,0),1))) -> 0 | AM124: =IF(F122=0,0,(INDEX('09. Utslippsfaktorer'!$P$7:$U$45,MATCH(V123,'09. Utslippsfaktorer'!$P$7:$P$45,0),MATCH("kg "&AM123,'09. Utslippsfaktorer'!$P$7:$U$7,0),1))) -> 0 | AO124: Utslipp (kg): | AQ124: =IF(F125='08. Beregningsfaktorer'!$E$79,0,AC125+AJ125) -> 0 | AR124: =IF(F125='08. Beregningsfaktorer'!$E$79,0,AD125+AK125) -> 0 | AS124: =IF(F125='08. Beregningsfaktorer'!$E$79,0,AE125+AL125) -> 0 | AT124: =IF(F125='08. Beregningsfaktorer'!$E$79,0,AF125+AM125) -> 0
D125: 6.21.4 | E125: Lastekapasitet | G125: =IF(OR(F122='08. Beregningsfaktorer'!$B$9,F122='08. Beregningsfaktorer'!$B$10,F122='08. Beregningsfaktorer'!$B$12,F122='08. Beregningsfaktorer'!$B$13,F122='08. Beregningsfaktorer'!$B$14,F122='08. Beregningsfaktorer'!$B$15,F122='08. Beregningsfaktorer'!$B$28,F122='08. Beregningsfaktorer'!$B$29),IF(F125='08. Beregningsfaktorer'!$E$80,0,1),IF(F125='08. Beregningsfaktorer'!$E$80,3,0)) -> 0 | T125: Korreksjonsfaktor | W125: =IF(F127=0,0,INDEX('08. Beregningsfaktorer'!$E$54:$G$55,MATCH(F127,'08. Beregningsfaktorer'!$E$54:$E$55,0),3)) -> 0 | AA125: Utslipp (kg): | AC125: =IFERROR(V127*AC124,"Data mangler") -> 0 | AD125: =IFERROR(V127*AD124,"Data mangler") -> 0 | AE125: =IFERROR(V127*AE124,"Data mangler") -> 0 | AF125: =IFERROR(V127*AF124,"Data mangler") -> 0 | AH125: Utslipp (kg): | AJ125: =IF(V123='09. Utslippsfaktorer'!$P$19,IF(G123="tonn",F126*AJ124*F123,F126*AJ124*F123*'08. Beregningsfaktorer'!$G$65),IF(F125='08. Beregningsfaktorer'!$E$78,0,IFERROR(W124*AJ124,"Data mangler"))) -> 0 | AK125: =IF(V123='09. Utslippsfaktorer'!$P$19,IF(G123="tonn",F126*AK124*F123,F126*AK124*F123*'08. Beregningsfaktorer'!$G$65),IF(F125='08. Beregningsfaktorer'!$E$78,0,IFERROR(W124*AK124,"Data mangler"))) -> 0 | AL125: =IF(V123='09. Utslippsfaktorer'!$P$19,IF(G123="tonn",F126*AL124*F123,F126*AL124*F123*'08. Beregningsfaktorer'!$G$65),IF(F125='08. Beregningsfaktorer'!$E$78,0,IFERROR(W124*AL124,"Data mangler"))) -> 0 | AM125: =IF(V123='09. Utslippsfaktorer'!$P$19,IF(G123="tonn",F126*AM124*F123,F126*AM124*F123*'08. Beregningsfaktorer'!$G$65),IF(F125='08. Beregningsfaktorer'!$E$78,0,IFERROR(W124*AM124,"Data mangler"))) -> 0
D126: 6.21.5 | E126: Distanse til andre | G126: km | T126: =IF(F125='08. Beregningsfaktorer'!$E$78,"Forbruk per km","Forbruk per tonn km") -> Forbruk per tonn km | W126: =IFERROR(IF(F122=0,0,IF(F125='08. Beregningsfaktorer'!$E$78,INDEX('08. Beregningsfaktorer'!$E$30:$G$41,MATCH(F122,'08. Beregningsfaktorer'!$B$30:$B$41,0),3,1),INDEX('08. Beregningsfaktorer'!$E$9:$G$29,MATCH(F122,'08. Beregningsfaktorer'!$B$9:$B$29,0),3,1))),"Loading..") -> 0 | X126: =IFERROR(W127&"/"&X124,"Loading..") -> l/tkm
D127: 6.21.6 | E127: Transport med helning | T127: Forbruk | V127: =IFERROR(W124*W126*W125,"Data mangler") -> 0 | W127: =IFERROR(IF(OR(F122='08. Beregningsfaktorer'!$B$26,F122='08. Beregningsfaktorer'!$B$27),"kWh",IF(F122='08. Beregningsfaktorer'!$B$11,"MJ","l")),"Loading..") -> l | X127: =IFERROR(IF(F122='08. Beregningsfaktorer'!$B$11,"Biogass",IF(OR(F122='08. Beregningsfaktorer'!$B$26,F122='08. Beregningsfaktorer'!$B$27),"Elektrisitet",IF(OR(F122='08. Beregningsfaktorer'!$B$10,F122='08. Beregningsfaktorer'!$B$13,F122='08. Beregningsfaktorer'!$B$15,F122='08. Beregningsfaktorer'!$B$17,F122='08. Beregningsfaktorer'!$B$17,F122='08. Beregningsfaktorer'!$B$19,F122='08. Beregningsfaktorer'!$B$21,F122='08. Beregningsfaktorer'!$B$23,F122='08. Beregningsfaktorer'!$B$25,F122='08. Beregningsfaktorer'!$B$29),"Biodiesel",IF(V123="Mangler type kjøretøy","Mangler type kjøretøy","Diesel")))),"Feil") -> Mangler type kjøretøy
AO129: =E121&" - Sum utslipp - Alle kjøretøy" -> Transport til andre - Sum utslipp - Alle kjøretøy
D130: 6.22 | E130: Balanse veitransport | F130: =SUMIF(E121:E128,"Lastekapasitet",G121:G128) -> 0 | H130: Lastutnyttelse korrekt modellert | AQ130: CO2-ekv. | AR130: SO2-ekv. | AS130: P-ekv. | AT130: NMVOC
D131: 6.22.1 | E131: ="Balanse - "&E27 -> Balanse - Tunnelmunning | F131: =((F$27-SUMIF(F38:F45,'08. Beregningsfaktorer'!$B$28,G38:G45)-SUMIF(F38:F45,'08. Beregningsfaktorer'!#REF!,G38:G45))*F$113)-(SUMIF(F121:F128,E$27,G121:G128)) -> 0 | G131: ='02. Inndata steinmasser'!$F$7& " km" -> fm3 km | H131: Transportdistanser og masser stemmer | AO131: Utslipp (kg): | AQ131: =SUMIF($D121:$D128,$D124,AQ121:AQ128) -> 0 | AR131: =SUMIF($D121:$D128,$D124,AR121:AR128) -> 0 | AS131: =SUMIF($D121:$D128,$D124,AS121:AS128) -> 0 | AT131: =SUMIF($D121:$D128,$D124,AT121:AT128) -> 0
D132: 6.22.2 | E132: ="Balanse - "&E28 -> Balanse - Mobilt knuseverk | F132: =((F$28-SUMIF(F38:F45,'08. Beregningsfaktorer'!$B$28,G38:G45)-SUMIF(F38:F45,'08. Beregningsfaktorer'!#REF!,G38:G45))*F$114)-(SUMIF(F121:F128,E$28,G121:G128)) -> 0 | G132: ='02. Inndata steinmasser'!$F$7& " km" -> fm3 km | H132: Transportdistanser og masser stemmer
D133: 6.22.3 | E133: ="Balanse - "&E29 -> Balanse - Restprodukt mobilt knuseverk | F133: =((F$29-SUMIF(F38:F45,'08. Beregningsfaktorer'!$B$28,G38:G45)-SUMIF(F38:F45,'08. Beregningsfaktorer'!#REF!,G38:G45))*F$114)-(SUMIF(F121:F128,E$29,G121:G128)) -> 0 | G133: ='02. Inndata steinmasser'!$F$7& " km" -> fm3 km | H133: Transportdistanser og masser stemmer

Sheet 07. Resultater
D2: 07. Resultater
D17: 7.1 | E17: Alternativ 01 - Lokal behandling | M17: 7.2 | N17: Alternativ 02 - Ekstern behandling | U17: 7.3 | V17: Sammenlikning
D18: Ref. | E18: Prosess | F18: Klima | G18: Forsuring | H18: Eutrofiering | I18: Fotokjemisk smog | J18: Akkumulert energibruk | M18: Ref. | N18: Prosess | O18: Klima | P18: Forsuring | Q18: Eutrofiering | R18: Fotokjemisk smog | S18: Akkumulert energibruk | V18: Klima | X18: Forsuring | Z18: Eutrofiering | AB18: Fotokjemisk smog | AD18: Akkumulert energibruk
F19: kg CO2-ekv. | G19: kg SO2-ekv. | H19: kg P-ekv. | I19: kg NMVOC | J19: MJ | O19: kg CO2-ekv. | P19: kg SO2-ekv. | Q19: kg P-ekv. | R19: kg NMVOC | S19: MJ | V19: tonn CO2-ekv. | X19: kg SO2-ekv. | Z19: kg P-ekv. | AB19: kg NMVOC | AD19: MJ
D21: 03 | E21: Mobilt knuseverk | F21: =SUM(F22:F31) -> 0 | G21: =SUM(G22:G31) -> 0 | H21: =SUM(H22:H31) -> 0 | I21: =SUM(I22:I31) -> 0 | J21: =SUM(J22:J31) -> 0 | M21: 03 | N21: Mobilt knuseverk | O21: =SUM(O22:O31) -> 0 | P21: =SUM(P22:P31) -> 500 | Q21: =SUM(Q22:Q31) -> 1000 | R21: =SUM(R22:R31) -> 1000 | S21: =SUM(S22:S31) -> 1000 | V21: Alternativ 1 | W21: Alternativ 2 | X21: Atlernativ 1 | Y21: Alternativ 2 | Z21: Atlernativ 1 | AA21: Alternativ 2 | AB21: Atlernativ 1 | AC21: Alternativ 2 | AD21: Atlernativ 1 | AE21: Alternativ 2
B22: Mobilt knuseverlk | D22: ='03. Mobilt knuseverk'!D33 -> 3.6 | E22: ='03. Mobilt knuseverk'!E33 -> Lasting til transport | F22: ='03. Mobilt knuseverk'!AQ34 -> 0 | G22: ='03. Mobilt knuseverk'!AR34 -> 0 | H22: ='03. Mobilt knuseverk'!AS34 -> 0 | I22: ='03. Mobilt knuseverk'!AT34 -> 0 | J22: ='03. Mobilt knuseverk'!AU32 -> 0 | M22: =D22 -> 3.6 | N22: =E22 -> Lasting til transport | O22: 0 | P22: 500 | Q22: 1000 | R22: 1000 | S22: 1000 | V22: =F59/1000 -> 0 | W22: =O59/1000 -> 0 | X22: =G59 -> 0 | Y22: =P59 -> 1050 | Z22: =H59 -> 0 | AA22: =Q59 -> 1311 | AB22: =I59 -> 0 | AC22: =R59 -> 1511 | AD22: =J59 -> 0 | AE22: =S59 -> 1500
D23: ='03. Mobilt knuseverk'!D38 -> 3.7 | E23: ='03. Mobilt knuseverk'!E38 -> Transport til mobilt knuseverk | F23: ='03. Mobilt knuseverk'!AQ48+'03. Mobilt knuseverk'!AQ52 -> 0 | G23: ='03. Mobilt knuseverk'!AR48 -> 0 | H23: ='03. Mobilt knuseverk'!AS48 -> 0 | I23: ='03. Mobilt knuseverk'!AT48 -> 0 | J23: ='03. Mobilt knuseverk'!AU48 -> 0 | M23: =D23 -> 3.7 | N23: Transport til mobilt knuseverk
D24: ='03. Mobilt knuseverk'!D59 -> 3.9 | E24: ='03. Mobilt knuseverk'!E59 -> Lasting til knusetrinn 1 | F24: ='03. Mobilt knuseverk'!AQ60 -> 0 | G24: ='03. Mobilt knuseverk'!AR60 -> 0 | H24: ='03. Mobilt knuseverk'!AS60 -> 0 | I24: ='03. Mobilt knuseverk'!AT60 -> 0 | J24: ='03. Mobilt knuseverk'!AU60 -> 0 | M24: 3.9 | N24: Lasting til knusetrinn 1
D25: ='03. Mobilt knuseverk'!D65 -> 3.10 | E25: ='03. Mobilt knuseverk'!E65 -> Mobilt knuseverk knusetrinn 1 | F25: ='03. Mobilt knuseverk'!AQ66 -> 0 | G25: ='03. Mobilt knuseverk'!AR66 -> 0 | H25: ='03. Mobilt knuseverk'!AS66 -> 0 | I25: ='03. Mobilt knuseverk'!AT66 -> 0 | J25: ='03. Mobilt knuseverk'!AU66 -> 0 | M25: 3.10 | N25: Mobilt knuseverk knusetrinn 1
D26: ='03. Mobilt knuseverk'!D71 -> 3.11 | E26: ='03. Mobilt knuseverk'!E71 -> Lasting til knusetrinn 2 | F26: ='03. Mobilt knuseverk'!AQ72 -> 0 | G26: ='03. Mobilt knuseverk'!AR72 -> 0 | H26: ='03. Mobilt knuseverk'!AS72 -> 0 | I26: ='03. Mobilt knuseverk'!AT72 -> 0 | J26: ='03. Mobilt knuseverk'!AU72 -> 0 | M26: 3.11 | N26: Lasting til knusetrinn 2 | V26: Diagram av de ulike alternativene
D27: ='03. Mobilt knuseverk'!D77 -> 3.12 | E27: ='03. Mobilt knuseverk'!E77 -> Mobilt knuseverk knusetrinn 2 | F27: ='03. Mobilt knuseverk'!AQ78 -> 0 | G27: ='03. Mobilt knuseverk'!AR78 -> 0 | H27: ='03. Mobilt knuseverk'!AS78 -> 0 | I27: ='03. Mobilt knuseverk'!AT78 -> 0 | J27: ='03. Mobilt knuseverk'!AU78 -> 0 | M27: 3.12 | N27: Mobilt knuseverk knusetrinn 2
D28: ='03. Mobilt knuseverk'!D83 -> 3.13 | E28: ='03. Mobilt knuseverk'!E83 -> Lasting til knusetrinn 3 | F28: ='03. Mobilt knuseverk'!AQ84 -> 0 | G28: ='03. Mobilt knuseverk'!AR84 -> 0 | H28: ='03. Mobilt knuseverk'!AS84 -> 0 | I28: ='03. Mobilt knuseverk'!AT84 -> 0 | J28: ='03. Mobilt knuseverk'!AU84 -> 0 | M28: 3.13 | N28: Lasting til knusetrinn 3
D29: ='03. Mobilt knuseverk'!D89 -> 3.14 | E29: ='03. Mobilt knuseverk'!E89 -> Mobilt knuseverk knusetrinn 3 | F29: ='03. Mobilt knuseverk'!AQ90 -> 0 | G29: ='03. Mobilt knuseverk'!AR90 -> 0 | H29: ='03. Mobilt knuseverk'!AS90 -> 0 | I29: ='03. Mobilt knuseverk'!AT90 -> 0 | J29: ='03. Mobilt knuseverk'!AU90 -> 0 | M29: 3.14 | N29: Mobilt knuseverk knusetrinn 3 | AQ29: ='02. Inndata steinmasser'!F12+'02. Inndata steinmasser'!F13 -> 0 | AR29: ='02. Inndata steinmasser'!F7 -> fm3
D30: ='03. Mobilt knuseverk'!D99 -> 3.15 | E30: ='03. Mobilt knuseverk'!E99 -> Lasting til transport | F30: ='03. Mobilt knuseverk'!AQ100 -> 0 | G30: ='03. Mobilt knuseverk'!AR100 -> 0 | H30: ='03. Mobilt knuseverk'!AS100 -> 0 | I30: ='03. Mobilt knuseverk'!AT100 -> 0 | J30: ='03. Mobilt knuseverk'!AU100 -> 0 | M30: 3.15 | N30: Lasting til transport | BD30: =AO31&" - Utslipp - Diverse grunnlagsdata" -> Lasting til transport - Utslipp - Diverse grunnlagsdata | BK30: =AO31&" - Utslipp fra forbruk" -> Lasting til transport - Utslipp fra forbruk | BR30: =AO31&" - Utslipp fra slitasje" -> Lasting til transport - Utslipp fra slitasje | BY30: =AO31&" - Sum utslipp" -> Lasting til transport - Sum utslipp
D31: ='03. Mobilt knuseverk'!D104 -> 3.16 | E31: ='03. Mobilt knuseverk'!E104 -> Transport fra mobilt knuseverk | F31: ='03. Mobilt knuseverk'!AQ114 -> 0 | G31: ='03. Mobilt knuseverk'!AR114 -> 0 | H31: ='03. Mobilt knuseverk'!AS114 -> 0 | I31: ='03. Mobilt knuseverk'!AT114 -> 0 | J31: ='03. Mobilt knuseverk'!AU114 -> 0 | M31: 3.16 | N31: Transport fra mobilt knuseverk | AN31: 4.10 | AO31: Lasting til transport | BD31: Kategori | BF31: =IF(AP32='08. Beregningsfaktorer'!$E$43,'08. Beregningsfaktorer'!$E$43,IF(AP32='08. Beregningsfaktorer'!$E$44,'09. Utslippsfaktorer'!$P$20,IF(AP32='08. Beregningsfaktorer'!$E$45,'09. Utslippsfaktorer'!$P$21,IF(AP32='08. Beregningsfaktorer'!$E$46,'09. Utslippsfaktorer'!$P$21,"Mangler type kjøretøy")))) -> Gravemaskin hydraulisk uten drivstoff | BM31: CO2-ekv. | BN31: SO2-ekv. | BO31: P-ekv. | BP31: NMVOC | BT31: CO2-ekv. | BU31: SO2-ekv. | BV31: P-ekv. | BW31: NMVOC | CA31: CO2-ekv. | CB31: SO2-ekv. | CC31: P-ekv. | CD31: NMVOC
AN32: 4.3.1 | AO32: Type lastemaskin | AP32: Gravemaskin diesel | BD32: Volum stein | BG32: =IF(AQ$29=0,0,IF(AR$29="fm3",AQ$29*'08. Beregningsfaktorer'!$G$65/'08. Beregningsfaktorer'!$G$66,AQ$29/'08. Beregningsfaktorer'!$G$66)) -> 0 | BH32: lm3 | BK32: ="Utslippsfaktor (kg/"&BG34&"):"&" " -> Utslippsfaktor (kg/l): | BM32: =IF(AP32=0,0,IF(AP32='08. Beregningsfaktorer'!$E$43,0,(INDEX('09. Utslippsfaktorer'!$P$7:$U$12,MATCH(BH34,'09. Utslippsfaktorer'!$P$7:$P$12,0),MATCH("kg "&BM31,'09. Utslippsfaktorer'!$P$7:$U$7,0),1)))) -> 3.1476 | BN32: =IF(AP32=0,0,IF(AP32='08. Beregningsfaktorer'!$E$43,0,(INDEX('09. Utslippsfaktorer'!$P$7:$U$12,MATCH(BH34,'09. Utslippsfaktorer'!$P$7:$P$12,0),MATCH("kg "&BN31,'09. Utslippsfaktorer'!$P$7:$U$7,0),1)))) -> 0 | BO32: =IF(AP32=0,0,IF(AP32='08. Beregningsfaktorer'!$E$43,0,(INDEX('09. Utslippsfaktorer'!$P$7:$U$12,MATCH(BH34,'09. Utslippsfaktorer'!$P$7:$P$12,0),MATCH("kg "&BO31,'09. Utslippsfaktorer'!$P$7:$U$7,0),1)))) -> 0 | BP32: =IF(AP32=0,0,IF(AP32='08. Beregningsfaktorer'!$E$43,0,(INDEX('09. Utslippsfaktorer'!$P$7:$U$12,MATCH(BH34,'09. Utslippsfaktorer'!$P$7:$P$12,0),MATCH("kg "&BP31,'09. Utslippsfaktorer'!$P$7:$U$7,0),1)))) -> 0 | BR32: Utslippsfaktor (kg/m3): | BT32: =IF(AP32=0,0,IF(AP32='08. Beregningsfaktorer'!$E$43,0,(INDEX('09. Utslippsfaktorer'!$P$7:$U$45,MATCH(BF31,'09. Utslippsfaktorer'!$P$7:$P$45,0),MATCH("kg "&BT31,'09. Utslippsfaktorer'!$P$7:$U$7,0),1)))) -> 0.053 | BU32: =IF(AP32=0,0,IF(AP32='08. Beregningsfaktorer'!$E$43,0,(INDEX('09. Utslippsfaktorer'!$P$7:$U$45,MATCH(BF31,'09. Utslippsfaktorer'!$P$7:$P$45,0),MATCH("kg "&BU31,'09. Utslippsfaktorer'!$P$7:$U$7,0),1)))) -> 0 | BV32: =IF(AP32=0,0,IF(AP32='08. Beregningsfaktorer'!$E$43,0,(INDEX('09. Utslippsfaktorer'!$P$7:$U$45,MATCH(BF31,'09. Utslippsfaktorer'!$P$7:$P$45,0),MATCH("kg "&BV31,'09. Utslippsfaktorer'!$P$7:$U$7,0),1)))) -> 0 | BW32: =IF(AP32=0,0,IF(AP32='08. Beregningsfaktorer'!$E$43,0,(INDEX('09. Utslippsfaktorer'!$P$7:$U$45,MATCH(BF31,'09. Utslippsfaktorer'!$P$7:$P$45,0),MATCH("kg "&BW31,'09. Utslippsfaktorer'!$P$7:$U$7,0),1)))) -> 0 | BY32: Utslipp (kg): | CA32: =BM33+BT33 -> 0 | CB32: =BN33+BU33 -> 0 | CC32: =BO33+BV33 -> 0 | CD32: =BP33+BW33 -> 0
D33: 04 | E33: Deponi | F33: =SUM(F34:F37) -> 0 | G33: =SUM(G34:G37) -> 0 | H33: =SUM(H34:H37) -> 0 | I33: =SUM(I34:I37) -> 0 | J33: =SUM(J34:J37) -> 0 | M33: 04 | N33: Deponi | O33: =SUM(O34:O37) -> 0 | P33: =SUM(P34:P37) -> 50 | Q33: =SUM(Q34:Q37) -> 11 | R33: =SUM(R34:R37) -> 111 | S33: =SUM(S34:S37) -> 200 | BD33: Forbruk per m3 stein | BG33: =IF(AP32=0,0,(INDEX('08. Beregningsfaktorer'!$E$12:$G$89,MATCH(AP32,'08. Beregningsfaktorer'!$E$12:$E$89,0),3,1))) -> 0.1541176471 | BH33: =BG34&"/"&BH32 -> l/lm3 | BK33: Utslipp (kg): | BM33: =BF34*BM32 -> 0 | BN33: =BF34*BN32 -> 0 | BO33: =BF34*BO32 -> 0 | BP33: =BF34*BP32 -> 0 | BR33: Utslipp (kg): | BT33: =BG32*BT32 -> 0 | BU33: =BG32*BU32 -> 0 | BV33: =BG32*BV32 -> 0 | BW33: =BG32*BW32 -> 0
B34: Dep-oni | D34: ='04. Deponi'!D31 -> 4.6 | E34: ='04. Deponi'!E31 -> Lasting til transport | F34: ='04. Deponi'!AQ32+'04. Deponi'!AQ88 -> 0 | G34: ='04. Deponi'!AR32 -> 0 | H34: ='04. Deponi'!AS32 -> 0 | I34: ='04. Deponi'!AT32 -> 0 | J34: ='04. Deponi'!AU32 -> 0 | M34: =D34 -> 4.6 | N34: Lasting til transport | O34: =CA32 -> 0 | P34: 50 | Q34: 11 | R34: 111 | S34: 200 | BD34: Forbruk | BF34: =BG32*BG33 -> 0 | BG34: =IF(AP32='08. Beregningsfaktorer'!$E$44,"l",IF(AP32='08. Beregningsfaktorer'!$E$45,"l",IF(AP32='08. Beregningsfaktorer'!$E$46,"kWh","..."))) -> l | BH34: =IF(AP32='08. Beregningsfaktorer'!$E$43,"Ingen løft",IF(AP32='08. Beregningsfaktorer'!$E$44,"Diesel",IF(AP32='08. Beregningsfaktorer'!$E$45,"Diesel",IF(AP32='08. Beregningsfaktorer'!$E$46,"Elektrisitet - kWh","Mangler type kjøretøy")))) -> Diesel
D35: ='04. Deponi'!D36 -> 4.7 | E35: Transport til deponi | F35: ='04. Deponi'!AQ46+'04. Deponi'!AQ51+'04. Deponi'!AQ102+'04. Deponi'!AQ107 -> 0 | G35: ='04. Deponi'!AR46 -> 0 | H35: ='04. Deponi'!AS46 -> 0 | I35: ='04. Deponi'!AT46 -> 0 | J35: ='04. Deponi'!AU46 -> 0 | M35: 4.7 | N35: Transport til deponi | O35: =CA39+CA50 -> 0
D36: ='04. Deponi'!D57 -> 4.9 | E36: ='04. Deponi'!E57 -> Utlegging | F36: ='04. Deponi'!AQ58 -> 0 | G36: ='04. Deponi'!AR58 -> 0 | H36: ='04. Deponi'!AS58 -> 0 | I36: ='04. Deponi'!AT58 -> 0 | J36: ='04. Deponi'!AU58 -> 0 | M36: 4.9 | N36: Utlegging | AN36: 4.11 | AO36: Transport til ekstern deponi | AP36: Endre antall kjøretøy:
D37: ='04. Deponi'!D63 -> 4.10 | E37: ='04. Deponi'!E63 -> Komprimering | F37: ='04. Deponi'!AQ64 -> 0 | G37: ='04. Deponi'!AR64 -> 0 | H37: ='04. Deponi'!AS64 -> 0 | I37: ='04. Deponi'!AT64 -> 0 | J37: ='04. Deponi'!AU64 -> 0 | M37: 4.10 | N37: Komprimering | AN37: 4.4.1 | AO37: Type kjøretøy | AP37: Lastebil, totalvekt 16-32 t, euro 5, diesel, tur-retur | BD37: =AO$36&" - Utslipp - Diverse grunnlagsdata" -> Transport til ekstern deponi - Utslipp - Diverse grunnlagsdata | BK37: =AO$36&" - Utslipp fra forbruk" -> Transport til ekstern deponi - Utslipp fra forbruk | BR37: =AO$36&" - Utslipp fra slitasje/bruk" -> Transport til ekstern deponi - Utslipp fra slitasje/bruk | BY37: =AO$28&" - Sum utslipp" -> - Sum utslipp
AM38: =IF(AP37='08. Beregningsfaktorer'!#REF!,"J",0) ->  | AN38: 4.4.2 | AO38: Mengde stein | AP38: =AQ29 -> 0 | AQ38: ='02. Inndata steinmasser'!$F$7 -> fm3 | BD38: Kategori | BF38: =IF(OR(AP37='08. Beregningsfaktorer'!$B$9,AP37='08. Beregningsfaktorer'!$B$10),'09. Utslippsfaktorer'!$P$14,IF(OR(AP37='08. Beregningsfaktorer'!$B$12,AP37='08. Beregningsfaktorer'!$B$13),'09. Utslippsfaktorer'!$P$15,IF(OR(AP37='08. Beregningsfaktorer'!$B$14,AP37='08. Beregningsfaktorer'!$B$15),'09. Utslippsfaktorer'!$P$16,IF(OR(AP37='08. Beregningsfaktorer'!$B$24,AP37='08. Beregningsfaktorer'!$B$25),'09. Utslippsfaktorer'!$P$18,IF(AP37='08. Beregningsfaktorer'!$B$26,'09. Utslippsfaktorer'!$P$18,IF(AP37='08. Beregningsfaktorer'!$B$27,'09. Utslippsfaktorer'!$P$18,IF(AP37='08. Beregningsfaktorer'!$B$28,'09. Utslippsfaktorer'!$P$19,IF(AP37='08. Beregningsfaktorer'!$B$29,'09. Utslippsfaktorer'!$P$19,IF(OR(AP37='08. Beregningsfaktorer'!$B$17,AP37='08. Beregningsfaktorer'!$B$16,AP37='08. Beregningsfaktorer'!$B$18,AP37='08. Beregningsfaktorer'!$B$19),'09. Utslippsfaktorer'!$P$16,IF(OR(AP37='08. Beregningsfaktorer'!$B$20,AP37='08. Beregningsfaktorer'!$B$21,AP37='08. Beregningsfaktorer'!$B$22,AP37='08. Beregningsfaktorer'!$B$23),'09. Utslippsfaktorer'!$P$14,"Mangler type kjøretøy")))))))))) -> Lastebil 16-32 tonn, euro 5 | BM38: CO2-ekv. | BN38: SO2-ekv. | BO38: P-ekv. | BP38: NMVOC | BT38: CO2-ekv. | BU38: SO2-ekv. | BV38: P-ekv. | BW38: NMVOC | CA38: CO2-ekv. | CB38: SO2-ekv. | CC38: P-ekv. | CD38: NMVOC
D39: 05 | E39: Pukkverk | F39: =SUM(F40:F46) -> 0 | G39: =SUM(G40:G46) -> 0 | H39: =SUM(H40:H46) -> 0 | I39: =SUM(I40:I46) -> 0 | J39: =SUM(J40:J46) -> 0 | M39: 05 | N39: Pukkverk | O39: =SUM(O40:O46) -> 0 | P39: =SUM(P40:P46) -> 300 | Q39: =SUM(Q40:Q46) -> 100 | R39: =SUM(R40:R46) -> 200 | S39: =SUM(S40:S46) -> 200 | AN39: 4.4.3 | AO39: Hvor kommer massene fra? | AP39: Tunellmunning | BD39: =IF(AP40='08. Beregningsfaktorer'!$E$78,"km","tonn km") -> tonn km | BG39: =IF(AP40='08. Beregningsfaktorer'!$E$78,IF(AQ38="tonn",IF(OR(AP37='08. Beregningsfaktorer'!$B$16,AP37='08. Beregningsfaktorer'!$B$17),(AP38/8.5)*AP41,IF(OR(AP37='08. Beregningsfaktorer'!$B$18,AP37='08. Beregningsfaktorer'!$B$19),(AP38/14)*AP41,IF(OR(AP37='08. Beregningsfaktorer'!$B$20,AP37='08. Beregningsfaktorer'!$B$21),(AP38/26)*AP41,IF(OR(AP37='08. Beregningsfaktorer'!$B$22,AP37='08. Beregningsfaktorer'!$B$23),(AP38/40)*AP41,IF(OR(AP37='08. Beregningsfaktorer'!$B$24,AP37='08. Beregningsfaktorer'!$B$25),(AP38/14)*AP41,IF(AP37='08. Beregningsfaktorer'!$B$26,(AP38/14)*AP41,IF(AP37='08. Beregningsfaktorer'!$B$27,(AP38/14)*AP41))))))),IF(OR(AP37='08. Beregningsfaktorer'!$B$16,AP37='08. Beregningsfaktorer'!$B$17),(AP38*'08. Beregningsfaktorer'!$G$65/8.5)*AP41,IF(OR(AP37='08. Beregningsfaktorer'!$B$18,AP37='08. Beregningsfaktorer'!$B$19),(AP38*'08. Beregningsfaktorer'!$G$65/14)*AP41,IF(OR(AP37='08. Beregningsfaktorer'!$B$20,AP37='08. Beregningsfaktorer'!$B$21),(AP38*'08. Beregningsfaktorer'!$G$65/26)*AP41,IF(OR(AP37='08. Beregningsfaktorer'!$B$22,AP37='08. Beregningsfaktorer'!$B$23),(AP38*'08. Beregningsfaktorer'!$G$65/40)*AP41,IF(OR(AP37='08. Beregningsfaktorer'!$B$24,AP37='08. Beregningsfaktorer'!$B$25),(AP38*'08. Beregningsfaktorer'!$G$65/14)*AP41,IF(AP37='08. Beregningsfaktorer'!$B$26,(AP38*'08. Beregningsfaktorer'!$G$65/14)*AP41,IF(AP37='08. Beregningsfaktorer'!$B$27,(AP38*'08. Beregningsfaktorer'!$G$65/14)*AP41)))))))),IF(AP38=0,0,IF(AP40='08. Beregningsfaktorer'!$E$80,IF(AND(OR(AP37='08. Beregningsfaktorer'!$B$28,AP37='08. Beregningsfaktorer'!$B$29),AQ38="tonn"),(AP38/1900)*AP41,IF(OR(AP37='08. Beregningsfaktorer'!$B$28,AP37='08. Beregningsfaktorer'!$B$29),(AP38*'08. Beregningsfaktorer'!$G$65/1900)*AP41,IF(AQ38="tonn",AP38*AP41,AP38*'08. Beregningsfaktorer'!$G$65)*AP41)),IF(AQ38="tonn",AP38*AP41,AP38*'08. Beregningsfaktorer'!$G$65)*AP41))) -> 0 | BH39: =IF(OR(AP40='08. Beregningsfaktorer'!$E$78,AP37='08. Beregningsfaktorer'!$B$28,AP37='08. Beregningsfaktorer'!$B$29),"km","tkm") -> tkm | BK39: ="Utslippsfaktor (kg/"&BG42&"):"&" " -> Utslippsfaktor (kg/l): | BM39: =IF(AP37=0,0,IF(AP37='08. Beregningsfaktorer'!$B$27,0,(INDEX('09. Utslippsfaktorer'!$P$7:$U$12,MATCH(BH42,'09. Utslippsfaktorer'!$P$7:$P$12,0),MATCH("kg "&BM38,'09. Utslippsfaktorer'!$P$7:$U$7,0),1)))) -> 3.1476 | BN39: =IF(AP37=0,0,IF(AP37='08. Beregningsfaktorer'!$B$27,0,(INDEX('09. Utslippsfaktorer'!$P$7:$U$12,MATCH(BH42,'09. Utslippsfaktorer'!$P$7:$P$12,0),MATCH("kg "&BN38,'09. Utslippsfaktorer'!$P$7:$U$7,0),1)))) -> 0 | BO39: =IF(AP37=0,0,IF(AP37='08. Beregningsfaktorer'!$B$27,0,(INDEX('09. Utslippsfaktorer'!$P$7:$U$12,MATCH(BH42,'09. Utslippsfaktorer'!$P$7:$P$12,0),MATCH("kg "&BO38,'09. Utslippsfaktorer'!$P$7:$U$7,0),1)))) -> 0 | BP39: =IF(AP37=0,0,IF(AP37='08. Beregningsfaktorer'!$B$27,0,(INDEX('09. Utslippsfaktorer'!$P$7:$U$12,MATCH(BH42,'09. Utslippsfaktorer'!$P$7:$P$12,0),MATCH("kg "&BP38,'09. Utslippsfaktorer'!$P$7:$U$7,0),1)))) -> 0 | BR39: ="Utslippsfaktor (kg/"&BH39&"):" -> Utslippsfaktor (kg/tkm): | BT39: =IF(AP37=0,0,(INDEX('09. Utslippsfaktorer'!$P$7:$U$45,MATCH(BF38,'09. Utslippsfaktorer'!$P$7:$P$45,0),MATCH("kg "&BT38,'09. Utslippsfaktorer'!$P$7:$U$7,0),1))) -> 0.0257 | BU39: =IF(AP37=0,0,(INDEX('09. Utslippsfaktorer'!$P$7:$U$45,MATCH(BF38,'09. Utslippsfaktorer'!$P$7:$P$45,0),MATCH("kg "&BU38,'09. Utslippsfaktorer'!$P$7:$U$7,0),1))) -> 0.000119 | BV39: =IF(AP37=0,0,(INDEX('09. Utslippsfaktorer'!$P$7:$U$45,MATCH(BF38,'09. Utslippsfaktorer'!$P$7:$P$45,0),MATCH("kg "&BV38,'09. Utslippsfaktorer'!$P$7:$U$7,0),1))) -> 1.05e-05 | BW39: =IF(AP37=0,0,(INDEX('09. Utslippsfaktorer'!$P$7:$U$45,MATCH(BF38,'09. Utslippsfaktorer'!$P$7:$P$45,0),MATCH("kg "&BW38,'09. Utslippsfaktorer'!$P$7:$U$7,0),1))) -> 0 | BY39: Utslipp (kg): | CA39: =BM40+BT40 -> 0 | CB39: =BN40+BU40 -> 0 | CC39: =BO40+BV40 -> 0 | CD39: =BP40+BW40 -> 0
B40: Pukkverk | D40: ='05. Pukkverk'!D19 -> 5.4 | E40: ='05. Pukkverk'!E19 -> Lasting til transport | F40: ='05. Pukkverk'!AQ20 -> 0 | G40: ='05. Pukkverk'!AR20 -> 0 | H40: ='05. Pukkverk'!AS20 -> 0 | I40: ='05. Pukkverk'!AT20 -> 0 | J40: ='05. Pukkverk'!AU20 -> 0 | M40: =D40 -> 5.4 | N40: =E40 -> Lasting til transport | P40: 300 | Q40: 100 | R40: 200 | S40: 200 | AN40: 4.4.4 | AO40: Lastekapasitet | AP40: Tur-retur gjennomsnittlig | BD40: Korreksjonsfaktor | BG40: =IF(AP42=0,0,INDEX('08. Beregningsfaktorer'!$E$54:$G$55,MATCH(AP42,'08. Beregningsfaktorer'!$E$54:$E$55,0),3)) -> 1 | BK40: Utslipp (kg): | BM40: =IFERROR(BF42*BM39,"Loading…") -> 0 | BN40: =IFERROR(BF42*BN39,"Loading…") -> 0 | BO40: =IFERROR(BF42*BO39,"Loading…") -> 0 | BP40: =IFERROR(BF42*BP39,"Loading…") -> 0 | BR40: Utslipp (kg): | BT40: =IFERROR(BG39*BT39,"Loading…") -> 0 | BU40: =IFERROR(BG39*BU39,"Loading…") -> 0 | BV40: =IFERROR(BG39*BV39,"Loading…") -> 0 | BW40: =IFERROR(BG39*BW39,"Loading…") -> 0
D41: ='05. Pukkverk'!D24 -> 5.5 | E41: ='05. Pukkverk'!E24 -> Transport til pukkverk | F41: ='05. Pukkverk'!AQ34+'05. Pukkverk'!AQ39 -> 0 | G41: ='05. Pukkverk'!AR34 -> 0 | H41: ='05. Pukkverk'!AS34 -> 0 | I41: ='05. Pukkverk'!AT34 -> 0 | J41: ='05. Pukkverk'!AU34 -> 0 | M41: =D41 -> 5.5 | N41: Transport til pukkverk | AN41: 4.4.5 | AO41: Distanse til deponi | AP41: =IF('04. Deponi'!F76=0,10,'04. Deponi'!F76) -> 10 | AQ41: km | BD41: =IF(AP40='08. Beregningsfaktorer'!$E$78,"Forbruk per km","Forbruk per tonn km") -> Forbruk per tonn km | BG41: =IFERROR(IF(AP37=0,0,IF(AP40='08. Beregningsfaktorer'!$E$78,INDEX('08. Beregningsfaktorer'!$E$30:$G$41,MATCH(AP37,'08. Beregningsfaktorer'!$B$30:$B$41,0),3,1),INDEX('08. Beregningsfaktorer'!$E$9:$G$29,MATCH(AP37,'08. Beregningsfaktorer'!$B$9:$B$29,0),3,1))),"Loading..") -> 0.04408088706 | BH41: =IFERROR(BG42&"/"&BH39,"Loading..") -> l/tkm
D42: ='05. Pukkverk'!D46 -> 5.7 | E42: ='05. Pukkverk'!E46 -> Stasjonært knuseverk knusetrinn 1 | F42: ='05. Pukkverk'!AQ47 -> 0 | G42: ='05. Pukkverk'!AR47 -> 0 | H42: ='05. Pukkverk'!AS47 -> 0 | I42: ='05. Pukkverk'!AT47 -> 0 | J42: ='05. Pukkverk'!AU47 -> 0 | M42: 5.7 | N42: Stasjonært knuseverk knusetrinn 1 | O42: =CA66 -> 0 | AN42: 4.4.6 | AO42: Transport med helning | AP42: Flatt terreng | BD42: Forbruk | BF42: =IFERROR(BG39*BG41*BG40,"Data mangler") -> 0 | BG42: =IFERROR(IF(OR(AP37='08. Beregningsfaktorer'!$B$26,AP37='08. Beregningsfaktorer'!$B$27),"kWh","l"),"Loading..") -> l | BH42: =IFERROR(IF(OR(AP37='08. Beregningsfaktorer'!$B$26,AP37='08. Beregningsfaktorer'!$B$27),"Elektrisitet",IF(OR(AP37='08. Beregningsfaktorer'!AL8,AP37='08. Beregningsfaktorer'!AL10,AP37='08. Beregningsfaktorer'!AL13,AP37='08. Beregningsfaktorer'!AL15,AP37='08. Beregningsfaktorer'!AL15,AP37='08. Beregningsfaktorer'!AL17,AP37='08. Beregningsfaktorer'!AL19,AP37='08. Beregningsfaktorer'!AL21,AP37='08. Beregningsfaktorer'!AL23,AP37='08. Beregningsfaktorer'!AL27),"Biodiesel",IF(BF38="Mangler type kjøretøy","Mangler type kjøretøy","Diesel"))),"Feil") -> Diesel
D43: ='05. Pukkverk'!D52 -> 5.8 | E43: ='05. Pukkverk'!E52 -> Stasjonært knuseverk knusetrinn 2 | F43: ='05. Pukkverk'!AQ53 -> 0 | G43: ='05. Pukkverk'!AR53 -> 0 | H43: ='05. Pukkverk'!AS53 -> 0 | I43: ='05. Pukkverk'!AT53 -> 0 | J43: ='05. Pukkverk'!AU53 -> 0 | M43: 5.8 | N43: Stasjonært knuseverk knusetrinn 2 | O43: =CA72 -> 0 | BY43: =AO36&" - Sum utslipp - Alle kjøretøy" -> Transport til ekstern deponi - Sum utslipp - Alle kjøretøy
D44: ='05. Pukkverk'!D58 -> 5.9 | E44: ='05. Pukkverk'!E58 -> Stasjonært knuseverk knusetrinn 3 | F44: ='05. Pukkverk'!AQ59 -> 0 | G44: ='05. Pukkverk'!AR59 -> 0 | H44: ='05. Pukkverk'!AS59 -> 0 | I44: ='05. Pukkverk'!AT59 -> 0 | J44: ='05. Pukkverk'!AU59 -> 0 | M44: 5.9 | N44: Stasjonært knuseverk knusetrinn 3 | O44: =CA78 -> 0 | CA44: CO2-ekv. | CB44: SO2-ekv. | CC44: P-ekv. | CD44: NMVOC
D45: ='05. Pukkverk'!D68 -> 5.10 | E45: ='05. Pukkverk'!E68 -> Lasting til transport | F45: ='05. Pukkverk'!AQ69 -> 0 | G45: ='05. Pukkverk'!AR69 -> 0 | H45: ='05. Pukkverk'!AS69 -> 0 | I45: ='05. Pukkverk'!AT69 -> 0 | J45: ='05. Pukkverk'!AU69 -> 0 | M45: 5.10 | N45: Lasting til transport | O45: =CA91 -> 0 | BY45: Utslipp (kg): | CA45: =SUMIF(AN36:AN42,"4.4.3",CA36:CA44) -> 0 | CB45: =SUMIF(AN36:AN42,"4.4.3",CB36:CB44) -> 0 | CC45: =SUMIF(AN36:AN42,"4.4.3",CC36:CC44) -> 0 | CD45: =SUMIF(AN36:AN42,"4.4.3",CD36:CD44) -> 0
D46: ='05. Pukkverk'!D73 -> 5.11 | E46: ='05. Pukkverk'!E73 -> Transport fra pukkverk | F46: ='05. Pukkverk'!AQ83 -> 0 | G46: ='05. Pukkverk'!AR83 -> 0 | H46: ='05. Pukkverk'!AS83 -> 0 | I46: ='05. Pukkverk'!AT83 -> 0 | J46: ='05. Pukkverk'!AU83 -> 0 | M46: 5.11 | N46: Transport fra pukkverk | O46: =CA98 -> 0
V47: Reduksjon fra Alternativ 02 [tonn CO2-ekv.] | W47: =W22-V22 -> 0
D48: 06 | E48: Transport til annen samfunnsnyttig bruk | F48: =SUM(F49:F56) -> 0 | G48: =SUM(G49:G56) -> 0 | H48: =SUM(H49:H56) -> 0 | I48: =SUM(I49:I56) -> 0 | J48: =SUM(J49:J56) -> 0 | M48: 06 | N48: Transport til annen samfunnsnyttig bruk | O48: =SUM(O49:O56) -> 0 | P48: =SUM(P49:P56) -> 200 | Q48: =SUM(Q49:Q56) -> 200 | R48: =SUM(R49:R56) -> 200 | S48: =SUM(S49:S56) -> 100 | V48: Reduksjon fra Alternativ 02 [%] | W48: =(W22-V22)/W22 ->  | BD48: =BF49&" - Utslipp - Diverse grunnlagsdata" -> Lastebil tipp - Utslipp - Diverse grunnlagsdata | BK48: =BF49&" - Utslipp fra forbruk" -> Lastebil tipp - Utslipp fra forbruk | BY48: =AO48&" - Sum utslipp" -> - Sum utslipp
B49: Transport annen bruk | D49: ='06. Transport annen bruk'!D41 -> 6.8 | E49: ='06. Transport annen bruk'!E41 -> Lasting til transport | F49: ='06. Transport annen bruk'!AQ42 -> 0 | G49: ='06. Transport annen bruk'!AR42 -> 0 | H49: ='06. Transport annen bruk'!AS42 -> 0 | I49: ='06. Transport annen bruk'!AT42 -> 0 | J49: ='06. Transport annen bruk'!AU42 -> 0 | M49: =D49 -> 6.8 | N49: =E49 -> Lasting til transport | P49: 200 | Q49: 200 | R49: 200 | S49: 100 | BD49: Kategori | BF49: Lastebil tipp | BM49: CO2-ekv. | BN49: SO2-ekv. | BO49: P-ekv. | BP49: NMVOC | CA49: CO2-ekv. | CB49: SO2-ekv. | CC49: P-ekv. | CD49: NMVOC
D50: ='06. Transport annen bruk'!D46 -> 6.9 | E50: ='06. Transport annen bruk'!E46 -> Transport til betongfabrikk | F50: ='06. Transport annen bruk'!AQ56 -> 0 | G50: ='06. Transport annen bruk'!AR56 -> 0 | H50: ='06. Transport annen bruk'!AS56 -> 0 | I50: ='06. Transport annen bruk'!AT56 -> 0 | J50: ='06. Transport annen bruk'!AU56 -> 0 | M50: =D50 -> 6.9 | N50: Transport til betongfabrikk | BD50: Volum stein | BH50: m3 | BK50: ="Utslippsfaktor (kg/"&BG52&"):"&" " -> Utslippsfaktor (kg/l): | BM50: =IF(BF49=0,0,(INDEX('09. Utslippsfaktorer'!$P$7:$U$12,MATCH(BH52,'09. Utslippsfaktorer'!$P$7:$P$12,0),MATCH("kg "&BM49,'09. Utslippsfaktorer'!$P$7:$U$7,0),1))) -> 3.1476 | BN50: =IF(BF49=0,0,(INDEX('09. Utslippsfaktorer'!$P$7:$U$12,MATCH(BH52,'09. Utslippsfaktorer'!$P$7:$P$12,0),MATCH("kg "&BN49,'09. Utslippsfaktorer'!$P$7:$U$7,0),1))) -> 0 | BO50: =IF(BF49=0,0,(INDEX('09. Utslippsfaktorer'!$P$7:$U$12,MATCH(BH52,'09. Utslippsfaktorer'!$P$7:$P$12,0),MATCH("kg "&BO49,'09. Utslippsfaktorer'!$P$7:$U$7,0),1))) -> 0 | BP50: =IF(BF49=0,0,(INDEX('09. Utslippsfaktorer'!$P$7:$U$12,MATCH(BH52,'09. Utslippsfaktorer'!$P$7:$P$12,0),MATCH("kg "&BP49,'09. Utslippsfaktorer'!$P$7:$U$7,0),1))) -> 0 | BY50: Utslipp (kg): | CA50: =BM51 -> 0 | CB50: =BN51 -> 0 | CC50: =BO51 -> 0 | CD50: =BP51 -> 0
D51: ='06. Transport annen bruk'!D66 -> 6.12 | E51: ='06. Transport annen bruk'!E66 -> Lasting til transport | F51: ='06. Transport annen bruk'!AQ67 -> 0 | G51: ='06. Transport annen bruk'!AR67 -> 0 | H51: ='06. Transport annen bruk'!AS67 -> 0 | I51: ='06. Transport annen bruk'!AT67 -> 0 | J51: ='06. Transport annen bruk'!AU67 -> 0 | M51: 6.12 | N51: Lasting til transport | BD51: Forbruk per m3 stein | BG51: =IF(BF49=0,0,(INDEX('08. Beregningsfaktorer'!$E$12:$G$89,MATCH(BF49,'08. Beregningsfaktorer'!$E$12:$E$89,0),3,1))) -> 0.19 | BH51: =BG52&"/"&BH50 -> l/m3 | BK51: Utslipp (kg): | BM51: =$V52*BM50 -> 0 | BN51: =$V52*BN50 -> 0 | BO51: =$V52*BO50 -> 0 | BP51: =$V52*BP50 -> 0
D52: ='06. Transport annen bruk'!D71 -> 6.13 | E52: ='06. Transport annen bruk'!E71 -> Transport til asfaltproduksjon | F52: ='06. Transport annen bruk'!AQ81 -> 0 | G52: ='06. Transport annen bruk'!AR81 -> 0 | H52: ='06. Transport annen bruk'!AS81 -> 0 | I52: ='06. Transport annen bruk'!AT81 -> 0 | J52: ='06. Transport annen bruk'!AU81 -> 0 | M52: 6.13 | N52: Transport til asfaltproduksjon | BD52: Forbruk | BF52: =BG50*BG51 -> 0 | BG52: =IF(BF49='08. Beregningsfaktorer'!$E$50,"l",IF(BF49='08. Beregningsfaktorer'!$E$51,"l",IF(BF49='08. Beregningsfaktorer'!$E$52,"l","..."))) -> l | BH52: =IF(BF49='08. Beregningsfaktorer'!$E$50,"Diesel",IF(BF49='08. Beregningsfaktorer'!$E$51,"Diesel",IF(BF49='08. Beregningsfaktorer'!$E$52,"Diesel","Mangler type kjøretøy"))) -> Diesel
D53: ='06. Transport annen bruk'!D91 -> 6.16 | E53: ='06. Transport annen bruk'!E91 -> Lasting til transport | F53: ='06. Transport annen bruk'!AQ92 -> 0 | G53: ='06. Transport annen bruk'!AR92 -> 0 | H53: ='06. Transport annen bruk'!AS92 -> 0 | I53: ='06. Transport annen bruk'!AT92 -> 0 | J53: ='06. Transport annen bruk'!AU92 -> 0 | M53: 6.16 | N53: Lasting til transport
D54: ='06. Transport annen bruk'!D96 -> 6.17 | E54: ='06. Transport annen bruk'!E96 -> Transport til nærliggende prosjekt | F54: ='06. Transport annen bruk'!AQ106 -> 0 | G54: ='06. Transport annen bruk'!AR106 -> 0 | H54: ='06. Transport annen bruk'!AS106 -> 0 | I54: ='06. Transport annen bruk'!AT106 -> 0 | J54: ='06. Transport annen bruk'!AU106 -> 0 | M54: 6.17 | N54: Transport til nærliggende prosjekt
D55: ='06. Transport annen bruk'!D116 -> 6.20 | E55: ='06. Transport annen bruk'!E116 -> Lasting til transport | F55: ='06. Transport annen bruk'!AQ117 -> 0 | G55: ='06. Transport annen bruk'!AR117 -> 0 | H55: ='06. Transport annen bruk'!AS117 -> 0 | I55: ='06. Transport annen bruk'!AT117 -> 0 | J55: ='06. Transport annen bruk'!AU117 -> 0 | M55: 6.20 | N55: Lasting til transport
D56: ='06. Transport annen bruk'!D121 -> 6.21 | E56: ='06. Transport annen bruk'!E121 -> Transport til andre | F56: ='06. Transport annen bruk'!AQ131 -> 0 | G56: ='06. Transport annen bruk'!AR131 -> 0 | H56: ='06. Transport annen bruk'!AS131 -> 0 | I56: ='06. Transport annen bruk'!AT131 -> 0 | J56: ='06. Transport annen bruk'!AU131 -> 0 | M56: 6.21 | N56: Transport til andre
D59: 7.1 | E59: Alternativ 01 - Totalt utslipp [kg CO2-ekv.] | F59: =F48+F39+F33+F21 -> 0 | G59: =G48+G39+G33+G21 -> 0 | H59: =H48+H39+H33+H21 -> 0 | I59: =I48+I39+I33+I21 -> 0 | J59: =J48+J39+J33+J21 -> 0 | M59: 7.2 | N59: Alternativ 02 - Totalt utslipp [kg CO2-ekv.] | O59: =O48+O39+O33+O21 -> 0 | P59: =P48+P39+P33+P21 -> 1050 | Q59: =Q48+Q39+Q33+Q21 -> 1311 | R59: =R48+R39+R33+R21 -> 1511 | S59: =S48+S39+S33+S21 -> 1500
AQ60: ='02. Inndata steinmasser'!L14 -> 0 | AR60: ='02. Inndata steinmasser'!F7 -> fm3
BD64: =AO65&" - Utslipp - Diverse grunnlagsdata" -> Stasjonært knuseverk knusetrinn 1 - Utslipp - Diverse grunnlagsdata | BK64: =AO65&" - Utslipp fra forbruk og slitasje" -> Stasjonært knuseverk knusetrinn 1 - Utslipp fra forbruk og slitasje | BY64: =AO65&" - Sum utslipp" -> Stasjonært knuseverk knusetrinn 1 - Sum utslipp
AN65: 5.9 | AO65: Stasjonært knuseverk knusetrinn 1 | BD65: Kategori | BF65: ='09. Utslippsfaktorer'!$P$22 -> Pukkverk knusetrinn 1 inkl. sprengning | BM65: CO2-ekv. | BN65: SO2-ekv. | BO65: P-ekv. | BP65: NMVOC | CA65: CO2-ekv. | CB65: SO2-ekv. | CC65: P-ekv. | CD65: NMVOC
AN66: 5.9.2 | AO66: Type knusetrinn | AP66: Knusetrinn 1 | BD66: Mengde stein | BG66: 0 | BH66: tonn | BK66: ="Utslippsfaktor (kg/"&BH66&"):"&" " -> Utslippsfaktor (kg/tonn): | BM66: =IF(AP66=0,0,(INDEX('09. Utslippsfaktorer'!$P$7:$U$45,MATCH(BF65,'09. Utslippsfaktorer'!$P$7:$P$45,0),MATCH("kg "&BM65,'09. Utslippsfaktorer'!$P$7:$U$7,0),1))) -> 2.2 | BN66: =IF(AP66=0,0,(INDEX('09. Utslippsfaktorer'!$P$7:$U$45,MATCH(BF65,'09. Utslippsfaktorer'!$P$7:$P$45,0),MATCH("kg "&BN65,'09. Utslippsfaktorer'!$P$7:$U$7,0),1))) -> 0 | BO66: =IF(AP66=0,0,(INDEX('09. Utslippsfaktorer'!$P$7:$U$45,MATCH(BF65,'09. Utslippsfaktorer'!$P$7:$P$45,0),MATCH("kg "&BO65,'09. Utslippsfaktorer'!$P$7:$U$7,0),1))) -> 0 | BP66: =IF(AP66=0,0,(INDEX('09. Utslippsfaktorer'!$P$7:$U$45,MATCH(BF65,'09. Utslippsfaktorer'!$P$7:$P$45,0),MATCH("kg "&BP65,'09. Utslippsfaktorer'!$P$7:$U$7,0),1))) -> 0 | BY66: Utslipp (kg): | CA66: =BM67 -> 0 | CB66: =BN67 -> 0 | CC66: =BO67 -> 0 | CD66: =BP67 -> 0
BD67: Kapasitet | BG67: =0 -> 0 | BH67: =BH66&"/"&BG68 -> tonn/h | BK67: Utslipp (kg): | BM67: =BM66*BG66 -> 0 | BN67: =BN66*BG66 -> 0 | BO67: =BO66*BG66 -> 0 | BP67: =BP66*BG66 -> 0
BD68: Forbruk | BF68: =BG66*BG67 -> 0 | BG68: h | BH68: ="Standard beregning" -> Standard beregning
BD70: =AO71&" - Utslipp - Diverse grunnlagsdata" -> Stasjonært knuseverk knusetrinn 2 - Utslipp - Diverse grunnlagsdata | BK70: =AO71&" - Utslipp fra forbruk og slitasje" -> Stasjonært knuseverk knusetrinn 2 - Utslipp fra forbruk og slitasje | BY70: =AO71&" - Sum utslipp" -> Stasjonært knuseverk knusetrinn 2 - Sum utslipp
AN71: 5.11 | AO71: Stasjonært knuseverk knusetrinn 2 | BD71: Kategori | BF71: ='09. Utslippsfaktorer'!$P$23 -> Pukkverk knusetrinn 2 inkl. sprengning | BM71: CO2-ekv. | BN71: SO2-ekv. | BO71: P-ekv. | BP71: NMVOC | CA71: CO2-ekv. | CB71: SO2-ekv. | CC71: P-ekv. | CD71: NMVOC
AN72: 5.11.4 | AO72: Type knusetrinn | AP72: Knusetrinn 2 | BD72: Mengde stein | BG72: 0 | BH72: tonn | BK72: ="Utslippsfaktor (kg/"&BH72&"):"&" " -> Utslippsfaktor (kg/tonn): | BM72: =IF(AP72=0,0,(INDEX('09. Utslippsfaktorer'!$P$7:$U$45,MATCH(BF71,'09. Utslippsfaktorer'!$P$7:$P$45,0),MATCH("kg "&BM71,'09. Utslippsfaktorer'!$P$7:$U$7,0),1))) -> 2.375 | BN72: =IF(AP72=0,0,(INDEX('09. Utslippsfaktorer'!$P$7:$U$45,MATCH(BF71,'09. Utslippsfaktorer'!$P$7:$P$45,0),MATCH("kg "&BN71,'09. Utslippsfaktorer'!$P$7:$U$7,0),1))) -> 0 | BO72: =IF(AP72=0,0,(INDEX('09. Utslippsfaktorer'!$P$7:$U$45,MATCH(BF71,'09. Utslippsfaktorer'!$P$7:$P$45,0),MATCH("kg "&BO71,'09. Utslippsfaktorer'!$P$7:$U$7,0),1))) -> 0 | BP72: =IF(AP72=0,0,(INDEX('09. Utslippsfaktorer'!$P$7:$U$45,MATCH(BF71,'09. Utslippsfaktorer'!$P$7:$P$45,0),MATCH("kg "&BP71,'09. Utslippsfaktorer'!$P$7:$U$7,0),1))) -> 0 | BY72: Utslipp (kg): | CA72: =BM73 -> 0 | CB72: =BN73 -> 0 | CC72: =BO73 -> 0 | CD72: =BP73 -> 0
BD73: Kapasitet | BG73: =0 -> 0 | BH73: =BH72&"/"&BG74 -> tonn/h | BK73: Utslipp (kg): | BM73: =BM72*BG72 -> 0 | BN73: =BN72*BG72 -> 0 | BO73: =BO72*BG72 -> 0 | BP73: =BP72*BG72 -> 0
BD74: Forbruk | BF74: =BG72*BG73 -> 0 | BG74: h | BH74: ="Standard beregning" -> Standard beregning
BD76: =AO77&" - Utslipp - Diverse grunnlagsdata" -> Stasjonært knuseverk knusetrinn 3 - Utslipp - Diverse grunnlagsdata | BK76: =AO77&" - Utslipp fra forbruk og slitasje" -> Stasjonært knuseverk knusetrinn 3 - Utslipp fra forbruk og slitasje | BY76: =AO77&" - Sum utslipp" -> Stasjonært knuseverk knusetrinn 3 - Sum utslipp
AN77: 5.13 | AO77: Stasjonært knuseverk knusetrinn 3 | BD77: Kategori | BF77: ='09. Utslippsfaktorer'!$P$24 -> Pukkverk knusetrinn 3 inkl. sprengning | BM77: CO2-ekv. | BN77: SO2-ekv. | BO77: P-ekv. | BP77: NMVOC | CA77: CO2-ekv. | CB77: SO2-ekv. | CC77: P-ekv. | CD77: NMVOC
AN78: 5.13.6 | AO78: Type knusetrinn | AP78: Knusetrinn 3 | BD78: Mengde stein | BG78: =IF(AQ60=0,0,IF(AR60="fm3",AQ60*'08. Beregningsfaktorer'!$G$65/'08. Beregningsfaktorer'!$G$66,AQ60/'08. Beregningsfaktorer'!$G$66)) -> 0 | BH78: tonn | BK78: ="Utslippsfaktor (kg/"&BH78&"):"&" " -> Utslippsfaktor (kg/tonn): | BM78: =IF(AP78=0,0,(INDEX('09. Utslippsfaktorer'!$P$7:$U$45,MATCH(BF77,'09. Utslippsfaktorer'!$P$7:$P$45,0),MATCH("kg "&BM77,'09. Utslippsfaktorer'!$P$7:$U$7,0),1))) -> 2.595 | BN78: =IF(AP78=0,0,(INDEX('09. Utslippsfaktorer'!$P$7:$U$45,MATCH(BF77,'09. Utslippsfaktorer'!$P$7:$P$45,0),MATCH("kg "&BN77,'09. Utslippsfaktorer'!$P$7:$U$7,0),1))) -> 0 | BO78: =IF(AP78=0,0,(INDEX('09. Utslippsfaktorer'!$P$7:$U$45,MATCH(BF77,'09. Utslippsfaktorer'!$P$7:$P$45,0),MATCH("kg "&BO77,'09. Utslippsfaktorer'!$P$7:$U$7,0),1))) -> 0 | BP78: =IF(AP78=0,0,(INDEX('09. Utslippsfaktorer'!$P$7:$U$45,MATCH(BF77,'09. Utslippsfaktorer'!$P$7:$P$45,0),MATCH("kg "&BP77,'09. Utslippsfaktorer'!$P$7:$U$7,0),1))) -> 0 | BY78: Utslipp (kg): | CA78: =BM79 -> 0 | CB78: =BN79 -> 0 | CC78: =BO79 -> 0 | CD78: =BP79 -> 0
BD79: Kapasitet | BG79: =0 -> 0 | BH79: =BH78&"/"&BG80 -> tonn/h | BK79: Utslipp (kg): | BM79: =BM78*BG78 -> 0 | BN79: =BN78*BG78 -> 0 | BO79: =BO78*BG78 -> 0 | BP79: =BP78*BG78 -> 0
BD80: Forbruk | BF80: =BG78*BG79 -> 0 | BG80: h | BH80: ="Standard beregning" -> Standard beregning
BD89: =AO90&" - Utslipp - Diverse grunnlagsdata" -> Lasting til transport - Utslipp - Diverse grunnlagsdata | BK89: =AO90&" - Utslipp fra forbruk" -> Lasting til transport - Utslipp fra forbruk | BR89: =AO90&" - Utslipp fra slitasje" -> Lasting til transport - Utslipp fra slitasje | BY89: =AO90&" - Sum utslipp" -> Lasting til transport - Sum utslipp
AN90: 5.15 | AO90: Lasting til transport | BD90: Kategori | BF90: =IF(AP91='08. Beregningsfaktorer'!$E$43,'08. Beregningsfaktorer'!$E$43,IF(AP91='08. Beregningsfaktorer'!$E$44,'09. Utslippsfaktorer'!$P$20,IF(AP91='08. Beregningsfaktorer'!$E$45,'09. Utslippsfaktorer'!$P$21,IF(AP91='08. Beregningsfaktorer'!$E$46,'09. Utslippsfaktorer'!$P$21,"Mangler type lastemaskin")))) -> Gravemaskin hydraulisk uten drivstoff | BM90: CO2-ekv. | BN90: SO2-ekv. | BO90: P-ekv. | BP90: NMVOC | BT90: CO2-ekv. | BU90: SO2-ekv. | BV90: P-ekv. | BW90: NMVOC | CA90: CO2-ekv. | CB90: SO2-ekv. | CC90: P-ekv. | CD90: NMVOC
AN91: 5.15.1 | AO91: Type lastemaskin | AP91: Gravemaskin diesel | BD91: Volum stein | BG91: =IF(AQ$60=0,0,IF(AR$60="fm3",AQ$60*'08. Beregningsfaktorer'!$G$65/'08. Beregningsfaktorer'!$G$66,AQ$60/'08. Beregningsfaktorer'!$G$66)) -> 0 | BH91: lm3 | BK91: ="Utslippsfaktor (kg/"&BG93&"):"&" " -> Utslippsfaktor (kg/l): | BM91: =IF(AP91=0,0,IF(AP91='08. Beregningsfaktorer'!$E$43,0,(INDEX('09. Utslippsfaktorer'!$P$7:$U$12,MATCH(BH93,'09. Utslippsfaktorer'!$P$7:$P$12,0),MATCH("kg "&BM90,'09. Utslippsfaktorer'!$P$7:$U$7,0),1)))) -> 3.1476 | BN91: =IF(AP91=0,0,IF(AP91='08. Beregningsfaktorer'!$E$43,0,(INDEX('09. Utslippsfaktorer'!$P$7:$U$12,MATCH(BH93,'09. Utslippsfaktorer'!$P$7:$P$12,0),MATCH("kg "&BN90,'09. Utslippsfaktorer'!$P$7:$U$7,0),1)))) -> 0 | BO91: =IF(AP91=0,0,IF(AP91='08. Beregningsfaktorer'!$E$43,0,(INDEX('09. Utslippsfaktorer'!$P$7:$U$12,MATCH(BH93,'09. Utslippsfaktorer'!$P$7:$P$12,0),MATCH("kg "&BO90,'09. Utslippsfaktorer'!$P$7:$U$7,0),1)))) -> 0 | BP91: =IF(AP91=0,0,IF(AP91='08. Beregningsfaktorer'!$E$43,0,(INDEX('09. Utslippsfaktorer'!$P$7:$U$12,MATCH(BH93,'09. Utslippsfaktorer'!$P$7:$P$12,0),MATCH("kg "&BP90,'09. Utslippsfaktorer'!$P$7:$U$7,0),1)))) -> 0 | BR91: Utslippsfaktor (kg/m3): | BT91: =IF(AP91=0,0,IF(AP91='08. Beregningsfaktorer'!$E$43,0,(INDEX('09. Utslippsfaktorer'!$P$7:$U$45,MATCH(BF90,'09. Utslippsfaktorer'!$P$7:$P$45,0),MATCH("kg "&BT90,'09. Utslippsfaktorer'!$P$7:$U$7,0),1)))) -> 0.053 | BU91: =IF(AP91=0,0,IF(AP91='08. Beregningsfaktorer'!$E$43,0,(INDEX('09. Utslippsfaktorer'!$P$7:$U$45,MATCH(BF90,'09. Utslippsfaktorer'!$P$7:$P$45,0),MATCH("kg "&BU90,'09. Utslippsfaktorer'!$P$7:$U$7,0),1)))) -> 0 | BV91: =IF(AP91=0,0,IF(AP91='08. Beregningsfaktorer'!$E$43,0,(INDEX('09. Utslippsfaktorer'!$P$7:$U$45,MATCH(BF90,'09. Utslippsfaktorer'!$P$7:$P$45,0),MATCH("kg "&BV90,'09. Utslippsfaktorer'!$P$7:$U$7,0),1)))) -> 0 | BW91: =IF(AP91=0,0,IF(AP91='08. Beregningsfaktorer'!$E$43,0,(INDEX('09. Utslippsfaktorer'!$P$7:$U$45,MATCH(BF90,'09. Utslippsfaktorer'!$P$7:$P$45,0),MATCH("kg "&BW90,'09. Utslippsfaktorer'!$P$7:$U$7,0),1)))) -> 0 | BY91: Utslipp (kg): | CA91: =BM92+BT92 -> 0 | CB91: =BN92+BU92 -> 0 | CC91: =BO92+BV92 -> 0 | CD91: =BP92+BW92 -> 0
BD92: Forbruk per m3 stein | BG92: =IF(AP91=0,0,(INDEX('08. Beregningsfaktorer'!$E$12:$G$89,MATCH(AP91,'08. Beregningsfaktorer'!$E$12:$E$89,0),3,1))) -> 0.1541176471 | BH92: =BG93&"/"&BH91 -> l/lm3 | BK92: Utslipp (kg): | BM92: =BF93*BM91 -> 0 | BN92: =BF93*BN91 -> 0 | BO92: =BF93*BO91 -> 0 | BP92: =BF93*BP91 -> 0 | BR92: Utslipp (kg): | BT92: =BG91*BT91 -> 0 | BU92: =BG91*BU91 -> 0 | BV92: =BG91*BV91 -> 0 | BW92: =BG91*BW91 -> 0
AR93: OBS! Retur med nyttelast tas ikke med i totalutslipp. Utslipp kan sees i mellomregningene til høyre. | BD93: Forbruk | BF93: =BG91*BG92 -> 0 | BG93: =IF(AP91='08. Beregningsfaktorer'!$E$44,"l",IF(AP91='08. Beregningsfaktorer'!$E$45,"l",IF(AP91='08. Beregningsfaktorer'!$E$46,"kWh","..."))) -> l | BH93: =IF(AP91='08. Beregningsfaktorer'!$E$43,"Ingen løft",IF(AP91='08. Beregningsfaktorer'!$E$44,"Diesel",IF(AP91='08. Beregningsfaktorer'!$E$45,"Diesel",IF(AP91='08. Beregningsfaktorer'!$E$46,"Elektrisitet","Mangler type lastemaskin")))) -> Diesel
AN95: 5.16 | AO95: Transport fra pukkverk | AP95: Endre antall kjøretøy:
AN96: 5.16.1 | AO96: Type kjøretøy | AP96: Lastebil, totalvekt 16-32 t, euro 5, diesel, tur-retur | BD96: =AO$95&" - Utslipp - Diverse grunnlagsdata" -> Transport fra pukkverk - Utslipp - Diverse grunnlagsdata | BK96: =AO$95&" - Utslipp fra forbruk" -> Transport fra pukkverk - Utslipp fra forbruk | BR96: =AO$95&" - Utslipp fra slitasje/bruk" -> Transport fra pukkverk - Utslipp fra slitasje/bruk | BY96: =AO95&" - Sum utslipp" -> Transport fra pukkverk - Sum utslipp
AM97: =IF(AP96='08. Beregningsfaktorer'!#REF!,"J",0) ->  | AN97: 5.16.2 | AO97: Mengde stein | AP97: =AQ60 -> 0 | AQ97: ='02. Inndata steinmasser'!$F$7 -> fm3 | BD97: Kategori | BF97: =IF(OR(AP96='08. Beregningsfaktorer'!$B$9,AP96='08. Beregningsfaktorer'!$B$10),'09. Utslippsfaktorer'!$P$14,IF(OR(AP96='08. Beregningsfaktorer'!$B$12,AP96='08. Beregningsfaktorer'!$B$13),'09. Utslippsfaktorer'!$P$15,IF(OR(AP96='08. Beregningsfaktorer'!$B$14,AP96='08. Beregningsfaktorer'!$B$15),'09. Utslippsfaktorer'!$P$16,IF(OR(AP96='08. Beregningsfaktorer'!$B$24,AP96='08. Beregningsfaktorer'!$B$25),'09. Utslippsfaktorer'!$P$18,IF(AP96='08. Beregningsfaktorer'!$B$26,'09. Utslippsfaktorer'!$P$18,IF(AP96='08. Beregningsfaktorer'!$B$27,'09. Utslippsfaktorer'!$P$18,IF(AP96='08. Beregningsfaktorer'!$B$28,'09. Utslippsfaktorer'!$P$19,IF(AP96='08. Beregningsfaktorer'!$B$29,'09. Utslippsfaktorer'!$P$19,IF(OR(AP96='08. Beregningsfaktorer'!$B$17,AP96='08. Beregningsfaktorer'!$B$16,AP96='08. Beregningsfaktorer'!$B$18,AP96='08. Beregningsfaktorer'!$B$19),'09. Utslippsfaktorer'!$P$16,IF(OR(AP96='08. Beregningsfaktorer'!$B$20,AP96='08. Beregningsfaktorer'!$B$21,AP96='08. Beregningsfaktorer'!$B$22,AP96='08. Beregningsfaktorer'!$B$23),'09. Utslippsfaktorer'!$P$14,"Mangler type kjøretøy")))))))))) -> Lastebil 16-32 tonn, euro 5 | BM97: CO2-ekv. | BN97: SO2-ekv. | BO97: P-ekv. | BP97: NMVOC | BT97: CO2-ekv. | BU97: SO2-ekv. | BV97: P-ekv. | BW97: NMVOC | CA97: CO2-ekv. | CB97: SO2-ekv. | CC97: P-ekv. | CD97: NMVOC
AN98: 5.16.3 | AO98: Hvor kommer massene fra? | AP98: Tunellmunning | BD98: =IF(AP99='08. Beregningsfaktorer'!$E$78,"km","tonn km") -> tonn km | BG98: =IF(AP99='08. Beregningsfaktorer'!$E$78,IF(AQ97="tonn",IF(OR(AP96='08. Beregningsfaktorer'!$B$16,AP96='08. Beregningsfaktorer'!$B$17),(AP97/8.5)*AP100,IF(OR(AP96='08. Beregningsfaktorer'!$B$18,AP96='08. Beregningsfaktorer'!$B$19),(AP97/14)*AP100,IF(OR(AP96='08. Beregningsfaktorer'!$B$20,AP96='08. Beregningsfaktorer'!$B$21),(AP97/26)*AP100,IF(OR(AP96='08. Beregningsfaktorer'!$B$22,AP96='08. Beregningsfaktorer'!$B$23),(AP97/40)*AP100,IF(OR(AP96='08. Beregningsfaktorer'!$B$24,AP96='08. Beregningsfaktorer'!$B$25),(AP97/14)*AP100,IF(AP96='08. Beregningsfaktorer'!$B$26,(AP97/14)*AP100,IF(AP96='08. Beregningsfaktorer'!$B$27,(AP97/14)*AP100))))))),IF(OR(AP96='08. Beregningsfaktorer'!$B$16,AP96='08. Beregningsfaktorer'!$B$17),(AP97*'08. Beregningsfaktorer'!$G$65/8.5)*AP100,IF(OR(AP96='08. Beregningsfaktorer'!$B$18,AP96='08. Beregningsfaktorer'!$B$19),(AP97*'08. Beregningsfaktorer'!$G$65/14)*AP100,IF(OR(AP96='08. Beregningsfaktorer'!$B$20,AP96='08. Beregningsfaktorer'!$B$21),(AP97*'08. Beregningsfaktorer'!$G$65/26)*AP100,IF(OR(AP96='08. Beregningsfaktorer'!$B$22,AP96='08. Beregningsfaktorer'!$B$23),(AP97*'08. Beregningsfaktorer'!$G$65/40)*AP100,IF(OR(AP96='08. Beregningsfaktorer'!$B$24,AP96='08. Beregningsfaktorer'!$B$25),(AP97*'08. Beregningsfaktorer'!$G$65/14)*AP100,IF(AP96='08. Beregningsfaktorer'!$B$26,(AP97*'08. Beregningsfaktorer'!$G$65/14)*AP100,IF(AP96='08. Beregningsfaktorer'!$B$27,(AP97*'08. Beregningsfaktorer'!$G$65/14)*AP100)))))))),IF(AP97=0,0,IF(AP99='08. Beregningsfaktorer'!$E$80,IF(AND(OR(AP96='08. Beregningsfaktorer'!$B$28,AP96='08. Beregningsfaktorer'!$B$29),AQ97="tonn"),(AP97/1900)*AP100,IF(OR(AP96='08. Beregningsfaktorer'!$B$28,AP96='08. Beregningsfaktorer'!$B$29),(AP97*'08. Beregningsfaktorer'!$G$65/1900)*AP100,IF(AQ97="tonn",AP97*AP100,AP97*'08. Beregningsfaktorer'!$G$65)*AP100)),IF(AQ97="tonn",AP97*AP100,AP97*'08. Beregningsfaktorer'!$G$65)*AP100))) -> 0 | BH98: =IF(OR(AP99='08. Beregningsfaktorer'!$E$78,AP96='08. Beregningsfaktorer'!$B$28,AP96='08. Beregningsfaktorer'!$B$29),"km","tkm") -> tkm | BK98: ="Utslippsfaktor (kg/"&BG101&"):"&" " -> Utslippsfaktor (kg/l): | BM98: =IF(AP96=0,0,IF(AP96='08. Beregningsfaktorer'!$B$27,0,(INDEX('09. Utslippsfaktorer'!$P$7:$U$12,MATCH(BH101,'09. Utslippsfaktorer'!$P$7:$P$12,0),MATCH("kg "&BM97,'09. Utslippsfaktorer'!$P$7:$U$7,0),1)))) -> 3.1476 | BN98: =IF(AP96=0,0,IF(AP96='08. Beregningsfaktorer'!$B$27,0,(INDEX('09. Utslippsfaktorer'!$P$7:$U$12,MATCH(BH101,'09. Utslippsfaktorer'!$P$7:$P$12,0),MATCH("kg "&BN97,'09. Utslippsfaktorer'!$P$7:$U$7,0),1)))) -> 0 | BO98: =IF(AP96=0,0,IF(AP96='08. Beregningsfaktorer'!$B$27,0,(INDEX('09. Utslippsfaktorer'!$P$7:$U$12,MATCH(BH101,'09. Utslippsfaktorer'!$P$7:$P$12,0),MATCH("kg "&BO97,'09. Utslippsfaktorer'!$P$7:$U$7,0),1)))) -> 0 | BP98: =IF(AP96=0,0,IF(AP96='08. Beregningsfaktorer'!$B$27,0,(INDEX('09. Utslippsfaktorer'!$P$7:$U$12,MATCH(BH101,'09. Utslippsfaktorer'!$P$7:$P$12,0),MATCH("kg "&BP97,'09. Utslippsfaktorer'!$P$7:$U$7,0),1)))) -> 0 | BR98: ="Utslippsfaktor (kg/"&BH98&"):" -> Utslippsfaktor (kg/tkm): | BT98: =IF(AP96=0,0,(INDEX('09. Utslippsfaktorer'!$P$7:$U$45,MATCH(BF97,'09. Utslippsfaktorer'!$P$7:$P$45,0),MATCH("kg "&BT97,'09. Utslippsfaktorer'!$P$7:$U$7,0),1))) -> 0.0257 | BU98: =IF(AP96=0,0,(INDEX('09. Utslippsfaktorer'!$P$7:$U$45,MATCH(BF97,'09. Utslippsfaktorer'!$P$7:$P$45,0),MATCH("kg "&BU97,'09. Utslippsfaktorer'!$P$7:$U$7,0),1))) -> 0.000119 | BV98: =IF(AP96=0,0,(INDEX('09. Utslippsfaktorer'!$P$7:$U$45,MATCH(BF97,'09. Utslippsfaktorer'!$P$7:$P$45,0),MATCH("kg "&BV97,'09. Utslippsfaktorer'!$P$7:$U$7,0),1))) -> 1.05e-05 | BW98: =IF(AP96=0,0,(INDEX('09. Utslippsfaktorer'!$P$7:$U$45,MATCH(BF97,'09. Utslippsfaktorer'!$P$7:$P$45,0),MATCH("kg "&BW97,'09. Utslippsfaktorer'!$P$7:$U$7,0),1))) -> 0 | BY98: Utslipp (kg): | CA98: =IF(AP99='08. Beregningsfaktorer'!$E$79,0,BM99+BT99) -> 0 | CB98: =IF(AP99='08. Beregningsfaktorer'!$E$79,0,BN99+BU99) -> 0 | CC98: =IF(AP99='08. Beregningsfaktorer'!$E$79,0,BO99+BV99) -> 0 | CD98: =IF(AP99='08. Beregningsfaktorer'!$E$79,0,BP99+BW99) -> 0
AN99: 5.16.4 | AO99: Lastekapasitet | AP99: Tur-retur gjennomsnittlig | BD99: Korreksjonsfaktor | BG99: =IF(AP101=0,0,INDEX('08. Beregningsfaktorer'!$E$54:$G$55,MATCH(AP101,'08. Beregningsfaktorer'!$E$54:$E$55,0),3)) -> 1 | BK99: Utslipp (kg): | BM99: =IFERROR(BF101*BM98,"Loading…") -> 0 | BN99: =IFERROR(BF101*BN98,"Loading…") -> 0 | BO99: =IFERROR(BF101*BO98,"Loading…") -> 0 | BP99: =IFERROR(BF101*BP98,"Loading…") -> 0 | BR99: Utslipp (kg): | BT99: =IFERROR(BG98*BT98,"Loading…") -> 0 | BU99: =IFERROR(BG98*BU98,"Loading…") -> 0 | BV99: =IFERROR(BG98*BV98,"Loading…") -> 0 | BW99: =IFERROR(BG98*BW98,"Loading…") -> 0
AN100: 5.16.5 | AO100: Distanse til linja | AP100: =IF('05. Pukkverk'!F17=0,10,'05. Pukkverk'!F17) -> 10 | AQ100: Km | BD100: =IF(AP99='08. Beregningsfaktorer'!$E$78,"Forbruk per km","Forbruk per tonn km") -> Forbruk per tonn km | BG100: =IFERROR(IF(AP96=0,0,IF(AP99='08. Beregningsfaktorer'!$E$78,INDEX('08. Beregningsfaktorer'!$E$30:$G$41,MATCH(AP96,'08. Beregningsfaktorer'!$B$30:$B$41,0),3,1),INDEX('08. Beregningsfaktorer'!$E$9:$G$29,MATCH(AP96,'08. Beregningsfaktorer'!$B$9:$B$29,0),3,1))),"Loading..") -> 0.04408088706 | BH100: =IFERROR(BG101&"/"&BH98,"Loading..") -> l/tkm
AN101: 5.16.6 | AO101: Transport med helning | AP101: Flatt terreng | BD101: Forbruk | BF101: =IFERROR(BG98*BG100*BG99,"Data mangler") -> 0 | BG101: =IFERROR(IF(OR(AP96='08. Beregningsfaktorer'!$B$26,AP96='08. Beregningsfaktorer'!$B$27),"kWh","l"),"Loading..") -> l | BH101: =IFERROR(IF(OR(AP96='08. Beregningsfaktorer'!$B$26,AP96='08. Beregningsfaktorer'!$B$27),"Elektrisitet",IF(OR(AP96='08. Beregningsfaktorer'!AL68,AP96='08. Beregningsfaktorer'!AL71,AP96='08. Beregningsfaktorer'!AL73,AP96='08. Beregningsfaktorer'!AL75,AP96='08. Beregningsfaktorer'!AL75,AP96='08. Beregningsfaktorer'!AL77,AP96='08. Beregningsfaktorer'!AL79,AP96='08. Beregningsfaktorer'!AL81,AP96='08. Beregningsfaktorer'!AL83,AP96='08. Beregningsfaktorer'!AL87),"Biodiesel",IF(BF97="Mangler type kjøretøy","Mangler type kjøretøy","Diesel"))),"Feil") -> Diesel
BY103: =AO95&" - Sum utslipp - Alle kjøretøy" -> Transport fra pukkverk - Sum utslipp - Alle kjøretøy
CA104: CO2-ekv. | CB104: SO2-ekv. | CC104: P-ekv. | CD104: NMVOC
BY105: Utslipp (kg): | CA105: =SUMIF(AN95:AN102,AN98,CA95:CA102) -> 0 | CB105: =SUMIF(AN95:AN102,AN98,CB95:CB102) -> 0 | CC105: =SUMIF(AN95:AN102,AN98,CC95:CC102) -> 0 | CD105: =SUMIF(AN95:AN102,AN98,CD95:CD102) -> 0

Sheet 08. Beregningsfaktorer
D2: 08. Beregningsfaktorer
D6: Nr. | E6: Type | F6: Enhet | G6: Brukt i beregninger | H6: Standard | I6: Egendefinerte verdier | K6: Forutsetninger og grunnlag for standard beregningsfaktorer | M6: Forutsetninger og grunnlag for egendefinerte beregningsfaktorer
D8: 8.1 | E8: Transporttyper
B9: Lastebil, totalvekt >32 t, euro 6, diesel, tur-retur | D9: 8.1.1 | E9: Lastebil med totalvekt >32 tonn, euro 6, diesel | F9: l/tkm | G9: =IF(I9>0,I9,H9) -> 0.02258042873 | H9: =0.0191933644204*H68 -> 0.02258042873 | K9: Dieselforbruk i kg/tkm hentet fra Ecoinvent 3.6: Transport, freight, lorry >32 metric ton, EURO6 {RER} | transport, freight, lorry >32 metric ton, EURO6 | Cut-off, U. Omregnet til l/tkm vha. omregningsfaktor.
B10: Lastebil, totalvekt >32 t, euro 6, biodiesel, tur-retur | D10: 8.1.2 | E10: Lastebil med totalvekt >32 tonn, euro 6, biodiesel | F10: l/tkm | G10: 0.02258042873 | H10: =H9 -> 0.02258042873 | K10: Biodieselforbruk er tilnærmet som likt dieselforbruk.
B11: Lastebil med totalvekt >32 tonn, biogass, tur-retur | D11: 8.1.3 | E11: Lastebil med totalvekt >32 tonn, biogass | F11: MJ/tkm | G11: 0.9260798333 | H11: =H9*H70 -> 0.9260798333 | K11: Biogassforbruk er beregnet basert på dieselforbruk og omregningsfaktor for biogass (beregningsfaktor 8.7.7).
B12: Lastebil, totalvekt 16-32 t, euro 5, diesel, tur-retur | D12: 8.1.4 | E12: Lastebil med totalvekt 16-32 tonn, euro 5, diesel | F12: l/tkm | G12: 0.04408088706 | H12: =0.037468754*H68 -> 0.04408088706 | K12: Dieselforbruk i kg/tkm hentet fra Ecoinvent 3.6: Transport, freight, lorry 16-32 metric ton, EURO5 {RER} | transport, freight, lorry 16-32 metric ton, EURO5 | Cut-off, U. Omregnet til l/tkm vha. omregningsfaktor.
B13: Lastebil, totalvekt 16-32 t, euro 5, biodiesel, tur-retur | D13: 8.1.5 | E13: Lastebil med totalvekt 16-32 tonn, euro 5, biodiesel | F13: l/tkm | G13: 0.04408088706 | H13: =H12 -> 0.04408088706 | K13: Biodieselforbruk er tilnærmet som likt dieselforbruk.
B14: Lastebil, totalvekt 16-32 t, euro 6, diesel, tur-retur | D14: 8.1.6 | E14: Lastebil med totalvekt 16-32 tonn, euro 6, diesel | F14: l/tkm | G14: 0.04311300471 | H14: =0.036646054*H68 -> 0.04311300471 | K14: Dieselforbruk i kg/tkm hentet fra Ecoinvent 3.6: Transport, freight, lorry 16-32 metric ton, EURO6 {RER} | transport, freight, lorry 16-32 metric ton, EURO6 | Cut-off, U. Omregnet til l/tkm vha. omregningsfaktor.
B15: Lastebil, totalvekt 16-32 t, euro 6, biodiesel, tur-retur | D15: 8.1.7 | E15: Lastebil med totalvekt 16-32 tonn, euro 6, biodiesel | F15: l/tkm | G15: 0.04311300471 | H15: =H14 -> 0.04311300471 | K15: Biodieselforbruk er tilnærmet som likt dieselforbruk.
B16: Lastebil, lastekapasitet 8,5 t, diesel, én vei | D16: 8.1.8 | E16: Lastebil med lastekapasitet 8,5 tonn, diesel - full last | F16: l/tkm | G16: 0.03235294118 | H16: 0.03235294118 | K16: Gjennomsnittlig drivstofforbruk for "Truck, distribution traffic" hentet fra Tabell 3 i Emissions from Volvo's trucks. Omregnet fra km til tkm basert på lastekapasitet.
B17: Lastebil, lastekapasitet 8,5 t, biodiesel, én vei | D17: 8.1.9 | E17: Lastebil med lastekapasitet 8,5 tonn, biodiesel - full last | F17: l/tkm | G17: 0.03235294118 | H17: =H16 -> 0.03235294118 | K17: Biodieselforbruk er tilnærmet som likt dieselforbruk.
B18: Lastebil, lastekapasitet 14 t, diesel, én vei | D18: 8.1.10 | E18: Lastebil med lastekapasitet 14 tonn, diesel - full last | F18: l/tkm | G18: 0.025 | H18: 0.025 | K18: Gjennomsnittlig drivstofforbruk for "Truck, regional traffic" hentet fra Tabell 3 i Emissions from Volvo's trucks. Omregnet fra km til tkm basert på lastekapasitet.
B19: Lastebil, lastekapasitet 14 t, biodiesel, én vei | D19: 8.1.11 | E19: Lastebil med lastekapasitet 14 tonn, biodiesel - full last | F19: l/tkm | G19: 0.025 | H19: =H18 -> 0.025 | K19: Biodieselforbruk er tilnærmet som likt dieselforbruk.
B20: Lastebil, lastekapasitet 26 t, diesel, én vei | D20: 8.1.12 | E20: Lastebil med lastekapasitet 26 tonn, diesel - full last | F20: l/tkm | G20: 0.01230769231 | H20: 0.01230769231 | K20: Gjennomsnittlig drivstofforbruk for "Tractor and semi-trailer, long-haul traffic" hentet fra Tabell 3 i Emissions from Volvo's trucks. Omregnet fra km til tkm basert på lastekapasitet.
B21: Lastebil, lastekapasitet 26 t, biodiesel, én vei | D21: 8.1.13 | E21: Lastebil med lastekapasitet 26 tonn, biodiesel - full last | F21: l/tkm | G21: 0.01230769231 | H21: =H20 -> 0.01230769231 | K21: Biodieselforbruk er tilnærmet som likt dieselforbruk.
B22: Lastebil, lastekapasitet 40 t, diesel, én vei | D22: 8.1.14 | E22: Lastebil med lastekapasitet 40 tonn, diesel - full last | F22: l/tkm | G22: 0.012 | H22: 0.012 | K22: Gjennomsnittlig drivstofforbruk for "Truck with trailer, long-haul traffic" hentet fra Tabell 3 i Emissions from Volvo's trucks. Omregnet fra km til tkm basert på lastekapasitet.
B23: Lastebil, lastekapasitet 40 t, biodiesel, én vei | D23: 8.1.15 | E23: Lastebil med lastekapasitet 40 tonn, biodiesel - full last | F23: l/tkm | G23: 0.012 | H23: =H22 -> 0.012 | K23: Biodieselforbruk er tilnærmet som likt dieselforbruk.
B24: Plug-in hybridlastebil som kjører på diesel, én vei | D24: 8.1.16 | E24: Plug-in hybridlastebil som kjører på diesel - full last | F24: l/tkm | G24: =H24 -> 0.025 | H24: =H18 -> 0.025 | K24: Beregningsfaktoren skal benyttes for å modellere en plug-in hybridlastebil når den kjører på diesel. Tilnærmet som lik drivstofforbruk for lastebil med lastekapasitet 14 tonn.
B25: Plug-in hybridlastebil som kjører på biodiesel, én vei | D25: 8.1.17 | E25: Plug-in hybridlastebil som kjører på biodiesel - full last | F25: l/tkm | G25: =H25 -> 0.025 | H25: =H24 -> 0.025 | K25: Beregningsfaktoren skal benyttes for å modellere en plug-in hybridlastebil når den kjører på biodiesel. Biodieselforbruk er antatt likt dieselforbruk.
B26: Plug-in hybridlastebil som kjører på elektrisitet, én vei | D26: 8.1.18 | E26: Plug-in hybridlastebil som kjører på elektrisitet - full last | F26: kWh/tkm | G26: =H26 -> 0.065 | H26: =H27 -> 0.065 | K26: Beregningsfaktoren skal benyttes for å modellere en plug-in hybridlastebil når den kjører på elektrisitet. Tilnærmet som lik elektrisitetsforbruk for elektrisk lastebil.
B27: Elektrisk lastebil, én vei | D27: 8.1.19 | E27: Elektrisk lastebil - full last | F27: kWh/tkm | G27: 0.065 | H27: 0.065 | K27: Basert på https://www.tesla.com/no_NO/semi, https://www.mtlogistikk.no/elektrisk-vogntog-erling-saether-erling-saether-spalte/fakta-om-nikola-tre-og-tesla-semi/162062, "Analysis of long haul battery electric trucks in EU", https://innovationorigins.com/electric-trucks-economically-and-environmentally-desirable-but-misunderstood/. Fullastet veier lastebilen 36 t, uten last 16 t, basert på https://www.tcsfuel.com/blog/truck-weight-classification/. Elektrisitetsforbruk per km fordelt på 20 t last (fullastet).
B28: Lekter 1900 t, diesel, tur-retur | D28: 8.1.20 | E28: Lekter 1900 t på diesel | F28: l/km | G28: 21.59827214 | H28: 21.59827214 | K28: Erfaringstall fra Kragerø Sjøtjenester. Lekter med lastekapasitet på 1900 t. Innenfor 5 nautiske mil. Basert på gjennomsnittlig dieselforbruk per time tur-retur med full last og en hastighet på 5 knop. Inkluderer tur med full last og retur med tom last.
B29: Lekter 1900 t, biodiesel, tur-retur | D29: 8.1.21 | E29: Lekter 1900 t på biodiesel | F29: l/km | G29: 21.59827214 | H29: =H28 -> 21.59827214 | K29: Biodieselforbruk er tilnærmet som likt dieselforbruk.
B30: Lastebil, lastekapasitet 8,5 t, diesel, én vei | D30: 8.1.22 | E30: Lastebil med lastekapasitet 8,5 tonn, diesel - tom last | F30: l/km | G30: =IF(I30>0,I30,H30) -> 0.225 | H30: 0.225 | K30: Gjennomsnittlig drivstofforbruk for "Truck, distribution traffic" hentet fra Tabell 3 i Emissions from Volvo's trucks.
B31: Lastebil, lastekapasitet 8,5 t, biodiesel, én vei | D31: 8.1.23 | E31: Lastebil med lastekapasitet 8,5 tonn, biodiesel - tom last | F31: l/km | G31: 0.225 | H31: =H30 -> 0.225 | K31: Biodieselforbruk er tilnærmet som likt dieselforbruk.
B32: Lastebil, lastekapasitet 14 t, diesel, én vei | D32: 8.1.24 | E32: Lastebil med lastekapasitet 14 tonn, diesel - tom last | F32: l/km | G32: 0.275 | H32: 0.275 | K32: Gjennomsnittlig drivstofforbruk for "Truck, regional traffic" hentet fra Tabell 3 i Emissions from Volvo's trucks.
B33: Lastebil, lastekapasitet 14 t, biodiesel, én vei | D33: 8.1.25 | E33: Lastebil med lastekapasitet 14 tonn, biodiesel - tom last | F33: l/km | G33: 0.275 | H33: =H32 -> 0.275 | K33: Biodieselforbruk er tilnærmet som likt dieselforbruk.
B34: Lastebil, lastekapasitet 26 t, diesel, én vei | D34: 8.1.26 | E34: Lastebil med lastekapasitet 26 tonn, diesel - tom last | F34: l/km | G34: 0.235 | H34: 0.235 | K34: Gjennomsnittlig drivstofforbruk for "Tractor and semi-trailer, long-haul traffic" hentet fra Tabell 3 i Emissions from Volvo's trucks.
B35: Lastebil, lastekapasitet 26 t, biodiesel, én vei | D35: 8.1.27 | E35: Lastebil med lastekapasitet 26 tonn, biodiesel - tom last | F35: l/km | G35: 0.235 | H35: =H34 -> 0.235 | K35: Biodieselforbruk er tilnærmet som likt dieselforbruk.
B36: Lastebil, lastekapasitet 40 t, diesel, én vei | D36: 8.1.28 | E36: Lastebil med lastekapasitet 40 tonn, diesel - tom last | F36: l/km | G36: 0.295 | H36: 0.295 | K36: Gjennomsnittlig drivstofforbruk for "Truck with trailer, long-haul traffic" hentet fra Tabell 3 i Emissions from Volvo's trucks.
B37: Lastebil, lastekapasitet 40 t, biodiesel, én vei | D37: 8.1.29 | E37: Lastebil med lastekapasitet 40 tonn, biodiesel - tom last | F37: l/km | G37: 0.295 | H37: =H36 -> 0.295 | K37: Biodieselforbruk er tilnærmet som likt dieselforbruk.
B38: Hybridlastebil, diesel, én vei | D38: 8.1.30 | E38: Plug-in hybridlastebil som kjører på diesel - tom last | F38: l/km | G38: =IF(I38>0,I38,H38) -> 0.275 | H38: =H32 -> 0.275 | K38: Beregningsfaktoren skal benyttes for å modellere en plug-in hybridlastebil når den kjører på diesel. Tilnærmet som lik drivstofforbruk for lastebil med lastekapasitet 14 tonn.
B39: Hybridlastebil, biodiesel, én vei | D39: 8.1.31 | E39: Plug-in hybridlastebil som kjører på biodiesel - tom last | F39: l/km | G39: 0.275 | H39: =H38 -> 0.275 | K39: Beregningsfaktoren skal benyttes for å modellere en plug-in hybridlastebil når den kjører på biodiesel. Biodieselforbruk er antatt likt dieselforbruk.
B40: Hybridlastebil, elektrisitet, én vei | D40: 8.1.32 | E40: Plug-in hybridlastebil som kjører på elektrisitet - tom last | F40: kWh/km | G40: =IF(I40>0,I40,H40) -> 0.5733 | H40: =H41 -> 0.5733 | K40: Beregningsfaktoren skal benyttes for å modellere en plug-in hybridlastebil når den kjører på elektrisitet. Tilnærmet som lik elektrisitetsforbruk for elektrisk lastebil.
B41: Elektrisk lastebil, én vei | D41: 8.1.33 | E41: Elektrisk lastebil - tom last | F41: kWh/km | G41: =IF(I41>0,I41,H41) -> 0.5733 | H41: 0.5733 | K41: Beregnet basert på faktor for full last, fordelt på lastebilens totalvekt (GVW, antatt 36 tonn) og skalert for lastebilens egenvekt (antatt 16 tonn).
D42: 8.2 | E42: Løftemaskiner
D43: 8.2.1 | E43: Ingen løft | F43: l/lm3 stein | G43: =IF(I43>0,I43,H43) -> 0 | H43: 0 | K43: Ingen utslipp
D44: 8.2.2 | E44: Hjullaster | F44: l/lm3 stein | G44: =IF(I44>0,I44,H44) -> 0.08267195767 | H44: =(3/3.6)/10.08 -> 0.08267195767 | K44: Stripple 2001. "Wheel loader, energy use in loading, per loaded unit (loaded m3)." Omregnet fra MJ til liter diesel basert på https://www.miljodirektoratet.no/myndigheter/klimaarbeid/kutte-utslipp-av-klimagasser/klima-og-energiplanlegging/tabeller-for-omregning-fra-energivarer-til-kwh/.
D45: 8.2.3 | E45: Gravemaskin diesel | F45: l/lm3 stein | G45: 0.1541176471 | H45: =0.131*H68 -> 0.1541176471 | K45: Dieselforbruk i kg/m3 for gravemaskin hentet fra Ecoinvent 3.6: Excavation, hydraulic digger {RER} | processing | Cut-off, U. Omregnet til l/m3 vha. omregningsfaktor.
D46: 8.2.4 | E46: Gravemaskin elektrisk | F46: kWh/lm3 stein | G46: 0.4033437361 | H46: =(0.65+0.44)/(2*2243/(H66*1000)) -> 0.4033437361 | K46: Gjennomsnitt av verdi for 8 m3 og 15 m3 skuffe. Beregnet for long-term. Basert på tetthet mergel: 2243 kg/m3 og tetthet sprengstein. Kilde: Table 4, https://www.academia.edu/12209783/Specific_Digging_and_Loading_Energy_of_Electric_Mining_Shovels-_A_case_study
D47: 8.2.5 | E47: Gravemaskin biodiesel | F47: l/lm3 stein | G47: 0.1541176471 | H47: =H45 -> 0.1541176471 | K47: Antatt lik som for gravemaskin på diesel.
D48: 8.2.6 | E48: Egendefinert | F48: l/lm3 stein | G48: 0
D49: 8.3 | E49: Tippemaskiner
D50: 8.3.1 | E50: Hjullaster tipp | F50: l/lm3 stein | G50: =IF(I50>0,I50,H50) -> 0.08267195767 | H50: =H44 -> 0.08267195767 | K50: Stripple 2001. "Wheel loader, energy use in loading, per loaded unit (loaded m3)." Omregnet fra MJ til liter diesel basert på https://www.miljodirektoratet.no/myndigheter/klimaarbeid/kutte-utslipp-av-klimagasser/klima-og-energiplanlegging/tabeller-for-omregning-fra-energivarer-til-kwh/. Benyttes ikke i nåværende versjon.
D51: 8.3.2 | E51: Lastebil tipp | F51: l/lm3 stein | G51: =IF(I51>0,I51,H51) -> 0.19 | H51: 0.19 | K51: Stripple 2001 via VegLCA v4.10 av Asplan Viak AS. Benyttes ikke i nåværende versjon.
D52: 8.3.3 | E52: Egendefinert | F52: l/lm3 stein | G52: =IF(I52>0,I52,H52) -> 0
D53: 8.4 | E53: Stigning under transport
D54: 8.4.1 | E54: Flatt terreng | F54: Prosent | G54: =IF(I54>0,I54,H54) -> 1 | H54: 1
D55: 8.4.2 | E55: Over 5% stigning | F55: Prosent | G55: =IF(I55>0,I55,H55) -> 4.25 | H55: 4.25 | K55: Artemis via VegLCA v4.10 av Asplan Viak AS.
D56: 8.5 | E56: Utleggningsmaskin
D57: 8.5.1 | E57: Utleggingsmaskin fine masser | F57: l/lm3 | G57: =IF(I57>0,I57,H57) -> 1 | H57: 1 | K57: Effekt 6.6 (2014) via VegLCA v4.10 av Asplan Viak AS.
D58: 8.5.2 | E58: Utleggingsmaskin steinmasser | F58: l/lm3 | G58: =IF(I58>0,I58,H58) -> 1.1 | H58: 1.1 | K58: Effekt 6.6 (2014) via VegLCA v4.10 av Asplan Viak AS.
D59: 8.5.3 | E59: Egendefinert | F59: l/lm3 stein | G59: =IF(I59>0,I59,H59) -> 0
D60: 8.6 | E60: Komprimeringsmaskiner
D61: 8.6.1 | E61: Komprimering med vals | F61: l/lm3 stein | G61: =IF(I61>0,I61,H61) -> 1.8 | H61: 1.8 | K61: Drivstofforbruk på 0,0169 l/m2 er hentet fra Stripple 2001 via VegLCA v4.10 av Asplan Viak AS. Her er det antatt omtrent 10 cm tykkelse av steinlaget som komprimeres.
D62: 8.6.2 | E62: Ingen komprimering | F62: l/lm3 stein | G62: =IF(I62>0,I62,H62) -> 0 | K62: Ingen utslipp
D63: 8.7 | E63: Omregningsfaktorer
D64: 8.7.1 | E64: Jord og leire | F64: Tonn/lm3 | G64: =IF(I64>0,I64,H64) -> 1.6 | H64: 1.6 | K64: VegLCA v4.10 av Asplan Viak AS.
D65: 8.7.2 | E65: Sprengstein faste masser | F65: Tonn/fm3 | G65: 2.65 | H65: 2.65 | K65: Metode for beregning av energiforbruk og klimagassutslipp for vegprosjekter, Hammervold (2009) s. 32.
D66: 8.7.3 | E66: Sprengstein løsmasser | F66: Tonn/lm3 | G66: =IF(I66>0,I66,H66) -> 1.66 | H66: 1.66 | K66: VegLCA v4.10 av Asplan Viak AS.
D67: 8.7.4 | E67: Grus | F67: Tonn/lm3 | G67: =IF(I67>0,I67,H67) -> 1.5 | H67: 1.5 | K67: VegLCA v4.10 av Asplan Viak AS.
D68: 8.7.5 | E68: Fossil diesel kg til liter | F68: l/kg | G68: 1.176470588 | H68: =1/0.85 -> 1.176470588 | K68: Gitt densitet diesel 850 kg/m3 (https://snl.no/diesel)
D69: 8.7.6 | E69: Biodiesel kg til liter | F69: l/kg | G69: 1.136363636 | H69: =10.2/8.976 -> 1.136363636 | K69: https://www.miljodirektoratet.no/myndigheter/klimaarbeid/kutte-utslipp-av-klimagasser/klima-og-energiplanlegging/tabeller-for-omregning-fra-energivarer-til-kwh/
D70: 8.7.7 | E70: Diesel til biogass | F70: MJ biogass/l diesel | G70: 41.0125 | H70: =38.6*0.34/0.32 -> 41.0125 | K70: Beregnet basert på energiinnhold i diesel og virkningsgrad for dieselmotor fra VegLCA v5.10b, fane "Anlegg", og virkningsgrad for gassmotor fra "Tilpasning av tyngre kjøretøy og anleggsmaskiner for drift med biogass", Norsus (2019).
D71: 8.10 | E71: Mobile knuseverk
D72: 8.10.1 | E72: Dieseldrevet | G72: =IF(I72>0,I72,H72) -> 0 | K72: Totalt utslipp lagt i utslippsfaktorer
D73: 8.10.2 | E73: Biodiseldrevet | G73: =IF(I73>0,I73,H73) -> 0
D74: 8.10.3 | E74: Elektrisk drevet | G74: =IF(I74>0,I74,H74) -> 0
D75: 8.10.4 | E75: Egendefinert | G75: =IF(I75>0,I75,H75) -> 0
D76: 8.11 | E76: Lastekapasitet
D77: 8.11.0 | E77: Tur - Full last
D78: 8.11.1 | E78: Retur - Tom last
D79: 8.11.2 | E79: Retur - Full last
D80: 8.11.3 | E80: Tur-retur gjennomsnittlig
D81: 8.12 | E81: Mobile knuseverk knusetrinn 1
D82: 8.12.0 | E82: Dieseldrevet grovknuser | F82: n/a | G82: n/a | K82: Totalt utslipp lagt i utslippsfaktorer
D83: 8.12.1 | E83: Elektrisk grovknuser | F83: n/a | G83: =IF(I83>0,I83,H83) -> 0 | K83: Totalt utslipp lagt i utslippsfaktorer
D84: 8.13 | E84: Mobile knuseverk knusetrinn 2
D85: 8.13.0 | E85: Dieseldrevet spindelknuser | F85: n/a | G85: n/a | K85: Totalt utslipp lagt i utslippsfaktorer
D86: 8.13.1 | E86: Elektrisk spindelknuser | F86: n/a | G86: =IF(I86>0,I86,H86) -> 0 | K86: Totalt utslipp lagt i utslippsfaktorer
D87: 8.14 | E87: Mobile knuseverk knusetrinn 3
D88: 8.14.0 | E88: Dieseldrevet finknuser | F88: n/a | G88: n/a | K88: Totalt utslipp lagt i utslippsfaktorer
D89: 8.14.1 | E89: Elektrisk finknuser | F89: n/a | G89: =IF(I89>0,I89,H89) -> 0 | K89: Totalt utslipp lagt i utslippsfaktorer

Sheet 09. Utslippsfaktorer
D2: 09. Utslippsfaktorer
O6: Nr. | P6: Type | Q6: Enhet | R6: Brukt i beregninger | S6: Forsuring | T6: Eutrofiering | U6: Fotokjemisk smog | V6: Akkumulert energibruk | X6: Standard | Y6: Enhet | Z6: Standard | AA6: Forsuring | AB6: Eutrofiering | AC6: Fotokjemisk smog | AD6: Akkumulert energibruk | AF6: Forutsetninger og grunnlag for standard utslippsfaktorer | AH6: Egendefinert | AI6: Enhet | AJ6: Egendefinerte verdier | AK6: Forsuring | AL6: Eutrofiering | AM6: Fotokjemisk smog | AN6: Akkumulert energibruk | AP6: Forutsetninger og grunnlag for egenefinerte utslippsfaktorer
R7: kg CO2-ekv. | S7: kg SO2-ekv. | T7: kg P-ekv. | U7: kg NMVOC | V7: MJ | Z7: kg CO2-ekv. | AA7: kg SO2-ekv. | AB7: kg P-ekv. | AC7: kg NMVOC | AD7: MJ | AJ7: kg CO2-eq | AK7: kg SO2-eq | AL7: kg P-eq | AM7: kg NMVOC | AN7: MJ
O9: 8.15.1 | P9: =IF(X9=0,"",X9) -> Elektrisitet | Q9: kWh | R9: =IF(AJ9>0,AJ9,Z9) -> 0.026 | S9: =IF(AK9>0,AK9,AA9) -> 0.000441602964 | T9: =IF(AL9>0,AL9,AB9) -> 8.60102532e-05 | U9: =IF(AM9>0,AM9,AC9) -> 0.0002318361588 | V9: =IF(AN9>0,AN9,AD9) -> 7.32872016 | X9: Elektrisitet | Y9: kWh | Z9: 0.026 | AA9: 0.000441602964 | AB9: 8.60102532e-05 | AC9: 0.0002318361588 | AD9: 7.32872016 | AF9: VegLCA v4.10 av Asplan Viak AS. Norsk miks per i dag. Basert på NS3720:2018. | AH9: =IF(X9=0,"",X9) -> Elektrisitet | AI9: kWh
O10: 8.15.2 | P10: Elektrisitet - MJ | Q10: MJ | R10: =IF(AJ10>0,AJ10,Z10) -> 0.0936 | S10: 0.00158977067 | T10: 0.0003096369115 | U10: 0.0008346101717 | V10: =IF(AN10>0,AN10,AD10) -> 26.38339258 | X10: Elektrisitet - MJ | Y10: MJ | Z10: =Z9*3.6 -> 0.0936 | AA10: =AA9*3.6 -> 0.00158977067 | AB10: 0.0003096369115 | AC10: 0.0008346101717 | AD10: 26.38339258 | AF10: VegLCA v4.10 av Asplan Viak AS. Norsk miks per i dag. Basert på NS3720:2018. Konvertert fra kWh. | AH10: Elektrisitet - MJ | AI10: MJ
O11: 8.15.3 | P11: Diesel | Q11: l | R11: 3.1476 | S11: 0 | T11: 0 | U11: 0 | V11: 0 | X11: Diesel | Y11: l | Z11: 3.1476 | AF11: Typisk norsk diesel med 93 % fossil diesel og 7 % biodiesel. Beregnet basert på utslippsfaktorer for diesel og biodiesel hentet fra EN 16258 Tabell A.1 via NV-GHG 2.3. | AH11: Diesel | AI11: l
O12: 8.15.4 | P12: Biodiesel | Q12: l | R12: 1.92 | S12: 0 | T12: 0 | U12: 0 | V12: 0 | X12: Biodiesel | Y12: l | Z12: 1.92 | AF12: NS-EN 16258:2012, Tabell A.1 Biodiesel "well to tank" via NV-GHG 2.3. Direkte utslipp er ikke inkludert. | AH12: Biodiesel | AI12: l
O13: 8.15.5 | P13: Biogass | Q13: =IF(Y13=0,"",Y13) -> MJ | R13: =IF(AJ13>0,AJ13,Z13) -> 0.04 | S13: =IF(AK13>0,AK13,AA13) -> 0 | T13: =IF(AL13>0,AL13,AB13) -> 0 | U13: =IF(AM13>0,AM13,AC13) -> 0 | V13: =IF(AN13>0,AN13,AD13) -> 0 | X13: Biogass | Y13: MJ | Z13: 0.04 | AF13: Anslått basert på verdier oppgitt i "Well-to-wheel analysis of bio-methane via gasification, in heavy duty engines within the transport sector of the European Union," Alamiaa, A., et al., Applied Energy (2016), "Biogassproduksjon fra matavfall og møkk fra ku, gris og fjørfe. Status 2016 (fase IV) for miljønytte for den norske biogassmodellen BioValueChain," Modahl, Ingunn S., et al., Østfoldforskning (2016), SimaPro v9.4.0.2 (4) med databasen Ecoinvent v3.8 og metoden ReCiPe 2016 Midpoint (H) v1.07. | AH13: Biogass | AI13: MJ
O14: 8.15.6 | P14: Lastebil >32 tonn, euro 6 | Q14: tkm | R14: 0.0176 | S14: =IF(AK14>0,AK14,AA14) -> 8.24e-05 | T14: =IF(AL14>0,AL14,AB14) -> 5.55e-06 | X14: Lastebil >32 tonn, euro 6 | Y14: tkm | Z14: 0.0176 | AA14: 8.24e-05 | AB14: 5.55e-06 | AF14: Ecoinvent 3.6: Transport, freight, lorry >32 metric ton, EURO6 {RER} | transport, freight, lorry >32 metric ton, EURO6 | Cut-off, U. Inkluderer produksjon av kjøretøy, vedlikehold av kjøretøy, bygging av vei og vedlikehold av vei. Inkluderer ikke produksjon og forbrenning av drivstoff. | AH14: Lastebil >32 tonn, euro 6 | AI14: tkm
B15: Euro 5 16-32 t | O15: 8.15.7 | P15: Lastebil 16-32 tonn, euro 5 | Q15: tkm | R15: 0.0257 | S15: 0.000119 | T15: 1.05e-05 | U15: 0 | V15: 0 | X15: Lastebil 16-32 tonn, euro 5 | Y15: tkm | Z15: 0.0257 | AA15: 0.000119 | AB15: 1.05e-05 | AF15: Ecoinvent 3.6: Transport, freight, lorry 16-32 metric ton, EURO5 {RER} | transport, freight, lorry 16-32 metric ton, EURO5 | Cut-off, U. Inkluderer produksjon av kjøretøy, vedlikehold av kjøretøy, bygging av vei og vedlikehold av vei. Inkluderer ikke produksjon og forbrenning av drivstoff. | AH15: Lastebil 16-32 tonn, euro 5 | AI15: tkm
B16: Euro 6 16-32 t | O16: 8.15.8 | P16: Lastebil 16-32 tonn, euro 6 | Q16: tkm | R16: 0.0257 | S16: 0.000119 | T16: 1.05e-05 | U16: 0 | V16: 0 | X16: Lastebil 16-32 tonn, euro 6 | Y16: tkm | Z16: 0.0257 | AA16: 0.000119 | AB16: 1.05e-05 | AF16: Ecoinvent 3.6: Transport, freight, lorry 16-32 metric ton, EURO6 {RER} | transport, freight, lorry 16-32 metric ton, EURO6 | Cut-off, U. Inkluderer produksjon av kjøretøy, vedlikehold av kjøretøy, bygging av vei og vedlikehold av vei. Inkluderer ikke produksjon og forbrenning av drivstoff. | AH16: Lastebil 16-32 tonn, euro 6 | AI16: tkm
B17: Elektrisk lastebil | O17: 8.15.9 | P17: =IF(X17=0,"",X17) -> Plug-in hybridlastebil uten drivstoff | Q17: =IF(Y17=0,"",Y17) -> tkm | R17: =IF(AJ17>0,AJ17,Z17) -> 0.032708 | S17: =IF(AK17>0,AK17,AA17) -> 0 | T17: =IF(AL17>0,AL17,AB17) -> 0 | U17: =IF(AM17>0,AM17,AC17) -> 0 | V17: =IF(AN17>0,AN17,AD17) -> 0 | X17: Plug-in hybridlastebil uten drivstoff | Y17: tkm | Z17: 0.032708 | AF17: Tilnærmet lik utslippsfaktor for elektrisk lastebil uten drivstoff. I virkeligheten er sannsynligvis produksjonsutslipp for en hybridlastebil høyere enn for en elektrisk lastebil. | AH17: Plug-in hybridlastebil uten drivstoff | AI17: tkm
B18: Lastebil 28 t | O18: 8.15.10 | P18: Elektrisk lastebil uten drivstoff | Q18: tkm | R18: 0.032708 | S18: 0 | T18: 0 | U18: 0 | V18: 0 | X18: Elektrisk lastebil uten drivstoff | Y18: tkm | Z18: 0.032708 | AF18: Basert på produksjon av Volvo FE Electric beregnet på https://www.volvotrucks.com/en-en/trucks/alternative-fuels/environmental-footprint/environment-footprint-calculator.html og Ecoinvent 3.6: Transport, freight, lorry 16-32 metric ton, EURO6 {RER} | transport, freight, lorry 16-32 metric ton, EURO6 | Cut-off, U. I Ecoinvent-prosessen er vedlikehold av kjøretøy, bygging av vei og vedlikehold av vei inkludert. Produksjonsutslipp basert på Volvo sine beregninger er lagt til utslippsfaktoren vha. samme faktor for andel kjøretøy per tkm som i Ecoinvent-prosessen. | AH18: Elektrisk lastebil uten drivstoff | AI18: tkm
B19: Lekter 1900 t | O19: 8.15.11 | P19: Lekter | Q19: tkm | R19: 0.00523 | S19: 0 | T19: 0 | U19: 0 | V19: 0 | X19: Lekter | Y19: tkm | Z19: 0.00523 | AF19: Ecoinvent 3.6: Transport, freight, inland waterways, barge {RER}| processing | Alloc Rec, U. Inkluderer produksjon og vedlikehold av 1000 t-lekter og konstruksjon av havn. Konstruksjon av kanal og dieselforbruk er fjernet fra prosessen. | AH19: Lekter | AI19: tkm
O20: 8.15.12 | P20: Hjullaster | Q20: lm3 | R20: 0 | S20: 0 | T20: 0 | U20: 0 | V20: 0 | X20: Hjullaster | Y20: lm3 | AF20: Ikke data. | AH20: Hjullaster | AI20: lm3
O21: 8.15.13 | P21: Gravemaskin hydraulisk uten drivstoff | Q21: lm3 | R21: 0.053 | S21: 0 | T21: 0 | U21: 0 | V21: 0 | X21: Gravemaskin hydraulisk uten drivstoff | Y21: lm3 | Z21: 0.053 | AF21: Ecoinvent 3.6: Excavation, hydraulic digger {RER}| processing | Cut-Off, U. Produksjon, drift og avfall for hydraulisk gravemaskin. Forbrenning og produksjon av diesel er fjernet fra prosessen. Benyttes både for dieseldrevet og elektrisk gravemaskin som en tilnærming. | AH21: Gravemaskin hydraulisk uten drivstoff | AI21: lm3
O22: 8.15.14 | P22: Pukkverk knusetrinn 1 inkl. sprengning | Q22: tonn | R22: 2.2 | S22: 0 | T22: 0 | U22: 0 | V22: 0 | X22: Pukkverk knusetrinn 1 inkl. sprengning | Y22: tonn | Z22: =AVERAGE(2.06,2.34) -> 2.2 | AF22: Foreløpig verdi basert på gjennomsnitt EPDer for feiring bruk: NEPD-1601-631-NO og NEPD-1602-632-NO. Inkluderer sprengning, transport m.m. | AH22: Pukkverk knusetrinn 1 inkl. sprengning | AI22: tonn
O23: 8.15.15 | P23: =IF(X23=0,"",X23) -> Pukkverk knusetrinn 2 inkl. sprengning | Q23: tonn | R23: 2.375 | S23: 0 | T23: 0 | U23: 0 | V23: 0 | X23: Pukkverk knusetrinn 2 inkl. sprengning | Y23: tonn | Z23: =AVERAGE(2.2,2.55) -> 2.375 | AF23: Foreløpig verdi basert på gjennomsnitt EPDer for feiring bruk: NEPD-1601-631-NO og NEPD-1602-632-NO. Inkluderer sprengning, transport m.m | AH23: Pukkverk knusetrinn 2 inkl. sprengning | AI23: tonn
O24: 8.15.16 | P24: Pukkverk knusetrinn 3 inkl. sprengning | Q24: tonn | R24: 2.595 | S24: 0 | T24: 0 | U24: 0 | V24: 0 | X24: Pukkverk knusetrinn 3 inkl. sprengning | Y24: tonn | Z24: =AVERAGE(2.44,2.75) -> 2.595 | AF24: Foreløpig verdi basert på gjennomsnitt EPDer for feiring bruk: NEPD-1601-631-NO og NEPD-1602-632-NO. Inkluderer sprengning, transport m.m | AH24: Pukkverk knusetrinn 3 inkl. sprengning | AI24: tonn
O25: 8.15.17 | P25: =IF(X25=0,"",X25) -> Pukkverk knusetrinn 0 inkl. sprengning | Q25: tonn | R25: 2.13 | S25: 0 | T25: 0 | U25: 0 | V25: 0 | X25: Pukkverk knusetrinn 0 inkl. sprengning | Y25: tonn | Z25: =AVERAGE(2.04,2.22) -> 2.13 | AF25: Foreløpig verdi basert på gjennomsnitt EPDer for feiring bruk: NEPD-1601-631-NO og NEPD-1602-632-NO. Inkluderer sprengning, transport m.m | AH25: =IF(X25=0,"",X25) -> Pukkverk knusetrinn 0 inkl. sprengning | AI25: tonn
O26: 8.15.18 | P26: Mobilt knuseverk: dieseldrevet grovknuser, knusetrinn 1 | Q26: tonn | R26: 1.03 | S26: 0 | T26: 0 | U26: 0 | V26: 0 | X26: Mobilt knuseverk: dieseldrevet grovknuser, knusetrinn 1 | Y26: tonn | Z26: 1.03 | AF26: Gjennomsnitt av 6 ulike dieseldrevne grovknusere fra Gunnar Holth Grusforretning. Utslippsfaktoren inkluderer lasting til knuser med dieseldrevet gravemaskin, transport av diesel til knuser og maskiner, forbruk av diesel, lasting med dieseldrevet hjullaster fra knuser og behandling av avfall produsert. Sprenging og transport av masser til og fra knuser er ikke inkludert. Utslippsfaktorene er beregnet med EPD-generatoren på LCA.no og mottatt fra Gunnar Holth Grusforretning 15.01.21. | AH26: Mobilt knuseverk: dieseldrevet grovknuser, knusetrinn 1 | AI26: tonn
O27: 8.15.19 | P27: Mobilt knuseverk: elektrisk grovknuser, knusetrinn 1 | Q27: tonn | R27: 0.727 | X27: Mobilt knuseverk: elektrisk grovknuser, knusetrinn 1 | Y27: tonn | Z27: 0.727 | AF27: Gjennomsnitt for knusetrinn 1 med elektrisk grovknuser fra Gunnar Holth Grusforretning. Utslippsfaktoren inkluderer lasting til knusing med dieseldrevet gravemaskin, transport av diesel til maskiner, forbruk av elektrisitet, lasting med dieseldrevet hjullaster fra knuser og behandling av avfall produsert. Sprenging og transport av masser til og fra knuser er ikke inkludert. Utslippsfaktorene er beregnet med EPD-generatoren på LCA.no og mottatt fra Gunnar Holth Grusforretning 19.01.21. | AH27: Mobilt knuseverk: elektrisk grovknuser, knusetrinn 1 | AI27: tonn
O28: 8.15.20 | P28: Mobilt knuseverk: dieseldrevet spindelknuser, knusetrinn 2 | Q28: tonn | R28: 0.597 | S28: 0 | T28: 0 | U28: 0 | V28: 0 | X28: Mobilt knuseverk: dieseldrevet spindelknuser, knusetrinn 2 | Y28: tonn | Z28: 0.597 | AF28: Gjennomsnitt for knusetrinn 2 med dieseldrevet spindelknuser fra Gunnar Holth Grusforretning. Utslippsfaktoren inkluderer lasting til knuser med dieseldrevet gravemaskin, transport av diesel til knuser og maskiner, forbruk av diesel, lasting med dieseldrevet hjullaster fra knuser og behandling av avfall produsert. Sprenging og transport av masser til og fra knuser er ikke inkludert. Utslippsfaktorene er beregnet med EPD-generatoren på LCA.no og mottatt fra Gunnar Holth Grusforretning 15.01.21. | AH28: Mobilt knuseverk: dieseldrevet spindelknuser, knusetrinn 2 | AI28: tonn
O29: 8.15.21 | P29: Mobilt knuseverk: elektrisk spindelknuser, knusetrinn 2 | Q29: tonn | R29: 0.239 | X29: Mobilt knuseverk: elektrisk spindelknuser, knusetrinn 2 | Y29: tonn | Z29: 0.239 | AF29: Verdi for knusetrinn 2 med elektrisk spindelknuser fra Gunnar Holth Grusforretning. Utslippsfaktoren inkluderer lasting til knusing med dieseldrevet gravemaskin, transport av diesel til maskiner, forbruk av elektrisitet, lasting med dieseldrevet hjullaster fra knuser og behandling av avfall produsert. Sprenging og transport av masser til og fra knuser er ikke inkludert. Utslippsfaktorene er beregnet med EPD-generatoren på LCA.no og mottatt fra Gunnar Holth Grusforretning 20.01.21. | AH29: Mobilt knuseverk: elektrisk spindelknuser, knusetrinn 2 | AI29: tonn
O30: 8.15.22 | P30: Mobilt knuseverk: dieseldrevet finknuser, knusetrinn 3 | Q30: tonn | R30: 0.89 | S30: 0 | T30: 0 | U30: 0 | V30: 0 | X30: Mobilt knuseverk: dieseldrevet finknuser, knusetrinn 3 | Y30: tonn | Z30: 0.89 | AF30: Gjennomsnitt av 7 ulike dieseldrevne finknusere fra Gunnar Holth Grusforretning. Utslippsfaktoren inkluderer lasting til knuser med dieseldrevet gravemaskin, transport av diesel til knuser og maskiner, forbruk av diesel, lasting med dieseldrevet hjullaster fra knuser og behandling av avfall produsert. Sprenging og transport av masser til og fra knuser er ikke inkludert. Utslippsfaktorene er beregnet med EPD-generatoren på LCA.no og mottatt fra Gunnar Holth Grusforretning 15.01.21. | AH30: Mobilt knuseverk: dieseldrevet finknuser, knusetrinn 3 | AI30: tonn
O31: 8.15.23 | P31: Mobilt knuseverk: elektrisk finknuser, knusetrinn 3 | Q31: tonn | R31: 0.668 | X31: Mobilt knuseverk: elektrisk finknuser, knusetrinn 3 | Y31: tonn | Z31: 0.668 | AF31: Gjennomsnitt for knusetrinn 3 med elektrisk finknuser fra Gunnar Holth Grusforretning. Utslippsfaktoren inkluderer lasting til knusing med dieseldrevet gravemaskin, transport av diesel til maskiner, forbruk av elektrisitet, lasting med dieseldrevet hjullaster fra knuser og behandling av avfall produsert. Sprenging og transport av masser til og fra knuser er ikke inkludert. Utslippsfaktorene er beregnet med EPD-generatoren på LCA.no og mottatt fra Gunnar Holth Grusforretning 20.01.21. | AH31: Mobilt knuseverk: elektrisk finknuser, knusetrinn 3 | AI31: tonn
O32: 8.15.24 | P32: Pukkverk knusetrinn 1 ekskl. sprengning | Q32: tonn | R32: 0.0877 | S32: 0 | T32: 0 | U32: 0 | V32: 0 | X32: Pukkverk knusetrinn 1 ekskl. sprengning | Y32: tonn | Z32: 0.0877 | AF32: Basert på EPD generert av Feiring Bruk spesielt til dette formålet. Sprengning og relaterte prosesser er ekskludert, slik at kun utslippene til knusing er inkludert. Benyttes ikke i nåværende versjon. | AH32: Pukkverk knusetrinn 1 ekskl. sprengning | AI32: tonn
O33: 8.15.25 | P33: Pukkverk knusetrinn 2 ekskl. sprengning | Q33: tonn | R33: 0.209 | S33: 0 | T33: 0 | U33: 0 | V33: 0 | X33: Pukkverk knusetrinn 2 ekskl. sprengning | Y33: tonn | Z33: 0.209 | AF33: Basert på EPD generert av Feiring Bruk spesielt til dette formålet. Sprengning og relaterte prosesser er ekskludert, slik at kun utslippene til knusing er inkludert. Benyttes ikke i nåværende versjon. | AH33: Pukkverk knusetrinn 2 ekskl. sprengning | AI33: tonn
O34: 8.15.26 | P34: Pukkverk knusetrinn 3 ekskl. sprengning | Q34: tonn | R34: 0.414 | S34: 0 | T34: 0 | U34: 0 | V34: 0 | X34: Pukkverk knusetrinn 3 ekskl. sprengning | Y34: tonn | Z34: 0.414 | AF34: Basert på EPD generert av Feiring Bruk spesielt til dette formålet. Sprengning og relaterte prosesser er ekskludert, slik at kun utslippene til knusing er inkludert. Benyttes ikke i nåværende versjon. | AH34: Pukkverk knusetrinn 3 ekskl. sprengning | AI34: tonn
O35: 8.15.27 | R35: 0 | S35: 0 | T35: 0 | U35: 0 | V35: 0
O36: 8.15.28 | R36: 0 | S36: 0 | T36: 0 | U36: 0 | V36: 0
O37: 8.15.29 | R37: 0 | S37: 0 | T37: 0 | U37: 0 | V37: 0
O38: 8.15.30 | R38: 0 | S38: 0 | T38: 0 | U38: 0 | V38: 0
O39: 8.15.31 | R39: 0 | S39: 0 | T39: 0 | U39: 0 | V39: 0
O40: 8.15.32 | R40: 0 | S40: 0 | T40: 0 | U40: 0 | V40: 0
O41: 8.15.33 | R41: 0 | S41: 0 | T41: 0 | U41: 0 | V41: 0 | AH41: =IF(X41=0,"",X41) -> 
O42: 8.15.34 | R42: 0 | S42: 0 | T42: 0 | U42: 0 | V42: 0
O43: 8.15.35 | R43: 0 | S43: 0 | T43: 0 | U43: 0 | V43: 0
O44: 8.15.36 | R44: 0 | S44: 0 | T44: 0 | U44: 0 | V44: 0

Sheet Revisjonslogg
B3: Versjon | C3: Dato | D3: Kontaktperson | E3: Endring fra forrige versjon
B4: 2.0 | C4: 2021-03-21 | D4: Julie Sandnes Galaaen, julie.galaaen@multiconsult.no
B5: 2.1 | C5: 2023-02-03 | D5: Julie Sandnes Galaaen, julie.galaaen@multiconsult.no | E5: Lagt til biogasslastebil.
B6: 2.2 | C6: 2023-11-16 | D6: Julie Sandnes Galaaen, julie.galaaen@multiconsult.no | E6: Rettet formler for beregning av lasting og transport.
